{"text_format":"1","workbook":"xlsx","n_sheets":6,"sheets":["Page 1","Page 2","Page 3","Page 4","Scoring Form","Plants table"],"not_rendered":{"charts":0,"images":0,"macros":1,"external_links":0,"defined_names":0,"comments":0,"pivot_tables":0},"unopened":[],"bounds":{"document_bytes":16777216,"sheet_cells":100000,"rows_first":2000,"rows_last":500,"rows_between":2000,"halvings":0,"cell_chars":16384,"cell_head_chars":4096},"cells_cut":0,"cells_raw":0,"read":"whole","date_system":"1900"}

{"sheet":"Page 1","index":0,"n_rows":65,"n_cols":10,"rows_kept":65,"cut":false,"hidden":false,"merged":[[62,1,62,2],[62,3,62,6],[64,1,64,9],[57,2,57,4],[57,6,57,7],[58,0,60,0],[58,2,58,4],[58,6,58,7],[59,2,59,4],[59,6,59,7],[60,2,60,4],[60,6,60,7],[49,0,55,0],[49,2,49,4],[49,6,49,9],[50,2,50,4],[50,6,50,9],[51,2,51,4],[52,2,52,4],[52,6,52,9],[53,2,53,4],[53,6,53,9],[54,2,54,4],[39,0,39,2],[46,0,46,2],[46,7,46,8],[48,2,48,4],[48,6,48,9],[34,2,34,4],[34,6,34,9],[35,7,35,9],[37,0,37,2],[38,0,38,2],[31,2,31,4],[31,6,31,9],[32,2,32,4],[32,6,32,9],[33,2,33,4],[33,6,33,9],[29,0,29,1],[29,2,29,3],[29,4,29,8],[30,2,30,4],[30,6,30,9],[26,0,26,1],[27,0,27,1],[28,0,28,1],[28,2,28,3],[28,4,28,8],[11,0,11,9],[12,0,17,9],[20,0,20,9],[22,0,24,9],[25,0,25,1],[25,2,25,8],[6,1,6,4],[6,8,6,9],[7,0,7,1],[7,2,7,3],[7,5,7,9],[0,0,0,9],[2,1,2,9],[4,0,4,1],[4,2,4,3],[4,4,4,5],[4,6,4,8]]}
["MARYLAND WETLAND ECOLOGICAL INTEGRITY ASSESSMENT: Piedmont Region"]
[]
["How to use this form:","Cells with a yellow or orange background are intended to accept user input, and cells with a green background will automatically fill or calculate based on input to other cells. Green cells do not need to be edited by the user. Orange cells are only intended to accept a small list of acceptable input terms, and will show a drop-down box to choose one of these options if the cell is selected.\n\nACOE Delineation Excel Workbooks may be found at this page under \"General Information\": https://www.usace.army.mil/Missions/Civil-Works/Regulatory-Program-and-Permits/reg_supp/\n\nPlease ensure that the linked ACOE workbook does not have any special characters (Such as parentheses) in its filename, as this will cause the \"Import Data\" function to not work. This workbook will only read plants from the 4-strata plants page of the ACOE Wetland Delineation. Data from the linked ACOE Wetland Delineation is only copied over once each time the \"Import Data\" button is clicked, and will not automatically refresh. If you make changes on the ACOE Wetland Delineation, you will need to click \"Import Data\" again to copy any changes into this document.\n\nMake sure that Macros aren't disabled on this document before running \"Import Data\", this can be found by going to your file browser, right-clicking on this document, and selecting \"Unblock\" from the \"Security\" section near the bottom of the Properties dialog. Additionally, under File>Options>Advanced, check the box under Link Handling to open supported hyperlinks to Office files.\n\nWhen saving, please select the filetype \"Excel Macro-enabled workbook (*.xlsm)\"."]
[]
["Associated ACOE Wetland Delineation"]
[]
["Project/Site Name:",{"$f":"INDIRECT(\"'Page 1 (Hydrology)'!$G$2\")","v":{"$error":"#REF!"}},null,null,null,"City/County:",{"$f":"INDIRECT(\"'Page 1 (Hydrology)'!$AC$2\")","v":{"$error":"#REF!"}},"Sampling Date:",{"$f":"INDIRECT(\"'Page 1 (Hydrology)'!$AP$2\")","v":{"$error":"#REF!"}}]
["Assessment Area Name (if >1 AA):",null,{"$f":"INDIRECT(\"'Page 1 (Hydrology)'!$AP$3\")","v":{"$error":"#REF!"}},null,"Observer(s):",{"$f":"INDIRECT(\"'Page 1 (Hydrology)'!$H$4\")","v":{"$error":"#REF!"}}]
["Delineation performed:",null,"Latitude:",{"$f":"INDIRECT(\"'Page 1 (Hydrology)'!$R$6\")","v":{"$error":"#REF!"}},"Longitude:",{"$f":"INDIRECT(\"'Page 1 (Hydrology)'!$AE$6\")","v":{"$error":"#REF!"}},"AA size:",null,"units"]
[]
[]
["Site Description: (general landscape setting, overview of riparian corridor, presence of braided/multithread system, topography including karst, vegetation patterns, complexity and habitat richness; human and natural disturbance as indicated by spoil piles, beaver activity, dumping, vegetation removal, pest impacts, excessive flow; description of adjacent stream and sources/evidence of water input or alterations such as culverts, roads/trails, sediment). Representative site photographs of soil, nearest stream channel and banks, and vegetation are useful to show the features present. "]
[]
[]
[]
[]
[]
[]
[]
[]
["LANDSCAPE ASSESSMENT FOR PROJECT AREA (Section 3; office and field assessment):"]
["Field observations to assist with scoring of buffers, aquatic context, or size of AA:"]
[]
[]
[]
[null,null,"METRIC",null,null,null,null,null,null,"SCORE"]
["Buffer Perimeter:",null,"Length natural:",null,"Length unnatural:",null,"%Natural:",{"$f":"IF(ISBLANK(F27),\"\",100*D27/(D27+F27))","v":""},null,{"$f":"IF(H27=\"\",\"\",IF(H27>95,4,IF(H27>=85,3,IF(H27>=75,2,1))))","v":""}]
["Buffer Condition:",null,"Length natural:",null,"Length unnatural:",null,"%Natural:",{"$f":"IF(ISBLANK(F28),\"\",100*D28/(D28+F28))","v":""},null,{"$f":"IF(H28=\"\",\"\",IF(H28>90,4,IF(H28>=75,3,IF(H28>=50,2,1))))","v":""}]
["Aquatic Context: # of aquatic resources:",null,null,null,null,null,null,null,null,{"$f":"IF(C29=\"\",\"\",IF(C29>=4,4,IF(C29=3,3,IF(C29=2,2,IF(C29>=0,1,\"\")))))","v":""}]
["Comparative Size:",null,null,null,null,null,null,null,null,{"$f":"IF(C30 = \"Very large\", 4, IF(C30=\"Large\", 3, IF(C30=\"Medium to small\",2, IF(C30=\"Small to very small\", 1, \"\"))))","v":""}]
["Source(s) of size reduction:"," ","Beaver dam or lodge",null,null,null,"Trail"]
[null,null,"Road",null,null,null,"Railroad"]
[null,null,"Development",null,null,null,"Agriculture"]
[null,null,"Impoundment",null,null,null,"Human-constructed drainage (Into or out of wetland)"]
[null,null,"Excavation",null,null,null,"Fill"]
[null,null,"Groundwater extraction",null,null,null,"Other – describe:"]
[]
["From StreamStats: Impervious Surface in project area basin:"]
["Forest Cover in project area basin:"]
["%limestone geology:"]
[]
["Additional channels in project area visible on LiDAR Hillshade image:"]
[]
[]
[]
["WETLAND ASSESSMENT AREA ONLY:"]
["ENVIRONMENTAL INFORMATION (Section 4.2)",null,null,null,null,"Slope (deg/%):",null,"Aspect (if applicable):"]
[]
["Landscape position:",null,"Active floodplain (Depression or terrace)",null,null," ","Riparian-Depression (In floodplain)"]
["Select all features present"," ","Headwater stream/spring",null,null," ","Swale"]
[null," ","Oxbow",null,null," ","Streambank"]
[null," ","Flats",null,null," ","Riparian terrace (outside seasonal flooding; historic floodplain or current terrace)"]
[null," ","Beaver pond/Natural impoundment",null,null," ","Isolated depression"]
[null," ","Seep/groundwater discharge site (toe slope)",null,null," ","Point bar"]
[null," ","Wetland charged by groundwater seeps (hill slope)",null,null," ","Other – describe:"]
[null," ","Braided Channels"]
[]
["Water Source:",null,"Direct precipitation",null,null,null,"Overbank flooding"]
["If more than one source is present, label as P (primary),   S (Secondary), T (tertiary)",null,"Groundwater discharge",null,null,null,"High Groundwater"]
[null,null,"Natural surface flow",null,null,null,"Irrigation"]
[null,null,"Urban run-off/culverts",null,null,null,"Pipes/outfall (directly feeding wetland)"]
[]
["Hydrological Regime:",null,null,"Select the regime that best matches the conditions in the AA (see Manual for definitions)"]
[]
["Observations/comments:"]

{"sheet":"Page 2","index":1,"n_rows":81,"n_cols":13,"rows_kept":81,"cut":false,"hidden":false,"merged":[[15,8,15,9],[64,4,64,5],[76,0,76,1],[69,8,69,9],[15,10,15,11],[69,3,69,5],[71,0,71,1],[72,8,72,9],[74,0,74,1],[74,2,74,3],[63,0,63,1],[66,0,66,1],[66,2,66,3],[68,0,68,1],[49,2,49,4],[53,2,54,10],[56,0,56,12],[58,0,58,1],[61,4,61,5],[40,8,40,9],[42,10,42,11],[44,0,44,1],[44,2,44,3],[46,2,46,3],[27,0,27,1],[29,10,29,11],[32,2,32,4],[33,2,33,4],[34,1,34,4],[34,10,34,11],[25,0,25,1],[25,2,25,6],[25,10,25,11],[23,0,23,1],[23,2,23,6],[23,10,23,11],[16,1,16,10],[17,0,17,1],[17,2,17,10],[21,0,21,1],[21,4,21,5],[21,8,21,9],[21,10,21,11],[8,1,8,3],[8,4,8,10],[9,2,9,5],[12,0,12,12],[14,2,14,4],[0,0,0,12],[1,0,1,12],[3,2,3,5],[3,8,3,9],[7,2,7,5],[7,8,7,10]]}
["MARYLAND WETLAND ECOLOGICAL INTEGRITY ASSESSMENT: Piedmont Region"]
["Page 2: KWH Classification, Soil, Hydrology part 1"]
[]
[null,"Project/Site Name:",{"$f":"IF(ISBLANK('Page 1'!B7),\"\",'Page 1'!B7)","v":{"$error":"#REF!"}},null,null,null,null,null,null,null,null,"Sampling Date:",{"$f":"IF(ISBLANK('Page 1'!I7),\"\",'Page 1'!I7)","v":{"$error":"#REF!"}}]
[]
[]
["CLASSIFICATION OF AA TO KEY WILDLIFE HABITAT AND HGM CLASS (Section 4.3)"]
[null,"Key Wildlife Habitat:",null,null,null,null,null,"HGM Class:"]
[null,"Optional: NVC Community Type/Plant Association:"]
[null,"Stream Key Wildlife Habitat:"]
[]
[]
["SOIL/SUBSTRATE (Section 4.4)"]
["Note: if the floodplain does not naturally have hydric soils and/or does not have functioning hydric soils under current conditions, only score Microtopography and Organic Matter Accumulation, and Soil Disturbance."]
[null,"Mapped soil type:",{"$f":"INDIRECT(\"'Page 1 (Hydrology)'!I7\")","v":{"$error":"#REF!"}},null,null,"Depth to water table:",{"$f":"INDIRECT(\"'Page 1 (Hydrology)'!W39\")","v":{"$error":"#REF!"}},"Hydric soil?",{"$f":"IF(OR(INDIRECT(\"'Page 1 (Hydrology)'!Q13\")=\"X\",INDIRECT(\"'Page 3 (Soil)'!BE31\")=\"X\"),\"Y\",\"N\")","v":{"$error":"#REF!"}},"Hydric soil indicators:",{"$f":"CONCATENATE(IF(INDIRECT(\"'Page 3 (Soil)'!W15\")=\"X\",INDIRECT(\"'Page 3 (Soil)'!X15\"),\"\"), \",\",\nIF(INDIRECT(\"'Page 3 (Soil)'!W16\")=\"X\",INDIRECT(\"'Page 3 (Soil)'!X16\"),\"\"), \",\",\nIF(INDIRECT(\"'Page 3 (Soil)'!W17\")=\"X\",INDIRECT(\"'Page 3 (Soil)'!X17\"),\"\"), \",\",\nIF(INDIRECT(\"'Page 3 (Soil)'!W18\")=\"X\",INDIRECT(\"'Page 3 (Soil)'!X18\"),\"\"), \",\",\nIF(INDIRECT(\"'Page 3 (Soil)'!W19\")=\"X\",INDIRECT(\"'Page 3 (Soil)'!X19\"),\"\"), \",\",\nIF(INDIRECT(\"'Page 3 (Soil)'!W20\")=\"X\",INDIRECT(\"'Page 3 (Soil)'!X20\"),\"\"), \",\",\nIF(INDIRECT(\"'Page 3 (Soil)'!W21\")=\"X\",INDIRECT(\"'Page 3 (Soil)'!X21\"),\"\"), \",\",\nIF(INDIRECT(\"'Page 3 (Soil)'!W22\")=\"X\",INDIRECT(\"'Page 3 (Soil)'!X22\"),\"\"), \",\",\nIF(INDIRECT(\"'Page 3 (Soil)'!W23\")=\"X\",INDIRECT(\"'Page 3 (Soil)'!X23\"),\"\"), \",\",\nIF(INDIRECT(\"'Page 3 (Soil)'!W25\")=\"X\",INDIRECT(\"'Page 3 (Soil)'!X25\"),\"\"), \",\",\nIF(INDIRECT(\"'Page 3 (Soil)'!W26\")=\"X\",INDIRECT(\"'Page 3 (Soil)'!X26\"),\"\"), \",\",\nIF(INDIRECT(\"'Page 3 (Soil)'!W27\")=\"X\",INDIRECT(\"'Page 3 (Soil)'!X27\"),\"\"), \",\",\nIF(INDIRECT(\"'Page 3 (Soil)'!AW15\")=\"X\",INDIRECT(\"'Page 3 (Soil)'!AX15\"),\"\"), \",\",\nIF(INDIRECT(\"'Page 3 (Soil)'!AW16\")=\"X\",INDIRECT(\"'Page 3 (Soil)'!AX16\"),\"\"), \",\",\nIF(INDIRECT(\"'Page 3 (Soil)'!AW18\")=\"X\",INDIRECT(\"'Page 3 (Soil)'!AX18\"),\"\"), \",\",\nIF(INDIRECT(\"'Page 3 (Soil)'!AW20\")=\"X\",INDIRECT(\"'Page 3 (Soil)'!AX20\"),\"\"), \",\",\nIF(INDIRECT(\"'Page 3 (Soil)'!AW22\")=\"X\",INDIRECT(\"'Page 3 (Soil)'!AX22\"),\"\"), \",\",\nIF(INDIRECT(\"'Page 3 (Soil)'!AW23\")=\"X\",INDIRECT(\"'Page 3 (Soil)'!AX23\"),\"\"))","v":{"$error":"#REF!"}}]
[null,"Depth of O horizon:",{"$f":"IF(OR(INDIRECT(\"'Page 3 (Soil)'!AQ6\")=\"Muck\",INDIRECT(\"'Page 3 (Soil)'!AQ6\")=\"Mucky Peat\",INDIRECT(\"'Page 3 (Soil)'!AQ6\")=\"Peat\"),VALUE(RIGHT(INDIRECT(\"'Page 3 (Soil)'!B6\"),LEN(INDIRECT(\"'Page 3 (Soil)'!B6\"))-SEARCH(\"-\", INDIRECT(\"'Page 3 (Soil)'!B6\")))-VALUE(LEFT(INDIRECT(\"'Page 3 (Soil)'!B6\"), SEARCH(\"-\", INDIRECT(\"'Page 3 (Soil)'!B6\"))-1))),0)","v":{"$error":"#REF!"}},"Depth of A horizon:",{"$f":"IF(OR(INDIRECT(\"'Page 3 (Soil)'!AQ6\")=\"Muck\",INDIRECT(\"'Page 3 (Soil)'!AQ6\")=\"Mucky Peat\",INDIRECT(\"'Page 3 (Soil)'!AQ6\")=\"Peat\"),VALUE(RIGHT(INDIRECT(\"'Page 3 (Soil)'!B7\"),LEN(INDIRECT(\"'Page 3 (Soil)'!B7\"))-SEARCH(\"-\", INDIRECT(\"'Page 3 (Soil)'!B7\")))-VALUE(LEFT(INDIRECT(\"'Page 3 (Soil)'!B7\"), SEARCH(\"-\", INDIRECT(\"'Page 3 (Soil)'!B7\"))-1))),VALUE(RIGHT(INDIRECT(\"'Page 3 (Soil)'!B6\"),LEN(INDIRECT(\"'Page 3 (Soil)'!B6\"))-SEARCH(\"-\", INDIRECT(\"'Page 3 (Soil)'!B6\")))-VALUE(LEFT(INDIRECT(\"'Page 3 (Soil)'!B6\"), SEARCH(\"-\", INDIRECT(\"'Page 3 (Soil)'!B6\"))-1))))","v":{"$error":"#REF!"}},"Extensive roots in soil?:",null,"Matrix/Chroma:",{"$f":"RIGHT(INDIRECT(\"'Page 3 (Soil)'!H6\"),LEN(INDIRECT(\"'Page 3 (Soil)'!H6\"))-SEARCH(\" \",INDIRECT(\"'Page 3 (Soil)'!H6\")))","v":{"$error":"#REF!"}}]
[null,"Note any deviations from the characteristics described for the mapped soil type for this AA and potential causes. Describe any impacts to the soil surface such as trampling/compaction from animals or machinery, ruts or other disturbances from ATV or other vehicular activity, or sedimentation."]
["Observations/Comments (Including for metrics below):"]
[]
[null,"Soil Biogeochemical Processing:"]
[]
["Redox concentrations:",null,null,"% of surface area:",{"$f":"AVERAGE(INDIRECT(\"'Page 3 (Soil)'!$AE$6:$AE$12\"))","v":{"$error":"#REF!"}},null,null,"Starting at:",{"$f":"IF(INDIRECT(\"'Page 3 (Soil)'!AE6\")>0,VALUE(LEFT(INDIRECT(\"'Page 3 (Soil)'!B6\"),SEARCH(\"-\",INDIRECT(\"'Page 3 (Soil)'!B6\"))-1)),\nIF(INDIRECT(\"'Page 3 (Soil)'!AE7\")>0,VALUE(LEFT(INDIRECT(\"'Page 3 (Soil)'!B7\"),SEARCH(\"-\",INDIRECT(\"'Page 3 (Soil)'!B7\"))-1)),\nIF(INDIRECT(\"'Page 3 (Soil)'!AE8\")>0,VALUE(LEFT(INDIRECT(\"'Page 3 (Soil)'!B8\"),SEARCH(\"-\",INDIRECT(\"'Page 3 (Soil)'!B8\"))-1)),\nIF(INDIRECT(\"'Page 3 (Soil)'!AE9\")>0,VALUE(LEFT(INDIRECT(\"'Page 3 (Soil)'!B9\"),SEARCH(\"-\",INDIRECT(\"'Page 3 (Soil)'!B9\"))-1)),\nIF(INDIRECT(\"'Page 3 (Soil)'!AE10\")>0,VALUE(LEFT(INDIRECT(\"'Page 3 (Soil)'!B10\"),SEARCH(\"-\",INDIRECT(\"'Page 3 (Soil)'!B10\"))-1)),\nIF(INDIRECT(\"'Page 3 (Soil)'!AE11\")>0,VALUE(LEFT(INDIRECT(\"'Page 3 (Soil)'!B11\"),SEARCH(\"-\",INDIRECT(\"'Page 3 (Soil)'!B11\"))-1)),\nIF(INDIRECT(\"'Page 3 (Soil)'!AE12\")>0,VALUE(LEFT(INDIRECT(\"'Page 3 (Soil)'!B12\"),SEARCH(\"-\",INDIRECT(\"'Page 3 (Soil)'!B12\"))-1)),\n\"None within 18”\")))))))","v":{"$error":"#REF!"}},null,"Score:",null,{"$f":"IF(AND(E22>=10,I22<=6),4,IF(AND(E22=\">10%\",I22<=12),3,IF(AND(E22>=10,I22<=18),2,IF(AND(E22<10,I22<=6),3,IF(AND(E22<10,I22<=12),2,IF(AND(E22<10,I22<=18),1,IF(OR(E22=\"None within 18”\",I22=\"None within 18”\"),1,\"\")))))))","v":{"$error":"#REF!"}}]
[]
["Soil organic matter:",null,{"$f":"IF(OR(INDIRECT(\"'Page 3 (Soil)'!AQ6\")=\"Muck\",INDIRECT(\"'Page 3 (Soil)'!AQ6\")=\"Mucky Peat\",INDIRECT(\"'Page 3 (Soil)'!AQ6\")=\"Peat\",INDIRECT(\"'Page 3 (Soil)'!B15\")=\"X\"),\"Horizon present (any thickness) \",IF(AND(VALUE(RIGHT(INDIRECT(\"'Page 3 (Soil)'!B6\"),LEN(INDIRECT(\"'Page 3 (Soil)'!B6\"))-SEARCH(\"-\", INDIRECT(\"'Page 3 (Soil)'!B6\"))))>=4,VALUE(LEFT(RIGHT(INDIRECT(\"'Page 3 (Soil)'!H6\"),LEN(INDIRECT(\"'Page 3 (Soil)'!H6\"))-SEARCH(\" \",INDIRECT(\"'Page 3 (Soil)'!H6\"))), SEARCH(\"/\", RIGHT(INDIRECT(\"'Page 3 (Soil)'!H6\"),LEN(INDIRECT(\"'Page 3 (Soil)'!H6\"))-SEARCH(\" \",INDIRECT(\"'Page 3 (Soil)'!H6\"))))-1))<=3,VALUE(RIGHT(INDIRECT(\"'Page 3 (Soil)'!H6\"),LEN(INDIRECT(\"'Page 3 (Soil)'!H6\"))-SEARCH(\"/\", INDIRECT(\"'Page 3 (Soil)'!H6\"))))<=2),\"Mineral surface layer(s) > =4” thick with Matrix value <=3 and chroma <=2\",IF(AND(VALUE(RIGHT(INDIRECT(\"'Page 3 (Soil)'!B6\"),LEN(INDIRECT(\"'Page 3 (Soil)'!B6\"))-SEARCH(\"-\", INDIRECT(\"'Page 3 (Soil)'!B6\"))))<4,VALUE(LEFT(RIGHT(INDIRECT(\"'Page 3 (Soil)'!H6\"),LEN(INDIRECT(\"'Page 3 (Soil)'!H6\"))-SEARCH(\" \",INDIRECT(\"'Page 3 (Soil)'!H6\"))), SEARCH(\"/\", RIGHT(INDIRECT(\"'Page 3 (Soil)'!H6\"),LEN(INDIRECT(\"'Page 3 (Soil)'!H6\"))-SEARCH(\" \",INDIRECT(\"'Page 3 (Soil)'!H6\"))))-1))<=3,VALUE(RIGHT(INDIRECT(\"'Page 3 (Soil)'!H6\"),LEN(INDIRECT(\"'Page 3 (Soil)'!H6\"))-SEARCH(\"/\", INDIRECT(\"'Page 3 (Soil)'!H6\"))))<=2),\"Mineral surface layer <4” thick and Matrix value <3 and chroma <2 \",IF(AND(VALUE(RIGHT(INDIRECT(\"'Page 3 (Soil)'!B6\"),LEN(INDIRECT(\"'Page 3 (Soil)'!B6\"))-SEARCH(\"-\", INDIRECT(\"'Page 3 (Soil)'!B6\"))))<4,VALUE(LEFT(RIGHT(INDIRECT(\"'Page 3 (Soil)'!H6\"),LEN(INDIRECT(\"'Page 3 (Soil)'!H6\"))-SEARCH(\" \",INDIRECT(\"'Page 3 (Soil)'!H6\"))),SEARCH(\"/\",RIGHT(INDIRECT(\"'Page 3 (Soil)'!H6\"),LEN(INDIRECT(\"'Page 3 (Soil)'!H6\"))-SEARCH(\" \",INDIRECT(\"'Page 3 (Soil)'!H6\"))))-1))<=4,VALUE(RIGHT(INDIRECT(\"'Page 3 (Soil)'!H6\"),LEN(INDIRECT(\"'Page 3 (Soil)'!H6\"))-SEARCH(\"/\",INDIRECT(\"'Page 3 (Soil)'!H6\"))))<=3),\"Matrix value >3 and ≤4 or chroma >2 and ≤3 \",\"Soil not recognized. Please score this metric manually.\"))))","v":{"$error":"#REF!"}},null,null,null,null,null,null,null,"Score:",null,{"$f":"IF(OR(INDIRECT(\"'Page 3 (Soil)'!AQ6\")=\"Muck\",INDIRECT(\"'Page 3 (Soil)'!AQ6\")=\"Mucky Peat\",INDIRECT(\"'Page 3 (Soil)'!AQ6\")=\"Peat\",INDIRECT(\"'Page 3 (Soil)'!B15\")=\"X\"),4,IF(AND(VALUE(RIGHT(INDIRECT(\"'Page 3 (Soil)'!B6\"),LEN(INDIRECT(\"'Page 3 (Soil)'!B6\"))-SEARCH(\"-\", INDIRECT(\"'Page 3 (Soil)'!B6\"))))>=4,VALUE(LEFT(RIGHT(INDIRECT(\"'Page 3 (Soil)'!H6\"),LEN(INDIRECT(\"'Page 3 (Soil)'!H6\"))-SEARCH(\" \",INDIRECT(\"'Page 3 (Soil)'!H6\"))), SEARCH(\"/\", RIGHT(INDIRECT(\"'Page 3 (Soil)'!H6\"),LEN(INDIRECT(\"'Page 3 (Soil)'!H6\"))-SEARCH(\" \",INDIRECT(\"'Page 3 (Soil)'!H6\"))))-1))<=3,VALUE(RIGHT(INDIRECT(\"'Page 3 (Soil)'!H6\"),LEN(INDIRECT(\"'Page 3 (Soil)'!H6\"))-SEARCH(\"/\", INDIRECT(\"'Page 3 (Soil)'!H6\"))))<=2),3,IF(AND(VALUE(RIGHT(INDIRECT(\"'Page 3 (Soil)'!B6\"),LEN(INDIRECT(\"'Page 3 (Soil)'!B6\"))-SEARCH(\"-\", INDIRECT(\"'Page 3 (Soil)'!B6\"))))<4,VALUE(LEFT(RIGHT(INDIRECT(\"'Page 3 (Soil)'!H6\"),LEN(INDIRECT(\"'Page 3 (Soil)'!H6\"))-SEARCH(\" \",INDIRECT(\"'Page 3 (Soil)'!H6\"))), SEARCH(\"/\", RIGHT(INDIRECT(\"'Page 3 (Soil)'!H6\"),LEN(INDIRECT(\"'Page 3 (Soil)'!H6\"))-SEARCH(\" \",INDIRECT(\"'Page 3 (Soil)'!H6\"))))-1))<=3,VALUE(RIGHT(INDIRECT(\"'Page 3 (Soil)'!H6\"),LEN(INDIRECT(\"'Page 3 (Soil)'!H6\"))-SEARCH(\"/\", INDIRECT(\"'Page 3 (Soil)'!H6\"))))<=2),2,IF(AND(VALUE(RIGHT(INDIRECT(\"'Page 3 (Soil)'!B6\"),LEN(INDIRECT(\"'Page 3 (Soil)'!B6\"))-SEARCH(\"-\", INDIRECT(\"'Page 3 (Soil)'!B6\"))))<4,VALUE(LEFT(RIGHT(INDIRECT(\"'Page 3 (Soil)'!H6\"),LEN(INDIRECT(\"'Page 3 (Soil)'!H6\"))-SEARCH(\" \",INDIRECT(\"'Page 3 (Soil)'!H6\"))),SEARCH(\"/\",RIGHT(INDIRECT(\"'Page 3 (Soil)'!H6\"),LEN(INDIRECT(\"'Page 3 (Soil)'!H6\"))-SEARCH(\" \",INDIRECT(\"'Page 3 (Soil)'!H6\"))))-1))<=4,VALUE(RIGHT(INDIRECT(\"'Page 3 (Soil)'!H6\"),LEN(INDIRECT(\"'Page 3 (Soil)'!H6\"))-SEARCH(\"/\",INDIRECT(\"'Page 3 (Soil)'!H6\"))))<=3),1,\"\"))))","v":{"$error":"#REF!"}}]
[]
["Microtopography:",null,null,null,null,null,null,null,null,null,"Score:",null,{"$f":"IF(C26=\">= 50% of Assessment Area\",4, IF(C26=\"30-49% of AA\", 3, IF(C26=\"10-29% of AA\", 2, IF(C26=\"<10% of AA\", 1, \"\"))))","v":""}]
[]
["Organic Matter Accumulation:",null,null,null,null,null,null,"Estimated % ground cover of herbaceous/woody plants (Living and dead residue):"]
[null,null,null,null,null,null,null,"Estimated % cover of leaf litter (loose leaves must be at least 1” thick or decaying leaves must have at least 5 stacked layers"]
[null,null,null,null,null,null,null,"% herbaceous/woody + % leaf litter:",{"$f":"IF(I28+I29>0,IF(I28+I29>1,1,I28+I29),\"\")","v":""},null,"Score:",null,{"$f":"IF(I30=\"\",\"\",IF(I30>0.75,4,IF(I30>0.5,3,IF(I30>=0.25,2,IF(I30>0,1,\"\")))))","v":""}]
[]
[]
[null,"Soil disturbance:","Presence of bare soil due to human activities:"]
[null,null,"Extent of impact of disturbance:"]
[null,"Depth of disturbance and ponding/channeling:",null,null,null,null,null,null,null,null,"Score:"]
[]
[]
["HYDROLOGY (Section 4.5)"]
["Water Source– Identify dominant water source and natural/unnatural influence for the AA by KWH type."]
[" ","Natural:................................................",null,"Sheet flow present",null,"Natural narrow channel present",null,"Mimics natural hydrology",null,"Coldwater spring flow",null,"Groundwater input"]
[null,null,null,"Expected overbank flooding",null,"Expected plant community",null,"Other – describe:……...…."]
[null,"Unnatural/Manipulated:.....................",null,"Impoundment",null,"Inflow from anthropogenic sources",null,"Fill",null,"Ditching",null,"Channelization"]
[null,null,null,"Confined to small outlet",null,"Lost water sources due to alterations",null,"Incised and no longer floods",null,"Other – describe:……"]
[]
["Point Source Drainage:",null,null,null,"(Includes into or adjacent to site)"]
[]
[null,"Unnatural Obstructions:"]
[]
[null,"Alteration to:",null,"Overland flow",null,"Groundwater",null,"Overbank Flooding",null,"Plant community",null,"Wetland extent"]
[null,"    Timing:"]
[null,"    Negative effect:",null,"Flow and circulation within AA",null,null,null,"Redirects and/or confines flows into/through AA"]
[null,null,null,"Reduced water table",null,"Reduced inundation",null,"None"]
[]
[null,"Observations/comments:",null,null,null,null,null,null,null,null,null,"Score:"]
[]
[]
["Stream Bank and Channel – Describe the stream channel in the project area, including evidence of alteration and signs of recovery/stablization."]
[]
["Evidence of bank/channel equilibrium:",null,null,"Recovering to meander",null,"Low energy stream with bare banks",null,"Variety of pool depths",null,"Variety of stream velocities"]
[null,null,null,"Visual flow of water from channel banks of wetlands (Groundwater flow)",null,null,null,"Embedded woody debris of size and amount consistent with what is available in riparian area"]
[null,null,null,"Well-defined usual high water line with obvious floodplain",null,null,null,"Little or no active undercutting or burial of riparian vegetation"]
[null,null,null,"Other:"]
[]
["Evidence of channel instability/migration:",null,null,"Riparian vegetation buried",null,"Recent sediment or gravel deposited",null,"Active incision/downcutting",null,"Buried hydric soil and/or gravel layer and depth:"]
[null,null,null,"Other:.…..................................."]
[]
["Overall channel instability:"]
[]
["Sources of channel instability/migration:",null,null,"Lacks vertical controls (vegetation, wood, rock, etc)",null,null,null,"Excessive channel deposition/bar development",null,null,null,"Historic channel alteration"]
[null,null,null,"Proximity and landscape position presents potential impact to AA hydrology",null,null,null,"Other: ……………………"]
[]
["Evidence of bank instability:",null,null,"Banks undercut, slides, and/or slumps",null,null,null,"Riparian vegetation declining",null,"Shrub/trees falling into channel"]
[null,null,null,"Bank uniformly scoured and unvegetated",null,null,null,"Other: ……………………"]
[]
["Overall bank instability:"]
[]
["Sources of bank instability:",null,null,"Vertical banks",null,"Highly erodible materials",null,"Raw unvegetated banks",null,"Excessive bedload",null,"Other:…............."]
[]
["If available: Bank Erosion Hazard Index:",null,null,"    Near bank stress:"]
[]
[null,null,null,null,null,null,null,null,null,null,null,"Score:"]

{"sheet":"Page 3","index":2,"n_rows":62,"n_cols":13,"rows_kept":62,"cut":false,"hidden":false,"merged":[[59,3,59,4],[61,2,62,10],[53,0,53,12],[54,5,54,6],[55,5,55,6],[56,5,56,11],[58,3,58,4],[47,4,47,5],[47,6,47,7],[47,8,47,9],[48,4,48,5],[50,2,51,10],[42,4,42,5],[43,4,43,5],[44,4,44,5],[45,4,45,5],[45,8,45,10],[34,5,34,10],[35,2,35,3],[37,2,37,10],[39,0,39,12],[40,4,40,5],[21,1,21,3],[21,4,21,10],[24,2,24,10],[28,0,28,12],[29,0,29,4],[18,0,18,1],[18,2,18,5],[19,0,19,1],[19,2,19,5],[20,0,20,1],[20,2,20,3],[14,0,14,1],[14,2,14,3],[15,0,15,1],[17,0,17,1],[17,2,17,3],[8,0,8,1],[8,4,8,5],[9,4,9,5],[11,2,11,10],[13,0,13,12],[0,0,0,12],[1,0,1,12],[3,2,3,5],[3,8,3,9],[7,0,7,1]]}
["MARYLAND WETLAND ECOLOGICAL INTEGRITY ASSESSMENT: Piedmont Region"]
["Page 3: Hydrology part 2, Key Wildlife Habitat part 1"]
[]
[null,"Project/Site Name:",{"$f":"IF(ISBLANK('Page 1'!B7),\"\",'Page 1'!B7)","v":{"$error":"#REF!"}},null,null,null,null,null,null,null,null,"Sampling Date:",{"$f":"IF(ISBLANK('Page 1'!I7),\"\",'Page 1'!I7)","v":{"$error":"#REF!"}}]
[]
[]
["HYDROLOGY (Section 4.5)"]
["Aquatic life:",null,"(if available for site or use nearest, most recent Biological Stream Survey point in stream): "]
["Benthic IBI- Value: ",null,null,"Rating:",{"$f":"IF(C9=\"\",\"\",IF(C9>=4,\"Good\",IF(C9>=3,\"Fair\",IF(C9>=0,\"Poor\",\"Invalid value\"))))","v":""}]
[null,"Fish IBI- Value: ",null,"Rating:",{"$f":"IF(C10=\"\",\"\",IF(C10>=4,\"Good\",IF(C10>=3,\"Fair\",IF(C10>=0,\"Poor\",\"Invalid value\"))))","v":""}]
[]
[null,"Observations/comments:"]
[]
["Hydroperiod and Hydrologic Connectivity  Determine the natural variability and/or recent alteration of the duration, frequency, and magnitude of inundation/saturation in the AA by KWH type."]
["Natural variation of hydroperiod:"]
["Information sources:",null,null,"Visual indicators",null,"Monitoring wells",null,"Hydrology/hydraulic analysis"]
[null,null,null,"Bank height ratio:",null,"   Entrenchment ratio:"]
["Overbank flooding (if available):"]
["Degree of connection to floodplain:"]
["Evidence of overbank flooding:"]
["Change/alteration of hydroperiod:"]
[null,"Backwater flooding or lateral movement affected by restrictions:"]
[]
[null,null,null,null,null,null,null,null,null,null,null,"Score:"]
[null,"Observations/comments:"]
[]
[]
["KEY WILDLIFE HABITAT (Section 4.6)"]
["Interspersion/Patch Richness interspersion of vegetation patches and number of different obvious types of physical surfaces or features that may provide habitat for aquatic, wetland, or riparian animal species."]
["Interspersion of habitats/physical features (see examples in field manual):",null,null,null,null,null,null,null,null,null,null,null,{"$f":"IF(F30=\"High\",4,IF(F30=\"Moderate\",3,IF(F30=\"Low or Minimal\",2,IF(F30=\"None or Few\",1,H37))))","v":0}]
["Features present:"]
[null,"Spring/upwelling groundwater",null,"Depression",null,"Vegetated pool",null,"Unvegetated pool",null,"Unvegetated flat",null,"Island"]
[null,"Animal mound or burrow",null,"Beaver dam or lodge",null,"Oxbow, swale, secondary channel",null,"Wind-thrown tree hole",null,"Mound",null,"Bank overhang with tree roots"]
[null,"Tip-up tree root mound",null,"Brush piles",null,"Abundant deciduous leaf litter",null,"Partially buried natural debris",null,"Debris jam",null,"Plant hummock/tussocks"]
[null,"Other wildlife habitat"]
["Total number of selected features:",null,{"$f":"COUNTIF(A32:M35,\"Y\")","v":0}]
[null,{"$f":"IF(C36>=5, 4, IF(C36>=4, 3, IF(C36>=2, 2, IF(C36>=0, 1,0))))","v":1},null,{"$f":"IF(C36>=6, 4, IF(C36>=5, 3, IF(C36>=3, 2, IF(C36>=0, 1,0))))","v":1},null,{"$f":"IF(C36>=4, 4, IF(C36>=3, 3, IF(C36>=2, 2, IF(C36>=0, 1,0))))","v":1},null,{"$f":"IF(OR('Page 2'!C8=\"Montane-Piedmont Floodplain\",'Page 2'!C8=\"Montane-Piedmont Seepage Swamp\",'Page 2'!C8=\"Montane-Piedmont Acidic Seepage Swamp\",'Page 2'!C8=\"Montane-Piedmont Basic Seepage Swamp\",'Page 2'!C8=\"Piedmont Seepage Wetland\"),B37,IF('Page 2'!C8=\"Piedmont Upland Depression Swamp\",D37,IF(OR('Page 2'!C8=\"Vernal Pool(s)\",'Page 2'!C8=\"Spring\"),F37,0)))","v":0},null,{"$f":"AVERAGE(M30,H37)","v":0},null,"Score:",{"$f":"IF(ISBLANK(F30),\"\",IF(ISBLANK('Page 2'!C8),\"Select a KWH on page 2\",IF(J37>=3.5, 4, IF(J37>2.5, 3,IF(J37>1.5,2,1)))))","v":""}]
[null,"Observations/comments:"]
[]
["Vertical Structure   Refer to metrics for selected Key Wildlife Habitat Type for scoring."]
["Forested systems:",null,null,"Canopy: Heterogeneous patches of different ages or sizes:"]
[null,null,null,null,null,"Gaps of varying sizes",null,"Impacted by beaver activity",null,"Impacted by forest pests/pathogens"]
[null,null,null,"Woody vertical layers:"]
[null,null,null,"Large trees (DBH>60cm/24”) present:"]
[null,null,null,"Trees present with DBH > 30 cm or 12”:"]
[null,null,null,"Degradation due to cutting, browsing, pests/pathogens:",null,null,"Source(s) of degradation:"]
[]
["Seepage wetland:",null,null,"Woody layer mortality (if present):"]
[null,null,null,"Expected structure:"]
[]
[null,"Observations/comments:",null,null,null,null,null,null,null,null,null,"Score:"]
[]
[]
["Standing and Downed Coarse Woody Debris  Refer to metrics for selected Key Wildlife Habitat type for scoring."]
["Forested systems:",null,null,null,"Standing snags and downed logs: Size diversity:"]
[null,null,null,null,"Stage of downed log decay:"]
[null,null,null,null,"Source(s) of woody debris if not natural (cutting, pest/pathogens, etc.):"]
[]
["Seepage wetland: ",null,"Woody and litter:"]
[null,null,"Ground cover alterations:"]
[]
[null,"Observations/comments:",null,null,null,null,null,null,null,null,null,"Score:"]

{"sheet":"Page 4","index":3,"n_rows":81,"n_cols":20,"rows_kept":81,"cut":false,"hidden":false,"merged":[[63,2,64,13],[66,0,66,15],[69,7,69,14],[71,0,72,1],[71,2,72,13],[74,2,75,13],[77,0,77,15],[78,0,78,1],[79,0,79,1],[54,2,55,13],[57,0,57,15],[58,0,58,2],[58,3,58,10],[59,0,59,2],[59,3,59,10],[60,0,60,2],[60,3,60,10],[61,0,61,2],[61,3,61,10],[43,1,43,4],[43,11,43,14],[44,1,44,4],[44,11,44,14],[46,0,46,17],[50,0,50,15],[51,0,51,3],[51,4,51,10],[52,0,52,3],[52,4,52,10],[38,1,38,4],[38,11,38,14],[39,0,39,17],[40,1,40,4],[40,11,40,14],[41,1,41,4],[41,11,41,14],[42,1,42,4],[42,11,42,14],[33,1,33,4],[33,11,33,14],[34,1,34,4],[34,11,34,14],[35,1,35,4],[35,11,35,14],[36,1,36,4],[36,11,36,14],[37,1,37,4],[37,11,37,14],[28,1,28,4],[28,11,28,14],[29,1,29,4],[29,11,29,14],[30,1,30,4],[30,11,30,14],[31,1,31,4],[31,11,31,14],[32,1,32,4],[32,11,32,14],[23,1,23,4],[23,11,23,14],[24,1,24,4],[24,11,24,14],[25,1,25,4],[25,11,25,14],[26,1,26,4],[26,11,26,14],[27,0,27,17],[18,1,18,4],[18,11,18,14],[19,1,19,4],[19,11,19,14],[20,1,20,4],[20,11,20,14],[21,1,21,4],[21,11,21,14],[22,1,22,4],[22,11,22,14],[13,1,13,4],[13,11,13,14],[14,1,14,4],[14,11,14,14],[15,1,15,4],[15,11,15,14],[16,1,16,4],[16,11,16,14],[17,0,17,17],[9,0,9,17],[10,1,10,4],[10,11,10,14],[11,1,11,4],[11,11,11,14],[12,1,12,4],[12,11,12,14],[7,0,8,4],[7,5,8,5],[7,6,8,6],[7,7,8,7],[7,8,8,8],[7,9,8,9],[7,10,8,14],[7,15,8,15],[7,16,8,16],[0,0,0,15],[1,0,1,15],[3,2,3,5],[3,11,3,12],[3,14,3,15],[6,0,6,15],[7,17,8,17],[7,18,8,18],[7,19,8,19]]}
["MARYLAND WETLAND ECOLOGICAL INTEGRITY ASSESSMENT: Piedmont Region"]
["Page 3: KWH pt 2"]
[]
[null,"Project/Site Name:",{"$f":"IF(ISBLANK('Page 1'!B7),\"\",'Page 1'!B7)","v":{"$error":"#REF!"}},null,null,null,null,null,null,null,null,null,null,"Sampling Date:",{"$f":"IF(ISBLANK('Page 1'!I7),\"\",'Page 1'!I7)","v":{"$error":"#REF!"}}]
[]
[]
["VEGETATION (Section 4.6) Additional species may be listed on a separate sheet. See Scoring Sheet for %cover examples.\nNOTE: Include native diagnostic, disturbance indicator, and state rare, threatened, and endangered species regardless of %cover."]
["Species:",null,null,null,null,"Absolute % Cover:","WPL Rating","C-Value If Native","Unique native","Unique total","Species:",null,null,null,null,"Absolute % Cover:","WPL Rating","C-Value If Native","Unique native","Unique total"]
[]
["Tree Stratum: woody plants, excluding woody vines, approximately 20 ft (6 m) or more in height and 3 in. (7.6 cm) or larger DBH"]
[1,{"$f":"INDIRECT(\"'Page 2 (Vegetation, 4 Strata)'!$D4\")","v":{"$error":"#REF!"}},null,null,null,{"$f":"INDIRECT(\"'Page 2 (Vegetation, 4 Strata)'!$Z4\")","v":{"$error":"#REF!"}},{"$f":"IFERROR(IF(ISBLANK(B11),\"\",VLOOKUP(B11,'Plants table'!$A:$G,6, 0)),\"\")","v":""},{"$f":"IFERROR(IF(ISBLANK(B11),\"\",IF(VLOOKUP(B11,'Plants table'!$A:$G,3, 0) = \"native\", VLOOKUP(B11,'Plants table'!$A:$G,4, 0),\"non-native\")),\"\")","v":""},{"$f":"IF(COUNTIF(B$11:B11,B11)>1,0,IF(H11 = \"\",0,IF(H11=\"non-native\",0,1)))","v":0},{"$f":"IF(COUNTIF(B$11:B11,B11)>1,0,IF(H11 = \"\",0,1))","v":0},8,{"$f":"INDIRECT(\"'Vegetation Continued, 4 Strata'!$D4\")","v":{"$error":"#REF!"}},null,null,null,{"$f":"INDIRECT(\"'Vegetation Continued, 4 Strata'!$Z4\")","v":{"$error":"#REF!"}},{"$f":"IFERROR(IF(ISBLANK(L11),\"\",VLOOKUP(L11,'Plants table'!$A:$G,6, 0)),\"\")","v":""},{"$f":"IFERROR(IF(ISBLANK(L11),\"\",IF(VLOOKUP(L11,'Plants table'!$A:$G,3, 0) = \"native\", VLOOKUP(L11,'Plants table'!$A:$G,4, 0),\"non-native\")),\"\")","v":""},{"$f":"IF(COUNTIF(L$11:L11,L11)>1,0,IF(COUNTIF($B$11:$B$45,L11)>0,0,(IF(R11 = \"\",0,IF(R11=\"non-native\",0,1)))))","v":0},{"$f":"IF(COUNTIF(L$11:L11,L11)>1,0,IF(COUNTIF($B$11:$B$45,L11)>0,0,IF(R11 = \"\",0,1)))","v":0}]
[2,{"$f":"INDIRECT(\"'Page 2 (Vegetation, 4 Strata)'!$D5\")","v":{"$error":"#REF!"}},null,null,null,{"$f":"INDIRECT(\"'Page 2 (Vegetation, 4 Strata)'!$Z5\")","v":{"$error":"#REF!"}},{"$f":"IFERROR(IF(ISBLANK(B12),\"\",VLOOKUP(B12,'Plants table'!$A:$G,6, 0)),\"\")","v":""},{"$f":"IFERROR(IF(ISBLANK(B12),\"\",IF(VLOOKUP(B12,'Plants table'!$A:$G,3, 0) = \"native\", VLOOKUP(B12,'Plants table'!$A:$G,4, 0),\"non-native\")),\"\")","v":""},{"$f":"IF(COUNTIF(B$11:B12,B12)>1,0,IF(H12 = \"\",0,IF(H12=\"non-native\",0,1)))","v":0},{"$f":"IF(COUNTIF(B$11:B12,B12)>1,0,IF(H12 = \"\",0,1))","v":0},9,{"$f":"INDIRECT(\"'Vegetation Continued, 4 Strata'!$D5\")","v":{"$error":"#REF!"}},null,null,null,{"$f":"INDIRECT(\"'Vegetation Continued, 4 Strata'!$Z5\")","v":{"$error":"#REF!"}},{"$f":"IFERROR(IF(ISBLANK(L12),\"\",VLOOKUP(L12,'Plants table'!$A:$G,6, 0)),\"\")","v":""},{"$f":"IFERROR(IF(ISBLANK(L12),\"\",IF(VLOOKUP(L12,'Plants table'!$A:$G,3, 0) = \"native\", VLOOKUP(L12,'Plants table'!$A:$G,4, 0),\"non-native\")),\"\")","v":""},{"$f":"IF(COUNTIF(L$11:L12,L12)>1,0,IF(COUNTIF($B$11:$B$45,L12)>0,0,(IF(R12 = \"\",0,IF(R12=\"non-native\",0,1)))))","v":0},{"$f":"IF(COUNTIF(L$11:L12,L12)>1,0,IF(COUNTIF($B$11:$B$45,L12)>0,0,IF(R12 = \"\",0,1)))","v":0}]
[3,{"$f":"INDIRECT(\"'Page 2 (Vegetation, 4 Strata)'!$D6\")","v":{"$error":"#REF!"}},null,null,null,{"$f":"INDIRECT(\"'Page 2 (Vegetation, 4 Strata)'!$Z6\")","v":{"$error":"#REF!"}},{"$f":"IFERROR(IF(ISBLANK(B13),\"\",VLOOKUP(B13,'Plants table'!$A:$G,6, 0)),\"\")","v":""},{"$f":"IFERROR(IF(ISBLANK(B13),\"\",IF(VLOOKUP(B13,'Plants table'!$A:$G,3, 0) = \"native\", VLOOKUP(B13,'Plants table'!$A:$G,4, 0),\"non-native\")),\"\")","v":""},{"$f":"IF(COUNTIF(B$11:B13,B13)>1,0,IF(H13 = \"\",0,IF(H13=\"non-native\",0,1)))","v":0},{"$f":"IF(COUNTIF(B$11:B13,B13)>1,0,IF(H13 = \"\",0,1))","v":0},10,{"$f":"INDIRECT(\"'Vegetation Continued, 4 Strata'!$D6\")","v":{"$error":"#REF!"}},null,null,null,{"$f":"INDIRECT(\"'Vegetation Continued, 4 Strata'!$Z6\")","v":{"$error":"#REF!"}},{"$f":"IFERROR(IF(ISBLANK(L13),\"\",VLOOKUP(L13,'Plants table'!$A:$G,6, 0)),\"\")","v":""},{"$f":"IFERROR(IF(ISBLANK(L13),\"\",IF(VLOOKUP(L13,'Plants table'!$A:$G,3, 0) = \"native\", VLOOKUP(L13,'Plants table'!$A:$G,4, 0),\"non-native\")),\"\")","v":""},{"$f":"IF(COUNTIF(L$11:L13,L13)>1,0,IF(COUNTIF($B$11:$B$45,L13)>0,0,(IF(R13 = \"\",0,IF(R13=\"non-native\",0,1)))))","v":0},{"$f":"IF(COUNTIF(L$11:L13,L13)>1,0,IF(COUNTIF($B$11:$B$45,L13)>0,0,IF(R13 = \"\",0,1)))","v":0}]
[4,{"$f":"INDIRECT(\"'Page 2 (Vegetation, 4 Strata)'!$D7\")","v":{"$error":"#REF!"}},null,null,null,{"$f":"INDIRECT(\"'Page 2 (Vegetation, 4 Strata)'!$Z7\")","v":{"$error":"#REF!"}},{"$f":"IFERROR(IF(ISBLANK(B14),\"\",VLOOKUP(B14,'Plants table'!$A:$G,6, 0)),\"\")","v":""},{"$f":"IFERROR(IF(ISBLANK(B14),\"\",IF(VLOOKUP(B14,'Plants table'!$A:$G,3, 0) = \"native\", VLOOKUP(B14,'Plants table'!$A:$G,4, 0),\"non-native\")),\"\")","v":""},{"$f":"IF(COUNTIF(B$11:B14,B14)>1,0,IF(H14 = \"\",0,IF(H14=\"non-native\",0,1)))","v":0},{"$f":"IF(COUNTIF(B$11:B14,B14)>1,0,IF(H14 = \"\",0,1))","v":0},11,{"$f":"INDIRECT(\"'Vegetation Continued, 4 Strata'!$D7\")","v":{"$error":"#REF!"}},null,null,null,{"$f":"INDIRECT(\"'Vegetation Continued, 4 Strata'!$Z7\")","v":{"$error":"#REF!"}},{"$f":"IFERROR(IF(ISBLANK(L14),\"\",VLOOKUP(L14,'Plants table'!$A:$G,6, 0)),\"\")","v":""},{"$f":"IFERROR(IF(ISBLANK(L14),\"\",IF(VLOOKUP(L14,'Plants table'!$A:$G,3, 0) = \"native\", VLOOKUP(L14,'Plants table'!$A:$G,4, 0),\"non-native\")),\"\")","v":""},{"$f":"IF(COUNTIF(L$11:L14,L14)>1,0,IF(COUNTIF($B$11:$B$45,L14)>0,0,(IF(R14 = \"\",0,IF(R14=\"non-native\",0,1)))))","v":0},{"$f":"IF(COUNTIF(L$11:L14,L14)>1,0,IF(COUNTIF($B$11:$B$45,L14)>0,0,IF(R14 = \"\",0,1)))","v":0}]
[5,{"$f":"INDIRECT(\"'Page 2 (Vegetation, 4 Strata)'!$D8\")","v":{"$error":"#REF!"}},null,null,null,{"$f":"INDIRECT(\"'Page 2 (Vegetation, 4 Strata)'!$Z8\")","v":{"$error":"#REF!"}},{"$f":"IFERROR(IF(ISBLANK(B15),\"\",VLOOKUP(B15,'Plants table'!$A:$G,6, 0)),\"\")","v":""},{"$f":"IFERROR(IF(ISBLANK(B15),\"\",IF(VLOOKUP(B15,'Plants table'!$A:$G,3, 0) = \"native\", VLOOKUP(B15,'Plants table'!$A:$G,4, 0),\"non-native\")),\"\")","v":""},{"$f":"IF(COUNTIF(B$11:B15,B15)>1,0,IF(H15 = \"\",0,IF(H15=\"non-native\",0,1)))","v":0},{"$f":"IF(COUNTIF(B$11:B15,B15)>1,0,IF(H15 = \"\",0,1))","v":0},12,{"$f":"INDIRECT(\"'Vegetation Continued, 4 Strata'!$D8\")","v":{"$error":"#REF!"}},null,null,null,{"$f":"INDIRECT(\"'Vegetation Continued, 4 Strata'!$Z8\")","v":{"$error":"#REF!"}},{"$f":"IFERROR(IF(ISBLANK(L15),\"\",VLOOKUP(L15,'Plants table'!$A:$G,6, 0)),\"\")","v":""},{"$f":"IFERROR(IF(ISBLANK(L15),\"\",IF(VLOOKUP(L15,'Plants table'!$A:$G,3, 0) = \"native\", VLOOKUP(L15,'Plants table'!$A:$G,4, 0),\"non-native\")),\"\")","v":""},{"$f":"IF(COUNTIF(L$11:L15,L15)>1,0,IF(COUNTIF($B$11:$B$45,L15)>0,0,(IF(R15 = \"\",0,IF(R15=\"non-native\",0,1)))))","v":0},{"$f":"IF(COUNTIF(L$11:L15,L15)>1,0,IF(COUNTIF($B$11:$B$45,L15)>0,0,IF(R15 = \"\",0,1)))","v":0}]
[6,{"$f":"INDIRECT(\"'Page 2 (Vegetation, 4 Strata)'!$D9\")","v":{"$error":"#REF!"}},null,null,null,{"$f":"INDIRECT(\"'Page 2 (Vegetation, 4 Strata)'!$Z9\")","v":{"$error":"#REF!"}},{"$f":"IFERROR(IF(ISBLANK(B16),\"\",VLOOKUP(B16,'Plants table'!$A:$G,6, 0)),\"\")","v":""},{"$f":"IFERROR(IF(ISBLANK(B16),\"\",IF(VLOOKUP(B16,'Plants table'!$A:$G,3, 0) = \"native\", VLOOKUP(B16,'Plants table'!$A:$G,4, 0),\"non-native\")),\"\")","v":""},{"$f":"IF(COUNTIF(B$11:B16,B16)>1,0,IF(H16 = \"\",0,IF(H16=\"non-native\",0,1)))","v":0},{"$f":"IF(COUNTIF(B$11:B16,B16)>1,0,IF(H16 = \"\",0,1))","v":0},13,{"$f":"INDIRECT(\"'Vegetation Continued, 4 Strata'!$D9\")","v":{"$error":"#REF!"}},null,null,null,{"$f":"INDIRECT(\"'Vegetation Continued, 4 Strata'!$Z9\")","v":{"$error":"#REF!"}},{"$f":"IFERROR(IF(ISBLANK(L16),\"\",VLOOKUP(L16,'Plants table'!$A:$G,6, 0)),\"\")","v":""},{"$f":"IFERROR(IF(ISBLANK(L16),\"\",IF(VLOOKUP(L16,'Plants table'!$A:$G,3, 0) = \"native\", VLOOKUP(L16,'Plants table'!$A:$G,4, 0),\"non-native\")),\"\")","v":""},{"$f":"IF(COUNTIF(L$11:L16,L16)>1,0,IF(COUNTIF($B$11:$B$45,L16)>0,0,(IF(R16 = \"\",0,IF(R16=\"non-native\",0,1)))))","v":0},{"$f":"IF(COUNTIF(L$11:L16,L16)>1,0,IF(COUNTIF($B$11:$B$45,L16)>0,0,IF(R16 = \"\",0,1)))","v":0}]
[7,{"$f":"INDIRECT(\"'Page 2 (Vegetation, 4 Strata)'!$D11\")","v":{"$error":"#REF!"}},null,null,null,{"$f":"INDIRECT(\"'Page 2 (Vegetation, 4 Strata)'!$Z11\")","v":{"$error":"#REF!"}},{"$f":"IFERROR(IF(ISBLANK(B17),\"\",VLOOKUP(B17,'Plants table'!$A:$G,6, 0)),\"\")","v":""},{"$f":"IFERROR(IF(ISBLANK(B17),\"\",IF(VLOOKUP(B17,'Plants table'!$A:$G,3, 0) = \"native\", VLOOKUP(B17,'Plants table'!$A:$G,4, 0),\"non-native\")),\"\")","v":""},{"$f":"IF(COUNTIF(B$11:B17,B17)>1,0,IF(H17 = \"\",0,IF(H17=\"non-native\",0,1)))","v":0},{"$f":"IF(COUNTIF(B$11:B17,B17)>1,0,IF(H17 = \"\",0,1))","v":0},14,{"$f":"INDIRECT(\"'Vegetation Continued, 4 Strata'!$D11\")","v":{"$error":"#REF!"}},null,null,null,{"$f":"INDIRECT(\"'Vegetation Continued, 4 Strata'!$Z11\")","v":{"$error":"#REF!"}},{"$f":"IFERROR(IF(ISBLANK(L17),\"\",VLOOKUP(L17,'Plants table'!$A:$G,6, 0)),\"\")","v":""},{"$f":"IFERROR(IF(ISBLANK(L17),\"\",IF(VLOOKUP(L17,'Plants table'!$A:$G,3, 0) = \"native\", VLOOKUP(L17,'Plants table'!$A:$G,4, 0),\"non-native\")),\"\")","v":""},{"$f":"IF(COUNTIF(L$11:L17,L17)>1,0,IF(COUNTIF($B$11:$B$45,L17)>0,0,(IF(R17 = \"\",0,IF(R17=\"non-native\",0,1)))))","v":0},{"$f":"IF(COUNTIF(L$11:L17,L17)>1,0,IF(COUNTIF($B$11:$B$45,L17)>0,0,IF(R17 = \"\",0,1)))","v":0}]
["Sapling/Shrub Stratum: woody plants, excluding woody vines, less than 3 in. (7.6cm) DBH and greater than 3.28 ft (1 m) tall"]
[1,{"$f":"INDIRECT(\"'Page 2 (Vegetation, 4 Strata)'!$D15\")","v":{"$error":"#REF!"}},null,null,null,{"$f":"INDIRECT(\"'Page 2 (Vegetation, 4 Strata)'!$Z15\")","v":{"$error":"#REF!"}},{"$f":"IFERROR(IF(ISBLANK(B19),\"\",VLOOKUP(B19,'Plants table'!$A:$G,6, 0)),\"\")","v":""},{"$f":"IFERROR(IF(ISBLANK(B19),\"\",IF(VLOOKUP(B19,'Plants table'!$A:$G,3, 0) = \"native\", VLOOKUP(B19,'Plants table'!$A:$G,4, 0),\"non-native\")),\"\")","v":""},{"$f":"IF(COUNTIF(B$11:B19,B19)>1,0,IF(H19 = \"\",0,IF(H19=\"non-native\",0,1)))","v":0},{"$f":"IF(COUNTIF(B$11:B19,B19)>1,0,IF(H19 = \"\",0,1))","v":0},10,{"$f":"INDIRECT(\"'Vegetation Continued, 4 Strata'!$D15\")","v":{"$error":"#REF!"}},null,null,null,{"$f":"INDIRECT(\"'Vegetation Continued, 4 Strata'!$Z15\")","v":{"$error":"#REF!"}},{"$f":"IFERROR(IF(ISBLANK(L19),\"\",VLOOKUP(L19,'Plants table'!$A:$G,6, 0)),\"\")","v":""},{"$f":"IFERROR(IF(ISBLANK(L19),\"\",IF(VLOOKUP(L19,'Plants table'!$A:$G,3, 0) = \"native\", VLOOKUP(L19,'Plants table'!$A:$G,4, 0),\"non-native\")),\"\")","v":""},{"$f":"IF(COUNTIF(L$11:L19,L19)>1,0,IF(COUNTIF($B$11:$B$45,L19)>0,0,(IF(R19 = \"\",0,IF(R19=\"non-native\",0,1)))))","v":0},{"$f":"IF(COUNTIF(L$11:L19,L19)>1,0,IF(COUNTIF($B$11:$B$45,L19)>0,0,IF(R19 = \"\",0,1)))","v":0}]
[2,{"$f":"INDIRECT(\"'Page 2 (Vegetation, 4 Strata)'!$D16\")","v":{"$error":"#REF!"}},null,null,null,{"$f":"INDIRECT(\"'Page 2 (Vegetation, 4 Strata)'!$Z16\")","v":{"$error":"#REF!"}},{"$f":"IFERROR(IF(ISBLANK(B20),\"\",VLOOKUP(B20,'Plants table'!$A:$G,6, 0)),\"\")","v":""},{"$f":"IFERROR(IF(ISBLANK(B20),\"\",IF(VLOOKUP(B20,'Plants table'!$A:$G,3, 0) = \"native\", VLOOKUP(B20,'Plants table'!$A:$G,4, 0),\"non-native\")),\"\")","v":""},{"$f":"IF(COUNTIF(B$11:B20,B20)>1,0,IF(H20 = \"\",0,IF(H20=\"non-native\",0,1)))","v":0},{"$f":"IF(COUNTIF(B$11:B20,B20)>1,0,IF(H20 = \"\",0,1))","v":0},11,{"$f":"INDIRECT(\"'Vegetation Continued, 4 Strata'!$D16\")","v":{"$error":"#REF!"}},null,null,null,{"$f":"INDIRECT(\"'Vegetation Continued, 4 Strata'!$Z16\")","v":{"$error":"#REF!"}},{"$f":"IFERROR(IF(ISBLANK(L20),\"\",VLOOKUP(L20,'Plants table'!$A:$G,6, 0)),\"\")","v":""},{"$f":"IFERROR(IF(ISBLANK(L20),\"\",IF(VLOOKUP(L20,'Plants table'!$A:$G,3, 0) = \"native\", VLOOKUP(L20,'Plants table'!$A:$G,4, 0),\"non-native\")),\"\")","v":""},{"$f":"IF(COUNTIF(L$11:L20,L20)>1,0,IF(COUNTIF($B$11:$B$45,L20)>0,0,(IF(R20 = \"\",0,IF(R20=\"non-native\",0,1)))))","v":0},{"$f":"IF(COUNTIF(L$11:L20,L20)>1,0,IF(COUNTIF($B$11:$B$45,L20)>0,0,IF(R20 = \"\",0,1)))","v":0}]
[3,{"$f":"INDIRECT(\"'Page 2 (Vegetation, 4 Strata)'!$D17\")","v":{"$error":"#REF!"}},null,null,null,{"$f":"INDIRECT(\"'Page 2 (Vegetation, 4 Strata)'!$Z17\")","v":{"$error":"#REF!"}},{"$f":"IFERROR(IF(ISBLANK(B21),\"\",VLOOKUP(B21,'Plants table'!$A:$G,6, 0)),\"\")","v":""},{"$f":"IFERROR(IF(ISBLANK(B21),\"\",IF(VLOOKUP(B21,'Plants table'!$A:$G,3, 0) = \"native\", VLOOKUP(B21,'Plants table'!$A:$G,4, 0),\"non-native\")),\"\")","v":""},{"$f":"IF(COUNTIF(B$11:B21,B21)>1,0,IF(H21 = \"\",0,IF(H21=\"non-native\",0,1)))","v":0},{"$f":"IF(COUNTIF(B$11:B21,B21)>1,0,IF(H21 = \"\",0,1))","v":0},12,{"$f":"INDIRECT(\"'Vegetation Continued, 4 Strata'!$D17\")","v":{"$error":"#REF!"}},null,null,null,{"$f":"INDIRECT(\"'Vegetation Continued, 4 Strata'!$Z17\")","v":{"$error":"#REF!"}},{"$f":"IFERROR(IF(ISBLANK(L21),\"\",VLOOKUP(L21,'Plants table'!$A:$G,6, 0)),\"\")","v":""},{"$f":"IFERROR(IF(ISBLANK(L21),\"\",IF(VLOOKUP(L21,'Plants table'!$A:$G,3, 0) = \"native\", VLOOKUP(L21,'Plants table'!$A:$G,4, 0),\"non-native\")),\"\")","v":""},{"$f":"IF(COUNTIF(L$11:L21,L21)>1,0,IF(COUNTIF($B$11:$B$45,L21)>0,0,(IF(R21 = \"\",0,IF(R21=\"non-native\",0,1)))))","v":0},{"$f":"IF(COUNTIF(L$11:L21,L21)>1,0,IF(COUNTIF($B$11:$B$45,L21)>0,0,IF(R21 = \"\",0,1)))","v":0}]
[4,{"$f":"INDIRECT(\"'Page 2 (Vegetation, 4 Strata)'!$D18\")","v":{"$error":"#REF!"}},null,null,null,{"$f":"INDIRECT(\"'Page 2 (Vegetation, 4 Strata)'!$Z18\")","v":{"$error":"#REF!"}},{"$f":"IFERROR(IF(ISBLANK(B22),\"\",VLOOKUP(B22,'Plants table'!$A:$G,6, 0)),\"\")","v":""},{"$f":"IFERROR(IF(ISBLANK(B22),\"\",IF(VLOOKUP(B22,'Plants table'!$A:$G,3, 0) = \"native\", VLOOKUP(B22,'Plants table'!$A:$G,4, 0),\"non-native\")),\"\")","v":""},{"$f":"IF(COUNTIF(B$11:B22,B22)>1,0,IF(H22 = \"\",0,IF(H22=\"non-native\",0,1)))","v":0},{"$f":"IF(COUNTIF(B$11:B22,B22)>1,0,IF(H22 = \"\",0,1))","v":0},13,{"$f":"INDIRECT(\"'Vegetation Continued, 4 Strata'!$D18\")","v":{"$error":"#REF!"}},null,null,null,{"$f":"INDIRECT(\"'Vegetation Continued, 4 Strata'!$Z18\")","v":{"$error":"#REF!"}},{"$f":"IFERROR(IF(ISBLANK(L22),\"\",VLOOKUP(L22,'Plants table'!$A:$G,6, 0)),\"\")","v":""},{"$f":"IFERROR(IF(ISBLANK(L22),\"\",IF(VLOOKUP(L22,'Plants table'!$A:$G,3, 0) = \"native\", VLOOKUP(L22,'Plants table'!$A:$G,4, 0),\"non-native\")),\"\")","v":""},{"$f":"IF(COUNTIF(L$11:L22,L22)>1,0,IF(COUNTIF($B$11:$B$45,L22)>0,0,(IF(R22 = \"\",0,IF(R22=\"non-native\",0,1)))))","v":0},{"$f":"IF(COUNTIF(L$11:L22,L22)>1,0,IF(COUNTIF($B$11:$B$45,L22)>0,0,IF(R22 = \"\",0,1)))","v":0}]
[5,{"$f":"INDIRECT(\"'Page 2 (Vegetation, 4 Strata)'!$D19\")","v":{"$error":"#REF!"}},null,null,null,{"$f":"INDIRECT(\"'Page 2 (Vegetation, 4 Strata)'!$Z19\")","v":{"$error":"#REF!"}},{"$f":"IFERROR(IF(ISBLANK(B23),\"\",VLOOKUP(B23,'Plants table'!$A:$G,6, 0)),\"\")","v":""},{"$f":"IFERROR(IF(ISBLANK(B23),\"\",IF(VLOOKUP(B23,'Plants table'!$A:$G,3, 0) = \"native\", VLOOKUP(B23,'Plants table'!$A:$G,4, 0),\"non-native\")),\"\")","v":""},{"$f":"IF(COUNTIF(B$11:B23,B23)>1,0,IF(H23 = \"\",0,IF(H23=\"non-native\",0,1)))","v":0},{"$f":"IF(COUNTIF(B$11:B23,B23)>1,0,IF(H23 = \"\",0,1))","v":0},14,{"$f":"INDIRECT(\"'Vegetation Continued, 4 Strata'!$D19\")","v":{"$error":"#REF!"}},null,null,null,{"$f":"INDIRECT(\"'Vegetation Continued, 4 Strata'!$Z19\")","v":{"$error":"#REF!"}},{"$f":"IFERROR(IF(ISBLANK(L23),\"\",VLOOKUP(L23,'Plants table'!$A:$G,6, 0)),\"\")","v":""},{"$f":"IFERROR(IF(ISBLANK(L23),\"\",IF(VLOOKUP(L23,'Plants table'!$A:$G,3, 0) = \"native\", VLOOKUP(L23,'Plants table'!$A:$G,4, 0),\"non-native\")),\"\")","v":""},{"$f":"IF(COUNTIF(L$11:L23,L23)>1,0,IF(COUNTIF($B$11:$B$45,L23)>0,0,(IF(R23 = \"\",0,IF(R23=\"non-native\",0,1)))))","v":0},{"$f":"IF(COUNTIF(L$11:L23,L23)>1,0,IF(COUNTIF($B$11:$B$45,L23)>0,0,IF(R23 = \"\",0,1)))","v":0}]
[6,{"$f":"INDIRECT(\"'Page 2 (Vegetation, 4 Strata)'!$D21\")","v":{"$error":"#REF!"}},null,null,null,{"$f":"INDIRECT(\"'Page 2 (Vegetation, 4 Strata)'!$Z21\")","v":{"$error":"#REF!"}},{"$f":"IFERROR(IF(ISBLANK(B24),\"\",VLOOKUP(B24,'Plants table'!$A:$G,6, 0)),\"\")","v":""},{"$f":"IFERROR(IF(ISBLANK(B24),\"\",IF(VLOOKUP(B24,'Plants table'!$A:$G,3, 0) = \"native\", VLOOKUP(B24,'Plants table'!$A:$G,4, 0),\"non-native\")),\"\")","v":""},{"$f":"IF(COUNTIF(B$11:B24,B24)>1,0,IF(H24 = \"\",0,IF(H24=\"non-native\",0,1)))","v":0},{"$f":"IF(COUNTIF(B$11:B24,B24)>1,0,IF(H24 = \"\",0,1))","v":0},15,{"$f":"INDIRECT(\"'Vegetation Continued, 4 Strata'!$D21\")","v":{"$error":"#REF!"}},null,null,null,{"$f":"INDIRECT(\"'Vegetation Continued, 4 Strata'!$Z21\")","v":{"$error":"#REF!"}},{"$f":"IFERROR(IF(ISBLANK(L24),\"\",VLOOKUP(L24,'Plants table'!$A:$G,6, 0)),\"\")","v":""},{"$f":"IFERROR(IF(ISBLANK(L24),\"\",IF(VLOOKUP(L24,'Plants table'!$A:$G,3, 0) = \"native\", VLOOKUP(L24,'Plants table'!$A:$G,4, 0),\"non-native\")),\"\")","v":""},{"$f":"IF(COUNTIF(L$11:L24,L24)>1,0,IF(COUNTIF($B$11:$B$45,L24)>0,0,(IF(R24 = \"\",0,IF(R24=\"non-native\",0,1)))))","v":0},{"$f":"IF(COUNTIF(L$11:L24,L24)>1,0,IF(COUNTIF($B$11:$B$45,L24)>0,0,IF(R24 = \"\",0,1)))","v":0}]
[7,{"$f":"INDIRECT(\"'Page 2 (Vegetation, 4 Strata)'!$D22\")","v":{"$error":"#REF!"}},null,null,null,{"$f":"INDIRECT(\"'Page 2 (Vegetation, 4 Strata)'!$Z22\")","v":{"$error":"#REF!"}},{"$f":"IFERROR(IF(ISBLANK(B25),\"\",VLOOKUP(B25,'Plants table'!$A:$G,6, 0)),\"\")","v":""},{"$f":"IFERROR(IF(ISBLANK(B25),\"\",IF(VLOOKUP(B25,'Plants table'!$A:$G,3, 0) = \"native\", VLOOKUP(B25,'Plants table'!$A:$G,4, 0),\"non-native\")),\"\")","v":""},{"$f":"IF(COUNTIF(B$11:B25,B25)>1,0,IF(H25 = \"\",0,IF(H25=\"non-native\",0,1)))","v":0},{"$f":"IF(COUNTIF(B$11:B25,B25)>1,0,IF(H25 = \"\",0,1))","v":0},16,{"$f":"INDIRECT(\"'Vegetation Continued, 4 Strata'!$D22\")","v":{"$error":"#REF!"}},null,null,null,{"$f":"INDIRECT(\"'Vegetation Continued, 4 Strata'!$Z22\")","v":{"$error":"#REF!"}},{"$f":"IFERROR(IF(ISBLANK(L25),\"\",VLOOKUP(L25,'Plants table'!$A:$G,6, 0)),\"\")","v":""},{"$f":"IFERROR(IF(ISBLANK(L25),\"\",IF(VLOOKUP(L25,'Plants table'!$A:$G,3, 0) = \"native\", VLOOKUP(L25,'Plants table'!$A:$G,4, 0),\"non-native\")),\"\")","v":""},{"$f":"IF(COUNTIF(L$11:L25,L25)>1,0,IF(COUNTIF($B$11:$B$45,L25)>0,0,(IF(R25 = \"\",0,IF(R25=\"non-native\",0,1)))))","v":0},{"$f":"IF(COUNTIF(L$11:L25,L25)>1,0,IF(COUNTIF($B$11:$B$45,L25)>0,0,IF(R25 = \"\",0,1)))","v":0}]
[8,{"$f":"INDIRECT(\"'Page 2 (Vegetation, 4 Strata)'!$D23\")","v":{"$error":"#REF!"}},null,null,null,{"$f":"INDIRECT(\"'Page 2 (Vegetation, 4 Strata)'!$Z23\")","v":{"$error":"#REF!"}},{"$f":"IFERROR(IF(ISBLANK(B26),\"\",VLOOKUP(B26,'Plants table'!$A:$G,6, 0)),\"\")","v":""},{"$f":"IFERROR(IF(ISBLANK(B26),\"\",IF(VLOOKUP(B26,'Plants table'!$A:$G,3, 0) = \"native\", VLOOKUP(B26,'Plants table'!$A:$G,4, 0),\"non-native\")),\"\")","v":""},{"$f":"IF(COUNTIF(B$11:B26,B26)>1,0,IF(H26 = \"\",0,IF(H26=\"non-native\",0,1)))","v":0},{"$f":"IF(COUNTIF(B$11:B26,B26)>1,0,IF(H26 = \"\",0,1))","v":0},17,{"$f":"INDIRECT(\"'Vegetation Continued, 4 Strata'!$D23\")","v":{"$error":"#REF!"}},null,null,null,{"$f":"INDIRECT(\"'Vegetation Continued, 4 Strata'!$Z23\")","v":{"$error":"#REF!"}},{"$f":"IFERROR(IF(ISBLANK(L26),\"\",VLOOKUP(L26,'Plants table'!$A:$G,6, 0)),\"\")","v":""},{"$f":"IFERROR(IF(ISBLANK(L26),\"\",IF(VLOOKUP(L26,'Plants table'!$A:$G,3, 0) = \"native\", VLOOKUP(L26,'Plants table'!$A:$G,4, 0),\"non-native\")),\"\")","v":""},{"$f":"IF(COUNTIF(L$11:L26,L26)>1,0,IF(COUNTIF($B$11:$B$45,L26)>0,0,(IF(R26 = \"\",0,IF(R26=\"non-native\",0,1)))))","v":0},{"$f":"IF(COUNTIF(L$11:L26,L26)>1,0,IF(COUNTIF($B$11:$B$45,L26)>0,0,IF(R26 = \"\",0,1)))","v":0}]
[9,{"$f":"INDIRECT(\"'Page 2 (Vegetation, 4 Strata)'!$D24\")","v":{"$error":"#REF!"}},null,null,null,{"$f":"INDIRECT(\"'Page 2 (Vegetation, 4 Strata)'!$Z24\")","v":{"$error":"#REF!"}},{"$f":"IFERROR(IF(ISBLANK(B27),\"\",VLOOKUP(B27,'Plants table'!$A:$G,6, 0)),\"\")","v":""},{"$f":"IFERROR(IF(ISBLANK(B27),\"\",IF(VLOOKUP(B27,'Plants table'!$A:$G,3, 0) = \"native\", VLOOKUP(B27,'Plants table'!$A:$G,4, 0),\"non-native\")),\"\")","v":""},{"$f":"IF(COUNTIF(B$11:B27,B27)>1,0,IF(H27 = \"\",0,IF(H27=\"non-native\",0,1)))","v":0},{"$f":"IF(COUNTIF(B$11:B27,B27)>1,0,IF(H27 = \"\",0,1))","v":0},18,{"$f":"INDIRECT(\"'Vegetation Continued, 4 Strata'!$D24\")","v":{"$error":"#REF!"}},null,null,null,{"$f":"INDIRECT(\"'Vegetation Continued, 4 Strata'!$Z24\")","v":{"$error":"#REF!"}},{"$f":"IFERROR(IF(ISBLANK(L27),\"\",VLOOKUP(L27,'Plants table'!$A:$G,6, 0)),\"\")","v":""},{"$f":"IFERROR(IF(ISBLANK(L27),\"\",IF(VLOOKUP(L27,'Plants table'!$A:$G,3, 0) = \"native\", VLOOKUP(L27,'Plants table'!$A:$G,4, 0),\"non-native\")),\"\")","v":""},{"$f":"IF(COUNTIF(L$11:L27,L27)>1,0,IF(COUNTIF($B$11:$B$45,L27)>0,0,(IF(R27 = \"\",0,IF(R27=\"non-native\",0,1)))))","v":0},{"$f":"IF(COUNTIF(L$11:L27,L27)>1,0,IF(COUNTIF($B$11:$B$45,L27)>0,0,IF(R27 = \"\",0,1)))","v":0}]
["Herb Stratum: all herbaceous (non-woody) plants, including herbaceous vines, regardless of size, and all other plants less than 3.28 ft (1 m) in height"]
[1,{"$f":"INDIRECT(\"'Page 2 (Vegetation, 4 Strata)'!$D28\")","v":{"$error":"#REF!"}},null,null,null,{"$f":"INDIRECT(\"'Page 2 (Vegetation, 4 Strata)'!$Z28\")","v":{"$error":"#REF!"}},{"$f":"IFERROR(IF(ISBLANK(B29),\"\",VLOOKUP(B29,'Plants table'!$A:$G,6, 0)),\"\")","v":""},{"$f":"IFERROR(IF(ISBLANK(B29),\"\",IF(VLOOKUP(B29,'Plants table'!$A:$G,3, 0) = \"native\", VLOOKUP(B29,'Plants table'!$A:$G,4, 0),\"non-native\")),\"\")","v":""},{"$f":"IF(COUNTIF(B$11:B29,B29)>1,0,IF(H29 = \"\",0,IF(H29=\"non-native\",0,1)))","v":0},{"$f":"IF(COUNTIF(B$11:B29,B29)>1,0,IF(H29 = \"\",0,1))","v":0},12,{"$f":"INDIRECT(\"'Vegetation Continued, 4 Strata'!$D28\")","v":{"$error":"#REF!"}},null,null,null,{"$f":"INDIRECT(\"'Vegetation Continued, 4 Strata'!$Z28\")","v":{"$error":"#REF!"}},{"$f":"IFERROR(IF(ISBLANK(L29),\"\",VLOOKUP(L29,'Plants table'!$A:$G,6, 0)),\"\")","v":""},{"$f":"IFERROR(IF(ISBLANK(L29),\"\",IF(VLOOKUP(L29,'Plants table'!$A:$G,3, 0) = \"native\", VLOOKUP(L29,'Plants table'!$A:$G,4, 0),\"non-native\")),\"\")","v":""},{"$f":"IF(COUNTIF(L$11:L29,L29)>1,0,IF(COUNTIF($B$11:$B$45,L29)>0,0,(IF(R29 = \"\",0,IF(R29=\"non-native\",0,1)))))","v":0},{"$f":"IF(COUNTIF(L$11:L29,L29)>1,0,IF(COUNTIF($B$11:$B$45,L29)>0,0,IF(R29 = \"\",0,1)))","v":0}]
[2,{"$f":"INDIRECT(\"'Page 2 (Vegetation, 4 Strata)'!$D29\")","v":{"$error":"#REF!"}},null,null,null,{"$f":"INDIRECT(\"'Page 2 (Vegetation, 4 Strata)'!$Z29\")","v":{"$error":"#REF!"}},{"$f":"IFERROR(IF(ISBLANK(B30),\"\",VLOOKUP(B30,'Plants table'!$A:$G,6, 0)),\"\")","v":""},{"$f":"IFERROR(IF(ISBLANK(B30),\"\",IF(VLOOKUP(B30,'Plants table'!$A:$G,3, 0) = \"native\", VLOOKUP(B30,'Plants table'!$A:$G,4, 0),\"non-native\")),\"\")","v":""},{"$f":"IF(COUNTIF(B$11:B30,B30)>1,0,IF(H30 = \"\",0,IF(H30=\"non-native\",0,1)))","v":0},{"$f":"IF(COUNTIF(B$11:B30,B30)>1,0,IF(H30 = \"\",0,1))","v":0},13,{"$f":"INDIRECT(\"'Vegetation Continued, 4 Strata'!$D29\")","v":{"$error":"#REF!"}},null,null,null,{"$f":"INDIRECT(\"'Vegetation Continued, 4 Strata'!$Z29\")","v":{"$error":"#REF!"}},{"$f":"IFERROR(IF(ISBLANK(L30),\"\",VLOOKUP(L30,'Plants table'!$A:$G,6, 0)),\"\")","v":""},{"$f":"IFERROR(IF(ISBLANK(L30),\"\",IF(VLOOKUP(L30,'Plants table'!$A:$G,3, 0) = \"native\", VLOOKUP(L30,'Plants table'!$A:$G,4, 0),\"non-native\")),\"\")","v":""},{"$f":"IF(COUNTIF(L$11:L30,L30)>1,0,IF(COUNTIF($B$11:$B$45,L30)>0,0,(IF(R30 = \"\",0,IF(R30=\"non-native\",0,1)))))","v":0},{"$f":"IF(COUNTIF(L$11:L30,L30)>1,0,IF(COUNTIF($B$11:$B$45,L30)>0,0,IF(R30 = \"\",0,1)))","v":0}]
[3,{"$f":"INDIRECT(\"'Page 2 (Vegetation, 4 Strata)'!$D30\")","v":{"$error":"#REF!"}},null,null,null,{"$f":"INDIRECT(\"'Page 2 (Vegetation, 4 Strata)'!$Z30\")","v":{"$error":"#REF!"}},{"$f":"IFERROR(IF(ISBLANK(B31),\"\",VLOOKUP(B31,'Plants table'!$A:$G,6, 0)),\"\")","v":""},{"$f":"IFERROR(IF(ISBLANK(B31),\"\",IF(VLOOKUP(B31,'Plants table'!$A:$G,3, 0) = \"native\", VLOOKUP(B31,'Plants table'!$A:$G,4, 0),\"non-native\")),\"\")","v":""},{"$f":"IF(COUNTIF(B$11:B31,B31)>1,0,IF(H31 = \"\",0,IF(H31=\"non-native\",0,1)))","v":0},{"$f":"IF(COUNTIF(B$11:B31,B31)>1,0,IF(H31 = \"\",0,1))","v":0},14,{"$f":"INDIRECT(\"'Vegetation Continued, 4 Strata'!$D30\")","v":{"$error":"#REF!"}},null,null,null,{"$f":"INDIRECT(\"'Vegetation Continued, 4 Strata'!$Z30\")","v":{"$error":"#REF!"}},{"$f":"IFERROR(IF(ISBLANK(L31),\"\",VLOOKUP(L31,'Plants table'!$A:$G,6, 0)),\"\")","v":""},{"$f":"IFERROR(IF(ISBLANK(L31),\"\",IF(VLOOKUP(L31,'Plants table'!$A:$G,3, 0) = \"native\", VLOOKUP(L31,'Plants table'!$A:$G,4, 0),\"non-native\")),\"\")","v":""},{"$f":"IF(COUNTIF(L$11:L31,L31)>1,0,IF(COUNTIF($B$11:$B$45,L31)>0,0,(IF(R31 = \"\",0,IF(R31=\"non-native\",0,1)))))","v":0},{"$f":"IF(COUNTIF(L$11:L31,L31)>1,0,IF(COUNTIF($B$11:$B$45,L31)>0,0,IF(R31 = \"\",0,1)))","v":0}]
[4,{"$f":"INDIRECT(\"'Page 2 (Vegetation, 4 Strata)'!$D31\")","v":{"$error":"#REF!"}},null,null,null,{"$f":"INDIRECT(\"'Page 2 (Vegetation, 4 Strata)'!$Z31\")","v":{"$error":"#REF!"}},{"$f":"IFERROR(IF(ISBLANK(B32),\"\",VLOOKUP(B32,'Plants table'!$A:$G,6, 0)),\"\")","v":""},{"$f":"IFERROR(IF(ISBLANK(B32),\"\",IF(VLOOKUP(B32,'Plants table'!$A:$G,3, 0) = \"native\", VLOOKUP(B32,'Plants table'!$A:$G,4, 0),\"non-native\")),\"\")","v":""},{"$f":"IF(COUNTIF(B$11:B32,B32)>1,0,IF(H32 = \"\",0,IF(H32=\"non-native\",0,1)))","v":0},{"$f":"IF(COUNTIF(B$11:B32,B32)>1,0,IF(H32 = \"\",0,1))","v":0},15,{"$f":"INDIRECT(\"'Vegetation Continued, 4 Strata'!$D31\")","v":{"$error":"#REF!"}},null,null,null,{"$f":"INDIRECT(\"'Vegetation Continued, 4 Strata'!$Z31\")","v":{"$error":"#REF!"}},{"$f":"IFERROR(IF(ISBLANK(L32),\"\",VLOOKUP(L32,'Plants table'!$A:$G,6, 0)),\"\")","v":""},{"$f":"IFERROR(IF(ISBLANK(L32),\"\",IF(VLOOKUP(L32,'Plants table'!$A:$G,3, 0) = \"native\", VLOOKUP(L32,'Plants table'!$A:$G,4, 0),\"non-native\")),\"\")","v":""},{"$f":"IF(COUNTIF(L$11:L32,L32)>1,0,IF(COUNTIF($B$11:$B$45,L32)>0,0,(IF(R32 = \"\",0,IF(R32=\"non-native\",0,1)))))","v":0},{"$f":"IF(COUNTIF(L$11:L32,L32)>1,0,IF(COUNTIF($B$11:$B$45,L32)>0,0,IF(R32 = \"\",0,1)))","v":0}]
[5,{"$f":"INDIRECT(\"'Page 2 (Vegetation, 4 Strata)'!$D32\")","v":{"$error":"#REF!"}},null,null,null,{"$f":"INDIRECT(\"'Page 2 (Vegetation, 4 Strata)'!$Z32\")","v":{"$error":"#REF!"}},{"$f":"IFERROR(IF(ISBLANK(B33),\"\",VLOOKUP(B33,'Plants table'!$A:$G,6, 0)),\"\")","v":""},{"$f":"IFERROR(IF(ISBLANK(B33),\"\",IF(VLOOKUP(B33,'Plants table'!$A:$G,3, 0) = \"native\", VLOOKUP(B33,'Plants table'!$A:$G,4, 0),\"non-native\")),\"\")","v":""},{"$f":"IF(COUNTIF(B$11:B33,B33)>1,0,IF(H33 = \"\",0,IF(H33=\"non-native\",0,1)))","v":0},{"$f":"IF(COUNTIF(B$11:B33,B33)>1,0,IF(H33 = \"\",0,1))","v":0},16,{"$f":"INDIRECT(\"'Vegetation Continued, 4 Strata'!$D32\")","v":{"$error":"#REF!"}},null,null,null,{"$f":"INDIRECT(\"'Vegetation Continued, 4 Strata'!$Z32\")","v":{"$error":"#REF!"}},{"$f":"IFERROR(IF(ISBLANK(L33),\"\",VLOOKUP(L33,'Plants table'!$A:$G,6, 0)),\"\")","v":""},{"$f":"IFERROR(IF(ISBLANK(L33),\"\",IF(VLOOKUP(L33,'Plants table'!$A:$G,3, 0) = \"native\", VLOOKUP(L33,'Plants table'!$A:$G,4, 0),\"non-native\")),\"\")","v":""},{"$f":"IF(COUNTIF(L$11:L33,L33)>1,0,IF(COUNTIF($B$11:$B$45,L33)>0,0,(IF(R33 = \"\",0,IF(R33=\"non-native\",0,1)))))","v":0},{"$f":"IF(COUNTIF(L$11:L33,L33)>1,0,IF(COUNTIF($B$11:$B$45,L33)>0,0,IF(R33 = \"\",0,1)))","v":0}]
[6,{"$f":"INDIRECT(\"'Page 2 (Vegetation, 4 Strata)'!$D33\")","v":{"$error":"#REF!"}},null,null,null,{"$f":"INDIRECT(\"'Page 2 (Vegetation, 4 Strata)'!$Z33\")","v":{"$error":"#REF!"}},{"$f":"IFERROR(IF(ISBLANK(B34),\"\",VLOOKUP(B34,'Plants table'!$A:$G,6, 0)),\"\")","v":""},{"$f":"IFERROR(IF(ISBLANK(B34),\"\",IF(VLOOKUP(B34,'Plants table'!$A:$G,3, 0) = \"native\", VLOOKUP(B34,'Plants table'!$A:$G,4, 0),\"non-native\")),\"\")","v":""},{"$f":"IF(COUNTIF(B$11:B34,B34)>1,0,IF(H34 = \"\",0,IF(H34=\"non-native\",0,1)))","v":0},{"$f":"IF(COUNTIF(B$11:B34,B34)>1,0,IF(H34 = \"\",0,1))","v":0},17,{"$f":"INDIRECT(\"'Vegetation Continued, 4 Strata'!$D33\")","v":{"$error":"#REF!"}},null,null,null,{"$f":"INDIRECT(\"'Vegetation Continued, 4 Strata'!$Z33\")","v":{"$error":"#REF!"}},{"$f":"IFERROR(IF(ISBLANK(L34),\"\",VLOOKUP(L34,'Plants table'!$A:$G,6, 0)),\"\")","v":""},{"$f":"IFERROR(IF(ISBLANK(L34),\"\",IF(VLOOKUP(L34,'Plants table'!$A:$G,3, 0) = \"native\", VLOOKUP(L34,'Plants table'!$A:$G,4, 0),\"non-native\")),\"\")","v":""},{"$f":"IF(COUNTIF(L$11:L34,L34)>1,0,IF(COUNTIF($B$11:$B$45,L34)>0,0,(IF(R34 = \"\",0,IF(R34=\"non-native\",0,1)))))","v":0},{"$f":"IF(COUNTIF(L$11:L34,L34)>1,0,IF(COUNTIF($B$11:$B$45,L34)>0,0,IF(R34 = \"\",0,1)))","v":0}]
[7,{"$f":"INDIRECT(\"'Page 2 (Vegetation, 4 Strata)'!$D34\")","v":{"$error":"#REF!"}},null,null,null,{"$f":"INDIRECT(\"'Page 2 (Vegetation, 4 Strata)'!$Z34\")","v":{"$error":"#REF!"}},{"$f":"IFERROR(IF(ISBLANK(B35),\"\",VLOOKUP(B35,'Plants table'!$A:$G,6, 0)),\"\")","v":""},{"$f":"IFERROR(IF(ISBLANK(B35),\"\",IF(VLOOKUP(B35,'Plants table'!$A:$G,3, 0) = \"native\", VLOOKUP(B35,'Plants table'!$A:$G,4, 0),\"non-native\")),\"\")","v":""},{"$f":"IF(COUNTIF(B$11:B35,B35)>1,0,IF(H35 = \"\",0,IF(H35=\"non-native\",0,1)))","v":0},{"$f":"IF(COUNTIF(B$11:B35,B35)>1,0,IF(H35 = \"\",0,1))","v":0},18,{"$f":"INDIRECT(\"'Vegetation Continued, 4 Strata'!$D34\")","v":{"$error":"#REF!"}},null,null,null,{"$f":"INDIRECT(\"'Vegetation Continued, 4 Strata'!$Z34\")","v":{"$error":"#REF!"}},{"$f":"IFERROR(IF(ISBLANK(L35),\"\",VLOOKUP(L35,'Plants table'!$A:$G,6, 0)),\"\")","v":""},{"$f":"IFERROR(IF(ISBLANK(L35),\"\",IF(VLOOKUP(L35,'Plants table'!$A:$G,3, 0) = \"native\", VLOOKUP(L35,'Plants table'!$A:$G,4, 0),\"non-native\")),\"\")","v":""},{"$f":"IF(COUNTIF(L$11:L35,L35)>1,0,IF(COUNTIF($B$11:$B$45,L35)>0,0,(IF(R35 = \"\",0,IF(R35=\"non-native\",0,1)))))","v":0},{"$f":"IF(COUNTIF(L$11:L35,L35)>1,0,IF(COUNTIF($B$11:$B$45,L35)>0,0,IF(R35 = \"\",0,1)))","v":0}]
[8,{"$f":"INDIRECT(\"'Page 2 (Vegetation, 4 Strata)'!$D35\")","v":{"$error":"#REF!"}},null,null,null,{"$f":"INDIRECT(\"'Page 2 (Vegetation, 4 Strata)'!$Z35\")","v":{"$error":"#REF!"}},{"$f":"IFERROR(IF(ISBLANK(B36),\"\",VLOOKUP(B36,'Plants table'!$A:$G,6, 0)),\"\")","v":""},{"$f":"IFERROR(IF(ISBLANK(B36),\"\",IF(VLOOKUP(B36,'Plants table'!$A:$G,3, 0) = \"native\", VLOOKUP(B36,'Plants table'!$A:$G,4, 0),\"non-native\")),\"\")","v":""},{"$f":"IF(COUNTIF(B$11:B36,B36)>1,0,IF(H36 = \"\",0,IF(H36=\"non-native\",0,1)))","v":0},{"$f":"IF(COUNTIF(B$11:B36,B36)>1,0,IF(H36 = \"\",0,1))","v":0},19,{"$f":"INDIRECT(\"'Vegetation Continued, 4 Strata'!$D35\")","v":{"$error":"#REF!"}},null,null,null,{"$f":"INDIRECT(\"'Vegetation Continued, 4 Strata'!$Z35\")","v":{"$error":"#REF!"}},{"$f":"IFERROR(IF(ISBLANK(L36),\"\",VLOOKUP(L36,'Plants table'!$A:$G,6, 0)),\"\")","v":""},{"$f":"IFERROR(IF(ISBLANK(L36),\"\",IF(VLOOKUP(L36,'Plants table'!$A:$G,3, 0) = \"native\", VLOOKUP(L36,'Plants table'!$A:$G,4, 0),\"non-native\")),\"\")","v":""},{"$f":"IF(COUNTIF(L$11:L36,L36)>1,0,IF(COUNTIF($B$11:$B$45,L36)>0,0,(IF(R36 = \"\",0,IF(R36=\"non-native\",0,1)))))","v":0},{"$f":"IF(COUNTIF(L$11:L36,L36)>1,0,IF(COUNTIF($B$11:$B$45,L36)>0,0,IF(R36 = \"\",0,1)))","v":0}]
[9,{"$f":"INDIRECT(\"'Page 2 (Vegetation, 4 Strata)'!$D36\")","v":{"$error":"#REF!"}},null,null,null,{"$f":"INDIRECT(\"'Page 2 (Vegetation, 4 Strata)'!$Z36\")","v":{"$error":"#REF!"}},{"$f":"IFERROR(IF(ISBLANK(B37),\"\",VLOOKUP(B37,'Plants table'!$A:$G,6, 0)),\"\")","v":""},{"$f":"IFERROR(IF(ISBLANK(B37),\"\",IF(VLOOKUP(B37,'Plants table'!$A:$G,3, 0) = \"native\", VLOOKUP(B37,'Plants table'!$A:$G,4, 0),\"non-native\")),\"\")","v":""},{"$f":"IF(COUNTIF(B$11:B37,B37)>1,0,IF(H37 = \"\",0,IF(H37=\"non-native\",0,1)))","v":0},{"$f":"IF(COUNTIF(B$11:B37,B37)>1,0,IF(H37 = \"\",0,1))","v":0},20,{"$f":"INDIRECT(\"'Vegetation Continued, 4 Strata'!$D36\")","v":{"$error":"#REF!"}},null,null,null,{"$f":"INDIRECT(\"'Vegetation Continued, 4 Strata'!$Z36\")","v":{"$error":"#REF!"}},{"$f":"IFERROR(IF(ISBLANK(L37),\"\",VLOOKUP(L37,'Plants table'!$A:$G,6, 0)),\"\")","v":""},{"$f":"IFERROR(IF(ISBLANK(L37),\"\",IF(VLOOKUP(L37,'Plants table'!$A:$G,3, 0) = \"native\", VLOOKUP(L37,'Plants table'!$A:$G,4, 0),\"non-native\")),\"\")","v":""},{"$f":"IF(COUNTIF(L$11:L37,L37)>1,0,IF(COUNTIF($B$11:$B$45,L37)>0,0,(IF(R37 = \"\",0,IF(R37=\"non-native\",0,1)))))","v":0},{"$f":"IF(COUNTIF(L$11:L37,L37)>1,0,IF(COUNTIF($B$11:$B$45,L37)>0,0,IF(R37 = \"\",0,1)))","v":0}]
[10,{"$f":"INDIRECT(\"'Page 2 (Vegetation, 4 Strata)'!$D37\")","v":{"$error":"#REF!"}},null,null,null,{"$f":"INDIRECT(\"'Page 2 (Vegetation, 4 Strata)'!$Z37\")","v":{"$error":"#REF!"}},{"$f":"IFERROR(IF(ISBLANK(B38),\"\",VLOOKUP(B38,'Plants table'!$A:$G,6, 0)),\"\")","v":""},{"$f":"IFERROR(IF(ISBLANK(B38),\"\",IF(VLOOKUP(B38,'Plants table'!$A:$G,3, 0) = \"native\", VLOOKUP(B38,'Plants table'!$A:$G,4, 0),\"non-native\")),\"\")","v":""},{"$f":"IF(COUNTIF(B$11:B38,B38)>1,0,IF(H38 = \"\",0,IF(H38=\"non-native\",0,1)))","v":0},{"$f":"IF(COUNTIF(B$11:B38,B38)>1,0,IF(H38 = \"\",0,1))","v":0},21,{"$f":"INDIRECT(\"'Vegetation Continued, 4 Strata'!$D37\")","v":{"$error":"#REF!"}},null,null,null,{"$f":"INDIRECT(\"'Vegetation Continued, 4 Strata'!$Z37\")","v":{"$error":"#REF!"}},{"$f":"IFERROR(IF(ISBLANK(L38),\"\",VLOOKUP(L38,'Plants table'!$A:$G,6, 0)),\"\")","v":""},{"$f":"IFERROR(IF(ISBLANK(L38),\"\",IF(VLOOKUP(L38,'Plants table'!$A:$G,3, 0) = \"native\", VLOOKUP(L38,'Plants table'!$A:$G,4, 0),\"non-native\")),\"\")","v":""},{"$f":"IF(COUNTIF(L$11:L38,L38)>1,0,IF(COUNTIF($B$11:$B$45,L38)>0,0,(IF(R38 = \"\",0,IF(R38=\"non-native\",0,1)))))","v":0},{"$f":"IF(COUNTIF(L$11:L38,L38)>1,0,IF(COUNTIF($B$11:$B$45,L38)>0,0,IF(R38 = \"\",0,1)))","v":0}]
[11,{"$f":"INDIRECT(\"'Page 2 (Vegetation, 4 Strata)'!$D38\")","v":{"$error":"#REF!"}},null,null,null,{"$f":"INDIRECT(\"'Page 2 (Vegetation, 4 Strata)'!$Z38\")","v":{"$error":"#REF!"}},{"$f":"IFERROR(IF(ISBLANK(B39),\"\",VLOOKUP(B39,'Plants table'!$A:$G,6, 0)),\"\")","v":""},{"$f":"IFERROR(IF(ISBLANK(B39),\"\",IF(VLOOKUP(B39,'Plants table'!$A:$G,3, 0) = \"native\", VLOOKUP(B39,'Plants table'!$A:$G,4, 0),\"non-native\")),\"\")","v":""},{"$f":"IF(COUNTIF(B$11:B39,B39)>1,0,IF(H39 = \"\",0,IF(H39=\"non-native\",0,1)))","v":0},{"$f":"IF(COUNTIF(B$11:B39,B39)>1,0,IF(H39 = \"\",0,1))","v":0},22,{"$f":"INDIRECT(\"'Vegetation Continued, 4 Strata'!$D38\")","v":{"$error":"#REF!"}},null,null,null,{"$f":"INDIRECT(\"'Vegetation Continued, 4 Strata'!$Z38\")","v":{"$error":"#REF!"}},{"$f":"IFERROR(IF(ISBLANK(L39),\"\",VLOOKUP(L39,'Plants table'!$A:$G,6, 0)),\"\")","v":""},{"$f":"IFERROR(IF(ISBLANK(L39),\"\",IF(VLOOKUP(L39,'Plants table'!$A:$G,3, 0) = \"native\", VLOOKUP(L39,'Plants table'!$A:$G,4, 0),\"non-native\")),\"\")","v":""},{"$f":"IF(COUNTIF(L$11:L39,L39)>1,0,IF(COUNTIF($B$11:$B$45,L39)>0,0,(IF(R39 = \"\",0,IF(R39=\"non-native\",0,1)))))","v":0},{"$f":"IF(COUNTIF(L$11:L39,L39)>1,0,IF(COUNTIF($B$11:$B$45,L39)>0,0,IF(R39 = \"\",0,1)))","v":0}]
["Woody Vine Stratum: all woody vines, regardless of height"]
[1,{"$f":"INDIRECT(\"'Page 2 (Vegetation, 4 Strata)'!$D42\")","v":{"$error":"#REF!"}},null,null,null,{"$f":"INDIRECT(\"'Page 2 (Vegetation, 4 Strata)'!$Z42\")","v":{"$error":"#REF!"}},{"$f":"IFERROR(IF(ISBLANK(B41),\"\",VLOOKUP(B41,'Plants table'!$A:$G,6, 0)),\"\")","v":""},{"$f":"IFERROR(IF(ISBLANK(B41),\"\",IF(VLOOKUP(B41,'Plants table'!$A:$G,3, 0) = \"native\", VLOOKUP(B41,'Plants table'!$A:$G,4, 0),\"non-native\")),\"\")","v":""},{"$f":"IF(COUNTIF(B$11:B41,B41)>1,0,IF(H41 = \"\",0,IF(H41=\"non-native\",0,1)))","v":0},{"$f":"IF(COUNTIF(B$11:B41,B41)>1,0,IF(H41 = \"\",0,1))","v":0},6,{"$f":"INDIRECT(\"'Vegetation Continued, 4 Strata'!$D42\")","v":{"$error":"#REF!"}},null,null,null,{"$f":"INDIRECT(\"'Vegetation Continued, 4 Strata'!$Z42\")","v":{"$error":"#REF!"}},{"$f":"IFERROR(IF(ISBLANK(L41),\"\",VLOOKUP(L41,'Plants table'!$A:$G,6, 0)),\"\")","v":""},{"$f":"IFERROR(IF(ISBLANK(L41),\"\",IF(VLOOKUP(L41,'Plants table'!$A:$G,3, 0) = \"native\", VLOOKUP(L41,'Plants table'!$A:$G,4, 0),\"non-native\")),\"\")","v":""},{"$f":"IF(COUNTIF(L$11:L41,L41)>1,0,IF(COUNTIF($B$11:$B$45,L41)>0,0,(IF(R41 = \"\",0,IF(R41=\"non-native\",0,1)))))","v":0},{"$f":"IF(COUNTIF(L$11:L41,L41)>1,0,IF(COUNTIF($B$11:$B$45,L41)>0,0,IF(R41 = \"\",0,1)))","v":0}]
[2,{"$f":"INDIRECT(\"'Page 2 (Vegetation, 4 Strata)'!$D43\")","v":{"$error":"#REF!"}},null,null,null,{"$f":"INDIRECT(\"'Page 2 (Vegetation, 4 Strata)'!$Z43\")","v":{"$error":"#REF!"}},{"$f":"IFERROR(IF(ISBLANK(B42),\"\",VLOOKUP(B42,'Plants table'!$A:$G,6, 0)),\"\")","v":""},{"$f":"IFERROR(IF(ISBLANK(B42),\"\",IF(VLOOKUP(B42,'Plants table'!$A:$G,3, 0) = \"native\", VLOOKUP(B42,'Plants table'!$A:$G,4, 0),\"non-native\")),\"\")","v":""},{"$f":"IF(COUNTIF(B$11:B42,B42)>1,0,IF(H42 = \"\",0,IF(H42=\"non-native\",0,1)))","v":0},{"$f":"IF(COUNTIF(B$11:B42,B42)>1,0,IF(H42 = \"\",0,1))","v":0},7,{"$f":"INDIRECT(\"'Vegetation Continued, 4 Strata'!$D43\")","v":{"$error":"#REF!"}},null,null,null,{"$f":"INDIRECT(\"'Vegetation Continued, 4 Strata'!$Z43\")","v":{"$error":"#REF!"}},{"$f":"IFERROR(IF(ISBLANK(L42),\"\",VLOOKUP(L42,'Plants table'!$A:$G,6, 0)),\"\")","v":""},{"$f":"IFERROR(IF(ISBLANK(L42),\"\",IF(VLOOKUP(L42,'Plants table'!$A:$G,3, 0) = \"native\", VLOOKUP(L42,'Plants table'!$A:$G,4, 0),\"non-native\")),\"\")","v":""},{"$f":"IF(COUNTIF(L$11:L42,L42)>1,0,IF(COUNTIF($B$11:$B$45,L42)>0,0,(IF(R42 = \"\",0,IF(R42=\"non-native\",0,1)))))","v":0},{"$f":"IF(COUNTIF(L$11:L42,L42)>1,0,IF(COUNTIF($B$11:$B$45,L42)>0,0,IF(R42 = \"\",0,1)))","v":0}]
[3,{"$f":"INDIRECT(\"'Page 2 (Vegetation, 4 Strata)'!$D44\")","v":{"$error":"#REF!"}},null,null,null,{"$f":"INDIRECT(\"'Page 2 (Vegetation, 4 Strata)'!$Z44\")","v":{"$error":"#REF!"}},{"$f":"IFERROR(IF(ISBLANK(B43),\"\",VLOOKUP(B43,'Plants table'!$A:$G,6, 0)),\"\")","v":""},{"$f":"IFERROR(IF(ISBLANK(B43),\"\",IF(VLOOKUP(B43,'Plants table'!$A:$G,3, 0) = \"native\", VLOOKUP(B43,'Plants table'!$A:$G,4, 0),\"non-native\")),\"\")","v":""},{"$f":"IF(COUNTIF(B$11:B43,B43)>1,0,IF(H43 = \"\",0,IF(H43=\"non-native\",0,1)))","v":0},{"$f":"IF(COUNTIF(B$11:B43,B43)>1,0,IF(H43 = \"\",0,1))","v":0},8,{"$f":"INDIRECT(\"'Vegetation Continued, 4 Strata'!$D44\")","v":{"$error":"#REF!"}},null,null,null,{"$f":"INDIRECT(\"'Vegetation Continued, 4 Strata'!$Z44\")","v":{"$error":"#REF!"}},{"$f":"IFERROR(IF(ISBLANK(L43),\"\",VLOOKUP(L43,'Plants table'!$A:$G,6, 0)),\"\")","v":""},{"$f":"IFERROR(IF(ISBLANK(L43),\"\",IF(VLOOKUP(L43,'Plants table'!$A:$G,3, 0) = \"native\", VLOOKUP(L43,'Plants table'!$A:$G,4, 0),\"non-native\")),\"\")","v":""},{"$f":"IF(COUNTIF(L$11:L43,L43)>1,0,IF(COUNTIF($B$11:$B$45,L43)>0,0,(IF(R43 = \"\",0,IF(R43=\"non-native\",0,1)))))","v":0},{"$f":"IF(COUNTIF(L$11:L43,L43)>1,0,IF(COUNTIF($B$11:$B$45,L43)>0,0,IF(R43 = \"\",0,1)))","v":0}]
[4,{"$f":"INDIRECT(\"'Page 2 (Vegetation, 4 Strata)'!$D45\")","v":{"$error":"#REF!"}},null,null,null,{"$f":"INDIRECT(\"'Page 2 (Vegetation, 4 Strata)'!$Z45\")","v":{"$error":"#REF!"}},{"$f":"IFERROR(IF(ISBLANK(B44),\"\",VLOOKUP(B44,'Plants table'!$A:$G,6, 0)),\"\")","v":""},{"$f":"IFERROR(IF(ISBLANK(B44),\"\",IF(VLOOKUP(B44,'Plants table'!$A:$G,3, 0) = \"native\", VLOOKUP(B44,'Plants table'!$A:$G,4, 0),\"non-native\")),\"\")","v":""},{"$f":"IF(COUNTIF(B$11:B44,B44)>1,0,IF(H44 = \"\",0,IF(H44=\"non-native\",0,1)))","v":0},{"$f":"IF(COUNTIF(B$11:B44,B44)>1,0,IF(H44 = \"\",0,1))","v":0},9,{"$f":"INDIRECT(\"'Vegetation Continued, 4 Strata'!$D45\")","v":{"$error":"#REF!"}},null,null,null,{"$f":"INDIRECT(\"'Vegetation Continued, 4 Strata'!$Z45\")","v":{"$error":"#REF!"}},{"$f":"IFERROR(IF(ISBLANK(L44),\"\",VLOOKUP(L44,'Plants table'!$A:$G,6, 0)),\"\")","v":""},{"$f":"IFERROR(IF(ISBLANK(L44),\"\",IF(VLOOKUP(L44,'Plants table'!$A:$G,3, 0) = \"native\", VLOOKUP(L44,'Plants table'!$A:$G,4, 0),\"non-native\")),\"\")","v":""},{"$f":"IF(COUNTIF(L$11:L44,L44)>1,0,IF(COUNTIF($B$11:$B$45,L44)>0,0,(IF(R44 = \"\",0,IF(R44=\"non-native\",0,1)))))","v":0},{"$f":"IF(COUNTIF(L$11:L44,L44)>1,0,IF(COUNTIF($B$11:$B$45,L44)>0,0,IF(R44 = \"\",0,1)))","v":0}]
[5,{"$f":"INDIRECT(\"'Page 2 (Vegetation, 4 Strata)'!$D46\")","v":{"$error":"#REF!"}},null,null,null,{"$f":"INDIRECT(\"'Page 2 (Vegetation, 4 Strata)'!$Z46\")","v":{"$error":"#REF!"}},{"$f":"IFERROR(IF(ISBLANK(B45),\"\",VLOOKUP(B45,'Plants table'!$A:$G,6, 0)),\"\")","v":""},{"$f":"IFERROR(IF(ISBLANK(B45),\"\",IF(VLOOKUP(B45,'Plants table'!$A:$G,3, 0) = \"native\", VLOOKUP(B45,'Plants table'!$A:$G,4, 0),\"non-native\")),\"\")","v":""},{"$f":"IF(COUNTIF(B$11:B45,B45)>1,0,IF(H45 = \"\",0,IF(H45=\"non-native\",0,1)))","v":0},{"$f":"IF(COUNTIF(B$11:B45,B45)>1,0,IF(H45 = \"\",0,1))","v":0},10,{"$f":"INDIRECT(\"'Vegetation Continued, 4 Strata'!$D46\")","v":{"$error":"#REF!"}},null,null,null,{"$f":"INDIRECT(\"'Vegetation Continued, 4 Strata'!$Z46\")","v":{"$error":"#REF!"}},{"$f":"IFERROR(IF(ISBLANK(L45),\"\",VLOOKUP(L45,'Plants table'!$A:$G,6, 0)),\"\")","v":""},{"$f":"IFERROR(IF(ISBLANK(L45),\"\",IF(VLOOKUP(L45,'Plants table'!$A:$G,3, 0) = \"native\", VLOOKUP(L45,'Plants table'!$A:$G,4, 0),\"non-native\")),\"\")","v":""},{"$f":"IF(COUNTIF(L$11:L45,L45)>1,0,IF(COUNTIF($B$11:$B$45,L45)>0,0,(IF(R45 = \"\",0,IF(R45=\"non-native\",0,1)))))","v":0},{"$f":"IF(COUNTIF(L$11:L45,L45)>1,0,IF(COUNTIF($B$11:$B$45,L45)>0,0,IF(R45 = \"\",0,1)))","v":0}]
[]
["If a species is not spelled exactly as it is on the Plants Table sheet, or if it is not present in the list, Native C will show as blank. If there is a species present with a known C value which is not on the list, you may add it at the top of the Plants Table sheet in this workbook. Otherwise, the plant will not be counted in the FQA."]
[]
[]
["KWH VEGETATION COMPOSITION (Use tables in Section 4.6 to assign scores)."]
["Invasive Species:"]
["Maximum invasive species cover in any one woody layer:"]
["Absolute cover of invasive/disturbance species in herbaceous layer:"]
[null,null,null,null,null,null,null,null,null,null,null,null,null,null,null,"Score:",null,{"$f":"IF(OR(E52=\">10%\",E53=\">30%\"),1,IF(OR(E52=\">5 - 10%\",E53=\">5 - 30%\"),2,IF(OR(E52=\"1 - 5%\",E53=\"1 - 5%\"),3,IF(AND(E52=\"<1%\",E53=\"<1%\"),4,\"\"))))","v":""}]
[null,"Observations/comments:"]
[]
[]
["Native Species: Refer to metrics for selected Key Wildlife Habitat Type for scoring."]
["Woody layer (if present):"]
["Herbaceous layer:"]
["Cover of native species indicative of disturbance:"]
["Seepage Swamp/Springs:       Sphagnum cover:"]
[null,null,null,null,null,null,null,null,null,null,null,null,null,null,null,"Score:"]
[null,"Observations/comments:"]
[]
[]
["Alterations/Stressors: Indicate stressors affecting the vegetation composition of the AA."]
[null,"Recent Timber harvest (clearcut or selective cut)",null,null,null,"Tree plantation",null,null,null,null,null,null,null,"Mowing or shrub cutting"]
[null,"Herbicide use",null,"Trampling/ORV",null,"Excessive animal herbivory",null,null,null,null,null,null,null,"Pest damage"]
[null,"Unnatural fire regime",null,"Trash/dumping",null,"Other:"]
[]
["Suggestions for improving native species cover and natural vegetation composition:"]
[]
[]
[null,"Observations/comments:"]
[]
[]
["Floristic Quality Assessment:"]
["Native mean C-value:",null,{"$f":"IFERROR((SUMIF(I11:I45,1,H11:H45)+SUMIF(S11:S45,1,R11:R45))/(SUM(I11:I45,S11:S45)),\"\")","v":""}]
["Adjusted FQI:",null,{"$f":"IFERROR((C79/10)*(SQRT(SUM(I11:I45,S11:S45))/SQRT(SUM(J11:J45,T11:T45))*100),\"\")","v":""},"Note: May be up to ~0.5 different from Universal FQA’s number because they round their native mean C before calculating adjusted FQI."]
[null,null,null,null,null,null,null,null,null,null,null,null,null,null,null,"Score:",null,{"$f":"IF(C79=\"\",\"\",IF(C79>4, 4, IF(C79>=3, 3, IF(C79>=2, 2, IF(C79>0, 1, \"\")))))","v":""}]

{"sheet":"Scoring Form","index":4,"n_rows":49,"n_cols":9,"rows_kept":49,"cut":false,"hidden":false,"merged":[[46,0,47,7],[44,1,44,6],[45,1,45,6],[25,0,25,7],[26,0,26,6],[31,1,31,6],[32,1,32,6],[33,0,33,6],[34,1,34,6],[35,0,35,6],[36,1,36,6],[38,0,38,6],[39,1,40,6],[41,1,42,6],[43,1,43,6],[16,0,18,1],[16,2,16,3],[26,8,45,8],[27,0,27,6],[28,1,28,6],[29,1,29,6],[30,1,30,6],[37,1,37,6],[19,8,24,8],[20,2,20,3],[21,2,21,3],[22,2,22,3],[23,2,23,3],[24,2,24,3],[19,0,24,1],[19,2,19,3],[10,2,10,3],[11,8,15,8],[19,5,24,5],[19,6,24,6],[19,7,24,7],[16,5,18,5],[16,6,18,6],[16,7,18,7],[7,7,10,7],[16,8,18,8],[17,2,17,3],[18,2,18,3],[7,8,10,8],[8,2,8,3],[9,2,9,3],[11,0,15,1],[11,2,11,3],[11,5,15,5],[11,6,15,6],[11,7,15,7],[13,2,13,3],[12,2,12,3],[14,2,14,3],[15,2,15,3],[48,0,48,1],[48,2,48,8],[0,0,0,8],[1,0,1,8],[2,0,2,1],[2,2,2,5],[3,0,3,2],[3,3,3,4],[3,6,3,8],[6,0,6,1],[6,2,6,3],[6,5,6,6],[7,0,10,1],[7,2,7,3],[7,5,10,5],[7,6,10,6]]}
["MARYLAND WETLAND ECOLOGICAL INTEGRITY ASSESSMENT: Piedmont Region"]
["SCORING FORM"]
["Project/Site Name:",null,{"$f":"IF(ISBLANK('Page 1'!B7),\"\",'Page 1'!B7)","v":{"$error":"#REF!"}},null,null,null,"City/County:",{"$f":"IF(ISBLANK('Page 1'!G7),\"\",'Page 1'!G7)","v":{"$error":"#REF!"}},{"$f":"IF(ISBLANK('Page 1'!I7),\"\",'Page 1'!I7)","v":{"$error":"#REF!"}}]
["Assessment Area Name (if >1 AA):",null,null,{"$f":"IF(ISBLANK('Page 1'!C8),\"\",'Page 1'!C8)","v":{"$error":"#REF!"}},null,"Observer(s):",{"$f":"IF(ISBLANK('Page 1'!F8),\"\",'Page 1'!F8)","v":{"$error":"#REF!"}}]
[]
[]
["Core Factor",null,"Metric",null,"Metric Score","Mean Core Factor Score",null,"Weighing Factor","Overall Core Factor Score"]
["Landscape (Assessment for project area)",null,"Buffer Perimeter",null,{"$f":"'Page 1'!J27","v":""},"\n(Sum of metric scores: ) / 4 = ",{"$f":"IF(SUM(E8:E11)>3, SUM(E8:E11)/4, \"\")","v":""},0.3,{"$f":"IF(G8=\"\",\"\",G8*H8)","v":""}]
[null,null,"Buffer Condition",null,{"$f":"'Page 1'!J28","v":""}]
[null,null,"Aquatic Context",null,{"$f":"'Page 1'!J29","v":""}]
[null,null,"Comparative Size",null,{"$f":"'Page 1'!J30","v":""}]
["\nSoil/Substrate",null,"Redox Concentrations",null,{"$f":"'Page 2'!M22","v":{"$error":"#REF!"}},"\n(Sum of metric scores: ) / 5 or / 3* =   ",{"$f":"IF(AND(E12=\"\",E14=\"\",E13=\"\",E15=\"\",E16=\"\"),\"\",AVERAGE(E12:E16))","v":{"$error":"#REF!"}},0.1,{"$f":"IF(G12=\"\",\"\",G12*H12)","v":{"$error":"#REF!"}}]
[null,null,"Soil Organic Matter",null,{"$f":"'Page 2'!M24","v":{"$error":"#REF!"}}]
[null,null,"Microtopography",null,{"$f":"'Page 2'!M26","v":""}]
[null,null,"Organic Matter Accumulation",null,{"$f":"'Page 2'!M30","v":""}]
[null,null,"Soil Disturbance",null,{"$f":"IF(ISBLANK('Page 2'!M35),\"\",'Page 2'!M35)","v":""}]
["\nHydrology",null,"Water source ",null,{"$f":"IF(ISBLANK('Page 2'!M54),\"\",'Page 2'!M54)","v":""},"\n(Sum of metric scores: ) / 3 =  ",{"$f":"IF(SUM(E17:E19)>2, SUM(E17:E19)/3, \"\")","v":""},0.2,{"$f":"IF(G17=\"\",\"\",G17*H17)","v":""}]
[null,null,"Channel",null,{"$f":"IF(ISBLANK('Page 2'!M81),\"\",'Page 2'!M81)","v":""}]
[null,null,"Hydroperiod and Hydrologic Connectivity",null,{"$f":"IF(ISBLANK('Page 3'!M24),\"\",'Page 3'!M24)","v":""}]
["\nKey Wildlife Habitat and Vegetation Composition",null,"Interspersion/Patch Richness",null,{"$f":"IF(ISBLANK('Page 3'!M37),\"\",'Page 3'!M37)","v":""},"\n(Sum of metric scores: ) / 6 =  ",{"$f":"IF(SUM(E20:E25)>2, SUM(E20:E25)/6, \"\")","v":""},0.4,{"$f":"IF(G20=\"\",\"\",G20*H20)","v":""}]
[null,null,"Vertical Structure",null,{"$f":"IF(ISBLANK('Page 3'!M51),\"\",'Page 3'!M51)","v":""}]
[null,null,"Coarse Woody Debris",null,{"$f":"IF(ISBLANK('Page 3'!M62),\"\",'Page 3'!M62)","v":""}]
[null,null,"Invasive Species ",null,{"$f":"IF(ISBLANK('Page 4'!R54),\"\",'Page 4'!R54)","v":""}]
[null,null,"Native Species Composition",null,{"$f":"IF(ISBLANK('Page 4'!R63),\"\",'Page 4'!R63)","v":""}]
[null,null,"Floristic Quality Assessment",null,{"$f":"IF(ISBLANK('Page 4'!R81),\"\",'Page 4'!R81)","v":""}]
["Sum of Overall Core Factor Scores  =  Overall KWH Ecological Integrity Assessment (EIA) Score:",null,null,null,null,null,null,null,{"$f":"IF(I20=\"\",\"\",SUM(I8,I12,I17,I20))","v":""}]
["Note the presence of these features in the project area using the check boxes.\nAdd additional points IF the Overall EIA score is not “Excellent” for each of the following:",null,null,null,null,null,null,null,{"$f":"IF(I26=\"\",\"\",IF(I26<3.5,MIN(0.2,SUMIF(A29:A33,\"=Y\",H29:H33))+SUMIF(A35:A46,\"=Y\",H35:H46),0))","v":""}]
["From WRR layers (see Manual Section 3.5): Mark all categories present in WRR layers. Assign the single highest score for a maximum of +0.2 for WRR layers:"]
[null,"Non-tidal Wetlands of Special State Concern",null,null,null,null,null,0.2]
[null,"Biodiversity Conservation Network Tier 1, 2, or 3",null,null,null,null,null,0.2]
[null,"Forest Interior Dwelling Species (FIDS) area: Class 1",null,null,null,null,null,0.1]
[null,"Targeted Ecological Areas",null,null,null,null,null,0.1]
[null,"Sensitive Species Project Review Area",null,null,null,null,null,0.1]
["From MDE Tier II High Quality Waters (Section 3.5):"]
[null,"Upstream of, within, or adjacent to Tier II High Quality stream segment",null,null,null,null,null,0.2]
["From StreamStats (see Manual Section 3.5):"]
[null,"Impervious surface area for project area basin is low (< 5%)",null,null,null,null,null,0.2]
[null,"Forest cover in project area basin is >90%",null,null,null,null,null,0.2]
["From field observations (see Manual Section 5.1):"]
[null,"Maryland nontidal wetland(s) with significant plant or wildlife value (as defined by COMAR 26.23.01.01B80) but not designated as a Nontidal Wetland of Special State Concern (add + 0.2 for each wetland to the Overall EIA score)",null,null,null,null,null,0.2]
[]
[null,"State rare, threatened, or endangered plants or state rare natural community noted during field data collection but not mapped in Biodiversity Conservation Network Tier 1, 2, or 3 ",null,null,null,null,null,0.2]
[]
[null,"Sensitive species (colonial waterbird nesting colony, native mussel bed, anadromous fish)",null,null,null,null,null,0.1]
[null,"Dominated by native trees greater than 30cm or 12” diameter at breast height",null,null,null,null,null,0.1]
[null,"Dominated by hard mast (i.e., acorns and nuts) producing native species in the tree stratum",null,null,null,null,null,0.1]
["FINAL Key Wildlife Habitat Ecological Integrity Assessment SCORE and RATING: ",null,null,null,null,null,null,null,{"$f":"IF(I26=\"\",\"\",SUM(I26,I27))","v":""}]
[null,null,null,null,null,null,null,null,{"$f":"IF(I47=\"\",\"\", IF(I47>=3.5, \"Excellent\", IF(I47>=2.5, \"Good\", IF(I47>=1.5, \"Fair\", IF(I47>=1, \"Poor\", \"\")))))","v":""}]
["Comments:"]

{"sheet":"Plants table","index":5,"n_rows":3215,"n_cols":10,"rows_kept":3215,"cut":false,"hidden":false,"merged":[]}
["Scientific Name","Family","Native?","C",null,"EMP","Common Name","Comments","Sources used:","https://universalfqa.org/view_database/197"]
["Salix nigra","Salicaceae","native",2,null,"OBL","Black Willow",null,null,"https://cwbi-app.sec.usace.army.mil/nwpl_static/v34/home/home.html"]
[null,null,null,null,null,null,null,null,"Use top 5 rows to add extra c-values for missing plants. You may add more rows if necessary."]
[]
[]
[]
["Abies balsamea","Pinaceae","native",9,null,"FAC","Balsam Fir"]
["Abies balsamea var. phanerolepis","Pinaceae","native",9,null,"---","---"]
["Abutilon theophrasti","Malvaceae","non-native",0,null,"UPL","Velvetleaf"]
["Acalypha gracilens","Euphorbiaceae","native",3,null,"FAC","Slender Three-Seed-Mercury"]
["Acalypha ostryifolia","Euphorbiaceae","native",3,null,"---","---"]
["Acalypha rhomboidea","Euphorbiaceae","native",1,null,"FACU","Common Three-Seed-Mercury"]
["Acalypha virginica","Euphorbiaceae","native",3,null,"FACU","Virginia Three-Seed-Mercury"]
["Acanthospermum australe","Asteraceae","non-native",0,null,"---","---"]
["Acer campestre","Aceraceae","non-native",0,null,"---","---"]
["Acer floridanum","Aceraceae","native",5,null,"---","---"]
["Acer ginnala","Aceraceae","non-native",0,null,"---","---"]
["Acer negundo","Aceraceae","native",2,null,"FAC","Ash-Leaf Maple"]
["Acer nigrum","Aceraceae","native",7,null,"FACU","Black Maple"]
["Acer palmatum","Aceraceae","non-native",0,null,"---","---"]
["Acer pensylvanicum","Aceraceae","native",5,null,"FACU","Striped Maple"]
["Acer platanoides","Aceraceae","non-native",0,null,"UPL","Norway Maple"]
["Acer pseudoplatanus","Aceraceae","non-native",0,null,"---","---"]
["Acer rubrum","Aceraceae","native",1,null,"FAC","Red Maple"]
["Acer rubrum var. trilobum","Aceraceae","native",2,null,"---","---"]
["Acer saccharinum","Aceraceae","native",5,null,"FACW","Silver Maple"]
["Acer saccharum","Aceraceae","native",6,null,"FACU","Sugar Maple"]
["Acer spicatum","Aceraceae","native",7,null,"FACU","Mountain Maple"]
["Achillea millefolium","Asteraceae","native",0,null,"FACU","Common Yarrow"]
["Achillea millefolium var. occidentalis","Asteraceae","native",0,null,"---","---"]
["Achillea ptarmica","Asteraceae","non-native",0,null,"FACU","Pearl Yarrow"]
["Aconitum reclinatum","Ranunculaceae","native",9,null,"FAC","Trailing White Monkshood"]
["Aconitum uncinatum","Ranunculaceae","native",6,null,"FAC","Southern Blue Monkshood"]
["Acorus americanus","Acoraceae","native",9,null,"OBL","Several-Vein Sweetflag"]
["Acorus calamus","Acoraceae","non-native",0,null,"OBL","Single-Vein Sweetflag"]
["Actaea pachypoda","Ranunculaceae","native",7,null,"UPL","White Baneberry"]
["Actaea podocarpa","Ranunculaceae","native",8,null,"FACU","Mountain Bugbane"]
["Actaea racemosa","Ranunculaceae","native",6,null,"---","---"]
["Actaea rubifolia","Ranunculaceae","native",10,null,"---","---"]
["Adiantum aleuticum","Pteridaceae","native",10,null,"FAC","Aleutian Maidenhair"]
["Adiantum pedatum","Pteridaceae","native",7,null,"FAC","Northern Maidenhair"]
["Adlumia fungosa","Fumariaceae","native",9,null,"---","---"]
["Aegopodium podagraria","Apiaceae","non-native",0,null,"FACU","Bishop's Goutweed"]
["Aeschynomene americana","Fabaceae","non-native",0,null,"FAC","Shyleaf"]
["Aesculus hippocastanum","Hippocastanaceae","non-native",0,null,"---","---"]
["Aesculus parviflora","Hippocastanaceae","non-native",0,null,"---","---"]
["Aesculus sylvatica","Hippocastanaceae","native",7,null,"FAC","Painted Buckeye"]
["Aethusa cynapium","Apiaceae","non-native",0,null,"---","---"]
["Agalinis acuta","Scrophulariaceae","native",10,null,"---","---"]
["Agalinis auriculata","Scrophulariaceae","native",9,null,"---","---"]
["Agalinis obtusifolia","Scrophulariaceae","native",9,null,"FACU","Ten-Lobe False Foxglove"]
["Agalinis paupercula","Scrophulariaceae","native",10,null,"FACW","Small-Flower False Foxglove"]
["Agalinis purpurea","Scrophulariaceae","native",4,null,"FACW","Purple False Foxglove"]
["Agalinis setacea","Scrophulariaceae","native",8,null,"---","---"]
["Agalinis tenuifolia","Scrophulariaceae","native",6,null,"FAC","Slender-Leaf False Foxglove"]
["Agastache nepetoides","Lamiaceae","native",4,null,"FACU","Yellow Giant-Hyssop"]
["Agastache scrophulariifolia","Lamiaceae","native",5,null,"---","---"]
["Ageratina altissima","Asteraceae","native",3,null,"FACU","White Snakeroot"]
["Ageratina aromatica","Asteraceae","native",6,null,"---","---"]
["Agrimonia gryposepala","Rosaceae","native",4,null,"FACU","Tall Hairy Grooveburr"]
["Agrimonia microcarpa","Rosaceae","native",8,null,"---","---"]
["Agrimonia parviflora","Rosaceae","native",3,null,"FACW","Harvestlice"]
["Agrimonia pubescens","Rosaceae","native",6,null,"---","---"]
["Agrimonia rostellata","Rosaceae","native",6,null,"FACU","Beaked Grooveburr"]
["Agrimonia striata","Rosaceae","native",5,null,"FACU","Woodland Grooveburr"]
["Agrostemma githago","Caryophyllaceae","non-native",0,null,"---","---"]
["Agrostis canina","Poaceae","non-native",0,null,"FACU","Velvet Bent"]
["Agrostis capillaris","Poaceae","non-native",0,null,"FAC","Colonial Bent"]
["Agrostis elliottiana","Poaceae","native",3,null,"FACU","Elliott's Bent"]
["Agrostis gigantea","Poaceae","non-native",0,null,"FACW","Black Bent"]
["Agrostis hyemalis","Poaceae","native",4,null,"FAC","Winter Bent"]
["Agrostis perennans","Poaceae","native",4,null,"FACU","Upland Bent"]
["Agrostis scabra","Poaceae","native",4,null,"FAC","Rough Bent"]
["Agrostis stolonifera","Poaceae","non-native",0,null,"FACW","Spreading Bent"]
["Ailanthus altissima","Simaroubaceae","non-native",0,null,"FACU","Tree-of-Heaven"]
["Aira caryophyllea","Poaceae","non-native",0,null,"FAC","Common Silver-Hair Grass"]
["Aira elegans","Poaceae","non-native",0,null,"---","---"]
["Aira praecox","Poaceae","non-native",0,null,"---","---"]
["Ajuga reptans","Lamiaceae","non-native",0,null,"---","---"]
["Akebia quinata","Lardizabalaceae","non-native",0,null,"---","---"]
["Albizia julibrissin","Fabaceae","non-native",0,null,"---","---"]
["Alcea rosea","Malvaceae","non-native",0,null,"---","---"]
["Aletris aurea","Liliaceae","native",9,null,"FACW","Golden Colicroot"]
["Aletris farinosa","Liliaceae","native",7,null,"FAC","White Colicroot"]
["Alisma subcordatum","Alismataceae","native",4,null,"OBL","American Water-Plantain"]
["Alisma triviale","Alismataceae","native",4,null,"OBL","Northern Water-Plantain"]
["Alliaria petiolata","Brassicaceae","non-native",0,null,"FACU","Garlic-Mustard"]
["Allium ampeloprasum","Liliaceae","non-native",0,null,"---","---"]
["Allium canadense","Liliaceae","native",3,null,"FACU","Meadow Garlic"]
["Allium cepa","Liliaceae","non-native",0,null,"---","---"]
["Allium cernuum","Liliaceae","native",7,null,"FACU","Nodding Onion"]
["Allium oleraceum","Liliaceae","non-native",0,null,"---","---"]
["Allium sativum","Liliaceae","non-native",0,null,"---","---"]
["Allium tricoccum","Liliaceae","native",7,null,"FACU","Ramp"]
["Allium vineale","Liliaceae","non-native",0,null,"FACU","Crow Garlic"]
["Alnus glutinosa","Betulaceae","non-native",0,null,"FACW","European Alder"]
["Alnus incana","Betulaceae","native",7,null,"FACU","Speckled Alder"]
["Alnus serrulata","Betulaceae","native",5,null,"OBL","Brookside Alder"]
["Alopecurus aequalis","Poaceae","native",2,null,"OBL","Short-Awn Meadow-Foxtail"]
["Alopecurus carolinianus","Poaceae","native",1,null,"FACW","Tufted Meadow-Foxtail"]
["Alopecurus creticus","Poaceae","non-native",0,null,"---","---"]
["Alopecurus geniculatus","Poaceae","non-native",0,null,"OBL","Marsh Meadow-Foxtail"]
["Alopecurus myosuroides","Poaceae","non-native",0,null,"FACW","Slender Meadow-Foxtail"]
["Alopecurus pratensis","Poaceae","non-native",0,null,"FACW","Field Meadow-Foxtail"]
["Alopecurus rendlei","Poaceae","non-native",0,null,"---","---"]
["Alternanthera paronychioides","Amaranthaceae","non-native",0,null,"OBL","Smooth Joyweed"]
["Alternanthera philoxeroides","Amaranthaceae","non-native",0,null,"OBL","Alligator-Weed"]
["Althaea hirsuta","Malvaceae","non-native",0,null,"---","---"]
["Althaea officinalis","Malvaceae","non-native",0,null,"FACW","Common Marsh-Mallow"]
["Alyssum alyssoides","Brassicaceae","non-native",0,null,"---","---"]
["Amaranthus albus","Amaranthaceae","non-native",0,null,"FACU","Tumbleweed"]
["Amaranthus arenicola","Amaranthaceae","non-native",0,null,"UPL","Sandhill Amaranth"]
["Amaranthus blitum","Amaranthaceae","non-native",0,null,"FACU","Purple Amaranth"]
["Amaranthus blitum var. emarginatus","Amaranthaceae","non-native",0,null,"---","---"]
["Amaranthus cannabinus","Amaranthaceae","native",7,null,"OBL","Tidal-Marsh Amaranth"]
["Amaranthus caudatus","Amaranthaceae","non-native",0,null,"---","---"]
["Amaranthus cruentus","Amaranthaceae","non-native",0,null,"---","---"]
["Amaranthus deflexus","Amaranthaceae","non-native",0,null,"---","---"]
["Amaranthus hybridus","Amaranthaceae","native",0,null,"---","---"]
["Amaranthus palmeri","Amaranthaceae","non-native",0,null,"FACU","Careless Weed"]
["Amaranthus powellii","Amaranthaceae","non-native",0,null,"---","---"]
["Amaranthus retroflexus","Amaranthaceae","non-native",0,null,"FACU","Red-Root"]
["Amaranthus spinosus","Amaranthaceae","non-native",0,null,"FACU","Spiny Amaranth"]
["Amaranthus tuberculatus","Amaranthaceae","native",0,null,"FACW","Rough-Fruit Amaranth"]
["Amaranthus viridis","Amaranthaceae","non-native",0,null,"FAC","Slender Amaranth"]
["Ambrosia artemisiifolia","Asteraceae","native",1,null,"FACU","Annual Ragweed"]
["Ambrosia trifida","Asteraceae","native",2,null,"FAC","Great Ragweed"]
["Amelanchier arborea","Rosaceae","native",6,null,"FAC","Downy Service-Berry"]
["Amelanchier canadensis","Rosaceae","native",7,null,"FAC","Canadian Service-Berry"]
["Amelanchier laevis","Rosaceae","native",7,null,"---","---"]
["Amelanchier nantucketensis","Rosaceae","native",10,null,"FACU","Nantucket Service-Berry"]
["Amelanchier obovalis","Rosaceae","native",6,null,"---","---"]
["Amelanchier sanguinea","Rosaceae","native",8,null,"---","---"]
["Amelanchier stolonifera","Rosaceae","native",7,null,"---","---"]
["Amianthium muscitoxicum","Liliaceae","native",8,null,"FAC","Flypoison"]
["Ammannia coccinea","Lythraceae","native",3,null,"OBL","Valley Redstem"]
["Ammi visnaga","Apiaceae","non-native",0,null,"---","---"]
["Amorpha fruticosa","Fabaceae","native",5,null,"FACW","False Indigo-Bush"]
["Ampelopsis arborea","Vitaceae","native",4,null,"FACW","Peppervine"]
["Ampelopsis brevipedunculata","Vitaceae","non-native",0,null,"---","---"]
["Amphicarpaea bracteata","Fabaceae","native",4,null,"FAC","American Hog-Peanut"]
["Amphicarpaea bracteata var. comosa","Fabaceae","native",4,null,"---","---"]
["Amsinckia lycopsoides","Boraginaceae","non-native",0,null,"---","---"]
["Amsinckia menziesii","Boraginaceae","non-native",0,null,"---","---"]
["Amsinckia menziesii var. intermedia","Boraginaceae","non-native",0,null,"---","---"]
["Amsonia tabernaemontana","Apocynaceae","native",3,null,"FAC","Eastern Bluestar"]
["Anacyclus clavatus","Asteraceae","non-native",0,null,"---","---"]
["Anagallis minima","Primulaceae","native",7,null,"---","---"]
["Anagallis monelli","Primulaceae","non-native",0,null,"---","---"]
["Anaphalis margaritacea","Asteraceae","native",3,null,"UPL","Pearly-Everlasting"]
["Anchusa arvensis","Boraginaceae","non-native",0,null,"---","---"]
["Anchusa azurea","Boraginaceae","non-native",0,null,"---","---"]
["Anchusa officinalis","Boraginaceae","non-native",0,null,"---","---"]
["Andropogon gerardii","Poaceae","native",5,null,"FAC","Big Bluestem"]
["Andropogon glomeratus","Poaceae","native",4,null,"FACW","Bushy Bluestem"]
["Andropogon gyrans","Poaceae","native",4,null,"FACU","Elliott's Bluestem"]
["Andropogon ternarius","Poaceae","native",5,null,"FACU","Split-Beard Bluestem"]
["Andropogon virginicus","Poaceae","native",2,null,"FACU","Broom-Sedge"]
["Anemone berlandieri","Ranunculaceae","native",10,null,"---","---"]
["Anemone canadensis","Ranunculaceae","native",6,null,"FACW","Round-Leaf Thimbleweed"]
["Anemone lancifolia","Ranunculaceae","native",8,null,"---","---"]
["Anemone quinquefolia","Ranunculaceae","native",7,null,"FACU","Nightcaps"]
["Anemone quinquefolia var. minima","Ranunculaceae","native",8,null,"---","---"]
["Anemone virginiana","Ranunculaceae","native",4,null,"FACU","Tall Thimbleweed"]
["Anethum graveolens","Apiaceae","non-native",0,null,"---","---"]
["Angelica atropurpurea","Apiaceae","native",7,null,"OBL","Purple-Stem Angelica"]
["Angelica venenosa","Apiaceae","native",7,null,"---","---"]
["Anoda cristata","Malvaceae","non-native",0,null,"UPL","Crested Anoda"]
["Antennaria howellii","Asteraceae","native",3,null,"---","---"]
["Antennaria howellii ssp. neodioica","Asteraceae","native",4,null,"---","---"]
["Antennaria neglecta","Asteraceae","native",2,null,"UPL","Field Pussytoes"]
["Antennaria parlinii","Asteraceae","native",3,null,"---","---"]
["Antennaria plantaginifolia","Asteraceae","native",4,null,"---","---"]
["Antennaria solitaria","Asteraceae","native",6,null,"---","---"]
["Antennaria virginica","Asteraceae","native",8,null,"---","---"]
["Anthemis arvensis","Asteraceae","non-native",0,null,"---","---"]
["Anthemis cotula","Asteraceae","non-native",0,null,"FACU","Stinking Chamomile"]
["Anthemis tinctoria","Asteraceae","non-native",0,null,"---","---"]
["Anthoxanthum odoratum","Poaceae","non-native",0,null,"FACU","Large Sweet Vernal Grass"]
["Anthriscus sylvestris","Apiaceae","non-native",0,null,"---","---"]
["Anthyllis vulneraria","Fabaceae","non-native",0,null,"---","---"]
["Antirrhinum majus","Scrophulariaceae","non-native",0,null,"---","---"]
["Apera spica-venti","Poaceae","non-native",0,null,"---","---"]
["Aphanes microcarpa","Rosaceae","non-native",0,null,"---","---"]
["Apios americana","Fabaceae","native",6,null,"FACW","Groundnut"]
["Apium graveolens","Apiaceae","non-native",0,null,"---","---"]
["Apium graveolens var. dulce","Apiaceae","non-native",0,null,"---","---"]
["Aplectrum hyemale","Orchidaceae","native",7,null,"FAC","Adam-and-Eve"]
["Apocynum androsaemifolium","Apocynaceae","native",4,null,"FACU","Spreading Dogbane"]
["Apocynum cannabinum","Apocynaceae","native",2,null,"FACU","Indian-Hemp"]
["Apocynum X floribundum","Apocynaceae","native",2,null,"---","---"]
["Aquilegia canadensis","Ranunculaceae","native",6,null,"FAC","Red Columbine"]
["Aquilegia vulgaris","Ranunculaceae","non-native",0,null,"---","---"]
["Arabidopsis lyrata","Brassicaceae","native",8,null,"FACU","Lyre-Leaf Thalecress"]
["Arabidopsis thaliana","Brassicaceae","non-native",0,null,"---","---"]
["Arabis canadensis","Brassicaceae","native",6,null,"---","---"]
["Arabis glabra","Brassicaceae","native",2,null,"---","---"]
["Arabis hirsuta","Brassicaceae","native",9,null,"---","---"]
["Arabis laevigata","Brassicaceae","native",7,null,"---","---"]
["Arabis missouriensis","Brassicaceae","native",10,null,"---","---"]
["Arabis patens","Brassicaceae","native",9,null,"---","---"]
["Arabis shortii","Brassicaceae","native",7,null,"---","---"]
["Arachis hypogaea","Fabaceae","non-native",0,null,"---","---"]
["Aralia elata","Araliaceae","non-native",0,null,"---","---"]
["Aralia hispida","Araliaceae","native",8,null,"---","---"]
["Aralia nudicaulis","Araliaceae","native",7,null,"FACU","Wild Sarsaparilla"]
["Aralia racemosa","Araliaceae","native",7,null,"FACU","American Spikenard"]
["Aralia spinosa","Araliaceae","native",3,null,"FAC","Devil's-Walkingstick"]
["Arctium lappa","Asteraceae","non-native",0,null,"---","---"]
["Arctium minus","Asteraceae","non-native",0,null,"FACU","Lesser Burrdock"]
["Arctium tomentosum","Asteraceae","non-native",0,null,"---","---"]
["Arctium vulgare","Asteraceae","non-native",0,null,"---","---"]
["Arenaria serpyllifolia","Caryophyllaceae","non-native",0,null,"FAC","Thyme-Leaf Sandwort"]
["Arethusa bulbosa","Orchidaceae","native",10,null,"OBL","Dragon's-Mouth"]
["Argemone mexicana","Papaveraceae","non-native",0,null,"---","---"]
["Arisaema dracontium","Araceae","native",7,null,"FACW","Greendragon"]
["Arisaema triphyllum","Araceae","native",5,null,"FACW","Jack-in-the-Pulpit"]
["Arisaema triphyllum ssp. pusillum","Araceae","native",8,null,"---","---"]
["Arisaema triphyllum ssp. stewardsonii","Araceae","native",8,null,"---","---"]
["Aristida dichotoma","Poaceae","native",2,null,"UPL","Church-Mouse Three-Awn"]
["Aristida dichotoma var. curtissii","Poaceae","native",2,null,"---","---"]
["Aristida lanosa","Poaceae","native",8,null,"---","---"]
["Aristida longespica","Poaceae","native",3,null,"UPL","Red Three-Awn"]
["Aristida longespica var. geniculata","Poaceae","native",3,null,"---","---"]
["Aristida oligantha","Poaceae","native",2,null,"---","---"]
["Aristida purpurascens","Poaceae","native",7,null,"FAC","Arrow-Feather Three-Awn"]
["Aristolochia clematitis","Aristolochiaceae","non-native",0,null,"---","---"]
["Aristolochia macrophylla","Aristolochiaceae","native",6,null,"---","---"]
["Arivela viscosa","Capparaceae","non-native",0,null,"UPL","Tickweed"]
["Armoracia rusticana","Brassicaceae","non-native",0,null,"---","---"]
["Arnica acaulis","Asteraceae","native",6,null,"FACU","Common Leopardbane"]
["Arnoglossum atriplicifolium","Asteraceae","native",6,null,"---","---"]
["Arnoglossum reniforme","Asteraceae","native",8,null,"---","---"]
["Arnoseris minima","Asteraceae","non-native",0,null,"---","---"]
["Arrhenatherum elatius","Poaceae","non-native",0,null,"FACU","Tall Oat Grass"]
["Artemisia absinthium","Asteraceae","non-native",0,null,"---","---"]
["Artemisia annua","Asteraceae","non-native",0,null,"FACU","Annual Wormwood"]
["Artemisia biennis","Asteraceae","non-native",0,null,"FACU","Biennial Wormwood"]
["Artemisia ludoviciana","Asteraceae","non-native",0,null,"UPL","White Sagebrush"]
["Artemisia pontica","Asteraceae","non-native",0,null,"---","---"]
["Artemisia stelleriana","Asteraceae","non-native",0,null,"FACU","Oldwoman"]
["Artemisia vulgaris","Asteraceae","non-native",0,null,"UPL","Common Wormwood"]
["Arthraxon hispidus","Poaceae","non-native",0,null,"FAC","Small Carp Grass"]
["Aruncus dioicus","Rosaceae","native",4,null,"FACU","Bride's-Feathers"]
["Arundinaria gigantea","Poaceae","native",8,null,"FACW","Giant Cane"]
["Arundinaria tecta","Poaceae","native",8,null,"FACW","Switch Cane"]
["Arundo donax","Poaceae","non-native",0,null,"FACU","Giant-Reed"]
["Asarum canadense","Aristolochiaceae","native",7,null,"FACU","Canadian Wild Ginger"]
["Asclepias amplexicaulis","Asclepiadaceae","native",5,null,"---","---"]
["Asclepias exaltata","Asclepiadaceae","native",7,null,"FACU","Poke Milkweed"]
["Asclepias incarnata","Asclepiadaceae","native",5,null,"OBL","Swamp Milkweed"]
["Asclepias incarnata ssp. pulchra","Asclepiadaceae","native",5,null,"---","---"]
["Asclepias purpurascens","Asclepiadaceae","native",6,null,"FACU","Purple Milkweed"]
["Asclepias quadrifolia","Asclepiadaceae","native",8,null,"---","---"]
["Asclepias rubra","Asclepiadaceae","native",9,null,"OBL","Red Milkweed"]
["Asclepias syriaca","Asclepiadaceae","native",1,null,"FACU","Common Milkweed"]
["Asclepias tuberosa","Asclepiadaceae","native",3,null,"---","---"]
["Asclepias variegata","Asclepiadaceae","native",7,null,"FACU","Red-Ring Milkweed"]
["Asclepias verticillata","Asclepiadaceae","native",8,null,"FACU","Whorled Milkweed"]
["Asclepias viridiflora","Asclepiadaceae","native",7,null,"---","---"]
["Asimina triloba","Annonaceae","native",5,null,"FAC","Common Pawpaw"]
["Asparagus officinalis","Liliaceae","non-native",0,null,"FACU","Asparagus"]
["Asperugo procumbens","Boraginaceae","non-native",0,null,"UPL","German-Madwort"]
["Asperula arvensis","Rubiaceae","non-native",0,null,"---","---"]
["Asplenium bradleyi","Aspleniaceae","native",10,null,"---","---"]
["Asplenium montanum","Aspleniaceae","native",10,null,"---","---"]
["Asplenium pinnatifidum","Aspleniaceae","native",10,null,"---","---"]
["Asplenium platyneuron","Aspleniaceae","native",3,null,"FACU","Ebony Spleenwort"]
["Asplenium resiliens","Aspleniaceae","native",10,null,"---","---"]
["Asplenium rhizophyllum","Aspleniaceae","native",9,null,"---","---"]
["Asplenium ruta-muraria","Aspleniaceae","native",10,null,"---","---"]
["Asplenium trichomanes","Aspleniaceae","native",10,null,"FAC","Maidenhair Spleenwort"]
["Asplenium X ebenoides","Aspleniaceae","native",10,null,"---","---"]
["Asplenium X gravesii","Aspleniaceae","native",10,null,"---","---"]
["Asplenium X kentuckiense","Aspleniaceae","native",10,null,"---","---"]
["Asplenium X trudellii","Aspleniaceae","native",10,null,"---","---"]
["Aster tataricus","Asteraceae","non-native",0,null,"---","---"]
["Astragalus canadensis","Fabaceae","native",6,null,"FAC","Canadian Milk-Vetch"]
["Astragalus distortus","Fabaceae","native",10,null,"---","---"]
["Athyrium filix-femina","Dryopteridaceae","native",5,null,"---","---"]
["Athyrium filix-femina ssp. angustum","Dryopteridaceae","native",5,null,"---","---"]
["Athyrium filix-femina ssp. asplenioides","Dryopteridaceae","native",5,null,"---","---"]
["Atriplex patula","Chenopodiaceae","non-native",0,null,"FACW","Halberd-Leaf Orache"]
["Atriplex rosea","Chenopodiaceae","non-native",0,null,"FACU","Tumbling Orache"]
["Atriplex tatarica","Chenopodiaceae","non-native",0,null,"---","---"]
["Aureolaria flava","Scrophulariaceae","native",8,null,"---","---"]
["Aureolaria laevigata","Scrophulariaceae","native",8,null,"---","---"]
["Aureolaria pedicularia","Scrophulariaceae","native",8,null,"---","---"]
["Aureolaria virginica","Scrophulariaceae","native",7,null,"---","---"]
["Avena fatua","Poaceae","non-native",0,null,"---","---"]
["Avena sativa","Poaceae","non-native",0,null,"UPL","Oat"]
["Axonopus fissifolius","Poaceae","native",2,null,"FACW","Narrow-Leaf Carpet Grass"]
["Azolla caroliniana","Azollaceae","non-native",0,null,"---","---"]
["Baccharis halimifolia","Asteraceae","native",3,null,"FACW","Groundseltree"]
["Ballota nigra","Lamiaceae","non-native",0,null,"---","---"]
["Baptisia australis","Fabaceae","native",9,null,"FACU","Blue Wild Indigo"]
["Baptisia cinerea","Fabaceae","native",8,null,"---","---"]
["Baptisia tinctoria","Fabaceae","native",6,null,"---","---"]
["Barbarea verna","Brassicaceae","non-native",0,null,"---","---"]
["Barbarea vulgaris","Brassicaceae","non-native",0,null,"FACU","Garden Yellow-Rocket"]
["Bartonia paniculata","Gentianaceae","native",8,null,"OBL","Twining Screwstem"]
["Bartonia virginica","Gentianaceae","native",7,null,"FACW","Yellow Screwstem"]
["Bassia scoparia","Chenopodiaceae","non-native",0,null,"UPL","Mexican-Fireweed"]
["Belamcanda chinensis","Iridaceae","non-native",0,null,"---","---"]
["Bellis perennis","Asteraceae","non-native",0,null,"---","---"]
["Berberis canadensis","Berberidaceae","native",9,null,"---","---"]
["Berberis thunbergii","Berberidaceae","non-native",0,null,"FACU","Japanese Barberry"]
["Berberis vulgaris","Berberidaceae","non-native",0,null,"FACU","European Barberry"]
["Berteroa incana","Brassicaceae","non-native",0,null,"---","---"]
["Beta vulgaris","Chenopodiaceae","non-native",0,null,"---","---"]
["Betula alleghaniensis","Betulaceae","native",7,null,"FAC","Yellow Birch"]
["Betula lenta","Betulaceae","native",5,null,"FACU","Sweet Birch"]
["Betula nigra","Betulaceae","native",5,null,"FACW","River Birch"]
["Betula pendula","Betulaceae","non-native",0,null,"FACU","European Weeping Birch"]
["Betula populifolia","Betulaceae","native",5,null,"FAC","Gray Birch"]
["Betula pubescens","Betulaceae","non-native",0,null,"FAC","Downy Birch"]
["Bidens alba","Asteraceae","non-native",0,null,"---","---"]
["Bidens alba var. radiata","Asteraceae","non-native",0,null,"---","---"]
["Bidens aristosa","Asteraceae","non-native",0,null,"FACW","Bearded Beggarticks"]
["Bidens bipinnata","Asteraceae","native",1,null,"FACU","Spanish-Needles"]
["Bidens cernua","Asteraceae","native",4,null,"OBL","Nodding Burr-Marigold"]
["Bidens connata","Asteraceae","native",4,null,"---","---"]
["Bidens discoidea","Asteraceae","native",6,null,"FACW","Small Beggarticks"]
["Bidens frondosa","Asteraceae","native",2,null,"FACW","Devil's-Pitchfork"]
["Bidens laevis","Asteraceae","native",5,null,"OBL","Smooth Beggarticks"]
["Bidens tripartita","Asteraceae","native",2,null,"FACW","Three-Lobe Beggarticks"]
["Bidens vulgata","Asteraceae","native",2,null,"FAC","Tall Beggarticks"]
["Bignonia capreolata","Bignoniaceae","native",6,null,"FAC","Crossvine"]
["Blephilia ciliata","Lamiaceae","native",7,null,"---","---"]
["Blephilia hirsuta","Lamiaceae","native",6,null,"FACU","Hairy Pagoda-Plant"]
["Boehmeria cylindrica","Urticaceae","native",5,null,"FACW","Small-Spike False Nettle"]
["Boltonia asteroides","Asteraceae","native",10,null,"FACW","White Doll's Daisy"]
["Botrychium biternatum","Ophioglossaceae","native",3,null,"---","---"]
["Botrychium dissectum","Ophioglossaceae","native",4,null,"---","---"]
["Botrychium lanceolatum","Ophioglossaceae","native",9,null,"FACW","Lance-Leaf Moonwort"]
["Botrychium matricariifolium","Ophioglossaceae","native",4,null,"FACU","Daisy-Leaf Moonwort"]
["Botrychium multifidum","Ophioglossaceae","native",8,null,"---","---"]
["Botrychium oneidense","Ophioglossaceae","native",7,null,"---","---"]
["Botrychium virginianum","Ophioglossaceae","native",5,null,"---","---"]
["Bouteloua curtipendula","Poaceae","native",8,null,"---","---"]
["Brachyelytrum erectum","Poaceae","native",6,null,"FACU","Bearded Shorthusk"]
["Brasenia schreberi","Cabombaceae","native",3,null,"OBL","Watershield"]
["Brassica juncea","Brassicaceae","non-native",0,null,"UPL","Chinese Mustard"]
["Brassica nigra","Brassicaceae","non-native",0,null,"---","---"]
["Brassica oleracea","Brassicaceae","non-native",0,null,"---","---"]
["Brassica rapa","Brassicaceae","non-native",0,null,"UPL","Rape"]
["Brickellia eupatorioides","Asteraceae","native",8,null,"---","---"]
["Briza media","Poaceae","non-native",0,null,"FAC","Perennial Quaking Grass"]
["Briza minor","Poaceae","non-native",0,null,"FACW","Lesser Quaking Grass"]
["Bromus arenarius","Poaceae","non-native",0,null,"---","---"]
["Bromus arvensis","Poaceae","non-native",0,null,"FACU","Field Brome"]
["Bromus catharticus","Poaceae","non-native",0,null,"---","---"]
["Bromus ciliatus","Poaceae","native",7,null,"FACW","Fringed Brome"]
["Bromus diandrus ssp. rigidus","Poaceae","non-native",0,null,"---","---"]
["Bromus hordeaceus","Poaceae","non-native",0,null,"UPL","Soft Brome"]
["Bromus inermis","Poaceae","non-native",0,null,"UPL","Smooth Brome"]
["Bromus inermis ssp. inermis var. inermis","Poaceae","non-native",0,null,"---","---"]
["Bromus latiglumis","Poaceae","native",7,null,"FACW","Early-Leaf Brome"]
["Bromus madritensis","Poaceae","non-native",0,null,"UPL","Compact Brome"]
["Bromus nottowayanus","Poaceae","native",7,null,"---","---"]
["Bromus pubescens","Poaceae","native",7,null,"FACU","Hairy Woodland Brome"]
["Bromus racemosus","Poaceae","non-native",0,null,"---","---"]
["Bromus secalinus","Poaceae","non-native",0,null,"---","---"]
["Bromus squarrosus","Poaceae","non-native",0,null,"---","---"]
["Bromus sterilis","Poaceae","non-native",0,null,"---","---"]
["Bromus tectorum","Poaceae","non-native",0,null,"---","---"]
["Broussonetia papyrifera","Moraceae","non-native",0,null,"UPL","Paper-Mulberry"]
["Buchnera americana","Scrophulariaceae","native",9,null,"FACU","American Bluehearts"]
["Buddleja davidii","Buddlejaceae","non-native",0,null,"FACU","Orange-Eye Butterfly-Bush"]
["Buglossoides arvensis","Boraginaceae","non-native",0,null,"---","---"]
["Bulbostylis capillaris","Cyperaceae","native",2,null,"FACU","Dense-Tuft Hair Sedge"]
["Bupleurum rotundifolium","Apiaceae","non-native",0,null,"---","---"]
["Buxus microphylla","Buxaceae","non-native",0,null,"---","---"]
["Cabomba caroliniana","Cabombaceae","non-native",0,null,"OBL","Carolina Fanwort"]
["Calamagrostis canadensis","Poaceae","native",7,null,"FACW","Bluejoint"]
["Calamagrostis canadensis var. macouniana","Poaceae","native",7,null,"---","---"]
["Calamagrostis cinnoides","Poaceae","native",7,null,"---","---"]
["Calamagrostis epigeios","Poaceae","non-native",0,null,"---","---"]
["Calamagrostis porteri","Poaceae","native",8,null,"---","---"]
["Calamintha nepeta","Lamiaceae","non-native",0,null,"---","---"]
["Calamintha nepeta ssp. glandulosa","Lamiaceae","non-native",0,null,"---","---"]
["Calendula officinalis","Asteraceae","non-native",0,null,"---","---"]
["Calepina irregularis","Brassicaceae","non-native",0,null,"---","---"]
["Callicarpa dichotoma","Verbenaceae","non-native",0,null,"OBL","Chinese Beauty-Berry"]
["Callirhoe involucrata","Malvaceae","non-native",0,null,"---","---"]
["Callistephus chinensis","Asteraceae","non-native",0,null,"---","---"]
["Callitriche heterophylla","Callitrichaceae","native",5,null,"OBL","Greater Water-Starwort"]
["Callitriche palustris","Callitrichaceae","native",8,null,"OBL","Vernal Water-Starwort"]
["Callitriche stagnalis","Callitrichaceae","non-native",0,null,"OBL","Pond Water-Starwort"]
["Callitriche terrestris","Callitrichaceae","native",2,null,"FACW","Terrestrial Water-Starwort"]
["Calopogon tuberosus","Orchidaceae","native",10,null,"FACW","Tuberous Grass-Pink"]
["Caltha palustris","Ranunculaceae","native",8,null,"OBL","Yellow Marsh-Marigold"]
["Calycanthus floridus","Calycanthaceae","non-native",0,null,"FACU","Eastern Sweetshrub"]
["Calycanthus floridus var. glaucus","Calycanthaceae","native",8,null,"---","---"]
["Calystegia hederacea","Convolvulaceae","non-native",0,null,"---","---"]
["Calystegia sepium","Convolvulaceae","native",1,null,"FAC","Hedge False Bindweed"]
["Calystegia silvatica","Convolvulaceae","native",1,null,"---","---"]
["Calystegia spithamaea","Convolvulaceae","native",7,null,"---","---"]
["Calystegia spithamaea ssp. purshiana","Convolvulaceae","native",9,null,"---","---"]
["Camelina microcarpa","Brassicaceae","non-native",0,null,"FACU","Little-Pod False Flax"]
["Camelina sativa","Brassicaceae","non-native",0,null,"UPL","Gold-of-Pleasure"]
["Campanula aparinoides","Campanulaceae","native",7,null,"OBL","Marsh Bellflower"]
["Campanula divaricata","Campanulaceae","native",7,null,"---","---"]
["Campanula glomerata","Campanulaceae","non-native",0,null,"---","---"]
["Campanula rapunculoides","Campanulaceae","non-native",0,null,"---","---"]
["Campanula rotundifolia","Campanulaceae","native",9,null,"FACU","Bluebell-of-Scotland"]
["Campanulastrum americanum","Campanulaceae","native",5,null,"FACU","American-Bellflower"]
["Campsis radicans","Bignoniaceae","native",2,null,"FAC","Trumpet-Creeper"]
["Cannabis sativa","Cannabaceae","non-native",0,null,"---","---"]
["Cannabis sativa ssp. sativa var. sativa","Cannabaceae","non-native",0,null,"---","---"]
["Capsella bursa-pastoris","Brassicaceae","non-native",0,null,"FACU","Shepherd's-Purse"]
["Capsicum annuum","Solanaceae","non-native",0,null,"---","---"]
["Cardamine angustata","Brassicaceae","native",7,null,"FACU","Slender Toothwort"]
["Cardamine bulbosa","Brassicaceae","native",7,null,"OBL","Bulbous Bittercress"]
["Cardamine concatenata","Brassicaceae","native",5,null,"FACU","Cut-Leaf Toothwort"]
["Cardamine dissecta","Brassicaceae","native",7,null,"---","---"]
["Cardamine douglassii","Brassicaceae","native",7,null,"FACW","Limestone Bittercress"]
["Cardamine hirsuta","Brassicaceae","non-native",0,null,"FACU","Hairy Bittercress"]
["Cardamine impatiens","Brassicaceae","non-native",0,null,"FAC","Narrow-Leaf Bittercress"]
["Cardamine micranthera","Brassicaceae","native",10,null,"OBL","Streambank Bittercress"]
["Cardamine parviflora","Brassicaceae","native",6,null,"FACU","Sand Bittercress"]
["Cardamine pensylvanica","Brassicaceae","native",6,null,"OBL","Quaker Bittercress"]
["Cardamine pratensis","Brassicaceae","non-native",0,null,"---","---"]
["Cardamine rotundifolia","Brassicaceae","native",8,null,"OBL","American Bittercress"]
["Cardaria draba","Brassicaceae","non-native",0,null,"---","---"]
["Cardaria pubescens","Brassicaceae","non-native",0,null,"---","---"]
["Cardiospermum halicacabum","Sapindaceae","non-native",0,null,"FACU","Love-in-a-Puff"]
["Carduus acanthoides","Asteraceae","non-native",0,null,"---","---"]
["Carduus nutans","Asteraceae","non-native",0,null,"UPL","Nodding Plumeless-Thistle"]
["Carduus tenuiflorus","Asteraceae","non-native",0,null,"---","---"]
["Carex abscondita","Cyperaceae","native",5,null,"FAC","Thicket Sedge"]
["Carex aestivalis","Cyperaceae","native",7,null,"---","---"]
["Carex aggregata","Cyperaceae","native",4,null,"---","---"]
["Carex alata","Cyperaceae","native",5,null,"OBL","Broad-Wing Sedge"]
["Carex albicans","Cyperaceae","native",6,null,"UPL","White-Tinge Sedge"]
["Carex albicans var. emmonsii","Cyperaceae","native",6,null,"---","---"]
["Carex albolutescens","Cyperaceae","native",5,null,"FACW","Green-White Sedge"]
["Carex albursina","Cyperaceae","native",8,null,"---","---"]
["Carex amphibola","Cyperaceae","native",7,null,"FAC","Eastern Narrow-Leaf Sedge"]
["Carex annectens","Cyperaceae","native",5,null,"FACW","Yellow-Fruit Sedge"]
["Carex appalachica","Cyperaceae","native",8,null,"---","---"]
["Carex aquatilis","Cyperaceae","native",9,null,"OBL","Leafy Tussock Sedge"]
["Carex argyrantha","Cyperaceae","native",8,null,"---","---"]
["Carex atlantica","Cyperaceae","native",6,null,"FACW","Prickly Bog Sedge"]
["Carex atlantica ssp. capillacea","Cyperaceae","native",7,null,"---","---"]
["Carex baileyi","Cyperaceae","native",6,null,"OBL","Bailey's Sedge"]
["Carex bicknellii","Cyperaceae","native",10,null,"FAC","Bicknell's Sedge"]
["Carex blanda","Cyperaceae","native",3,null,"FAC","Eastern Woodland Sedge"]
["Carex brevior","Cyperaceae","native",4,null,"FAC","Short-Beak Sedge"]
["Carex bromoides","Cyperaceae","native",8,null,"FACW","Brome-Like Sedge"]
["Carex brunnescens","Cyperaceae","native",8,null,"FACW","Brownish Sedge"]
["Carex brunnescens ssp. sphaerostachya","Cyperaceae","native",8,null,"---","---"]
["Carex bushii","Cyperaceae","native",6,null,"FACW","Bush's Sedge"]
["Carex buxbaumii","Cyperaceae","native",9,null,"OBL","Brown Bog Sedge"]
["Carex canescens","Cyperaceae","native",8,null,"OBL","Hoary Sedge"]
["Carex canescens ssp. disjuncta","Cyperaceae","native",8,null,"---","---"]
["Carex careyana","Cyperaceae","native",10,null,"---","---"]
["Carex caroliniana","Cyperaceae","native",5,null,"FACW","Carolina Sedge"]
["Carex cephaloidea","Cyperaceae","native",6,null,"FAC","Thin-Leaf Sedge"]
["Carex cephalophora","Cyperaceae","native",5,null,"FACU","Oval-Leaf Sedge"]
["Carex collinsii","Cyperaceae","native",10,null,"OBL","Collins' Sedge"]
["Carex communis","Cyperaceae","native",7,null,"---","---"]
["Carex comosa","Cyperaceae","native",6,null,"OBL","Bearded Sedge"]
["Carex complanata","Cyperaceae","native",4,null,"FACU","Hirsute Sedge"]
["Carex conjuncta","Cyperaceae","native",6,null,"FACW","Soft Fox Sedge"]
["Carex conoidea","Cyperaceae","native",8,null,"FACU","Open-Field Sedge"]
["Carex crebriflora","Cyperaceae","native",6,null,"FACW","Coastal-Plain Sedge"]
["Carex crinita","Cyperaceae","native",5,null,"OBL","Fringed Sedge"]
["Carex crinita var. brevicrinis","Cyperaceae","native",5,null,"---","---"]
["Carex cristatella","Cyperaceae","native",7,null,"FACW","Crested Sedge"]
["Carex cumberlandensis","Cyperaceae","native",7,null,"---","---"]
["Carex davisii","Cyperaceae","native",8,null,"FAC","Davis' Sedge"]
["Carex debilis","Cyperaceae","native",4,null,"FAC","White-Edge Sedge"]
["Carex debilis var. rudgei","Cyperaceae","native",6,null,"---","---"]
["Carex decomposita","Cyperaceae","native",10,null,"OBL","Cypress-Knee Sedge"]
["Carex digitalis","Cyperaceae","native",6,null,"UPL","Slender Woodland Sedge"]
["Carex digitalis var. macropoda","Cyperaceae","native",7,null,"---","---"]
["Carex distans","Cyperaceae","non-native",0,null,"---","---"]
["Carex distenta","Cyperaceae","non-native",0,null,"---","---"]
["Carex echinata","Cyperaceae","native",8,null,"OBL","Star Sedge"]
["Carex emoryi","Cyperaceae","native",9,null,"OBL","Emory's Sedge"]
["Carex festucacea","Cyperaceae","native",5,null,"FAC","Fescue Sedge"]
["Carex flaccosperma","Cyperaceae","native",6,null,"FAC","Thin-Fruit Sedge"]
["Carex folliculata","Cyperaceae","native",7,null,"OBL","Northern Long Sedge"]
["Carex frankii","Cyperaceae","native",2,null,"OBL","Frank's Sedge"]
["Carex gigantea","Cyperaceae","native",6,null,"OBL","Giant Sedge"]
["Carex glaucodea","Cyperaceae","native",6,null,"FAC","Blue Sedge"]
["Carex gracilescens","Cyperaceae","native",6,null,"---","---"]
["Carex gracillima","Cyperaceae","native",6,null,"FACU","Graceful Sedge"]
["Carex granularis","Cyperaceae","native",5,null,"FACW","Limestone-Meadow Sedge"]
["Carex gravida","Cyperaceae","non-native",0,null,"FACW","Heavy Sedge"]
["Carex grayi","Cyperaceae","native",7,null,"FACW","Gray's Sedge"]
["Carex grisea","Cyperaceae","native",5,null,"FACU","Inflated Narrow-Leaf Sedge"]
["Carex gynandra","Cyperaceae","native",6,null,"OBL","Nodding Sedge"]
["Carex haydenii","Cyperaceae","native",9,null,"OBL","Cloud Sedge"]
["Carex hirsutella","Cyperaceae","native",4,null,"---","---"]
["Carex hirta","Cyperaceae","non-native",0,null,"---","---"]
["Carex hirtifolia","Cyperaceae","native",6,null,"---","---"]
["Carex hitchcockiana","Cyperaceae","native",8,null,"---","---"]
["Carex hormathodes","Cyperaceae","native",6,null,"OBL","Marsh Straw Sedge"]
["Carex hystericina","Cyperaceae","native",7,null,"OBL","Porcupine Sedge"]
["Carex interior","Cyperaceae","native",10,null,"OBL","Inland Sedge"]
["Carex intumescens","Cyperaceae","native",5,null,"FACW","Greater Bladder Sedge"]
["Carex jamesii","Cyperaceae","native",8,null,"---","---"]
["Carex joorii","Cyperaceae","native",6,null,"OBL","Cypress-Swamp Sedge"]
["Carex lacustris","Cyperaceae","native",9,null,"OBL","Lakebank Sedge"]
["Carex laevivaginata","Cyperaceae","native",5,null,"OBL","Smooth-Sheath Sedge"]
["Carex lasiocarpa","Cyperaceae","native",10,null,"OBL","Woolly-Fruit Sedge"]
["Carex laxiculmis","Cyperaceae","native",7,null,"---","---"]
["Carex laxiflora","Cyperaceae","native",5,null,"FACU","Broad Loose-Flower Sedge"]
["Carex leavenworthii","Cyperaceae","native",4,null,"---","---"]
["Carex leptalea","Cyperaceae","native",9,null,"OBL","Bristly-Stalk Sedge"]
["Carex leptalea ssp. harperi","Cyperaceae","native",9,null,"---","---"]
["Carex leptonervia","Cyperaceae","native",7,null,"FACW","Nerveless Woodland Sedge"]
["Carex limosa","Cyperaceae","native",10,null,"OBL","Mud Sedge"]
["Carex lonchocarpa","Cyperaceae","native",6,null,"OBL","Southern Long Sedge"]
["Carex longii","Cyperaceae","native",4,null,"OBL","Long's Sedge"]
["Carex louisianica","Cyperaceae","native",9,null,"OBL","Louisiana Sedge"]
["Carex lucorum","Cyperaceae","native",8,null,"---","---"]
["Carex lupuliformis","Cyperaceae","native",9,null,"FACW","False Hop Sedge"]
["Carex lupulina","Cyperaceae","native",5,null,"OBL","Hop Sedge"]
["Carex lurida","Cyperaceae","native",3,null,"OBL","Shallow Sedge"]
["Carex meadii","Cyperaceae","native",9,null,"FAC","Mead's Sedge"]
["Carex mesochorea","Cyperaceae","native",5,null,"---","---"]
["Carex mitchelliana","Cyperaceae","native",8,null,"OBL","Mitchell's Sedge"]
["Carex molesta","Cyperaceae","native",5,null,"FAC","Troublesome Sedge"]
["Carex muehlenbergii","Cyperaceae","native",6,null,"---","---"]
["Carex muehlenbergii var. enervis","Cyperaceae","native",7,null,"---","---"]
["Carex nigromarginata","Cyperaceae","native",7,null,"UPL","Black-Edge Sedge"]
["Carex normalis","Cyperaceae","native",6,null,"FACW","Greater Straw Sedge"]
["Carex oligocarpa","Cyperaceae","native",9,null,"---","---"]
["Carex ormostachya","Cyperaceae","native",8,null,"---","---"]
["Carex oxylepis","Cyperaceae","native",8,null,"FACW","Sharp-Scale Sedge"]
["Carex pedunculata","Cyperaceae","native",8,null,"OBL","Long-Stalk Sedge"]
["Carex pellita","Cyperaceae","native",5,null,"OBL","Woolly Sedge"]
["Carex pensylvanica","Cyperaceae","native",5,null,"---","---"]
["Carex planispicata","Cyperaceae","native",8,null,"---","---"]
["Carex plantaginea","Cyperaceae","native",8,null,"---","---"]
["Carex platyphylla","Cyperaceae","native",8,null,"---","---"]
["Carex polymorpha","Cyperaceae","native",10,null,"FACU","Variable Sedge"]
["Carex prairea","Cyperaceae","native",10,null,"FACW","Prairie Sedge"]
["Carex prasina","Cyperaceae","native",8,null,"OBL","Drooping Sedge"]
["Carex projecta","Cyperaceae","native",4,null,"FACW","Necklace Sedge"]
["Carex radiata","Cyperaceae","native",5,null,"FAC","Eastern Star Sedge"]
["Carex reniformis","Cyperaceae","native",5,null,"FACW","Kidney-Shape Sedge"]
["Carex retroflexa","Cyperaceae","native",7,null,"FACU","Reflexed Sedge"]
["Carex reznicekii","Cyperaceae","native",5,null,"---","---"]
["Carex richardsonii","Cyperaceae","native",10,null,"UPL","Richardson's Sedge"]
["Carex rosea","Cyperaceae","native",5,null,"FACU","Rosy Sedge"]
["Carex scabrata","Cyperaceae","native",9,null,"OBL","Eastern Rough Sedge"]
["Carex scoparia","Cyperaceae","native",4,null,"FACW","Pointed Broom Sedge"]
["Carex seorsa","Cyperaceae","native",7,null,"FACW","Weak Stellate Sedge"]
["Carex shortiana","Cyperaceae","native",8,null,"FAC","Short's Sedge"]
["Carex siccata","Cyperaceae","native",6,null,"FACU","Dry-Spike Sedge"]
["Carex sparganioides","Cyperaceae","native",6,null,"FACU","Burr-Reed Sedge"]
["Carex spicata","Cyperaceae","non-native",0,null,"FAC","Prickly Sedge"]
["Carex sprengelii","Cyperaceae","native",8,null,"FACU","Long-Beak Sedge"]
["Carex squarrosa","Cyperaceae","native",4,null,"FACW","Squarrose Sedge"]
["Carex sterilis","Cyperaceae","native",10,null,"OBL","Dioecious Sedge"]
["Carex stipata","Cyperaceae","native",3,null,"OBL","Stalk-Grain Sedge"]
["Carex stipata var. maxima","Cyperaceae","native",3,null,"---","---"]
["Carex straminea","Cyperaceae","native",8,null,"OBL","Eastern Straw Sedge"]
["Carex striata","Cyperaceae","native",4,null,"OBL","Walter's Sedge"]
["Carex striatula","Cyperaceae","native",6,null,"---","---"]
["Carex stricta","Cyperaceae","native",6,null,"OBL","Uptight Sedge"]
["Carex styloflexa","Cyperaceae","native",7,null,"FACW","Bent Sedge"]
["Carex suberecta","Cyperaceae","native",9,null,"OBL","Prairie Straw Sedge"]
["Carex swanii","Cyperaceae","native",4,null,"FACU","Swan's Sedge"]
["Carex tenera","Cyperaceae","native",9,null,"FAC","Quill Sedge"]
["Carex tetanica","Cyperaceae","native",10,null,"FACW","Rigid Sedge"]
["Carex tetanica var. canbyi","Cyperaceae","native",10,null,"---","---"]
["Carex texensis","Cyperaceae","non-native",0,null,"---","---"]
["Carex tonsa","Cyperaceae","native",6,null,"---","---"]
["Carex torta","Cyperaceae","native",9,null,"FACW","Twisted Sedge"]
["Carex tribuloides","Cyperaceae","native",4,null,"FACW","Blunt Broom Sedge"]
["Carex trichocarpa","Cyperaceae","native",4,null,"OBL","Hairy-Fruit Sedge"]
["Carex trisperma","Cyperaceae","native",10,null,"OBL","Three-Seed Sedge"]
["Carex trisperma var. billingsii","Cyperaceae","native",10,null,"---","---"]
["Carex typhina","Cyperaceae","native",7,null,"FACW","Cat-Tail Sedge"]
["Carex umbellata","Cyperaceae","native",5,null,"---","---"]
["Carex vestita","Cyperaceae","native",7,null,"---","---"]
["Carex virescens","Cyperaceae","native",6,null,"---","---"]
["Carex vulpinoidea","Cyperaceae","native",2,null,"OBL","Common Fox Sedge"]
["Carex willdenowii","Cyperaceae","native",6,null,"UPL","Willdenow's Sedge"]
["Carex woodii","Cyperaceae","native",8,null,"UPL","Pretty Sedge"]
["Carpinus caroliniana","Betulaceae","native",6,null,"FAC","American Hornbeam"]
["Carpinus caroliniana ssp. virginiana","Betulaceae","native",6,null,"---","---"]
["Carum carvi","Apiaceae","non-native",0,null,"UPL","Caraway"]
["Carya alba","Juglandaceae","native",6,null,"---","---"]
["Carya cordiformis","Juglandaceae","native",5,null,"FACU","Bitter-Nut Hickory"]
["Carya glabra","Juglandaceae","native",6,null,"FACU","Pignut Hickory"]
["Carya illinoinensis","Juglandaceae","non-native",0,null,"FACU","Pecan"]
["Carya laciniosa","Juglandaceae","native",8,null,"FAC","Shell-Bark Hickory"]
["Carya ovalis","Juglandaceae","native",6,null,"FACU","Red Hickory"]
["Carya ovata","Juglandaceae","native",6,null,"FACU","Shag-Bark Hickory"]
["Carya pallida","Juglandaceae","native",8,null,"---","---"]
["Castanea dentata","Fagaceae","native",5,null,"---","---"]
["Castanea pumila","Fagaceae","native",8,null,"---","---"]
["Castilleja coccinea","Scrophulariaceae","native",9,null,"FAC","Scarlet Indian-Paintbrush"]
["Catalpa bignonioides","Bignoniaceae","non-native",0,null,"FACU","Southern Catalpa"]
["Catalpa speciosa","Bignoniaceae","non-native",0,null,"FAC","Northern Catalpa"]
["Caucalis platycarpos","Apiaceae","non-native",0,null,"---","---"]
["Caulophyllum giganteum","Berberidaceae","native",7,null,"---","---"]
["Caulophyllum thalictroides","Berberidaceae","native",7,null,"---","---"]
["Ceanothus americanus","Rhamnaceae","native",8,null,"---","---"]
["Celastrus orbiculatus","Celastraceae","non-native",0,null,"FACU","Asian Bittersweet"]
["Celastrus scandens","Celastraceae","native",5,null,"FACU","American Bittersweet"]
["Celosia argentea","Amaranthaceae","non-native",0,null,"FACU","Silver Cock's-Comb"]
["Celtis laevigata","Ulmaceae","native",6,null,"FACW","Sugar-Berry"]
["Celtis occidentalis","Ulmaceae","native",4,null,"FACU","Common Hackberry"]
["Celtis tenuifolia","Ulmaceae","native",9,null,"---","---"]
["Cenchrus longispinus","Poaceae","native",1,null,"UPL","Innocent-Weed"]
["Cenchrus spinifex","Poaceae","native",1,null,"---","---"]
["Cenchrus tribuloides","Poaceae","native",1,null,"UPL","Sand-Dune Sandburr"]
["Centaurea calcitrapa","Asteraceae","non-native",0,null,"---","---"]
["Centaurea cyanus","Asteraceae","non-native",0,null,"FACU","Garden Cornflower"]
["Centaurea jacea","Asteraceae","non-native",0,null,"FACU","Brown-Ray Knapweed"]
["Centaurea melitensis","Asteraceae","non-native",0,null,"---","---"]
["Centaurea nigra","Asteraceae","non-native",0,null,"---","---"]
["Centaurea nigrescens","Asteraceae","non-native",0,null,"---","---"]
["Centaurea solstitialis","Asteraceae","non-native",0,null,"---","---"]
["Centaurea stoebe","Asteraceae","non-native",0,null,"---","---"]
["Centaurea stoebe ssp. micranthos","Asteraceae","non-native",0,null,"---","---"]
["Centaurea transalpina","Asteraceae","non-native",0,null,"---","---"]
["Centaurium erythraea","Gentianaceae","non-native",0,null,"FAC","European Centaury"]
["Centaurium pulchellum","Gentianaceae","non-native",0,null,"FAC","Branched Centaury"]
["Cephalanthus occidentalis","Rubiaceae","native",7,null,"OBL","Common Buttonbush"]
["Cerastium arvense","Caryophyllaceae","non-native",0,null,"UPL","Field Mouse-Ear Chickweed"]
["Cerastium brachypetalum","Caryophyllaceae","non-native",0,null,"---","---"]
["Cerastium brachypodum","Caryophyllaceae","native",0,null,"FACU","Short-Stalk Mouse-Ear Chickweed"]
["Cerastium fontanum","Caryophyllaceae","non-native",0,null,"FACU","Common Mouse-Ear Chickweed"]
["Cerastium fontanum ssp. vulgare","Caryophyllaceae","non-native",0,null,"---","---"]
["Cerastium glomeratum","Caryophyllaceae","non-native",0,null,"UPL","Sticky Mouse-Ear Chickweed"]
["Cerastium nutans","Caryophyllaceae","native",5,null,"FAC","Nodding Mouse-Ear Chickweed"]
["Cerastium pumilum","Caryophyllaceae","non-native",0,null,"---","---"]
["Cerastium semidecandrum","Caryophyllaceae","non-native",0,null,"---","---"]
["Cerastium tomentosum","Caryophyllaceae","non-native",0,null,"---","---"]
["Cerastium velutinum","Caryophyllaceae","native",10,null,"---","---"]
["Cerastium velutinum var. villosum","Caryophyllaceae","native",10,null,"---","---"]
["Ceratophyllum demersum","Ceratophyllaceae","native",4,null,"OBL","Coon's-Tail"]
["Ceratophyllum echinatum","Ceratophyllaceae","native",8,null,"OBL","Spineless Hornwort"]
["Cercidiphyllum japonicum","Cercidiphyllaceae","non-native",0,null,"---","---"]
["Cercis canadensis","Fabaceae","native",5,null,"FACU","Redbud"]
["Chaenomeles speciosa","Rosaceae","non-native",0,null,"---","---"]
["Chaenorhinum minus","Scrophulariaceae","non-native",0,null,"---","---"]
["Chaerophyllum procumbens","Apiaceae","native",6,null,"FACW","Spreading Chervil"]
["Chaerophyllum tainturieri","Apiaceae","native",4,null,"FAC","Hairy-Fruit Chervil"]
["Chaiturus marrubiastrum","Lamiaceae","non-native",0,null,"---","---"]
["Chamaecrista fasciculata","Fabaceae","native",2,null,"FACU","Sleepingplant"]
["Chamaecrista nictitans","Fabaceae","native",2,null,"FACU","Partridge-Pea"]
["Chamaecyparis thyoides","Cupressaceae","native",8,null,"OBL","Atlantic White-Cedar"]
["Chamaelirium luteum","Liliaceae","native",8,null,"FAC","Fairywand"]
["Chamaemelum nobile","Asteraceae","non-native",0,null,"---","---"]
["Chamaesyce humistrata","Euphorbiaceae","native",3,null,"---","---"]
["Chamaesyce maculata","Euphorbiaceae","native",0,null,"---","---"]
["Chamaesyce nutans","Euphorbiaceae","native",2,null,"---","---"]
["Chamaesyce prostrata","Euphorbiaceae","non-native",0,null,"---","---"]
["Chamaesyce vermiculata","Euphorbiaceae","native",1,null,"---","---"]
["Chamerion angustifolium","Onagraceae","native",3,null,"---","---"]
["Chasmanthium latifolium","Poaceae","native",7,null,"FACU","Indian Wood-Oats"]
["Chasmanthium laxum","Poaceae","native",4,null,"FAC","Slender Wood-Oats"]
["Cheilanthes eatonii","Pteridaceae","native",10,null,"---","---"]
["Cheilanthes lanosa","Pteridaceae","native",10,null,"---","---"]
["Cheilanthes tomentosa","Pteridaceae","native",10,null,"---","---"]
["Chelidonium majus","Papaveraceae","non-native",0,null,"UPL","Greater Celandine"]
["Chelone glabra","Scrophulariaceae","native",7,null,"OBL","White Turtlehead"]
["Chelone obliqua","Scrophulariaceae","native",9,null,"OBL","Red Turtlehead"]
["Chenopodium album","Chenopodiaceae","non-native",0,null,"FACU","Lamb's-Quarters"]
["Chenopodium album var. missouriense","Chenopodiaceae","non-native",0,null,"---","---"]
["Chenopodium album var. striatum","Chenopodiaceae","non-native",0,null,"---","---"]
["Chenopodium berlandieri","Chenopodiaceae","native",0,null,"---","---"]
["Chenopodium berlandieri var. bushianum","Chenopodiaceae","native",0,null,"---","---"]
["Chenopodium berlandieri var. macrocalycium","Chenopodiaceae","native",0,null,"---","---"]
["Chenopodium bonus-henricus","Chenopodiaceae","non-native",0,null,"---","---"]
["Chenopodium capitatum","Chenopodiaceae","native",1,null,"---","---"]
["Chenopodium ficifolium","Chenopodiaceae","non-native",0,null,"---","---"]
["Chenopodium glaucum","Chenopodiaceae","non-native",0,null,"FACW","Oak-Leaf Goosefoot"]
["Chenopodium multifidum","Chenopodiaceae","non-native",0,null,"---","---"]
["Chenopodium murale","Chenopodiaceae","non-native",0,null,"FACU","Nettle-Leaf Goosefoot"]
["Chenopodium opulifolium","Chenopodiaceae","non-native",0,null,"---","---"]
["Chenopodium polyspermum","Chenopodiaceae","non-native",0,null,"---","---"]
["Chenopodium polyspermum var. acutifolium","Chenopodiaceae","non-native",0,null,"---","---"]
["Chenopodium polyspermum var. obtusifolium","Chenopodiaceae","non-native",0,null,"---","---"]
["Chenopodium pratericola","Chenopodiaceae","non-native",0,null,"---","---"]
["Chenopodium simplex","Chenopodiaceae","native",5,null,"---","---"]
["Chenopodium standleyanum","Chenopodiaceae","native",8,null,"---","---"]
["Chenopodium urbicum","Chenopodiaceae","non-native",0,null,"---","---"]
["Chenopodium vulvaria","Chenopodiaceae","non-native",0,null,"---","---"]
["Chimaphila maculata","Pyrolaceae","native",6,null,"---","---"]
["Chimaphila umbellata","Pyrolaceae","native",7,null,"---","---"]
["Chionanthus virginicus","Oleaceae","native",7,null,"FAC","White Fringetree"]
["Chloris verticillata","Poaceae","non-native",0,null,"---","---"]
["Chloris virgata","Poaceae","non-native",0,null,"FACU","Feather Windmill Grass"]
["Chondrilla juncea","Asteraceae","non-native",0,null,"---","---"]
["Chrysogonum virginianum","Asteraceae","native",9,null,"---","---"]
["Chrysopsis mariana","Asteraceae","native",4,null,"UPL","Maryland Golden-Aster"]
["Chrysosplenium americanum","Saxifragaceae","native",9,null,"OBL","American Golden-Saxifrage"]
["Cichorium intybus","Asteraceae","non-native",0,null,"FACU","Chicory"]
["Cicuta bulbifera","Apiaceae","native",8,null,"OBL","Bulblet-Bearing Water-Hemlock"]
["Cicuta maculata","Apiaceae","native",6,null,"OBL","Spotted Water-Hemlock"]
["Cinna arundinacea","Poaceae","native",5,null,"FACW","Sweet Wood-Reed"]
["Cinna latifolia","Poaceae","native",7,null,"FACW","Slender Wood-Reed"]
["Circaea alpina","Onagraceae","native",8,null,"FACW","Small Enchanter's-Nightshade"]
["Circaea lutetiana","Onagraceae","native",2,null,"---","---"]
["Cirsium altissimum","Asteraceae","native",8,null,"---","---"]
["Cirsium arvense","Asteraceae","non-native",0,null,"FACU","Canadian Thistle"]
["Cirsium carolinianum","Asteraceae","native",8,null,"---","---"]
["Cirsium discolor","Asteraceae","native",1,null,"UPL","Field Thistle"]
["Cirsium horridulum","Asteraceae","native",6,null,"FACU","Yellow Thistle"]
["Cirsium muticum","Asteraceae","native",8,null,"OBL","Swamp Thistle"]
["Cirsium pumilum","Asteraceae","native",4,null,"---","---"]
["Cirsium vulgare","Asteraceae","non-native",0,null,"FACU","Bull Thistle"]
["Citrullus lanatus","Cucurbitaceae","non-native",0,null,"UPL","Watermelon"]
["Cladium mariscoides","Cyperaceae","native",9,null,"OBL","Smooth Saw-Grass"]
["Clarkia purpurea","Onagraceae","non-native",0,null,"---","---"]
["Clarkia purpurea ssp. quadrivulnera","Onagraceae","non-native",0,null,"---","---"]
["Claytonia caroliniana","Portulacaceae","native",7,null,"FACU","Carolina Springbeauty"]
["Claytonia virginica","Portulacaceae","native",5,null,"FAC","Virginia Springbeauty"]
["Cleistes divaricata","Orchidaceae","native",10,null,"---","---"]
["Clematis ligusticifolia","Ranunculaceae","non-native",0,null,"FACW","Deciduous Traveler's-Joy"]
["Clematis occidentalis","Ranunculaceae","native",10,null,"---","---"]
["Clematis ochroleuca","Ranunculaceae","native",10,null,"---","---"]
["Clematis terniflora","Ranunculaceae","non-native",0,null,"FACU","Sweet Autumn Virgin's-Bower"]
["Clematis virginiana","Ranunculaceae","native",3,null,"FAC","Devil's-Darning-Needles"]
["Clethra acuminata","Clethraceae","native",8,null,"---","---"]
["Clethra alnifolia","Clethraceae","native",5,null,"FAC","Coastal Sweet-Pepperbush"]
["Clinopodium vulgare","Lamiaceae","native",1,null,"---","---"]
["Clintonia borealis","Liliaceae","native",10,null,"FAC","Yellow Bluebead-Lily"]
["Clintonia umbellulata","Liliaceae","native",8,null,"---","---"]
["Clitoria mariana","Fabaceae","native",7,null,"FACU","Atlantic Pigeonwings"]
["Cnicus benedictus","Asteraceae","non-native",0,null,"---","---"]
["Cocculus carolinus","Menispermaceae","non-native",0,null,"FAC","Carolina Coralbead"]
["Coeloglossum viride","Orchidaceae","native",8,null,"FACU","Long-Bract Frog Orchid"]
["Coelorachis rugosa","Poaceae","native",9,null,"OBL","Wrinkled Joint-Tail Grass"]
["Coix lacryma-jobi","Poaceae","non-native",0,null,"FACW","Job's-Tears"]
["Coleataenia anceps","Poaceae","native",4,null,"FAC","Beaked Cut-Throat Grass"]
["Coleataenia rigidula","Poaceae","native",5,null,"FACW","Red-Top Cut-Throat Grass"]
["Collinsonia canadensis","Lamiaceae","native",5,null,"FAC","Richweed"]
["Collinsonia verticillata","Lamiaceae","native",8,null,"---","---"]
["Collomia linearis","Polemoniaceae","non-native",0,null,"UPL","Narrow-Leaf Mountain-Trumpet"]
["Comandra umbellata","Santalaceae","native",5,null,"FACU","Bastard-Toadflax"]
["Commelina communis","Commelinaceae","non-native",0,null,"FAC","Asiatic Dayflower"]
["Commelina diffusa","Commelinaceae","non-native",0,null,"FACW","Climbing Dayflower"]
["Commelina erecta","Commelinaceae","native",8,null,"FAC","White-Mouth Dayflower"]
["Comptonia peregrina","Myricaceae","native",5,null,"---","---"]
["Conium maculatum","Apiaceae","non-native",0,null,"FACW","Poison-Hemlock"]
["Conoclinium coelestinum","Asteraceae","native",2,null,"FAC","Blue Mistflower"]
["Conopholis americana","Orobanchaceae","native",8,null,"---","---"]
["Conringia orientalis","Brassicaceae","non-native",0,null,"---","---"]
["Consolida ajacis","Ranunculaceae","non-native",0,null,"---","---"]
["Consolida regalis","Ranunculaceae","non-native",0,null,"---","---"]
["Convallaria majalis","Liliaceae","non-native",0,null,"---","---"]
["Convallaria majuscula","Liliaceae","native",8,null,"---","---"]
["Convolvulus arvensis","Convolvulaceae","non-native",0,null,"---","---"]
["Conyza canadensis","Asteraceae","native",0,null,"---","---"]
["Conyza ramosissima","Asteraceae","non-native",0,null,"---","---"]
["Coptis trifolia","Ranunculaceae","native",9,null,"FACW","Three-Leaf Goldthread"]
["Corallorhiza maculata","Orchidaceae","native",8,null,"FACU","Summer Coralroot"]
["Corallorhiza odontorhiza","Orchidaceae","native",6,null,"---","---"]
["Corallorhiza trifida","Orchidaceae","native",10,null,"FACW","Yellow Coralroot"]
["Corallorhiza wisteriana","Orchidaceae","native",8,null,"FAC","Spring Coralroot"]
["Coreopsis auriculata","Asteraceae","native",8,null,"---","---"]
["Coreopsis grandiflora","Asteraceae","native",10,null,"---","---"]
["Coreopsis grandiflora var. harveyana","Asteraceae","non-native",0,null,"---","---"]
["Coreopsis lanceolata","Asteraceae","native",3,null,"FACU","Lance-Leaf Tickseed"]
["Coreopsis tinctoria","Asteraceae","non-native",0,null,"FAC","Golden Tickseed"]
["Coreopsis tripteris","Asteraceae","native",4,null,"FAC","Tall Tickseed"]
["Coreopsis verticillata","Asteraceae","native",5,null,"---","---"]
["Coriandrum sativum","Apiaceae","non-native",0,null,"---","---"]
["Cornus alternifolia","Cornaceae","native",6,null,"FAC","Alternate-Leaf Dogwood"]
["Cornus amomum","Cornaceae","native",4,null,"FACW","Silky Dogwood"]
["Cornus canadensis","Cornaceae","native",9,null,"FAC","Canadian Bunchberry"]
["Cornus drummondii","Cornaceae","non-native",0,null,"FAC","Rough-Leaf Dogwood"]
["Cornus florida","Cornaceae","native",4,null,"FACU","Flowering Dogwood"]
["Cornus foemina","Cornaceae","native",7,null,"FACW","Stiff Dogwood"]
["Cornus obliqua","Cornaceae","native",7,null,"FACW","Pale Dogwood"]
["Cornus racemosa","Cornaceae","native",5,null,"FAC","Gray Dogwood"]
["Cornus rugosa","Cornaceae","native",9,null,"---","---"]
["Cornus sanguinea","Cornaceae","non-native",0,null,"---","---"]
["Cornus sericea","Cornaceae","native",4,null,"---","---"]
["Coronopus didymus","Brassicaceae","non-native",0,null,"---","---"]
["Coronopus squamatus","Brassicaceae","non-native",0,null,"---","---"]
["Corrigiola litoralis","Caryophyllaceae","non-native",0,null,"---","---"]
["Corydalis flavula","Fumariaceae","native",3,null,"FACU","Yellow Fumewort"]
["Corydalis sempervirens","Fumariaceae","native",8,null,"---","---"]
["Corylus americana","Betulaceae","native",5,null,"FACU","American Hazelnut"]
["Corylus cornuta","Betulaceae","native",8,null,"FACU","Beaked Hazelnut"]
["Cosmos bipinnatus","Asteraceae","non-native",0,null,"FACU","Garden Cosmos"]
["Cosmos sulphureus","Asteraceae","non-native",0,null,"FACU","Sulphur Cosmos"]
["Cotinus coggygria","Anacardiaceae","non-native",0,null,"---","---"]
["Crataegus calpodendron","Rosaceae","native",7,null,"---","---"]
["Crataegus chrysocarpa","Rosaceae","native",4,null,"---","---"]
["Crataegus crus-galli","Rosaceae","native",5,null,"FACU","Cock-Spur Hawthorn"]
["Crataegus disperma","Rosaceae","native",4,null,"---","---"]
["Crataegus flabellata","Rosaceae","native",4,null,"---","---"]
["Crataegus flava","Rosaceae","native",4,null,"---","---"]
["Crataegus intricata","Rosaceae","native",4,null,"---","---"]
["Crataegus iracunda","Rosaceae","native",4,null,"---","---"]
["Crataegus macrosperma","Rosaceae","native",4,null,"---","---"]
["Crataegus margaretta","Rosaceae","native",4,null,"---","---"]
["Crataegus marshallii","Rosaceae","native",4,null,"FAC","Parsley Hawthorn"]
["Crataegus monogyna","Rosaceae","non-native",0,null,"FACU","English Hawthorn"]
["Crataegus pedicellata","Rosaceae","native",4,null,"---","---"]
["Crataegus pennsylvanica","Rosaceae","native",4,null,"---","---"]
["Crataegus phaenopyrum","Rosaceae","native",4,null,"FAC","Washington Hawthorn"]
["Crataegus pringlei","Rosaceae","native",4,null,"---","---"]
["Crataegus pruinosa","Rosaceae","native",4,null,"---","---"]
["Crataegus punctata","Rosaceae","native",4,null,"---","---"]
["Crataegus spathulata","Rosaceae","native",9,null,"FAC","Little-Hip Hawthorn"]
["Crataegus succulenta","Rosaceae","native",4,null,"---","---"]
["Crataegus uniflora","Rosaceae","native",7,null,"---","---"]
["Crataegus viridis","Rosaceae","native",9,null,"FACW","Green Hawthorn"]
["Crepis capillaris","Asteraceae","non-native",0,null,"UPL","Smooth Hawk's-Beard"]
["Crepis pulchra","Asteraceae","non-native",0,null,"---","---"]
["Crepis setosa","Asteraceae","non-native",0,null,"---","---"]
["Crepis tectorum","Asteraceae","non-native",0,null,"---","---"]
["Crotalaria sagittalis","Fabaceae","native",3,null,"---","---"]
["Crotalaria spectabilis","Fabaceae","non-native",0,null,"FACU","Showy Rattlebox"]
["Croton capitatus","Euphorbiaceae","non-native",0,null,"---","---"]
["Croton glandulosus","Euphorbiaceae","non-native",0,null,"---","---"]
["Croton glandulosus var. septentrionalis","Euphorbiaceae","native",0,null,"---","---"]
["Croton lindheimerianus","Euphorbiaceae","non-native",0,null,"---","---"]
["Croton monanthogynus","Euphorbiaceae","native",5,null,"---","---"]
["Croton punctatus","Euphorbiaceae","non-native",0,null,"---","---"]
["Croton willdenowii","Euphorbiaceae","native",2,null,"---","---"]
["Cruciata pedemontana","Rubiaceae","non-native",0,null,"---","---"]
["Crypsis alopecuroides","Poaceae","non-native",0,null,"FACW","Fox-Tail Prickle Grass"]
["Crypsis schoenoides","Poaceae","non-native",0,null,"FACW","Swamp Prickle Grass"]
["Cryptotaenia canadensis","Apiaceae","native",4,null,"FAC","Canadian Honewort"]
["Cucumis melo","Cucurbitaceae","non-native",0,null,"---","---"]
["Cucumis sativus","Cucurbitaceae","non-native",0,null,"---","---"]
["Cucurbita moschata","Cucurbitaceae","non-native",0,null,"---","---"]
["Cucurbita pepo","Cucurbitaceae","non-native",0,null,"---","---"]
["Cullen corylifolia","Fabaceae","non-native",0,null,"---","---"]
["Cunila origanoides","Lamiaceae","native",7,null,"---","---"]
["Cuphea viscosissima","Lythraceae","native",2,null,"FAC","Blue Waxweed"]
["Cuscuta cephalanthi","Cuscutaceae","native",9,null,"---","---"]
["Cuscuta compacta","Cuscutaceae","native",6,null,"---","---"]
["Cuscuta coryli","Cuscutaceae","native",10,null,"---","---"]
["Cuscuta epilinum","Cuscutaceae","non-native",0,null,"---","---"]
["Cuscuta epithymum","Cuscutaceae","non-native",0,null,"---","---"]
["Cuscuta gronovii","Cuscutaceae","native",3,null,"---","---"]
["Cuscuta indecora","Cuscutaceae","native",7,null,"---","---"]
["Cuscuta pentagona","Cuscutaceae","native",3,null,"---","---"]
["Cuscuta polygonorum","Cuscutaceae","native",7,null,"---","---"]
["Cyclachaena xanthifolia","Asteraceae","non-native",0,null,"---","---"]
["Cycloloma atriplicifolium","Chenopodiaceae","non-native",0,null,"FACU","Winged-Pigweed"]
["Cymbalaria muralis","Scrophulariaceae","non-native",0,null,"---","---"]
["Cynanchum laeve","Asclepiadaceae","native",1,null,"FAC","Honeyvine"]
["Cynanchum louiseae","Asclepiadaceae","non-native",0,null,"---","---"]
["Cynanchum rossicum","Asclepiadaceae","non-native",0,null,"---","---"]
["Cynodon dactylon","Poaceae","non-native",0,null,"FACU","Bermuda Grass"]
["Cynoglossum officinale","Boraginaceae","non-native",0,null,"UPL","Gypsy-Flower"]
["Cynoglossum virginianum","Boraginaceae","native",5,null,"---","---"]
["Cynosurus cristatus","Poaceae","non-native",0,null,"UPL","Crested Dog's-Tail Grass"]
["Cynosurus echinatus","Poaceae","non-native",0,null,"---","---"]
["Cyperus acuminatus","Cyperaceae","native",3,null,"OBL","Taper-Tip Flat Sedge"]
["Cyperus amuricus","Cyperaceae","non-native",0,null,"---","---"]
["Cyperus bipartitus","Cyperaceae","native",3,null,"FACW","Shining Flat Sedge"]
["Cyperus croceus","Cyperaceae","non-native",0,null,"FACU","Baldwin's Flat Sedge"]
["Cyperus dentatus","Cyperaceae","native",6,null,"FACW","Toothed Flat Sedge"]
["Cyperus diandrus","Cyperaceae","native",7,null,"FACW","Umbrella Flat Sedge"]
["Cyperus difformis","Cyperaceae","non-native",0,null,"OBL","Variable Flat Sedge"]
["Cyperus echinatus","Cyperaceae","native",4,null,"FACU","Globe Flat Sedge"]
["Cyperus erythrorhizos","Cyperaceae","native",3,null,"FACW","Red-Root Flat Sedge"]
["Cyperus esculentus","Cyperaceae","native",0,null,"FACW","Chufa"]
["Cyperus filicinus","Cyperaceae","native",5,null,"OBL","Fern Flat Sedge"]
["Cyperus filiculmis","Cyperaceae","native",2,null,"---","---"]
["Cyperus flavescens","Cyperaceae","native",3,null,"OBL","Yellow Flat Sedge"]
["Cyperus fuscus","Cyperaceae","non-native",0,null,"FAC","Galingale"]
["Cyperus granitophilus","Cyperaceae","native",10,null,"FACW","Granite Flat Sedge"]
["Cyperus grayi","Cyperaceae","native",6,null,"---","---"]
["Cyperus houghtonii","Cyperaceae","native",5,null,"---","---"]
["Cyperus hystricinus","Cyperaceae","native",7,null,"---","---"]
["Cyperus iria","Cyperaceae","non-native",0,null,"FACW","Ricefield Flat Sedge"]
["Cyperus lancastriensis","Cyperaceae","native",4,null,"FAC","Many-Flower Flat Sedge"]
["Cyperus lupulinus","Cyperaceae","native",2,null,"UPL","Great Plains Flat Sedge"]
["Cyperus odoratus","Cyperaceae","native",2,null,"FACW","Rusty Flat Sedge"]
["Cyperus plukenetii","Cyperaceae","native",10,null,"---","---"]
["Cyperus polystachyos","Cyperaceae","native",5,null,"FACW","Many-Spike Flat Sedge"]
["Cyperus polystachyos var. texensis","Cyperaceae","native",5,null,"---","---"]
["Cyperus pseudovegetus","Cyperaceae","native",2,null,"FACW","Marsh Flat Sedge"]
["Cyperus refractus","Cyperaceae","native",6,null,"FACU","Reflexed Flat Sedge"]
["Cyperus retrofractus","Cyperaceae","native",6,null,"UPL","Rough Flat Sedge"]
["Cyperus retrorsus","Cyperaceae","native",3,null,"FAC","Pine-Barren Flat Sedge"]
["Cyperus rotundus","Cyperaceae","non-native",0,null,"FAC","Purple Flat Sedge"]
["Cyperus schweinitzii","Cyperaceae","native",5,null,"FACU","Sand Flat Sedge"]
["Cyperus serotinus","Cyperaceae","non-native",0,null,"OBL","Tidal-Marsh Flat Sedge"]
["Cyperus squarrosus","Cyperaceae","native",1,null,"FACW","Awned Flat Sedge"]
["Cyperus strigosus","Cyperaceae","native",2,null,"FACW","Straw-Color Flat Sedge"]
["Cypripedium acaule","Orchidaceae","native",7,null,"FACU","Pink Lady's-Slipper"]
["Cypripedium candidum","Orchidaceae","native",10,null,"OBL","Small White Lady's-Slipper"]
["Cypripedium parviflorum","Orchidaceae","native",9,null,"FACW","Yellow Lady's-Slipper"]
["Cypripedium parviflorum var. pubescens","Orchidaceae","native",8,null,"---","---"]
["Cypripedium reginae","Orchidaceae","native",10,null,"FACW","Showy Lady's-Slipper"]
["Cystopteris bulbifera","Dryopteridaceae","native",8,null,"FAC","Bulblet Bladder Fern"]
["Cystopteris protrusa","Dryopteridaceae","native",5,null,"FAC","Lowland Bladder Fern"]
["Cystopteris tenuis","Dryopteridaceae","native",7,null,"---","---"]
["Cytisus scoparius","Fabaceae","non-native",0,null,"---","---"]
["Dactylis glomerata","Poaceae","non-native",0,null,"FACU","Orchard Grass"]
["Dalibarda repens","Rosaceae","native",9,null,"---","---"]
["Danthonia compressa","Poaceae","native",4,null,"FACU","Flattened Wild Oat Grass"]
["Danthonia spicata","Poaceae","native",3,null,"---","---"]
["Dasypyrum villosum","Poaceae","non-native",0,null,"---","---"]
["Datura inoxia","Solanaceae","non-native",0,null,"---","---"]
["Datura stramonium","Solanaceae","non-native",0,null,"---","---"]
["Daucus carota","Apiaceae","non-native",0,null,"UPL","Queen Anne's-Lace"]
["Decodon verticillatus","Lythraceae","native",8,null,"OBL","Swamp-Loosestrife"]
["Decumaria barbara","Hydrangeaceae","native",6,null,"OBL","Woodvamp"]
["Delphinium exaltatum","Ranunculaceae","native",10,null,"---","---"]
["Delphinium tricorne","Ranunculaceae","native",7,null,"---","---"]
["Dendrolycopodium dendroideum","Lycopodiaceae","native",7,null,"FACU","Prickley Tree-Club-Moss"]
["Dendrolycopodium obscurum","Lycopodiaceae","native",6,null,"FACU","Princess-Pine"]
["Dennstaedtia punctilobula","Dennstaedtiaceae","native",2,null,"FACU","Hay-Scented Fern"]
["Deparia acrostichoides","Dryopteridaceae","native",7,null,"FAC","Silvery-Spleenwort"]
["Deschampsia caespitosa","Poaceae","native",8,null,"FACW","Tufted Hair Grass"]
["Deschampsia flexuosa","Poaceae","native",7,null,"FACU","Wavy Hair Grass"]
["Descurainia pinnata","Brassicaceae","non-native",0,null,"---","---"]
["Descurainia pinnata ssp. brachycarpa","Brassicaceae","non-native",0,null,"---","---"]
["Descurainia sophia","Brassicaceae","non-native",0,null,"---","---"]
["Desmanthus illinoensis","Fabaceae","non-native",0,null,"FAC","Prairie Bundle-Flower"]
["Desmodium canadense","Fabaceae","native",4,null,"FAC","Showy Tick-Trefoil"]
["Desmodium canescens","Fabaceae","native",8,null,"---","---"]
["Desmodium ciliare","Fabaceae","native",4,null,"---","---"]
["Desmodium cuspidatum","Fabaceae","native",7,null,"---","---"]
["Desmodium glabellum","Fabaceae","native",8,null,"---","---"]
["Desmodium glutinosum","Fabaceae","native",6,null,"---","---"]
["Desmodium humifusum","Fabaceae","native",8,null,"---","---"]
["Desmodium laevigatum","Fabaceae","native",4,null,"---","---"]
["Desmodium lineatum","Fabaceae","native",9,null,"---","---"]
["Desmodium marilandicum","Fabaceae","native",4,null,"---","---"]
["Desmodium nudiflorum","Fabaceae","native",6,null,"---","---"]
["Desmodium nuttallii","Fabaceae","native",5,null,"---","---"]
["Desmodium obtusum","Fabaceae","native",8,null,"---","---"]
["Desmodium paniculatum","Fabaceae","native",4,null,"FACU","Panicled-Leaf Tick-Trefoil"]
["Desmodium pauciflorum","Fabaceae","native",8,null,"---","---"]
["Desmodium perplexum","Fabaceae","native",4,null,"---","---"]
["Desmodium rotundifolium","Fabaceae","native",6,null,"---","---"]
["Desmodium sessilifolium","Fabaceae","native",8,null,"---","---"]
["Desmodium viridiflorum","Fabaceae","native",5,null,"---","---"]
["Deutzia scabra","Hydrangeaceae","non-native",0,null,"---","---"]
["Diamorpha smallii","Crassulaceae","native",10,null,"FACW","Elf Orpine"]
["Dianthus armeria","Caryophyllaceae","non-native",0,null,"UPL","Deptford Pink"]
["Dianthus barbatus","Caryophyllaceae","non-native",0,null,"---","---"]
["Dianthus deltoides","Caryophyllaceae","non-native",0,null,"UPL","Maiden Pink"]
["Diarrhena americana","Poaceae","native",7,null,"---","---"]
["Dicentra canadensis","Fumariaceae","native",7,null,"---","---"]
["Dicentra cucullaria","Fumariaceae","native",7,null,"---","---"]
["Dicentra eximia","Fumariaceae","native",9,null,"---","---"]
["Dichanthelium aciculare","Poaceae","native",7,null,"FACU","Needle-Leaf Rosette Grass"]
["Dichanthelium acuminatum","Poaceae","native",4,null,"FAC","Tapered Rosette Grass"]
["Dichanthelium acuminatum ssp. columbianum","Poaceae","native",8,null,"---","---"]
["Dichanthelium acuminatum var. fasciculatum","Poaceae","native",5,null,"---","---"]
["Dichanthelium acuminatum var. lindheimeri","Poaceae","native",4,null,"---","---"]
["Dichanthelium boreale","Poaceae","native",8,null,"FACU","Northern Rosette Grass"]
["Dichanthelium boscii","Poaceae","native",6,null,"---","---"]
["Dichanthelium clandestinum","Poaceae","native",2,null,"FAC","Deer-Tongue Rosette Grass"]
["Dichanthelium commutatum","Poaceae","native",5,null,"FACU","Variable Rosette Grass"]
["Dichanthelium depauperatum","Poaceae","native",6,null,"---","---"]
["Dichanthelium dichotomum","Poaceae","native",4,null,"FAC","Cypress Rosette Grass"]
["Dichanthelium dichotomum var. ensifolium","Poaceae","native",6,null,"---","---"]
["Dichanthelium latifolium","Poaceae","native",6,null,"FACU","Broad-Leaf Rosette Grass"]
["Dichanthelium laxiflorum","Poaceae","native",5,null,"FACU","Open-Flower Rosette Grass"]
["Dichanthelium linearifolium","Poaceae","native",6,null,"---","---"]
["Dichanthelium meridionale","Poaceae","native",4,null,"---","---"]
["Dichanthelium oligosanthes","Poaceae","native",5,null,"FACU","Heller's Rosette Grass"]
["Dichanthelium oligosanthes var. scribnerianum","Poaceae","native",5,null,"---","---"]
["Dichanthelium ovale","Poaceae","native",4,null,"FACU","Egg-Leaf Rosette Grass"]
["Dichanthelium ovale var. addisonii","Poaceae","native",4,null,"---","---"]
["Dichanthelium ravenelii","Poaceae","native",6,null,"FACU","Ravenel's Rosette Grass"]
["Dichanthelium scabriusculum","Poaceae","native",9,null,"OBL","Woolly Rosette Grass"]
["Dichanthelium scoparium","Poaceae","native",3,null,"FACW","Broom Rosette Grass"]
["Dichanthelium sphaerocarpon","Poaceae","native",4,null,"FACU","Round-Seed Rosette Grass"]
["Dichanthelium spretum","Poaceae","native",7,null,"---","---"]
["Dichanthelium villosissimum","Poaceae","native",5,null,"---","---"]
["Dichanthelium xanthophysum","Poaceae","native",7,null,"---","---"]
["Dichondra carolinensis","Convolvulaceae","native",0,null,"FACW","Carolina Pony's-Foot"]
["Diervilla lonicera","Caprifoliaceae","native",8,null,"---","---"]
["Digitalis lanata","Scrophulariaceae","non-native",0,null,"---","---"]
["Digitaria ciliaris","Poaceae","non-native",0,null,"FAC","Southern Crab Grass"]
["Digitaria cognata","Poaceae","native",0,null,"---","---"]
["Digitaria filiformis","Poaceae","native",1,null,"---","---"]
["Digitaria ischaemum","Poaceae","non-native",0,null,"UPL","Smooth Crab Grass"]
["Digitaria sanguinalis","Poaceae","non-native",0,null,"FACU","Hairy Crab Grass"]
["Diodia teres","Rubiaceae","native",2,null,"UPL","Poorjoe"]
["Diodia virginiana","Rubiaceae","native",3,null,"FACW","Virginia Buttonweed"]
["Dioscorea oppositifolia","Dioscoreaceae","non-native",0,null,"---","---"]
["Dioscorea polystachya","Dioscoreaceae","non-native",0,null,"---","---"]
["Dioscorea quaternata","Dioscoreaceae","native",5,null,"---","---"]
["Dioscorea villosa","Dioscoreaceae","native",5,null,"FAC","Wild Yam"]
["Diospyros virginiana","Ebenaceae","native",4,null,"FAC","Common Persimmon"]
["Diplazium pycnocarpon","Dryopteridaceae","native",8,null,"FAC","Glade Fern"]
["Diplotaxis muralis","Brassicaceae","non-native",0,null,"---","---"]
["Diplotaxis tenuifolia","Brassicaceae","non-native",0,null,"---","---"]
["Dipsacus fullonum","Dipsacaceae","non-native",0,null,"FACU","Fuller's Teasel"]
["Dipsacus laciniatus","Dipsacaceae","non-native",0,null,"FACU","Cut-Leaf Teasel"]
["Dipsacus sativus","Dipsacaceae","non-native",0,null,"---","---"]
["Dirca palustris","Thymelaeaceae","native",8,null,"FAC","Eastern Leatherwood"]
["Dodecatheon amethystinum","Primulaceae","native",9,null,"---","---"]
["Dodecatheon meadia","Primulaceae","native",9,null,"FACU","Pride-of-Ohio"]
["Dodecatheon radicatum","Primulaceae","native",9,null,"---","---"]
["Doellingeria infirma","Asteraceae","native",8,null,"---","---"]
["Doellingeria umbellata","Asteraceae","native",6,null,"FACW","Parasol White-Top"]
["Draba ramosissima","Brassicaceae","native",9,null,"---","---"]
["Draba verna","Brassicaceae","non-native",0,null,"---","---"]
["Dracocephalum parviflorum","Lamiaceae","non-native",0,null,"FACU","American Dragonhead"]
["Drosera intermedia","Droseraceae","native",6,null,"OBL","Spoon-Leaf Sundew"]
["Drosera rotundifolia","Droseraceae","native",9,null,"OBL","Round-Leaf Sundew"]
["Drymocallis arguta","Rosaceae","native",6,null,"UPL","Tall Woodbeauty"]
["Dryopteris carthusiana","Dryopteridaceae","native",5,null,"FAC","Spinulose Wood Fern"]
["Dryopteris celsa","Dryopteridaceae","native",8,null,"OBL","Log Fern"]
["Dryopteris clintoniana","Dryopteridaceae","native",9,null,"FACW","Clinton's Wood Fern"]
["Dryopteris cristata","Dryopteridaceae","native",8,null,"FACW","Crested Wood Fern"]
["Dryopteris goldiana","Dryopteridaceae","native",8,null,"FAC","Goldie's Wood Fern"]
["Dryopteris intermedia","Dryopteridaceae","native",5,null,"FACU","Evergreen Wood Fern"]
["Dryopteris marginalis","Dryopteridaceae","native",6,null,"FACU","Marginal Wood Fern"]
["Dulichium arundinaceum","Cyperaceae","native",5,null,"OBL","Three-Way Sedge"]
["Dysphania ambrosioides","Chenopodiaceae","non-native",0,null,"FACU","Mexican-Tea"]
["Dysphania botrys","Chenopodiaceae","non-native",0,null,"UPL","Jerusalem-Oak"]
["Dysphania pumilio","Chenopodiaceae","non-native",0,null,"---","---"]
["Ecballium elaterium","Cucurbitaceae","non-native",0,null,"---","---"]
["Echinacea pallida","Asteraceae","non-native",0,null,"---","---"]
["Echinacea purpurea","Asteraceae","non-native",0,null,"---","---"]
["Echinochloa colona","Poaceae","non-native",0,null,"FACW","Jungle-Rice"]
["Echinochloa crus-galli","Poaceae","non-native",0,null,"FAC","Large Barnyard Grass"]
["Echinochloa frumentacea","Poaceae","non-native",0,null,"UPL","Japanese-Millet"]
["Echinochloa muricata","Poaceae","native",1,null,"FACW","Rough Barnyard Grass"]
["Echinochloa walteri","Poaceae","native",7,null,"FACW","Long-Awn Cock's-Spur Grass"]
["Echinocystis lobata","Cucurbitaceae","native",3,null,"FAC","Wild Cucumber"]
["Echinops sphaerocephalus","Asteraceae","non-native",0,null,"---","---"]
["Echium plantagineum","Boraginaceae","non-native",0,null,"---","---"]
["Echium vulgare","Boraginaceae","non-native",0,null,"---","---"]
["Eclipta prostrata","Asteraceae","native",3,null,"FAC","False Daisy"]
["Egeria densa","Hydrocharitaceae","non-native",0,null,"OBL","Brazilian-Waterweed"]
["Elaeagnus angustifolia","Elaeagnaceae","non-native",0,null,"FACU","Russian-Olive"]
["Elaeagnus pungens","Elaeagnaceae","non-native",0,null,"---","---"]
["Elaeagnus umbellata","Elaeagnaceae","non-native",0,null,"---","---"]
["Elaeagnus umbellata var. parvifolia","Elaeagnaceae","non-native",0,null,"---","---"]
["Eleocharis aestuum","Cyperaceae","native",10,null,"OBL","Tidal Spike-Rush"]
["Eleocharis baldwinii","Cyperaceae","native",7,null,"OBL","Baldwin's Spike-Rush"]
["Eleocharis compressa","Cyperaceae","native",10,null,"OBL","Flat-Stem Spike-Rush"]
["Eleocharis elliptica","Cyperaceae","native",10,null,"FACW","Elliptic Spike-Rush"]
["Eleocharis engelmannii","Cyperaceae","native",4,null,"FACW","Engelmann's Spike-Rush"]
["Eleocharis equisetoides","Cyperaceae","native",10,null,"OBL","Horsetail-Spike-Rush"]
["Eleocharis erythropoda","Cyperaceae","native",5,null,"---","---"]
["Eleocharis fallax","Cyperaceae","native",7,null,"OBL","Creeping Spike-Rush"]
["Eleocharis flavescens","Cyperaceae","native",7,null,"OBL","Yellow Spike-Rush"]
["Eleocharis intermedia","Cyperaceae","native",9,null,"FACW","Intermediate Spike-Rush"]
["Eleocharis obtusa","Cyperaceae","native",2,null,"OBL","Blunt Spike-Rush"]
["Eleocharis olivacea","Cyperaceae","native",6,null,"OBL","Bright-Green Spike-Rush"]
["Eleocharis ovata","Cyperaceae","native",2,null,"---","---"]
["Eleocharis palustris","Cyperaceae","native",7,null,"OBL","Common Spike-Rush"]
["Eleocharis quadrangulata","Cyperaceae","native",4,null,"OBL","Square-Stem Spike-Rush"]
["Eleocharis tenuis","Cyperaceae","native",3,null,"FACW","Slender Spike-Rush"]
["Eleocharis tenuis var. pseudoptera","Cyperaceae","native",6,null,"---","---"]
["Eleocharis tenuis var. verrucosa","Cyperaceae","native",7,null,"---","---"]
["Eleocharis tuberculosa","Cyperaceae","native",9,null,"OBL","Cone-Cup Spike-Rush"]
["Elephantopus carolinianus","Asteraceae","native",3,null,"FACU","Carolina Elephant's-Foot"]
["Elephantopus tomentosus","Asteraceae","native",2,null,"---","---"]
["Eleusine indica","Poaceae","non-native",0,null,"FACU","Indian Goose Grass"]
["Eleutherococcus pentaphyllus","Araliaceae","non-native",0,null,"---","---"]
["Ellisia nyctelea","Hydrophyllaceae","native",7,null,"FACU","Aunt Lucy"]
["Elodea canadensis","Hydrocharitaceae","native",2,null,"OBL","Canadian Waterweed"]
["Elodea nuttallii","Hydrocharitaceae","native",5,null,"OBL","Western Waterweed"]
["Elymus canadensis","Poaceae","native",6,null,"FACU","Nodding Wild Rye"]
["Elymus glabriflorus","Poaceae","native",2,null,"---","---"]
["Elymus hystrix","Poaceae","native",5,null,"UPL","Eastern Bottle-Brush Grass"]
["Elymus macgregorii","Poaceae","native",8,null,"---","---"]
["Elymus repens","Poaceae","non-native",0,null,"FACU","Creeping Wild Rye"]
["Elymus riparius","Poaceae","native",5,null,"FACW","River-Bank Wild Rye"]
["Elymus villosus","Poaceae","native",4,null,"FACU","Hairy Wild Rye"]
["Elymus virginicus","Poaceae","native",4,null,"FACW","Virginia Wild Rye"]
["Endodeca serpentaria","Aristolochiaceae","native",8,null,"UPL","Virginia-Snakeroot"]
["Enemion biternatum","Ranunculaceae","native",8,null,"FACU","Eastern False Rue-Anemone"]
["Epifagus virginiana","Orobanchaceae","native",7,null,"---","---"]
["Epigaea repens","Ericaceae","native",7,null,"---","---"]
["Epilobium ciliatum","Onagraceae","native",4,null,"FAC","Fringed Willowherb"]
["Epilobium coloratum","Onagraceae","native",2,null,"FACW","Purple-Leaf Willowherb"]
["Epilobium hirsutum","Onagraceae","non-native",0,null,"FACW","Codlins-and-Cream"]
["Epilobium leptophyllum","Onagraceae","native",9,null,"OBL","Bog Willowherb"]
["Epilobium strictum","Onagraceae","native",10,null,"OBL","Downy Willowherb"]
["Epipactis helleborine","Orchidaceae","non-native",0,null,"UPL","Helleborine"]
["Equisetum arvense","Equisetaceae","native",1,null,"FAC","Field Horsetail"]
["Equisetum fluviatile","Equisetaceae","native",8,null,"OBL","Water Horsetail"]
["Equisetum hyemale","Equisetaceae","native",2,null,"FACW","Tall Scouring-Rush"]
["Equisetum sylvaticum","Equisetaceae","native",9,null,"FACW","Woodland Horsetail"]
["Eragrostis capillaris","Poaceae","native",4,null,"---","---"]
["Eragrostis cilianensis","Poaceae","non-native",0,null,"FACU","Stink Grass"]
["Eragrostis curvula","Poaceae","non-native",0,null,"---","---"]
["Eragrostis frankii","Poaceae","native",3,null,"FACW","Sandbar Love Grass"]
["Eragrostis hirsuta","Poaceae","native",4,null,"UPL","Big-Top Love Grass"]
["Eragrostis hypnoides","Poaceae","native",4,null,"OBL","Teal Love Grass"]
["Eragrostis minor","Poaceae","non-native",0,null,"---","---"]
["Eragrostis pectinacea","Poaceae","native",0,null,"FAC","Purple Love Grass"]
["Eragrostis pilosa","Poaceae","non-native",0,null,"FACU","Indian Love Grass"]
["Eragrostis refracta","Poaceae","native",5,null,"FACW","Meadow Love Grass"]
["Eragrostis secundiflora","Poaceae","non-native",0,null,"UPL","Red Love Grass"]
["Eragrostis spectabilis","Poaceae","native",3,null,"UPL","Petticoat-Climber"]
["Eragrostis trichodes","Poaceae","non-native",0,null,"---","---"]
["Eranthis hyemalis","Ranunculaceae","non-native",0,null,"---","---"]
["Erechtites hieraciifolia","Asteraceae","native",1,null,"---","---"]
["Erigenia bulbosa","Apiaceae","native",6,null,"---","---"]
["Erigeron annuus","Asteraceae","native",0,null,"FACU","Eastern Daisy Fleabane"]
["Erigeron philadelphicus","Asteraceae","native",1,null,"FACU","Philadelphia Fleabane"]
["Erigeron pulchellus","Asteraceae","native",7,null,"FACU","Robin's-Plantain"]
["Erigeron strigosus","Asteraceae","native",1,null,"FACU","Prairie Fleabane"]
["Eriocaulon aquaticum","Eriocaulaceae","native",10,null,"OBL","Seven-Angle Pipewort"]
["Eriochloa contracta","Poaceae","non-native",0,null,"FACU","Prairie Cup Grass"]
["Eriochloa villosa","Poaceae","non-native",0,null,"---","---"]
["Eriophorum tenellum","Cyperaceae","native",10,null,"OBL","Few-Nerve Cotton-Grass"]
["Eriophorum virginicum","Cyperaceae","native",9,null,"OBL","Tawny Cotton-Grass"]
["Erodium cicutarium","Geraniaceae","non-native",0,null,"---","---"]
["Erodium moschatum","Geraniaceae","non-native",0,null,"---","---"]
["Eruca vesicaria","Brassicaceae","non-native",0,null,"---","---"]
["Erucastrum gallicum","Brassicaceae","non-native",0,null,"---","---"]
["Eryngium aquaticum","Apiaceae","native",8,null,"OBL","Rattlesnake-Master"]
["Eryngium prostratum","Apiaceae","non-native",0,null,"OBL","Creeping Eryngo"]
["Eryngium yuccifolium","Apiaceae","native",9,null,"FAC","Button Eryngo"]
["Erysimum cheiranthoides","Brassicaceae","non-native",0,null,"FAC","Worm-Seed Wallflower"]
["Erysimum repandum","Brassicaceae","non-native",0,null,"---","---"]
["Erythronium albidum","Liliaceae","native",8,null,"FACU","Small White Fawn-Lily"]
["Erythronium americanum","Liliaceae","native",6,null,"---","---"]
["Erythronium umbilicatum","Liliaceae","native",6,null,"FAC","Dimpled Trout-Lily"]
["Eschscholzia californica","Papaveraceae","non-native",0,null,"---","---"]
["Eubotrys racemosa","Ericaceae","native",6,null,"FACW","Swamp Deciduous-Doghobble"]
["Eubotrys recurva","Ericaceae","native",9,null,"FACU","Red-Twig Deciduous-Doghobble"]
["Euonymus alatus","Celastraceae","non-native",0,null,"---","---"]
["Euonymus americanus","Celastraceae","native",6,null,"FAC","American Strawberry-Bush"]
["Euonymus atropurpureus","Celastraceae","native",6,null,"FACU","Eastern Wahoo"]
["Euonymus europaeus","Celastraceae","non-native",0,null,"---","---"]
["Euonymus fortunei","Celastraceae","non-native",0,null,"---","---"]
["Euonymus hamiltonianus","Celastraceae","non-native",0,null,"---","---"]
["Euonymus hamiltonianus ssp. sieboldianus","Celastraceae","non-native",0,null,"---","---"]
["Eupatoriadelphus dubius","Asteraceae","native",5,null,"---","---"]
["Eupatoriadelphus fistulosus","Asteraceae","native",4,null,"---","---"]
["Eupatoriadelphus maculatus","Asteraceae","native",7,null,"---","---"]
["Eupatorium album","Asteraceae","native",5,null,"---","---"]
["Eupatorium altissimum","Asteraceae","native",1,null,"---","---"]
["Eupatorium cannabinum","Asteraceae","non-native",0,null,"---","---"]
["Eupatorium capillifolium","Asteraceae","native",0,null,"FACU","Dog-Fennel"]
["Eupatorium godfreyanum","Asteraceae","native",8,null,"---","---"]
["Eupatorium hyssopifolium","Asteraceae","native",1,null,"---","---"]
["Eupatorium hyssopifolium var. laciniatum","Asteraceae","native",3,null,"---","---"]
["Eupatorium leucolepis","Asteraceae","native",7,null,"FACW","Justiceweed"]
["Eupatorium perfoliatum","Asteraceae","native",3,null,"FACW","Common Boneset"]
["Eupatorium pilosum","Asteraceae","native",6,null,"FACW","Rough Boneset"]
["Eupatorium purpureum","Asteraceae","native",5,null,"---","---"]
["Eupatorium rotundifolium","Asteraceae","native",4,null,"FAC","Round-Leaf Thoroughwort"]
["Eupatorium rotundifolium var. ovatum","Asteraceae","native",4,null,"---","---"]
["Eupatorium serotinum","Asteraceae","native",2,null,"FAC","Late-Flowering Thoroughwort"]
["Eupatorium sessilifolium","Asteraceae","native",5,null,"---","---"]
["Euphorbia commutata","Euphorbiaceae","native",6,null,"FACU","Tinted Woodland Spurge"]
["Euphorbia corollata","Euphorbiaceae","native",5,null,"---","---"]
["Euphorbia cyathophora","Euphorbiaceae","native",5,null,"UPL","Fire-on-the-Mountain"]
["Euphorbia cyparissias","Euphorbiaceae","non-native",0,null,"---","---"]
["Euphorbia davidii","Euphorbiaceae","non-native",0,null,"---","---"]
["Euphorbia esula","Euphorbiaceae","non-native",0,null,"---","---"]
["Euphorbia falcata","Euphorbiaceae","non-native",0,null,"---","---"]
["Euphorbia helioscopia","Euphorbiaceae","non-native",0,null,"---","---"]
["Euphorbia hexagona","Euphorbiaceae","non-native",0,null,"---","---"]
["Euphorbia lathyris","Euphorbiaceae","non-native",0,null,"---","---"]
["Euphorbia marginata","Euphorbiaceae","non-native",0,null,"UPL","Snow-on-the-Mountain"]
["Euphorbia mercurialina","Euphorbiaceae","non-native",0,null,"---","---"]
["Euphorbia peplus","Euphorbiaceae","non-native",0,null,"---","---"]
["Euphorbia purpurea","Euphorbiaceae","native",9,null,"FAC","Darlington's Glade Spurge"]
["Euphorbia segetalis","Euphorbiaceae","non-native",0,null,"---","---"]
["Euphorbia spathulata","Euphorbiaceae","native",5,null,"FACU","Warty Spurge"]
["Eurybia divaricata","Asteraceae","native",5,null,"---","---"]
["Eurybia macrophylla","Asteraceae","native",6,null,"UPL","Large-Leaf Wood-Aster"]
["Eurybia radula","Asteraceae","native",9,null,"OBL","Rough Wood-Aster"]
["Eurybia schreberi","Asteraceae","native",6,null,"---","---"]
["Eustachys petraea","Poaceae","non-native",0,null,"FACU","Pinewoods Finger Grass"]
["Euthamia caroliniana","Asteraceae","native",4,null,"FAC","Slender Goldentop"]
["Euthamia graminifolia","Asteraceae","native",3,null,"FAC","Flat-Top Goldentop"]
["Exochorda racemosa","Rosaceae","non-native",0,null,"---","---"]
["Fagopyrum esculentum","Polygonaceae","non-native",0,null,"---","---"]
["Fagus grandifolia","Fagaceae","native",6,null,"FACU","American Beech"]
["Falcaria vulgaris","Euphorbiaceae","non-native",0,null,"---","---"]
["Fallopia convolvulus","Polygonaceae","non-native",0,null,"FACU","Black-Bindweed"]
["Fallopia dumetorum","Polygonaceae","non-native",0,null,"FACU","Corpse Black-Bindweed"]
["Fallopia japonica","Polygonaceae","non-native",0,null,"---","---"]
["Fallopia scandens","Polygonaceae","native",2,null,"FAC","Climbing Black-Bindweed"]
["Fallopia scandens var. cristatum","Polygonaceae","native",6,null,"---","---"]
["Fatoua villosa","Moraceae","non-native",0,null,"FAC","Hairy Crabweed"]
["Festuca brevipila","Poaceae","non-native",0,null,"---","---"]
["Festuca filiformis","Poaceae","non-native",0,null,"---","---"]
["Festuca ovina","Poaceae","non-native",0,null,"UPL","Sheep Fescue"]
["Festuca paradoxa","Poaceae","native",9,null,"FAC","Clustered Fescue"]
["Festuca rubra","Poaceae","native",4,null,"FACU","Red Fescue"]
["Festuca subverticillata","Poaceae","native",6,null,"FACU","Nodding Fescue"]
["Ficaria verna","Ranunculaceae","non-native",0,null,"FAC","Eurasian-Buttercup"]
["Ficus carica","Moraceae","non-native",0,null,"FACU","Common Fig"]
["Filago vulgaris","Asteraceae","non-native",0,null,"---","---"]
["Filipendula rubra","Rosaceae","native",3,null,"FACW","Queen-of-the-Prairie"]
["Fimbristylis annua","Cyperaceae","native",8,null,"FACW","Annual Fimbry"]
["Fimbristylis autumnalis","Cyperaceae","native",4,null,"FACW","Slender Fimbry"]
["Fimbristylis castanea","Cyperaceae","native",8,null,"OBL","Marsh Fimbry"]
["Fimbristylis perpusilla","Cyperaceae","native",10,null,"OBL","Harper's Fimbry"]
["Fimbristylis puberula","Cyperaceae","native",10,null,"OBL","Hairy Fimbry"]
["Firmiana simplex","Sterculiaceae","non-native",0,null,"---","---"]
["Fleischmannia incarnata","Asteraceae","native",7,null,"FAC","Pink Slender-Thoroughwort"]
["Floerkea proserpinacoides","Limnanthaceae","native",5,null,"FAC","False Mermaidweed"]
["Foeniculum vulgare","Apiaceae","non-native",0,null,"---","---"]
["Forsythia suspensa","Oleaceae","non-native",0,null,"---","---"]
["Forsythia viridissima","Oleaceae","non-native",0,null,"---","---"]
["Fragaria vesca","Rosaceae","non-native",0,null,"FACU","Woodland Strawberry"]
["Fragaria vesca ssp. americana","Rosaceae","native",7,null,"---","---"]
["Fragaria virginiana","Rosaceae","native",2,null,"FACU","Virginia Strawberry"]
["Fragaria X ananassa","Rosaceae","non-native",0,null,"---","---"]
["Frangula alnus","Rhamnaceae","non-native",0,null,"FAC","Glossy False Buckthorn"]
["Fraxinus americana","Oleaceae","native",5,null,"FACU","White Ash"]
["Fraxinus nigra","Oleaceae","native",9,null,"FACW","Black Ash"]
["Fraxinus pennsylvanica","Oleaceae","native",5,null,"FACW","Green Ash"]
["Fraxinus profunda","Oleaceae","native",9,null,"OBL","Pumpkin Ash"]
["Fumaria officinalis","Fumariaceae","non-native",0,null,"---","---"]
["Fumaria parviflora","Fumariaceae","non-native",0,null,"---","---"]
["Gaillardia X grandiflora","Asteraceae","non-native",0,null,"---","---"]
["Galactia regularis","Fabaceae","native",8,null,"---","---"]
["Galactia volubilis","Fabaceae","native",8,null,"FACU","Downy Milk-Pea"]
["Galanthus nivalis","Liliaceae","non-native",0,null,"---","---"]
["Galearis spectabilis","Orchidaceae","native",7,null,"---","---"]
["Galega officinalis","Fabaceae","non-native",0,null,"---","---"]
["Galeopsis ladanum","Lamiaceae","non-native",0,null,"---","---"]
["Galeopsis tetrahit","Lamiaceae","non-native",0,null,"FACU","Brittle-Stem Hemp-Nettle"]
["Galinsoga parviflora","Asteraceae","non-native",0,null,"UPL","Gallant-Soldier"]
["Galinsoga quadriradiata","Asteraceae","non-native",0,null,"FACU","Shaggy-Soldier"]
["Galium aparine","Rubiaceae","native",2,null,"FACU","Sticky-Willy"]
["Galium asprellum","Rubiaceae","native",7,null,"OBL","Rough Bedstraw"]
["Galium circaezans","Rubiaceae","native",6,null,"UPL","Licorice Bedstraw"]
["Galium circaezans var. hypomalacum","Rubiaceae","native",6,null,"---","---"]
["Galium concinnum","Rubiaceae","native",8,null,"UPL","Shining Bedstraw"]
["Galium divaricatum","Rubiaceae","non-native",0,null,"FAC","Lamarck's Bedstraw"]
["Galium lanceolatum","Rubiaceae","native",8,null,"---","---"]
["Galium latifolium","Rubiaceae","native",8,null,"---","---"]
["Galium mollugo","Rubiaceae","non-native",0,null,"FACU","White Bedstraw"]
["Galium obtusum","Rubiaceae","native",6,null,"FACW","Blunt-Leaf Bedstraw"]
["Galium obtusum ssp. filifolium","Rubiaceae","native",6,null,"---","---"]
["Galium odoratum","Rubiaceae","non-native",0,null,"---","---"]
["Galium palustre","Rubiaceae","native",8,null,"OBL","Common Marsh Bedstraw"]
["Galium pilosum","Rubiaceae","native",6,null,"---","---"]
["Galium tinctorium","Rubiaceae","native",4,null,"OBL","Stiff Marsh Bedstraw"]
["Galium triflorum","Rubiaceae","native",5,null,"FACU","Fragrant Bedstraw"]
["Galium verum","Rubiaceae","non-native",0,null,"---","---"]
["Galium verum var. wirtgenii","Rubiaceae","non-native",0,null,"---","---"]
["Gamochaeta purpurea","Asteraceae","native",1,null,"UPL","Spoon-Leaf Purple Everlasting"]
["Gaultheria procumbens","Ericaceae","native",8,null,"FACU","Eastern Teaberry"]
["Gaylussacia baccata","Ericaceae","native",8,null,"FACU","Black Huckleberry"]
["Gaylussacia brachycera","Ericaceae","native",9,null,"---","---"]
["Gaylussacia dumosa","Ericaceae","native",9,null,"FAC","Southern Dwarf Huckleberry"]
["Gaylussacia frondosa","Ericaceae","native",8,null,"FAC","Blue Huckleberry"]
["Gentiana andrewsii","Gentianaceae","native",8,null,"FACW","Closed Bottle Gentian"]
["Gentiana catesbaei","Gentianaceae","native",6,null,"OBL","Elliott's Gentian"]
["Gentiana clausa","Gentianaceae","native",8,null,"FACW","Bottle Gentian"]
["Gentiana decora","Gentianaceae","native",6,null,"---","---"]
["Gentiana saponaria","Gentianaceae","native",6,null,"FACW","Harvestbells"]
["Gentiana villosa","Gentianaceae","native",9,null,"---","---"]
["Gentianella quinquefolia","Gentianaceae","native",8,null,"FAC","Agueweed"]
["Gentianopsis crinita","Gentianaceae","native",10,null,"OBL","Greater Fringed-Gentian"]
["Geranium bicknellii","Geraniaceae","native",2,null,"---","---"]
["Geranium carolinianum","Geraniaceae","native",1,null,"---","---"]
["Geranium columbinum","Geraniaceae","non-native",0,null,"---","---"]
["Geranium dissectum","Geraniaceae","non-native",0,null,"---","---"]
["Geranium maculatum","Geraniaceae","native",5,null,"FACU","Spotted Crane's-Bill"]
["Geranium molle","Geraniaceae","non-native",0,null,"---","---"]
["Geranium pusillum","Geraniaceae","non-native",0,null,"---","---"]
["Geranium robertianum","Geraniaceae","native",4,null,"FACU","Lesser Herbrobert"]
["Geranium sanguineum","Geraniaceae","non-native",0,null,"---","---"]
["Geranium sibiricum","Geraniaceae","non-native",0,null,"---","---"]
["Geranium versicolor","Geraniaceae","non-native",0,null,"---","---"]
["Geum aleppicum","Rosaceae","native",9,null,"FAC","Yellow Avens"]
["Geum canadense","Rosaceae","native",3,null,"FACU","White Avens"]
["Geum laciniatum","Rosaceae","native",5,null,"FAC","Rough Avens"]
["Geum vernum","Rosaceae","native",1,null,"FACU","Spring Avens"]
["Geum virginianum","Rosaceae","native",6,null,"FAC","Cream Avens"]
["Gillenia stipulata","Rosaceae","native",9,null,"---","---"]
["Gillenia trifoliata","Rosaceae","native",9,null,"---","---"]
["Ginkgo biloba","Ginkgoaceae","non-native",0,null,"---","---"]
["Gladiolus X gandavensis","Iridaceae","non-native",0,null,"---","---"]
["Glandularia canadensis","Verbenaceae","non-native",0,null,"---","---"]
["Glaucium flavum","Papaveraceae","non-native",0,null,"---","---"]
["Glebionis segetum","Asteraceae","non-native",0,null,"---","---"]
["Glechoma hederacea","Lamiaceae","non-native",0,null,"FACU","Groundivy"]
["Gleditsia triacanthos","Fabaceae","native",6,null,"FAC","Honey-Locust"]
["Glossostigma cleistanthum","Scrophulariaceae","non-native",0,null,"OBL","Mudmats"]
["Glyceria acutiflora","Poaceae","native",8,null,"OBL","Creeping Manna Grass"]
["Glyceria canadensis","Poaceae","native",8,null,"OBL","Rattlesnake Manna Grass"]
["Glyceria grandis","Poaceae","native",8,null,"OBL","American Manna Grass"]
["Glyceria laxa","Poaceae","native",8,null,"FACW","Limp Manna Grass"]
["Glyceria melicaria","Poaceae","native",7,null,"OBL","Melic Manna Grass"]
["Glyceria obtusa","Poaceae","native",7,null,"OBL","Atlantic Manna Grass"]
["Glyceria septentrionalis","Poaceae","native",7,null,"OBL","Floating Manna Grass"]
["Glyceria striata","Poaceae","native",5,null,"OBL","Fowl Manna Grass"]
["Glycine max","Fabaceae","non-native",0,null,"---","---"]
["Glycyrrhiza lepidota","Fabaceae","non-native",0,null,"UPL","American Licorice"]
["Gnaphalium uliginosum","Asteraceae","non-native",0,null,"FAC","Marsh Cudweed"]
["Gomphrena globosa","Amaranthaceae","non-native",0,null,"UPL","Common Globe-Amaranth"]
["Goodyera pubescens","Orchidaceae","native",7,null,"FACU","Downy Rattlesnake-Plantain"]
["Goodyera repens","Orchidaceae","native",10,null,"FACU","Dwarf Rattlesnake-Plantain"]
["Gossypium hirsutum","Malvaceae","non-native",0,null,"FACU","Upland Cotton"]
["Gratiola virginiana","Scrophulariaceae","native",5,null,"OBL","Round-Fruit Hedge-Hyssop"]
["Grewia biloba","Tiliaceae","non-native",0,null,"---","---"]
["Grindelia squarrosa","Asteraceae","non-native",0,null,"FACU","Curly-Cup Gumweed"]
["Grindelia squarrosa var. serrulata","Asteraceae","non-native",0,null,"---","---"]
["Guizotia abyssinica","Asteraceae","non-native",0,null,"---","---"]
["Gymnocarpium appalachianum","Dryopteridaceae","native",10,null,"---","---"]
["Gymnocarpium dryopteris","Dryopteridaceae","native",10,null,"UPL","Northern Oak Fern"]
["Gymnopogon ambiguus","Poaceae","native",6,null,"---","---"]
["Gymnopogon brevifolius","Poaceae","native",6,null,"FACU","Short-Leaf Skeleton Grass"]
["Gypsophila muralis","Caryophyllaceae","non-native",0,null,"---","---"]
["Hackelia virginiana","Boraginaceae","native",3,null,"FACU","Beggar's-Lice"]
["Hamamelis virginiana","Hamamelidaceae","native",5,null,"FACU","American Witch-Hazel"]
["Hasteola suaveolens","Asteraceae","native",9,null,"---","---"]
["Hedeoma hispida","Lamiaceae","non-native",0,null,"---","---"]
["Hedeoma pulegioides","Lamiaceae","native",2,null,"---","---"]
["Hedera helix","Araliaceae","non-native",0,null,"FACU","English Ivy"]
["Helenium amarum","Asteraceae","native",1,null,"FACU","Yellowdicks"]
["Helenium autumnale","Asteraceae","native",5,null,"FACW","Fall Sneezeweed"]
["Helenium brevifolium","Asteraceae","native",9,null,"OBL","Short-Leaf Sneezeweed"]
["Helenium flexuosum","Asteraceae","native",5,null,"FAC","Purple-Head Sneezeweed"]
["Helenium quadridentatum","Asteraceae","non-native",0,null,"---","---"]
["Helianthemum bicknellii","Cistaceae","native",10,null,"---","---"]
["Helianthemum canadense","Cistaceae","native",8,null,"---","---"]
["Helianthemum propinquum","Cistaceae","native",8,null,"---","---"]
["Helianthus annuus","Asteraceae","non-native",0,null,"FAC","Common Sunflower"]
["Helianthus debilis","Asteraceae","non-native",0,null,"UPL","Cucumber-Leaf Sunflower"]
["Helianthus decapetalus","Asteraceae","native",5,null,"FACU","Thin-Leaf Sunflower"]
["Helianthus divaricatus","Asteraceae","native",7,null,"---","---"]
["Helianthus giganteus","Asteraceae","native",3,null,"FACW","Giant Sunflower"]
["Helianthus grosseserratus","Asteraceae","non-native",0,null,"FACW","Saw-Tooth Sunflower"]
["Helianthus hirsutus","Asteraceae","native",3,null,"---","---"]
["Helianthus laevigatus","Asteraceae","native",8,null,"---","---"]
["Helianthus maximiliani","Asteraceae","non-native",0,null,"UPL","Maximilian Sunflower"]
["Helianthus microcephalus","Asteraceae","native",3,null,"UPL","Small Woodland Sunflower"]
["Helianthus mollis","Asteraceae","non-native",0,null,"---","---"]
["Helianthus occidentalis","Asteraceae","native",8,null,"UPL","Few-Leaf Sunflower"]
["Helianthus pauciflorus","Asteraceae","non-native",0,null,"---","---"]
["Helianthus petiolaris","Asteraceae","non-native",0,null,"---","---"]
["Helianthus strumosus","Asteraceae","native",6,null,"FACU","Pale-Leaf Woodland Sunflower"]
["Helianthus tuberosus","Asteraceae","native",3,null,"FACU","Jerusalem-Artichoke"]
["Heliopsis helianthoides","Asteraceae","native",5,null,"FACU","Smooth Oxeye"]
["Heliopsis helianthoides var. scabra","Asteraceae","native",5,null,"---","---"]
["Heliotropium amplexicaule","Boraginaceae","non-native",0,null,"---","---"]
["Heliotropium curassavicum","Boraginaceae","non-native",0,null,"OBL","Seaside Heliotrope"]
["Heliotropium europaeum","Boraginaceae","non-native",0,null,"---","---"]
["Heliotropium indicum","Boraginaceae","non-native",0,null,"FAC","Indian Heliotrope"]
["Heliotropium ramosissimum","Boraginaceae","non-native",0,null,"---","---"]
["Heliotropium supinum","Boraginaceae","non-native",0,null,"FACU","Dwarf Heliotrope"]
["Helleborus viridis","Ranunculaceae","non-native",0,null,"---","---"]
["Helminthotheca echioides","Asteraceae","non-native",0,null,"UPL","Akan Asante"]
["Helonias bullata","Liliaceae","native",10,null,"OBL","Swamp-Pink"]
["Hemarthria altissima","Poaceae","non-native",0,null,"FACW","Limpo Grass"]
["Hemerocallis fulva","Liliaceae","non-native",0,null,"FACU","Orange Day-Lily"]
["Hemerocallis lilioasphodelus","Liliaceae","non-native",0,null,"---","---"]
["Hepatica nobilis","Ranunculaceae","native",8,null,"---","---"]
["Heracleum maximum","Apiaceae","native",5,null,"FAC","American Cow-Parsnip"]
["Herniaria glabra","Caryophyllaceae","non-native",0,null,"---","---"]
["Herniaria hirsuta","Caryophyllaceae","non-native",0,null,"---","---"]
["Herniaria hirsuta ssp. cinerea","Caryophyllaceae","non-native",0,null,"---","---"]
["Hesperis matronalis","Brassicaceae","non-native",0,null,"FACU","Mother-of-the-Evening"]
["Heteranthera dubia","Pontederiaceae","native",4,null,"OBL","Grass-Leaf Mud-Plantain"]
["Heteranthera multiflora","Pontederiaceae","native",6,null,"---","---"]
["Heteranthera reniformis","Pontederiaceae","native",6,null,"OBL","Kidney-Leaf Mud-Plantain"]
["Heterotheca subaxillaris","Asteraceae","native",1,null,"---","---"]
["Heuchera americana","Saxifragaceae","native",6,null,"FACU","American Alumroot"]
["Heuchera pubescens","Saxifragaceae","native",8,null,"---","---"]
["Heuchera sanguinea","Saxifragaceae","non-native",0,null,"---","---"]
["Heuchera villosa","Saxifragaceae","native",9,null,"---","---"]
["Hexalectris spicata","Orchidaceae","native",10,null,"UPL","Spiked Crested-Coralroot"]
["Hexastylis arifolia","Aristolochiaceae","native",7,null,"FAC","Little-Brown-Jug"]
["Hexastylis lewisii","Aristolochiaceae","native",8,null,"---","---"]
["Hexastylis minor","Aristolochiaceae","native",7,null,"---","---"]
["Hexastylis shuttleworthii","Aristolochiaceae","native",8,null,"FACU","Large-Flower Heartleaf"]
["Hexastylis virginica","Aristolochiaceae","native",7,null,"FACU","Virginia Heartleaf"]
["Hibiscus moscheutos","Malvaceae","native",5,null,"OBL","Crimson-Eyed Rose-Mallow"]
["Hibiscus syriacus","Malvaceae","non-native",0,null,"---","---"]
["Hibiscus trionum","Malvaceae","non-native",0,null,"---","---"]
["Hieracium aurantiacum","Asteraceae","non-native",0,null,"---","---"]
["Hieracium caespitosum","Asteraceae","non-native",0,null,"---","---"]
["Hieracium greenii","Asteraceae","native",8,null,"FACU","Green's Hawkweed"]
["Hieracium gronovii","Asteraceae","native",5,null,"UPL","Queendevil"]
["Hieracium kalmii","Asteraceae","native",6,null,"---","---"]
["Hieracium lachenalii","Asteraceae","non-native",0,null,"---","---"]
["Hieracium murorum","Asteraceae","non-native",0,null,"---","---"]
["Hieracium paniculatum","Asteraceae","native",5,null,"---","---"]
["Hieracium pilosella","Asteraceae","non-native",0,null,"---","---"]
["Hieracium piloselloides","Asteraceae","non-native",0,null,"---","---"]
["Hieracium sabaudum","Asteraceae","non-native",0,null,"---","---"]
["Hieracium scabrum","Asteraceae","native",5,null,"---","---"]
["Hieracium venosum","Asteraceae","native",7,null,"---","---"]
["Hieracium X flagellare","Asteraceae","non-native",0,null,"---","---"]
["Hieracium X floribundum","Asteraceae","non-native",0,null,"---","---"]
["Hierochloe odorata","Poaceae","native",10,null,"---","---"]
["Hippocrepis comosa","Fabaceae","non-native",0,null,"---","---"]
["Holcus lanatus","Poaceae","non-native",0,null,"FAC","Common Velvet Grass"]
["Holcus mollis","Poaceae","non-native",0,null,"FACU","Creeping Velvet Grass"]
["Holosteum umbellatum","Caryophyllaceae","non-native",0,null,"---","---"]
["Hordeum brachyantherum","Poaceae","non-native",0,null,"FAC","Meadow Barley"]
["Hordeum jubatum","Poaceae","non-native",0,null,"FAC","Fox-Tail Barley"]
["Hordeum marinum","Poaceae","non-native",0,null,"FACU","Seaside Barley"]
["Hordeum marinum ssp. gussonianum","Poaceae","non-native",0,null,"---","---"]
["Hordeum murinum","Poaceae","non-native",0,null,"UPL","Wall Barley"]
["Hordeum murinum ssp. leporinum","Poaceae","non-native",0,null,"---","---"]
["Hordeum pusillum","Poaceae","native",0,null,"FAC","Little Barley"]
["Hordeum vulgare","Poaceae","non-native",0,null,"---","---"]
["Hosta lancifolia","Liliaceae","non-native",0,null,"---","---"]
["Hosta plantaginea","Liliaceae","non-native",0,null,"---","---"]
["Hosta ventricosa","Liliaceae","non-native",0,null,"---","---"]
["Hottonia inflata","Primulaceae","native",9,null,"OBL","American Featherfoil"]
["Houstonia caerulea","Rubiaceae","native",3,null,"FACU","Quaker-Ladies"]
["Houstonia longifolia","Rubiaceae","native",9,null,"---","---"]
["Houstonia purpurea","Rubiaceae","native",7,null,"---","---"]
["Houstonia pusilla","Rubiaceae","native",2,null,"FAC","Tiny Bluet"]
["Houttuynia cordata","Saururaceae","non-native",0,null,"FAC","Chameleon"]
["Humulus japonicus","Cannabaceae","non-native",0,null,"FACU","Japanese Hop"]
["Humulus lupulus","Cannabaceae","non-native",0,null,"FACU","Common Hop"]
["Huperzia appressa","Lycopodiaceae","native",10,null,"---","---"]
["Huperzia lucidula","Lycopodiaceae","native",8,null,"FACW","Shining Fir-Moss"]
["Huperzia porophila","Lycopodiaceae","native",9,null,"FACU","Rock Fir-Moss"]
["Hyacinthoides hispanica","Liliaceae","non-native",0,null,"---","---"]
["Hyacinthus orientalis","Liliaceae","non-native",0,null,"---","---"]
["Hybanthus concolor","Violaceae","native",8,null,"FACU","Eastern Green-Violet"]
["Hydrangea arborescens","Hydrangeaceae","native",6,null,"FACU","Wild Hydrangea"]
["Hydrangea paniculata","Hydrangeaceae","non-native",0,null,"FAC","Panicled Hydrangea"]
["Hydrastis canadensis","Ranunculaceae","native",8,null,"---","---"]
["Hydrilla verticillata","Hydrocharitaceae","non-native",0,null,"OBL","Water-Thyme"]
["Hydrocotyle americana","Apiaceae","native",7,null,"OBL","American Marsh-Pennywort"]
["Hydrocotyle ranunculoides","Apiaceae","native",5,null,"OBL","Floating Marsh-Pennywort"]
["Hydrocotyle sibthorpioides","Apiaceae","non-native",0,null,"FACW","Lawn Marsh-Pennywort"]
["Hydrocotyle umbellata","Apiaceae","native",6,null,"OBL","Many-Flower Marsh-Pennywort"]
["Hydrophyllum canadense","Hydrophyllaceae","native",6,null,"FACU","Blunt-Leaf Waterleaf"]
["Hydrophyllum virginianum","Hydrophyllaceae","native",6,null,"FAC","Shawnee-Salad"]
["Hylotelephium erythrostictum","Crassulaceae","non-native",0,null,"---","---"]
["Hylotelephium telephioides","Crassulaceae","native",10,null,"---","---"]
["Hylotelephium telephium","Crassulaceae","non-native",0,null,"---","---"]
["Hyoscyamus albus","Solanaceae","non-native",0,null,"---","---"]
["Hyoscyamus niger","Solanaceae","non-native",0,null,"---","---"]
["Hypericum adpressum","Clusiaceae","native",9,null,"OBL","Creeping St. John's-Wort"]
["Hypericum ascyron","Clusiaceae","native",10,null,"FAC","Great St. John's-Wort"]
["Hypericum boreale","Clusiaceae","native",8,null,"OBL","Northern St. John's-Wort"]
["Hypericum canadense","Clusiaceae","native",8,null,"FACW","Lesser Canadian St. John's-Wort"]
["Hypericum densiflorum","Clusiaceae","native",7,null,"FACW","Bushy St. John's-Wort"]
["Hypericum ellipticum","Clusiaceae","native",8,null,"OBL","Pale St. John's-Wort"]
["Hypericum gentianoides","Clusiaceae","native",2,null,"UPL","Orange-Grass"]
["Hypericum majus","Clusiaceae","native",10,null,"FACW","Greater Canadian St. John's-Wort"]
["Hypericum mutilum","Clusiaceae","native",3,null,"FACW","Dwarf St. John's-Wort"]
["Hypericum nudiflorum","Clusiaceae","native",6,null,"FACW","Early St. John's-Wort"]
["Hypericum perforatum","Clusiaceae","non-native",0,null,"FAC","Common St. John's-Wort"]
["Hypericum prolificum","Clusiaceae","native",5,null,"FACU","Shrubby St. John's-Wort"]
["Hypericum punctatum","Clusiaceae","native",2,null,"FAC","Spotted St. John's-Wort"]
["Hypericum setosum","Clusiaceae","native",7,null,"OBL","Hairy St. John's-Wort"]
["Hypochaeris glabra","Asteraceae","non-native",0,null,"---","---"]
["Hypochaeris radicata","Asteraceae","non-native",0,null,"UPL","Hairy Cat's-Ear"]
["Hypoxis hirsuta","Liliaceae","native",7,null,"FAC","Eastern Yellow Star-Grass"]
["Hyptis mutabilis","Lamiaceae","non-native",0,null,"---","---"]
["Hyssopus officinalis","Lamiaceae","non-native",0,null,"---","---"]
["Iberis umbellata","Brassicaceae","non-native",0,null,"---","---"]
["Ilex crenata","Aquifoliaceae","non-native",0,null,"---","---"]
["Ilex decidua","Aquifoliaceae","native",7,null,"FACW","Deciduous Holly"]
["Ilex glabra","Aquifoliaceae","native",7,null,"FAC","Inkberry"]
["Ilex laevigata","Aquifoliaceae","native",7,null,"OBL","Smooth Winterberry"]
["Ilex opaca","Aquifoliaceae","native",4,null,"FACU","American Holly"]
["Ilex verticillata","Aquifoliaceae","native",6,null,"FACW","Common Winterberry"]
["Iliamna rivularis","Malvaceae","non-native",0,null,"---","---"]
["Impatiens balsamina","Balsaminaceae","non-native",0,null,"UPL","Garden-Balsam"]
["Impatiens capensis","Balsaminaceae","native",3,null,"FACW","Spotted Touch-Me-Not"]
["Impatiens pallida","Balsaminaceae","native",4,null,"FACW","Pale Touch-Me-Not"]
["Inula helenium","Asteraceae","non-native",0,null,"FACU","Elecampane"]
["Ionactis linariifolius","Asteraceae","native",9,null,"---","---"]
["Ipomoea coccinea","Convolvulaceae","non-native",0,null,"FACU","Redstar"]
["Ipomoea hederacea","Convolvulaceae","non-native",0,null,"FACU","Ivy-Leaf Morning-Glory"]
["Ipomoea lacunosa","Convolvulaceae","native",0,null,"FACW","Whitestar"]
["Ipomoea pandurata","Convolvulaceae","native",4,null,"FACU","Man-of-the-Earth"]
["Ipomoea pes-caprae","Convolvulaceae","non-native",0,null,"FAC","Bay-Hops"]
["Ipomoea purpurea","Convolvulaceae","non-native",0,null,"UPL","Common Morning-Glory"]
["Ipomoea quamoclit","Convolvulaceae","non-native",0,null,"UPL","Cypress-Vine"]
["Ipomoea tricolor","Convolvulaceae","non-native",0,null,"---","---"]
["Ipomopsis rubra","Polemoniaceae","non-native",0,null,"---","---"]
["Iresine rhizomatosa","Amaranthaceae","native",8,null,"FACW","Juda's-Bush"]
["Iris cristata","Iridaceae","native",9,null,"---","---"]
["Iris domestica","Iridaceae","non-native",0,null,"---","---"]
["Iris ensata","Iridaceae","non-native",0,null,"---","---"]
["Iris flavescens","Iridaceae","non-native",0,null,"---","---"]
["Iris germanica","Iridaceae","non-native",0,null,"---","---"]
["Iris prismatica","Iridaceae","native",8,null,"OBL","Slender Blue Iris"]
["Iris pseudacorus","Iridaceae","non-native",0,null,"OBL","Pale-Yellow Iris"]
["Iris verna","Iridaceae","native",7,null,"---","---"]
["Iris verna var. smalliana","Iridaceae","native",7,null,"---","---"]
["Iris versicolor","Iridaceae","native",7,null,"OBL","Harlequin Blueflag"]
["Iris virginica","Iridaceae","native",5,null,"OBL","Virginia Blueflag"]
["Isatis tinctoria","Brassicaceae","non-native",0,null,"---","---"]
["Isoetes engelmannii","Isoetaceae","native",8,null,"OBL","Engelmann's Quillwort"]
["Isoetes melanopoda","Isoetaceae","native",7,null,"OBL","Black-Foot Quillwort"]
["Isoetes riparia","Isoetaceae","native",9,null,"OBL","Shore Quillwort"]
["Isoetes valida","Isoetaceae","native",8,null,"OBL","True Quillwort"]
["Isoetes virginica","Isoetaceae","native",8,null,"OBL","Virginia Quillwort"]
["Isotria medeoloides","Orchidaceae","native",9,null,"FACU","Green Five-Leaf Orchid"]
["Isotria verticillata","Orchidaceae","native",8,null,"FACU","Purple Five-Leaf Orchid"]
["Itea virginica","Grossulariaceae","native",7,null,"OBL","Virginia Sweetspire"]
["Iva annua","Asteraceae","non-native",0,null,"FAC","Annual Marsh-Elder"]
["Iva frutescens","Asteraceae","native",6,null,"FACW","Jesuit's-Bark"]
["Ixeris stolonifera","Asteraceae","non-native",0,null,"---","---"]
["Jasione montana","Campanulaceae","non-native",0,null,"---","---"]
["Jeffersonia diphylla","Berberidaceae","native",9,null,"---","---"]
["Juglans cinerea","Juglandaceae","native",7,null,"FACU","White Walnut"]
["Juglans nigra","Juglandaceae","native",4,null,"FACU","Black Walnut"]
["Juncus acuminatus","Juncaceae","native",3,null,"OBL","Knotty-Leaf Rush"]
["Juncus arcticus","Juncaceae","native",7,null,"---","---"]
["Juncus articulatus","Juncaceae","native",5,null,"OBL","Joint-Leaf Rush"]
["Juncus biflorus","Juncaceae","native",5,null,"---","---"]
["Juncus brachycarpus","Juncaceae","native",4,null,"FACW","White-Root Rush"]
["Juncus brachycephalus","Juncaceae","native",10,null,"OBL","Small-Head Rush"]
["Juncus brevicaudatus","Juncaceae","native",7,null,"OBL","Narrow-Panicle Rush"]
["Juncus bufonius","Juncaceae","native",1,null,"FACW","Toad Rush"]
["Juncus caesariensis","Juncaceae","native",9,null,"OBL","New Jersey Rush"]
["Juncus canadensis","Juncaceae","native",6,null,"OBL","Canadian Rush"]
["Juncus compressus","Juncaceae","non-native",0,null,"FACW","Round-Fruit Rush"]
["Juncus debilis","Juncaceae","native",5,null,"OBL","Weak Rush"]
["Juncus dichotomus","Juncaceae","native",4,null,"FACW","Forked Rush"]
["Juncus diffusissimus","Juncaceae","non-native",0,null,"FACW","Slim-Pod Rush"]
["Juncus dudleyi","Juncaceae","native",7,null,"FACW","Dudley's Rush"]
["Juncus effusus","Juncaceae","native",2,null,"FACW","Lamp Rush"]
["Juncus effusus var. pylaei","Juncaceae","native",2,null,"---","---"]
["Juncus effusus var. solutus","Juncaceae","native",2,null,"---","---"]
["Juncus elliottii","Juncaceae","native",9,null,"FACW","Elliott's Rush"]
["Juncus gerardii","Juncaceae","native",3,null,"FACW","Saltmarsh Rush"]
["Juncus gymnocarpus","Juncaceae","native",8,null,"OBL","Pennsylvania Rush"]
["Juncus longii","Juncaceae","native",8,null,"OBL","Long's Rush"]
["Juncus marginatus","Juncaceae","native",4,null,"FACW","Bog Rush"]
["Juncus nodosus","Juncaceae","native",4,null,"OBL","Knotted Rush"]
["Juncus repens","Juncaceae","native",5,null,"OBL","Lesser Creeping Rush"]
["Juncus scirpoides","Juncaceae","native",6,null,"FACW","Needle-Pod Rush"]
["Juncus secundus","Juncaceae","native",3,null,"FACU","Lopsided Rush"]
["Juncus subcaudatus","Juncaceae","native",6,null,"OBL","Woodland Rush"]
["Juncus tenuis","Juncaceae","native",1,null,"FAC","Lesser Poverty Rush"]
["Juncus torreyi","Juncaceae","native",1,null,"FACW","Torrey's Rush"]
["Juncus validus","Juncaceae","non-native",0,null,"FACW","Round-Head Rush"]
["Juniperus communis","Cupressaceae","native",8,null,"FACU","Common Juniper"]
["Juniperus virginiana","Cupressaceae","native",3,null,"FACU","Eastern Red-Cedar"]
["Justicia americana","Acanthaceae","native",9,null,"OBL","American Water-Willow"]
["Kallstroemia parviflora","Zygophyllaceae","non-native",0,null,"---","---"]
["Kalmia angustifolia","Ericaceae","native",8,null,"FAC","Sheep-Laurel"]
["Kalmia latifolia","Ericaceae","native",5,null,"FACU","Mountain-Laurel"]
["Kerria japonica","Rosaceae","non-native",0,null,"---","---"]
["Kickxia elatine","Scrophulariaceae","non-native",0,null,"FAC","Sharp-Leaf Cancerwort"]
["Kickxia spuria","Scrophulariaceae","non-native",0,null,"---","---"]
["Knautia arvensis","Dipsacaceae","non-native",0,null,"---","---"]
["Koelreuteria paniculata","Sapindaceae","non-native",0,null,"---","---"]
["Kosteletzkya virginica","Malvaceae","native",8,null,"---","---"]
["Krigia biflora","Asteraceae","native",5,null,"FACU","Two-Flower Dwarf-Dandelion"]
["Krigia caespitosa","Asteraceae","native",1,null,"FAC","Weedy Dwarf-Dandelion"]
["Krigia dandelion","Asteraceae","native",2,null,"FAC","Potato Dwarf-Dandelion"]
["Krigia virginica","Asteraceae","native",2,null,"UPL","Virginia Dwarf-Dandelion"]
["Kummerowia stipulacea","Fabaceae","non-native",0,null,"FACU","Korean-Clover"]
["Kummerowia striata","Fabaceae","non-native",0,null,"FACU","Japanese-Clover"]
["Kyllinga gracillima","Cyperaceae","native",0,null,"FACU","Pasture Spike Sedge"]
["Kyllinga pumila","Cyperaceae","native",0,null,"FACW","Low Spike Sedge"]
["Lablab purpureus","Fabaceae","non-native",0,null,"---","---"]
["Lachnocaulon anceps","Eriocaulaceae","native",8,null,"OBL","White-Head Bogbutton"]
["Lactuca biennis","Asteraceae","native",2,null,"FACU","Wild Blue Lettuce"]
["Lactuca canadensis","Asteraceae","native",3,null,"FACU","Canadian Blue Lettuce"]
["Lactuca floridana","Asteraceae","native",3,null,"FACU","Woodland Lettuce"]
["Lactuca floridana var. villosa","Asteraceae","native",3,null,"---","---"]
["Lactuca hirsuta","Asteraceae","native",5,null,"---","---"]
["Lactuca hirsuta var. sanguinea","Asteraceae","native",5,null,"---","---"]
["Lactuca saligna","Asteraceae","non-native",0,null,"UPL","Willow-Leaf Lettuce"]
["Lactuca sativa","Asteraceae","non-native",0,null,"---","---"]
["Lactuca serriola","Asteraceae","non-native",0,null,"FAC","Prickly Lettuce"]
["Lagenaria siceraria","Cucurbitaceae","non-native",0,null,"---","---"]
["Lamiastrum galeobdolon","Lamiaceae","non-native",0,null,"---","---"]
["Lamium album","Lamiaceae","non-native",0,null,"---","---"]
["Lamium amplexicaule","Lamiaceae","non-native",0,null,"---","---"]
["Lamium maculatum","Lamiaceae","non-native",0,null,"---","---"]
["Lamium purpureum","Lamiaceae","non-native",0,null,"---","---"]
["Lamium purpureum var. incisum","Lamiaceae","non-native",0,null,"---","---"]
["Lamprocapnos spectabilis","Fumariaceae","non-native",0,null,"---","---"]
["Landoltia punctata","Lemnaceae","non-native",0,null,"OBL","Dotted Duckmeat"]
["Laportea canadensis","Urticaceae","native",5,null,"FAC","Canadian Wood-Nettle"]
["Lappula marginata","Boraginaceae","non-native",0,null,"---","---"]
["Lappula occidentalis","Boraginaceae","non-native",0,null,"---","---"]
["Lappula squarrosa","Boraginaceae","non-native",0,null,"---","---"]
["Lapsana communis","Asteraceae","non-native",0,null,"FACU","Common Nipplewort"]
["Larix decidua","Pinaceae","non-native",0,null,"---","---"]
["Lathyrus aphaca","Fabaceae","non-native",0,null,"---","---"]
["Lathyrus hirsutus","Fabaceae","non-native",0,null,"FAC","Singletary Vetchling"]
["Lathyrus latifolius","Fabaceae","non-native",0,null,"---","---"]
["Lathyrus odoratus","Fabaceae","non-native",0,null,"---","---"]
["Lathyrus palustris","Fabaceae","native",9,null,"FACW","Marsh Vetchling"]
["Lathyrus pusillus","Fabaceae","native",2,null,"FAC","Tiny Vetchling"]
["Lathyrus tuberosus","Fabaceae","non-native",0,null,"---","---"]
["Lathyrus venosus","Fabaceae","native",8,null,"FACW","Veiny Vetchling"]
["Lechea intermedia","Cistaceae","native",8,null,"---","---"]
["Lechea minor","Cistaceae","native",8,null,"---","---"]
["Lechea mucronata","Cistaceae","native",8,null,"---","---"]
["Lechea pulchella","Cistaceae","native",5,null,"---","---"]
["Lechea racemulosa","Cistaceae","native",6,null,"---","---"]
["Lechea tenuifolia","Cistaceae","native",5,null,"---","---"]
["Leersia hexandra","Poaceae","native",10,null,"OBL","Southern Cut Grass"]
["Leersia lenticularis","Poaceae","native",7,null,"OBL","Catchfly Grass"]
["Leersia oryzoides","Poaceae","native",3,null,"OBL","Rice Cut Grass"]
["Leersia virginica","Poaceae","native",3,null,"FACW","White Grass"]
["Legousia speculum-veneris","Campanulaceae","non-native",0,null,"---","---"]
["Lemna minor","Lemnaceae","native",4,null,"OBL","Common Duckweed"]
["Lemna minuta","Lemnaceae","native",5,null,"OBL","Least Duckweed"]
["Lemna obscura","Lemnaceae","native",5,null,"OBL","Little Duckweed"]
["Lemna perpusilla","Lemnaceae","native",5,null,"OBL","Minute Duckweed"]
["Lemna trisulca","Lemnaceae","native",7,null,"OBL","Ivy-Leaf Duckweed"]
["Lemna valdiviana","Lemnaceae","native",5,null,"OBL","Pale Duckweed"]
["Leontodon taraxacoides","Asteraceae","non-native",0,null,"---","---"]
["Leonurus cardiaca","Lamiaceae","non-native",0,null,"---","---"]
["Leonurus sibiricus","Lamiaceae","non-native",0,null,"---","---"]
["Lepidium campestre","Brassicaceae","non-native",0,null,"---","---"]
["Lepidium densiflorum","Brassicaceae","non-native",0,null,"FAC","Miner's Pepperwort"]
["Lepidium graminifolium","Brassicaceae","non-native",0,null,"---","---"]
["Lepidium heterophyllum","Brassicaceae","non-native",0,null,"---","---"]
["Lepidium perfoliatum","Brassicaceae","non-native",0,null,"UPL","Clasping Pepperwort"]
["Lepidium ruderale","Brassicaceae","non-native",0,null,"---","---"]
["Lepidium sativum","Brassicaceae","non-native",0,null,"---","---"]
["Lepidium virginicum","Brassicaceae","native",0,null,"FACU","Poorman's-Pepperwort"]
["Leptochloa fusca","Poaceae","native",1,null,"---","---"]
["Leptochloa panicea","Poaceae","non-native",0,null,"---","---"]
["Lespedeza bicolor","Fabaceae","non-native",0,null,"---","---"]
["Lespedeza capitata","Fabaceae","native",3,null,"FACU","Round-Head Bush-Clover"]
["Lespedeza cuneata","Fabaceae","non-native",0,null,"FACU","Chinese Bush-Clover"]
["Lespedeza frutescens","Fabaceae","native",5,null,"---","---"]
["Lespedeza hirta","Fabaceae","native",7,null,"---","---"]
["Lespedeza procumbens","Fabaceae","native",6,null,"---","---"]
["Lespedeza repens","Fabaceae","native",5,null,"---","---"]
["Lespedeza stuevei","Fabaceae","native",5,null,"---","---"]
["Lespedeza thunbergii","Fabaceae","non-native",0,null,"---","---"]
["Lespedeza violacea","Fabaceae","native",7,null,"---","---"]
["Lespedeza virginica","Fabaceae","native",4,null,"---","---"]
["Leucanthemum vulgare","Asteraceae","non-native",0,null,"UPL","Ox-Eye Daisy"]
["Leucojum aestivum","Liliaceae","non-native",0,null,"---","---"]
["Leucospora multifida","Scrophulariaceae","non-native",0,null,"OBL","Narrow-Leaf Paleseed"]
["Leucothoe fontanesiana","Ericaceae","native",8,null,"FACW","Highland Doghobble"]
["Liatris aspera","Asteraceae","native",8,null,"---","---"]
["Liatris aspera var. intermedia","Asteraceae","native",8,null,"---","---"]
["Liatris pilosa","Asteraceae","native",8,null,"---","---"]
["Liatris pycnostachya","Asteraceae","non-native",0,null,"FACU","Cat-Tail Gayfeather"]
["Liatris scariosa","Asteraceae","native",7,null,"FACU","Devil's-Bite"]
["Liatris spicata","Asteraceae","native",7,null,"FAC","Dense Gayfeather"]
["Liatris squarrosa","Asteraceae","native",7,null,"---","---"]
["Liatris turgida","Asteraceae","native",9,null,"---","---"]
["Ligusticum canadense","Apiaceae","native",7,null,"FAC","Canadian Wild Lovage"]
["Ligustrum amurense","Oleaceae","non-native",0,null,"---","---"]
["Ligustrum japonicum","Oleaceae","non-native",0,null,"UPL","Japanese Privet"]
["Ligustrum obtusifolium","Oleaceae","non-native",0,null,"---","---"]
["Ligustrum ovalifolium","Oleaceae","non-native",0,null,"---","---"]
["Ligustrum sinense","Oleaceae","non-native",0,null,"FACU","Chinese Privet"]
["Ligustrum vulgare","Oleaceae","non-native",0,null,"FACU","European Privet"]
["Lilaeopsis chinensis","Apiaceae","native",8,null,"OBL","Eastern Grasswort"]
["Lilium canadense","Liliaceae","native",6,null,"FAC","Canadian Lily"]
["Lilium lancifolium","Liliaceae","non-native",0,null,"---","---"]
["Lilium michauxii","Liliaceae","native",10,null,"FAC","Carolina Lily"]
["Lilium philadelphicum","Liliaceae","native",8,null,"FACU","Wood Lily"]
["Lilium superbum","Liliaceae","native",6,null,"FACW","Turk's-Cap Lily"]
["Limosella australis","Scrophulariaceae","native",10,null,"OBL","Welsh Mudwort"]
["Linaria dalmatica","Scrophulariaceae","non-native",0,null,"---","---"]
["Linaria maroccana","Scrophulariaceae","non-native",0,null,"---","---"]
["Linaria supina","Scrophulariaceae","non-native",0,null,"---","---"]
["Linaria vulgaris","Scrophulariaceae","non-native",0,null,"---","---"]
["Lindera benzoin","Lauraceae","native",5,null,"FAC","Northern Spicebush"]
["Lindernia dubia","Scrophulariaceae","native",4,null,"OBL","Yellow-Seed False Pimpernel"]
["Lindernia dubia var. anagallidea","Scrophulariaceae","native",4,null,"---","---"]
["Linum bienne","Linaceae","non-native",0,null,"---","---"]
["Linum catharticum","Linaceae","non-native",0,null,"---","---"]
["Linum intercursum","Linaceae","native",7,null,"FACU","Sandplain Flax"]
["Linum medium","Linaceae","native",10,null,"FACU","Stiff Yellow Flax"]
["Linum medium var. texanum","Linaceae","native",5,null,"---","---"]
["Linum perenne","Linaceae","non-native",0,null,"---","---"]
["Linum striatum","Linaceae","native",4,null,"FACW","Ridged Yellow Flax"]
["Linum sulcatum","Linaceae","native",10,null,"---","---"]
["Linum usitatissimum","Linaceae","non-native",0,null,"---","---"]
["Linum virginianum","Linaceae","native",5,null,"FACU","Woodland Flax"]
["Liparis liliifolia","Orchidaceae","native",5,null,"FACU","Brown Wide-Lip Orchid"]
["Liparis loeselii","Orchidaceae","native",7,null,"FACW","Yellow Wide-Lip Orchid"]
["Lipocarpha maculata","Cyperaceae","native",6,null,"OBL","American Halfchaff Sedge"]
["Lipocarpha micrantha","Cyperaceae","native",9,null,"FACW","Small-Flower Halfchaff Sedge"]
["Liquidambar styraciflua","Hamamelidaceae","native",1,null,"FAC","Sweet-Gum"]
["Liriodendron tulipifera","Magnoliaceae","native",5,null,"FACU","Tuliptree"]
["Listera australis","Orchidaceae","native",9,null,"---","---"]
["Listera smallii","Orchidaceae","native",10,null,"---","---"]
["Lithospermum canescens","Boraginaceae","native",9,null,"---","---"]
["Lithospermum latifolium","Boraginaceae","native",8,null,"---","---"]
["Lobelia amoena","Campanulaceae","native",4,null,"OBL","Southern Lobelia"]
["Lobelia cardinalis","Campanulaceae","native",6,null,"FACW","Cardinal-Flower"]
["Lobelia chinensis","Campanulaceae","non-native",0,null,"---","---"]
["Lobelia inflata","Campanulaceae","native",1,null,"FACU","Indian-Tobacco"]
["Lobelia kalmii","Campanulaceae","native",10,null,"OBL","Brook Lobelia"]
["Lobelia nuttallii","Campanulaceae","native",5,null,"FACW","Nuttall's Lobelia"]
["Lobelia puberula","Campanulaceae","native",5,null,"FACW","Downy Lobelia"]
["Lobelia siphilitica","Campanulaceae","native",4,null,"FACW","Great Blue Lobelia"]
["Lobelia spicata","Campanulaceae","native",7,null,"FAC","Pale-Spike Lobelia"]
["Lobelia spicata var. campanulata","Campanulaceae","native",7,null,"---","---"]
["Lobelia spicata var. scaposa","Campanulaceae","native",7,null,"---","---"]
["Lobularia maritima","Brassicaceae","non-native",0,null,"---","---"]
["Logfia minima","Asteraceae","non-native",0,null,"---","---"]
["Lolium perenne","Poaceae","non-native",0,null,"FACU","Perennial Rye Grass"]
["Lolium perenne ssp. multiflorum","Poaceae","non-native",0,null,"---","---"]
["Lolium temulentum","Poaceae","non-native",0,null,"---","---"]
["Lonicera canadensis","Caprifoliaceae","native",8,null,"FACU","American Fly-Honeysuckle"]
["Lonicera dioica","Caprifoliaceae","native",7,null,"FACU","Limber Honeysuckle"]
["Lonicera fragrantissima","Caprifoliaceae","non-native",0,null,"---","---"]
["Lonicera japonica","Caprifoliaceae","non-native",0,null,"FACU","Japanese Honeysuckle"]
["Lonicera maackii","Caprifoliaceae","non-native",0,null,"---","---"]
["Lonicera morrowii","Caprifoliaceae","non-native",0,null,"FACU","Morrow's Honeysuckle"]
["Lonicera sempervirens","Caprifoliaceae","native",4,null,"FACU","Trumpet Honeysuckle"]
["Lonicera standishii","Caprifoliaceae","non-native",0,null,"---","---"]
["Lonicera tatarica","Caprifoliaceae","non-native",0,null,"FACU","Twinsisters"]
["Lonicera X bella","Caprifoliaceae","non-native",0,null,"FACU","_?_"]
["Lonicera X bella","Caprifoliaceae","non-native",0,null,"FACU","_?_"]
["Lonicera xylosteum","Caprifoliaceae","non-native",0,null,"---","---"]
["Lophiola aurea","Liliaceae","native",10,null,"---","---"]
["Lotus corniculatus","Fabaceae","non-native",0,null,"FACU","Garden Bird's-Foot-Trefoil"]
["Ludwigia alternifolia","Onagraceae","native",4,null,"FACW","Seedbox"]
["Ludwigia brevipes","Onagraceae","native",10,null,"OBL","Long Beach Primrose-Willow"]
["Ludwigia glandulosa","Onagraceae","native",3,null,"OBL","Cylindric-Fruit Primrose-Willow"]
["Ludwigia grandiflora","Onagraceae","non-native",0,null,"OBL","Large-Flower Primrose-Willow"]
["Ludwigia hirtella","Onagraceae","native",9,null,"OBL","Spindleroot"]
["Ludwigia leptocarpa","Onagraceae","native",6,null,"OBL","Angle-Stem Primrose-Willow"]
["Ludwigia linearis","Onagraceae","native",8,null,"OBL","Narrow-Leaf Primrose-Willow"]
["Ludwigia palustris","Onagraceae","native",2,null,"OBL","Marsh Primrose-Willow"]
["Ludwigia peploides","Onagraceae","non-native",0,null,"OBL","Floating Primrose-Willow"]
["Ludwigia peploides ssp. glabrescens","Onagraceae","non-native",0,null,"---","---"]
["Ludwigia polycarpa","Onagraceae","native",9,null,"OBL","Many-Fruit Primrose-Willow"]
["Luffa acutangula","Cucurbitaceae","non-native",0,null,"---","---"]
["Luffa aegyptiaca","Cucurbitaceae","non-native",0,null,"---","---"]
["Lunaria annua","Brassicaceae","non-native",0,null,"---","---"]
["Lupinus perennis","Fabaceae","native",7,null,"---","---"]
["Luzula acuminata","Juncaceae","native",9,null,"FAC","Hairy Wood-Rush"]
["Luzula acuminata ssp. carolinae","Juncaceae","native",9,null,"---","---"]
["Luzula bulbosa","Juncaceae","native",5,null,"FACU","Bulbous Wood-Rush"]
["Luzula echinata","Juncaceae","native",5,null,"FACU","Hedgehog Wood-Rush"]
["Luzula luzuloides","Juncaceae","non-native",0,null,"---","---"]
["Luzula multiflora","Juncaceae","native",5,null,"FACU","Common Wood-Rush"]
["Lychnis coronaria","Caryophyllaceae","non-native",0,null,"---","---"]
["Lycium barbarum","Solanaceae","non-native",0,null,"---","---"]
["Lycium chinense","Solanaceae","non-native",0,null,"---","---"]
["Lycopodiella alopecuroides","Lycopodiaceae","native",7,null,"FACW","Fox-Tail Club-Moss"]
["Lycopodiella appressa","Lycopodiaceae","native",7,null,"FACW","Southern Appressed Club-Moss"]
["Lycopodiella inundata","Lycopodiaceae","native",9,null,"OBL","Northern Bog Club-Moss"]
["Lycopodium annotinum","Lycopodiaceae","native",9,null,"---","---"]
["Lycopodium clavatum","Lycopodiaceae","native",6,null,"FAC","Running Ground-Pine"]
["Lycopodium digitatum","Lycopodiaceae","native",4,null,"---","---"]
["Lycopodium hickeyi","Lycopodiaceae","native",7,null,"---","---"]
["Lycopodium tristachyum","Lycopodiaceae","native",7,null,"---","---"]
["Lycopus americanus","Lamiaceae","native",4,null,"OBL","Cut-Leaf Water-Horehound"]
["Lycopus europaeus","Lamiaceae","non-native",0,null,"OBL","Gypsywort"]
["Lycopus rubellus","Lamiaceae","native",5,null,"OBL","Taper-Leaf Water-Horehound"]
["Lycopus uniflorus","Lamiaceae","native",6,null,"OBL","Northern Water-Horehound"]
["Lycopus virginicus","Lamiaceae","native",4,null,"OBL","Virginia Water-Horehound"]
["Lygodium palmatum","Lygodiaceae","native",8,null,"FACW","American Climbing Fern"]
["Lyonia ligustrina","Ericaceae","native",7,null,"FACW","Maleberry"]
["Lyonia mariana","Ericaceae","native",9,null,"FAC","Piedmont Staggerbush"]
["Lysimachia arvensis","Primulaceae","non-native",0,null,"UPL","Scarlet Yellow-Loosestrife"]
["Lysimachia ciliata","Primulaceae","native",4,null,"FACW","Fringed Yellow-Loosestrife"]
["Lysimachia clethroides","Primulaceae","non-native",0,null,"---","---"]
["Lysimachia hybrida","Primulaceae","native",8,null,"OBL","Lowland Yellow-Loosestrife"]
["Lysimachia lanceolata","Primulaceae","native",5,null,"FAC","Lance-Leaf Yellow-Loosestrife"]
["Lysimachia nummularia","Primulaceae","non-native",0,null,"FACW","Creeping-Jenny"]
["Lysimachia punctata","Primulaceae","non-native",0,null,"OBL","Large Yellow-Loosestrife"]
["Lysimachia quadrifolia","Primulaceae","native",5,null,"FACU","Whorled Yellow-Loosestrife"]
["Lysimachia radicans","Primulaceae","native",7,null,"OBL","Trailing Yellow-Loosestrife"]
["Lysimachia terrestris","Primulaceae","native",7,null,"OBL","Swampcandles"]
["Lysimachia thyrsiflora","Primulaceae","native",10,null,"OBL","Tufted Yellow-Loosestrife"]
["Lysimachia vulgaris","Primulaceae","non-native",0,null,"FAC","Garden Yellow-Loosestrife"]
["Lythrum alatum","Lythraceae","native",9,null,"FACW","Wing-Angle Loosestrife"]
["Lythrum alatum var. lanceolatum","Lythraceae","native",6,null,"---","---"]
["Lythrum hyssopifolium","Lythraceae","non-native",0,null,"OBL","Hyssop Loosestrife"]
["Lythrum salicaria","Lythraceae","non-native",0,null,"FACW","Purple Loosestrife"]
["Macleaya cordata","Papaveraceae","non-native",0,null,"---","---"]
["Maclura pomifera","Moraceae","non-native",0,null,"UPL","Osage-Orange"]
["Madia sativa","Asteraceae","non-native",0,null,"---","---"]
["Magnolia fraseri","Magnoliaceae","native",9,null,"FACU","Fraser's Magnolia"]
["Magnolia kobus","Magnoliaceae","non-native",0,null,"---","---"]
["Magnolia tripetala","Magnoliaceae","native",9,null,"FACU","Umbrella Magnolia"]
["Magnolia virginiana","Magnoliaceae","native",6,null,"FACW","Sweet-Bay"]
["Mahonia bealei","Berberidaceae","non-native",0,null,"---","---"]
["Maianthemum canadense","Liliaceae","native",8,null,"FAC","False Lily-of-the-Valley"]
["Maianthemum racemosum","Liliaceae","native",5,null,"FACU","Feathery False Solomon's-Seal"]
["Maianthemum stellatum","Liliaceae","native",9,null,"FACW","Starry False Solomon's-Seal"]
["Malaxis unifolia","Orchidaceae","native",8,null,"FAC","Green Adder's-Mouth Orchid"]
["Malus angustifolia","Rosaceae","native",4,null,"---","---"]
["Malus baccata","Rosaceae","non-native",0,null,"---","---"]
["Malus coronaria","Rosaceae","native",4,null,"---","---"]
["Malus prunifolia","Rosaceae","non-native",0,null,"---","---"]
["Malus pumila","Rosaceae","non-native",0,null,"---","---"]
["Malus zumi","Rosaceae","non-native",0,null,"---","---"]
["Malva moschata","Malvaceae","non-native",0,null,"---","---"]
["Malva neglecta","Malvaceae","non-native",0,null,"---","---"]
["Malva pusilla","Malvaceae","non-native",0,null,"---","---"]
["Malva sylvestris","Malvaceae","non-native",0,null,"---","---"]
["Malva verticillata","Malvaceae","non-native",0,null,"---","---"]
["Malvastrum coromandelianum","Malvaceae","non-native",0,null,"FACU","Three-Lobe False Mallow"]
["Marrubium vulgare","Lamiaceae","non-native",0,null,"UPL","White Horehound"]
["Marshallia obovata","Asteraceae","native",7,null,"---","---"]
["Marsilea quadrifolia","Marsileaceae","non-native",0,null,"OBL","European Water-Clover"]
["Matelea carolinensis","Asclepiadaceae","native",5,null,"---","---"]
["Matelea obliqua","Asclepiadaceae","native",8,null,"---","---"]
["Matricaria discoidea","Asteraceae","non-native",0,null,"FACU","Pineapple-Weed"]
["Matricaria recutita","Asteraceae","non-native",0,null,"---","---"]
["Matteuccia struthiopteris","Dryopteridaceae","native",7,null,"FACW","Ostrich Fern"]
["Mazus miquelii","Scrophulariaceae","non-native",0,null,"---","---"]
["Mazus pumilus","Scrophulariaceae","non-native",0,null,"FACU","Japanese Mazus"]
["Mecardonia acuminata","Scrophulariaceae","native",5,null,"OBL","Axil-Flower"]
["Medeola virginiana","Liliaceae","native",7,null,"FAC","Indian Cucumber-Root"]
["Medicago arabica","Fabaceae","non-native",0,null,"---","---"]
["Medicago lupulina","Fabaceae","non-native",0,null,"FACU","Black Medick"]
["Medicago minima","Fabaceae","non-native",0,null,"---","---"]
["Medicago sativa","Fabaceae","non-native",0,null,"UPL","Alfalfa"]
["Medicago sativa ssp. falcata","Fabaceae","non-native",0,null,"---","---"]
["Melampyrum lineare","Scrophulariaceae","native",7,null,"FACU","American Cow-Wheat"]
["Melampyrum lineare var. latifolium","Scrophulariaceae","native",7,null,"---","---"]
["Melampyrum lineare var. pectinatum","Scrophulariaceae","native",7,null,"---","---"]
["Melia azedarach","Meliaceae","non-native",0,null,"UPL","China-Berry"]
["Melica mutica","Poaceae","native",8,null,"---","---"]
["Melica nitens","Poaceae","native",9,null,"---","---"]
["Melilotus altissimus","Fabaceae","non-native",0,null,"---","---"]
["Melilotus officinalis","Fabaceae","non-native",0,null,"FACU","Yellow Sweet-Clover"]
["Melilotus sulcatus","Fabaceae","non-native",0,null,"---","---"]
["Melissa officinalis","Lamiaceae","non-native",0,null,"UPL","Lemonbalm"]
["Melothria pendula","Cucurbitaceae","native",4,null,"FAC","Guadeloupe-Cucumber"]
["Menispermum canadense","Menispermaceae","native",5,null,"FACU","Canadian Moonseed"]
["Mentha aquatica","Lamiaceae","non-native",0,null,"FACW","Water Mint"]
["Mentha arvensis","Lamiaceae","native",3,null,"FACW","American Wild Mint"]
["Mentha pulegium","Lamiaceae","non-native",0,null,"OBL","Pennyroyal"]
["Mentha spicata","Lamiaceae","non-native",0,null,"FACW","Spearmint"]
["Mentha suaveolens","Lamiaceae","non-native",0,null,"FACW","Apple Mint"]
["Mentha X gracilis","Lamiaceae","non-native",0,null,"FACW","_?_"]
["Mentha X piperita","Lamiaceae","non-native",0,null,"FACW","_?_"]
["Mentha X rotundifolia","Lamiaceae","non-native",0,null,"FACU","_?_"]
["Mentha X verticillata","Lamiaceae","non-native",0,null,"---","---"]
["Mentha X villosa","Lamiaceae","non-native",0,null,"OBL","_?_"]
["Menyanthes trifoliata","Menyanthaceae","native",10,null,"OBL","Buck-Bean"]
["Mercurialis annua","Euphorbiaceae","non-native",0,null,"---","---"]
["Merremia dissecta","Convolvulaceae","non-native",0,null,"FACU","Noyau-Vine"]
["Mertensia virginica","Boraginaceae","native",8,null,"FACW","Virginia Bluebells"]
["Micranthemum micranthemoides","Scrophulariaceae","native",10,null,"OBL","Nuttall's Mudflower"]
["Micranthemum umbrosum","Scrophulariaceae","native",8,null,"OBL","Shade Mudflower"]
["Micranthes virginiensis","Saxifragaceae","native",6,null,"FAC","Early Pseudosaxifrage"]
["Microstegium vimineum","Poaceae","non-native",0,null,"FAC","Japanese Stilt Grass"]
["Microthlaspi perfoliatum","Brassicaceae","non-native",0,null,"---","---"]
["Mikania scandens","Asteraceae","native",5,null,"FACW","Climbing Hempvine"]
["Milium effusum","Poaceae","native",8,null,"FACU","American Millet Grass"]
["Mimosa nuttallii","Fabaceae","non-native",0,null,"---","---"]
["Mimulus alatus","Scrophulariaceae","native",6,null,"OBL","Sharp-Wing Monkey-Flower"]
["Mimulus moschatus","Scrophulariaceae","non-native",0,null,"OBL","Muskflower"]
["Mimulus ringens","Scrophulariaceae","native",5,null,"OBL","Allegheny Monkey-Flower"]
["Minuartia groenlandica","Caryophyllaceae","native",9,null,"---","---"]
["Minuartia michauxii","Caryophyllaceae","native",10,null,"---","---"]
["Mirabilis jalapa","Nyctaginaceae","non-native",0,null,"UPL","Marvel-of-Peru"]
["Mirabilis nyctaginea","Nyctaginaceae","non-native",0,null,"FACU","Heart-Leaf Four-O'clock"]
["Miscanthus sinensis","Poaceae","non-native",0,null,"FACU","Chinese Silver Grass"]
["Mitchella repens","Rubiaceae","native",6,null,"FACU","Partridge-Berry"]
["Mitella diphylla","Saxifragaceae","native",8,null,"FACU","Two-Leaf Bishop's-Cap"]
["Mitreola petiolata","Loganiaceae","native",7,null,"FACW","Lax Hornpod"]
["Modiola caroliniana","Malvaceae","non-native",0,null,"FACU","Carolina Bristle-Mallow"]
["Moehringia lateriflora","Caryophyllaceae","native",7,null,"FAC","Blunt-Leaf Grove-Sandwort"]
["Moenchia erecta","Caryophyllaceae","non-native",0,null,"---","---"]
["Mollugo cerviana","Molluginaceae","non-native",0,null,"FAC","Thread-Stem Carpetweed"]
["Mollugo nudicaulis","Molluginaceae","non-native",0,null,"---","---"]
["Mollugo verticillata","Molluginaceae","non-native",0,null,"FAC","Green Carpetweed"]
["Moluccella laevis","Lamiaceae","non-native",0,null,"---","---"]
["Momordica charantia","Cucurbitaceae","non-native",0,null,"UPL","Balsam-Pear"]
["Monarda clinopodia","Lamiaceae","native",6,null,"FACU","White Bergamot"]
["Monarda didyma","Lamiaceae","native",6,null,"FAC","Scarlet Beebalm"]
["Monarda fistulosa","Lamiaceae","native",5,null,"UPL","Oswego-Tea"]
["Monarda fistulosa var. mollis","Lamiaceae","native",5,null,"---","---"]
["Monarda fistulosa var. rubra","Lamiaceae","native",5,null,"---","---"]
["Monarda media","Lamiaceae","native",6,null,"---","---"]
["Monarda punctata","Lamiaceae","native",3,null,"UPL","Spotted Beebalm"]
["Monotropa hypopithys","Monotropaceae","native",8,null,"---","---"]
["Monotropa uniflora","Monotropaceae","native",6,null,"FACU","One-Flower Indian-Pipe"]
["Morella caroliniensis","Myricaceae","native",7,null,"FAC","Evergreen Bayberry"]
["Morella pensylvanica","Myricaceae","native",4,null,"FAC","Northern Bayberry"]
["Morus alba","Moraceae","non-native",0,null,"UPL","White Mulberry"]
["Morus rubra","Moraceae","native",6,null,"FACU","Red Mulberry"]
["Muhlenbergia capillaris","Poaceae","native",9,null,"FACU","Hair-Awn Muhly"]
["Muhlenbergia frondosa","Poaceae","native",2,null,"FAC","Wire-Stem Muhly"]
["Muhlenbergia glomerata","Poaceae","native",9,null,"FACW","Spiked Muhly"]
["Muhlenbergia mexicana","Poaceae","native",5,null,"FACW","Mexican Muhly"]
["Muhlenbergia schreberi","Poaceae","native",1,null,"FAC","Nimblewill"]
["Muhlenbergia sobolifera","Poaceae","native",7,null,"---","---"]
["Muhlenbergia sylvatica","Poaceae","native",6,null,"FAC","Woodland Muhly"]
["Muhlenbergia tenuiflora","Poaceae","native",7,null,"FACU","Slim-Flower Muhly"]
["Muhlenbergia uniflora","Poaceae","native",8,null,"OBL","Bog Muhly"]
["Murdannia keisak","Commelinaceae","non-native",0,null,"OBL","Wart-Removing-Herb"]
["Muscari botryoides","Liliaceae","non-native",0,null,"---","---"]
["Muscari comosum","Liliaceae","non-native",0,null,"---","---"]
["Muscari neglectum","Liliaceae","non-native",0,null,"---","---"]
["Myosotis arvensis","Boraginaceae","non-native",0,null,"UPL","Rough Forget-Me-Not"]
["Myosotis discolor","Boraginaceae","non-native",0,null,"UPL","Yellow Scorpion-Grass"]
["Myosotis laxa","Boraginaceae","native",6,null,"OBL","Bay Forget-Me-Not"]
["Myosotis macrosperma","Boraginaceae","native",4,null,"FAC","Large-Seed Forget-Me-Not"]
["Myosotis scorpioides","Boraginaceae","non-native",0,null,"OBL","True Forget-Me-Not"]
["Myosotis stricta","Boraginaceae","non-native",0,null,"---","---"]
["Myosotis sylvatica","Boraginaceae","non-native",0,null,"UPL","Woodland Forget-Me-Not"]
["Myosotis verna","Boraginaceae","native",4,null,"FAC","Spring Forget-Me-Not"]
["Myosoton aquaticum","Caryophyllaceae","non-native",0,null,"FACW","Giant-Chickweed"]
["Myosurus minimus","Ranunculaceae","non-native",0,null,"FACW","Tiny Mousetail"]
["Myriophyllum aquaticum","Haloragaceae","non-native",0,null,"OBL","Parrot's-Feather"]
["Myriophyllum heterophyllum","Haloragaceae","native",3,null,"OBL","Two-Leaf Water-Milfoil"]
["Myriophyllum pinnatum","Haloragaceae","native",6,null,"OBL","Cut-Leaf Water-Milfoil"]
["Myriophyllum spicatum","Haloragaceae","non-native",0,null,"OBL","Eurasian Water-Milfoil"]
["Myriophyllum verticillatum","Haloragaceae","native",8,null,"OBL","Whorled Water-Milfoil"]
["Nabalus albus","Asteraceae","native",7,null,"FACU","White Rattlesnake-Root"]
["Nabalus altissimus","Asteraceae","native",6,null,"FACU","Tall Rattlesnake-Root"]
["Najas flexilis","Najadaceae","native",5,null,"OBL","Wavy Waternymph"]
["Najas gracillima","Najadaceae","native",7,null,"OBL","Slender Waternymph"]
["Najas guadalupensis","Najadaceae","native",6,null,"OBL","Guadalupe Waternymph"]
["Najas minor","Najadaceae","non-native",0,null,"OBL","Brittle Waternymph"]
["Napaea dioica","Malvaceae","native",10,null,"FACW","Glade-Mallow"]
["Narcissus poeticus","Liliaceae","non-native",0,null,"---","---"]
["Narcissus pseudonarcissus","Liliaceae","non-native",0,null,"---","---"]
["Narcissus X incomparabilis","Liliaceae","non-native",0,null,"---","---"]
["Narcissus X medioluteus","Liliaceae","non-native",0,null,"---","---"]
["Nasturtium microphyllum","Brassicaceae","non-native",0,null,"OBL","One-Row Watercress"]
["Nasturtium officinale","Brassicaceae","non-native",0,null,"OBL","Watercress"]
["Navarretia squarrosa","Polemoniaceae","non-native",0,null,"FACU","Skunkweed"]
["Nelumbo lutea","Nelumbonaceae","native",5,null,"OBL","American Lotus"]
["Nemopanthus mucronatus","Aquifoliaceae","native",10,null,"OBL","Catberry"]
["Nepeta cataria","Lamiaceae","non-native",0,null,"FACU","Catnip"]
["Nestronia umbellula","Santalaceae","native",8,null,"---","---"]
["Nicandra physalodes","Solanaceae","non-native",0,null,"---","---"]
["Nicotiana longiflora","Solanaceae","non-native",0,null,"---","---"]
["Nicotiana tabacum","Solanaceae","non-native",0,null,"UPL","Cultivated Tobacco"]
["Nigella damascena","Ranunculaceae","non-native",0,null,"---","---"]
["Nonea rosea","Boraginaceae","non-native",0,null,"---","---"]
["Nonea vesicaria","Boraginaceae","non-native",0,null,"---","---"]
["Nothoscordum borbonicum","Liliaceae","non-native",0,null,"---","---"]
["Nuphar lutea ssp. advena","Nymphaeaceae","native",4,null,"---","---"]
["Nuphar lutea ssp. variegata","Nymphaeaceae","native",5,null,"---","---"]
["Nuttallanthus canadensis","Scrophulariaceae","native",2,null,"---","---"]
["Nymphaea odorata","Nymphaeaceae","native",4,null,"OBL","American White Water-Lily"]
["Nymphaea odorata ssp. tuberosa","Nymphaeaceae","native",4,null,"---","---"]
["Nymphoides cordata","Menyanthaceae","native",9,null,"OBL","Little Floatingheart"]
["Nymphoides peltata","Menyanthaceae","non-native",0,null,"OBL","Yellow Floatingheart"]
["Nyssa aquatica","Cornaceae","native",9,null,"OBL","Water Tupelo"]
["Nyssa biflora","Cornaceae","native",6,null,"FACW","Swamp Tupelo"]
["Nyssa sylvatica","Cornaceae","native",6,null,"FAC","Black Tupelo"]
["Obolaria virginica","Gentianaceae","native",8,null,"---","---"]
["Ocimum basilicum","Lamiaceae","non-native",0,null,"UPL","Sweet Basil"]
["Oclemena acuminata","Asteraceae","native",8,null,"FACU","Whorled Nodding-Aster"]
["Oenothera biennis","Onagraceae","native",1,null,"FACU","King's-Cureall"]
["Oenothera fruticosa","Onagraceae","native",6,null,"FAC","Narrow-Leaf Evening-Primrose"]
["Oenothera fruticosa ssp. glauca","Onagraceae","native",6,null,"---","---"]
["Oenothera gaura","Onagraceae","native",2,null,"FACU","Biennial Evening-Primrose"]
["Oenothera glazioviana","Onagraceae","non-native",0,null,"---","---"]
["Oenothera humifusa","Onagraceae","native",7,null,"---","---"]
["Oenothera laciniata","Onagraceae","native",2,null,"FACU","Cut-Leaf Evening-Primrose"]
["Oenothera nutans","Onagraceae","native",1,null,"---","---"]
["Oenothera oakesiana","Onagraceae","native",4,null,"---","---"]
["Oenothera parviflora","Onagraceae","native",4,null,"FACU","Northern Evening-Primrose"]
["Oenothera perennis","Onagraceae","native",6,null,"FAC","Small Evening-Primrose"]
["Oenothera speciosa","Onagraceae","non-native",0,null,"---","---"]
["Oenothera triloba","Onagraceae","non-native",0,null,"---","---"]
["Oldenlandia boscii","Rubiaceae","native",5,null,"FACW","Bosc's Mille-Graines"]
["Oligoneuron rigidum","Asteraceae","native",9,null,"---","---"]
["Onoclea sensibilis","Dryopteridaceae","native",3,null,"FACW","Sensitive Fern"]
["Ononis spinosa","Fabaceae","non-native",0,null,"---","---"]
["Onopordum acanthium","Asteraceae","non-native",0,null,"---","---"]
["Onosmodium virginianum","Boraginaceae","native",7,null,"---","---"]
["Ophioglossum pusillum","Ophioglossaceae","native",9,null,"FACW","Northern Adder's-Tongue"]
["Ophioglossum vulgatum","Ophioglossaceae","native",6,null,"FACW","Southern Adder's-Tongue"]
["Oplismenus hirtellus","Poaceae","non-native",0,null,"FACU","Long-Leaf Basket Grass"]
["Oplismenus undulatifolius","Poaceae","non-native",0,null,"---","---"]
["Opuntia humifusa","Cactaceae","native",6,null,"---","---"]
["Orbexilum pedunculatum","Fabaceae","native",6,null,"FACU","Sampson's-Snakeroot"]
["Orbexilum pedunculatum var. psoralioides","Fabaceae","native",8,null,"---","---"]
["Origanum vulgare","Lamiaceae","non-native",0,null,"---","---"]
["Ornithogalum nutans","Liliaceae","non-native",0,null,"---","---"]
["Ornithogalum umbellatum","Liliaceae","non-native",0,null,"FACU","Sleepydick"]
["Ornithopus perpusillus","Fabaceae","non-native",0,null,"---","---"]
["Orobanche ludoviciana","Orobanchaceae","native",8,null,"---","---"]
["Orobanche minor","Orobanchaceae","non-native",0,null,"---","---"]
["Orobanche uniflora","Orobanchaceae","native",6,null,"FACU","Naked Broom-Rape"]
["Orontium aquaticum","Araceae","native",8,null,"OBL","Goldenclub"]
["Orthilia secunda","Pyrolaceae","native",9,null,"FAC","Sidebells"]
["Osmorhiza claytonii","Apiaceae","native",5,null,"FACU","Hairy Sweet-Cicely"]
["Osmorhiza longistylis","Apiaceae","native",5,null,"FACU","Aniseroot"]
["Osmunda claytoniana","Osmundaceae","native",6,null,"FAC","Interrupted Fern"]
["Osmunda regalis","Osmundaceae","native",8,null,"---","---"]
["Osmundastrum cinnamomeum","Osmundaceae","native",6,null,"FACW","Cinnamon Fern"]
["Ostrya virginiana","Betulaceae","native",7,null,"FACU","Eastern Hop-Hornbeam"]
["Oxalis corniculata","Oxalidaceae","native",0,null,"FACU","Creeping Yellow Wood-Sorrel"]
["Oxalis dillenii","Oxalidaceae","native",1,null,"FACU","Slender Yellow Wood-Sorrel"]
["Oxalis grandis","Oxalidaceae","native",3,null,"---","---"]
["Oxalis montana","Oxalidaceae","native",8,null,"FAC","Sleeping-Beauty"]
["Oxalis rubra","Oxalidaceae","non-native",0,null,"---","---"]
["Oxalis stricta","Oxalidaceae","native",0,null,"FACU","Upright Yellow Wood-Sorrel"]
["Oxalis violacea","Oxalidaceae","native",6,null,"---","---"]
["Oxydendrum arboreum","Ericaceae","native",5,null,"UPL","Sourwood"]
["Oxypolis rigidior","Apiaceae","native",6,null,"OBL","Stiff Cowbane"]
["Pachysandra procumbens","Buxaceae","non-native",0,null,"---","---"]
["Pachysandra terminalis","Buxaceae","non-native",0,null,"---","---"]
["Packera anonyma","Asteraceae","native",7,null,"UPL","Small's Groundsel"]
["Packera antennariifolia","Asteraceae","native",10,null,"---","---"]
["Packera aurea","Asteraceae","native",4,null,"FACW","Golden Groundsel"]
["Packera obovata","Asteraceae","native",6,null,"FACU","Round-Leaf Groundsel"]
["Packera paupercula","Asteraceae","native",5,null,"FAC","Balsam Groundsel"]
["Paeonia lactiflora","Paeoniaceae","non-native",0,null,"---","---"]
["Panax quinquefolius","Araliaceae","native",8,null,"---","---"]
["Panax trifolius","Araliaceae","native",8,null,"---","---"]
["Panicum amarum","Poaceae","native",8,null,"FACU","Bitter Panic Grass"]
["Panicum amarum var. amarulum","Poaceae","native",8,null,"---","---"]
["Panicum bisulcatum","Poaceae","non-native",0,null,"FACW","Japanese Panic Grass"]
["Panicum capillare","Poaceae","native",1,null,"FAC","Common Panic Grass"]
["Panicum dichotomiflorum","Poaceae","native",1,null,"FACW","Fall Panic Grass"]
["Panicum flexile","Poaceae","native",5,null,"FACU","Wiry Panic Grass"]
["Panicum gattingeri","Poaceae","native",1,null,"FAC","Gattinger's Panic Grass"]
["Panicum hemitomon","Poaceae","native",10,null,"FACW","Maiden-Cane"]
["Panicum miliaceum","Poaceae","non-native",0,null,"---","---"]
["Panicum philadelphicum","Poaceae","native",1,null,"FAC","Philadelphia Panic Grass"]
["Panicum rigidulum var. elongatum","Poaceae","native",5,null,"---","---"]
["Panicum rigidulum var. pubescens","Poaceae","native",5,null,"---","---"]
["Panicum verrucosum","Poaceae","native",5,null,"FACW","Warty Panic Grass"]
["Panicum virgatum","Poaceae","native",4,null,"FAC","Wand Panic Grass"]
["Papaver argemone","Papaveraceae","non-native",0,null,"---","---"]
["Papaver dubium","Papaveraceae","non-native",0,null,"---","---"]
["Papaver hybridum","Papaveraceae","non-native",0,null,"---","---"]
["Papaver orientale","Papaveraceae","non-native",0,null,"---","---"]
["Papaver rhoeas","Papaveraceae","non-native",0,null,"---","---"]
["Papaver somniferum","Papaveraceae","non-native",0,null,"---","---"]
["Parapholis incurva","Poaceae","non-native",0,null,"FACU","Curved Sickle Grass"]
["Parietaria judaica","Urticaceae","non-native",0,null,"---","---"]
["Parietaria pensylvanica","Urticaceae","native",2,null,"FACU","Pennsylvania Pellitory"]
["Parnassia asarifolia","Saxifragaceae","native",9,null,"OBL","Kidney-Leaf Grass-of-Parnassus"]
["Parnassia glauca","Saxifragaceae","native",10,null,"OBL","Fen Grass-of-Parnassus"]
["Paronychia argyrocoma","Caryophyllaceae","native",10,null,"---","---"]
["Paronychia baldwinii","Caryophyllaceae","native",8,null,"---","---"]
["Paronychia canadensis","Caryophyllaceae","native",6,null,"---","---"]
["Paronychia fastigiata","Caryophyllaceae","native",6,null,"---","---"]
["Paronychia fastigiata var. nuttallii","Caryophyllaceae","native",6,null,"---","---"]
["Paronychia fastigiata var. paleacea","Caryophyllaceae","native",6,null,"---","---"]
["Paronychia montana","Caryophyllaceae","native",9,null,"---","---"]
["Paronychia virginica","Caryophyllaceae","native",10,null,"---","---"]
["Parthenium auriculatum","Asteraceae","native",9,null,"---","---"]
["Parthenium hysterophorus","Asteraceae","non-native",0,null,"FAC","Santa Maria Feverfew"]
["Parthenium integrifolium","Asteraceae","native",8,null,"---","---"]
["Parthenocissus quinquefolia","Vitaceae","native",3,null,"FACU","Virginia-Creeper"]
["Parthenocissus tricuspidata","Vitaceae","non-native",0,null,"---","---"]
["Parthenocissus vitacea","Vitaceae","native",3,null,"---","---"]
["Paspalum bifidum","Poaceae","native",7,null,"FACW","Pitchfork Crown Grass"]
["Paspalum boscianum","Poaceae","native",5,null,"FACW","Bull Crown Grass"]
["Paspalum dilatatum","Poaceae","non-native",0,null,"FAC","Golden Crown Grass"]
["Paspalum distichum","Poaceae","native",9,null,"FACW","Jointed Crown Grass"]
["Paspalum floridanum","Poaceae","native",3,null,"FACW","Florida Crown Grass"]
["Paspalum fluitans","Poaceae","native",6,null,"---","---"]
["Paspalum laeve","Poaceae","native",3,null,"FAC","Field Crown Grass"]
["Paspalum notatum","Poaceae","non-native",0,null,"FACU","Bahia Grass"]
["Paspalum pubiflorum","Poaceae","non-native",0,null,"FAC","Hairy-Seed Crown Grass"]
["Paspalum setaceum","Poaceae","native",3,null,"FACU","Slender Crown Grass"]
["Paspalum urvillei","Poaceae","non-native",0,null,"FAC","Vasey's Grass"]
["Passiflora incarnata","Passifloraceae","native",1,null,"---","---"]
["Passiflora lutea","Passifloraceae","native",4,null,"---","---"]
["Pastinaca sativa","Apiaceae","non-native",0,null,"---","---"]
["Paulownia tomentosa","Scrophulariaceae","non-native",0,null,"UPL","Princesstree"]
["Pedicularis canadensis","Scrophulariaceae","native",6,null,"FACU","Canadian Lousewort"]
["Pedicularis lanceolata","Scrophulariaceae","native",8,null,"FACW","Swamp Lousewort"]
["Pediomelum canescens","Fabaceae","native",9,null,"---","---"]
["Pellaea atropurpurea","Pteridaceae","native",9,null,"---","---"]
["Pellaea glabella","Pteridaceae","native",9,null,"---","---"]
["Peltandra virginica","Araceae","native",8,null,"OBL","Green Arrow-Arum"]
["Pennisetum alopecuroides","Poaceae","non-native",0,null,"---","---"]
["Pennisetum glaucum","Poaceae","non-native",0,null,"---","---"]
["Penstemon australis","Scrophulariaceae","native",5,null,"FACU","Eustis Lake Beardtongue"]
["Penstemon calycosus","Scrophulariaceae","native",9,null,"UPL","Long-Sepal Beardtongue"]
["Penstemon canescens","Scrophulariaceae","native",7,null,"---","---"]
["Penstemon digitalis","Scrophulariaceae","native",3,null,"FAC","Foxglove Beardtongue"]
["Penstemon hirsutus","Scrophulariaceae","native",6,null,"---","---"]
["Penstemon laevigatus","Scrophulariaceae","native",5,null,"FACU","Eastern Smooth Beardtongue"]
["Penthorum sedoides","Crassulaceae","native",4,null,"OBL","Ditch-Stonecrop"]
["Perilla frutescens","Lamiaceae","non-native",0,null,"FACU","Beefsteakplant"]
["Periploca graeca","Asclepiadaceae","non-native",0,null,"---","---"]
["Persicaria amphibia","Polygonaceae","native",7,null,"OBL","Water Smartweed"]
["Persicaria arifolia","Polygonaceae","native",6,null,"OBL","Halberd-Leaf Tearthumb"]
["Persicaria hydropiper","Polygonaceae","non-native",0,null,"OBL","Mild Water-Pepper"]
["Persicaria hydropiperoides","Polygonaceae","native",6,null,"OBL","Swamp Smartweed"]
["Persicaria lapathifolia","Polygonaceae","native",2,null,"FACW","Dock-Leaf Smartweed"]
["Persicaria maculosa","Polygonaceae","non-native",0,null,"FACW","Spotted Lady's-Thumb"]
["Persicaria minor","Polygonaceae","non-native",0,null,"OBL","Pygmy Smartweed"]
["Persicaria orientalis","Polygonaceae","non-native",0,null,"FACU","Kiss-Me-Over-the-Garden-Gate"]
["Persicaria pensylvanica","Polygonaceae","native",3,null,"FACW","Pinkweed"]
["Persicaria perfoliata","Polygonaceae","non-native",0,null,"FAC","Asiatic Tearthumb"]
["Persicaria punctata","Polygonaceae","native",4,null,"OBL","Dotted Smartweed"]
["Persicaria sagittata","Polygonaceae","native",3,null,"OBL","Arrow-Leaf Tearthumb"]
["Petasites hybridus","Asteraceae","non-native",0,null,"FAC","Pestilence-Wort"]
["Petrorhagia prolifera","Caryophyllaceae","non-native",0,null,"---","---"]
["Petrorhagia saxifraga","Caryophyllaceae","non-native",0,null,"---","---"]
["Petunia axillaris","Solanaceae","non-native",0,null,"---","---"]
["Petunia integrifolia","Solanaceae","non-native",0,null,"---","---"]
["Petunia X atkinsiana","Solanaceae","non-native",0,null,"---","---"]
["Phacelia bipinnatifida","Hydrophyllaceae","native",6,null,"---","---"]
["Phacelia covillei","Hydrophyllaceae","native",9,null,"FACW","Buttercup Scorpion-Weed"]
["Phacelia dubia","Hydrophyllaceae","native",5,null,"---","---"]
["Phacelia hirsuta","Hydrophyllaceae","non-native",0,null,"---","---"]
["Phacelia purshii","Hydrophyllaceae","native",3,null,"---","---"]
["Phalaris arundinacea","Poaceae","native",0,null,"FACW","Reed Canary Grass"]
["Phalaris canariensis","Poaceae","non-native",0,null,"FACU","Common Canary Grass"]
["Phalaris paradoxa","Poaceae","non-native",0,null,"FAC","Mediterranean Canary Grass"]
["Phaseolus polystachios","Fabaceae","native",7,null,"---","---"]
["Phegopteris connectilis","Thelypteridaceae","native",9,null,"FACU","Narrow Beech Fern"]
["Phegopteris hexagonoptera","Thelypteridaceae","native",7,null,"FAC","Broad Beech Fern"]
["Phellodendron japonicum","Rutaceae","non-native",0,null,"---","---"]
["Phemeranthus teretifolius","Portulacaceae","native",10,null,"---","---"]
["Philadelphus coronarius","Hydrangeaceae","non-native",0,null,"---","---"]
["Philadelphus pubescens","Hydrangeaceae","non-native",0,null,"---","---"]
["Phleum pratense","Poaceae","non-native",0,null,"FACU","Common Timothy"]
["Phleum subulatum","Poaceae","non-native",0,null,"---","---"]
["Phlox amplifolia","Polemoniaceae","native",8,null,"---","---"]
["Phlox carolina","Polemoniaceae","native",6,null,"FACU","Thick-Leaf Phlox"]
["Phlox divaricata","Polemoniaceae","native",8,null,"FACU","Wild Blue Phlox"]
["Phlox divaricata ssp. laphamii","Polemoniaceae","non-native",0,null,"---","---"]
["Phlox drummondii","Polemoniaceae","non-native",0,null,"---","---"]
["Phlox latifolia","Polemoniaceae","native",7,null,"---","---"]
["Phlox maculata","Polemoniaceae","native",7,null,"FACW","Wild Sweetwilliam"]
["Phlox maculata var. pyramidalis","Polemoniaceae","native",7,null,"---","---"]
["Phlox nivalis","Polemoniaceae","native",7,null,"---","---"]
["Phlox pilosa","Polemoniaceae","native",8,null,"FACU","Downy Phlox"]
["Phlox subulata","Polemoniaceae","native",9,null,"---","---"]
["Phoradendron leucarpum","Viscaceae","native",6,null,"---","---"]
["Photinia floribunda","Rosaceae","native",8,null,"---","---"]
["Photinia melanocarpa","Rosaceae","native",8,null,"---","---"]
["Photinia pyrifolia","Rosaceae","native",8,null,"---","---"]
["Photinia villosa","Rosaceae","non-native",0,null,"---","---"]
["Phragmites australis","Poaceae","non-native",0,null,"FACW","Common Reed"]
["Phryma leptostachya","Verbenaceae","native",5,null,"FACU","American Lopseed"]
["Phyla lanceolata","Verbenaceae","native",5,null,"OBL","Northern Frogfruit"]
["Phyllanthus caroliniensis","Euphorbiaceae","native",4,null,"FAC","Carolina Leaf-Flower"]
["Phyllanthus urinaria","Euphorbiaceae","non-native",0,null,"FAC","Chamber-Bitter"]
["Phyllostachys aurea","Poaceae","non-native",0,null,"---","---"]
["Physalis alkekengi","Solanaceae","non-native",0,null,"---","---"]
["Physalis angulata","Solanaceae","non-native",0,null,"FAC","Cut-Leaf Ground-Cherry"]
["Physalis heterophylla","Solanaceae","native",2,null,"---","---"]
["Physalis longifolia","Solanaceae","native",2,null,"---","---"]
["Physalis philadelphica","Solanaceae","non-native",0,null,"UPL","Mexican Ground-Cherry"]
["Physalis philadelphica var. immaculata","Solanaceae","non-native",0,null,"---","---"]
["Physalis pubescens","Solanaceae","non-native",0,null,"FACU","Husk-Tomato"]
["Physalis pubescens var. integrifolia","Solanaceae","native",1,null,"---","---"]
["Physalis virginiana","Solanaceae","native",1,null,"---","---"]
["Physocarpus opulifolius","Rosaceae","native",7,null,"FACW","Atlantic Ninebark"]
["Physostegia virginiana","Lamiaceae","native",5,null,"FAC","Obedient-Plant"]
["Phytolacca americana","Phytolaccaceae","native",1,null,"FACU","American Pokeweed"]
["Picea abies","Pinaceae","non-native",0,null,"---","---"]
["Picea mariana","Pinaceae","native",10,null,"FACW","Black Spruce"]
["Picea rubens","Pinaceae","native",9,null,"FACU","Red Spruce"]
["Picris hieracioides","Asteraceae","non-native",0,null,"---","---"]
["Pieris floribunda","Ericaceae","native",9,null,"---","---"]
["Pilea fontana","Urticaceae","native",7,null,"FACW","Lesser Clearweed"]
["Pilea pumila","Urticaceae","native",4,null,"FACW","Canadian Clearweed"]
["Pimpinella major","Apiaceae","non-native",0,null,"---","---"]
["Pimpinella saxifraga","Apiaceae","non-native",0,null,"FACU","Solid-Stem Burnet-Saxifrage"]
["Pinellia ternata","Araceae","non-native",0,null,"---","---"]
["Pinus banksiana","Pinaceae","non-native",0,null,"FACU","Jack Pine"]
["Pinus echinata","Pinaceae","native",8,null,"---","---"]
["Pinus nigra","Pinaceae","non-native",0,null,"---","---"]
["Pinus palustris","Pinaceae","native",8,null,"FAC","Long-Leaf Pine"]
["Pinus pungens","Pinaceae","native",10,null,"---","---"]
["Pinus rigida","Pinaceae","native",6,null,"FACU","Pitch Pine"]
["Pinus serotina","Pinaceae","native",7,null,"OBL","Pond Pine"]
["Pinus strobus","Pinaceae","native",6,null,"FACU","Eastern White Pine"]
["Pinus sylvestris","Pinaceae","non-native",0,null,"---","---"]
["Pinus taeda","Pinaceae","native",2,null,"FAC","Loblolly Pine"]
["Pinus thumbergii","Pinaceae","non-native",0,null,"---","---"]
["Piptatherum racemosum","Poaceae","native",9,null,"---","---"]
["Piptochaetium avenaceum","Poaceae","native",7,null,"UPL","Black-Seed Spear Grass"]
["Pisum sativum","Fabaceae","non-native",0,null,"---","---"]
["Pityopsis aspera","Asteraceae","native",2,null,"---","---"]
["Pityopsis graminifolia var. graminifolia","Asteraceae","non-native",0,null,"---","---"]
["Pityopsis graminifolia var. latifolia","Asteraceae","native",5,null,"---","---"]
["Plantago aristata","Plantaginaceae","non-native",0,null,"---","---"]
["Plantago cordata","Plantaginaceae","native",10,null,"OBL","Heart-Leaf Plantain"]
["Plantago coronopus","Plantaginaceae","non-native",0,null,"FACU","Buck-Horn Plantain"]
["Plantago heterophylla","Plantaginaceae","native",1,null,"FAC","Slender Plantain"]
["Plantago lanceolata","Plantaginaceae","non-native",0,null,"UPL","English Plantain"]
["Plantago major","Plantaginaceae","non-native",0,null,"FACU","Great Plantain"]
["Plantago media","Plantaginaceae","non-native",0,null,"---","---"]
["Plantago psyllium","Plantaginaceae","non-native",0,null,"---","---"]
["Plantago pusilla","Plantaginaceae","native",1,null,"UPL","Dwarf Plantain"]
["Plantago rugelii","Plantaginaceae","native",0,null,"FACU","Black-Seed Plantain"]
["Plantago virginica","Plantaginaceae","native",1,null,"UPL","Pale-Seed Plantain"]
["Plantago wrightiana","Plantaginaceae","native",2,null,"---","---"]
["Platanthera blephariglottis","Orchidaceae","native",10,null,"OBL","White Fringed Orchid"]
["Platanthera ciliaris","Orchidaceae","native",9,null,"FACW","Yellow Fringed Orchid"]
["Platanthera clavellata","Orchidaceae","native",8,null,"FACW","Green Woodland Orchid"]
["Platanthera cristata","Orchidaceae","native",9,null,"FACW","Crested Yellow Orchid"]
["Platanthera flava","Orchidaceae","native",8,null,"FACW","Pale-Green Orchid"]
["Platanthera grandiflora","Orchidaceae","native",9,null,"FACW","Greater Purple Fringed Orchid"]
["Platanthera lacera","Orchidaceae","native",6,null,"FACW","Green Fringed Orchid"]
["Platanthera macrophylla","Orchidaceae","native",8,null,"FACW","Greater Round-Leaf Orchid"]
["Platanthera nivea","Orchidaceae","native",10,null,"FACW","Snowy Orchid"]
["Platanthera orbiculata","Orchidaceae","native",8,null,"FAC","Lesser Round-Leaf Orchid"]
["Platanthera peramoena","Orchidaceae","native",6,null,"---","---"]
["Platanthera psycodes","Orchidaceae","native",9,null,"FACW","Lesser Purple Fringed Orchid"]
["Platanus occidentalis","Platanaceae","native",5,null,"FACW","American Sycamore"]
["Pleopeltis polypodioides","Polypodiaceae","native",9,null,"FACU","Resurrection Fern"]
["Pluchea camphorata","Asteraceae","native",7,null,"FACW","Plowman's-Wort"]
["Pluchea foetida","Asteraceae","native",6,null,"OBL","Stinking Camphorweed"]
["Pluchea odorata","Asteraceae","native",6,null,"FACW","Sweetscent"]
["Pluchea odorata var. succulenta","Asteraceae","native",5,null,"---","---"]
["Poa alsodes","Poaceae","native",5,null,"FACW","Grove Blue Grass"]
["Poa annua","Poaceae","non-native",0,null,"FACU","Annual Blue Grass"]
["Poa autumnalis","Poaceae","native",6,null,"FAC","Autumn Blue Grass"]
["Poa bulbosa","Poaceae","non-native",0,null,"FACU","Bulbous Blue Grass"]
["Poa chapmaniana","Poaceae","native",2,null,"UPL","Chapman's Blue Grass"]
["Poa compressa","Poaceae","non-native",0,null,"FACU","Flat-Stem Blue Grass"]
["Poa cuspidata","Poaceae","native",8,null,"---","---"]
["Poa nemoralis","Poaceae","non-native",0,null,"FAC","Forest Blue Grass"]
["Poa paludigena","Poaceae","native",10,null,"FACW","Bog Blue Grass"]
["Poa palustris","Poaceae","native",5,null,"FACW","Fowl Blue Grass"]
["Poa pratensis","Poaceae","non-native",0,null,"FACU","Kentucky Blue Grass"]
["Poa sylvestris","Poaceae","native",5,null,"FACW","Woodland Blue Grass"]
["Poa trivialis","Poaceae","non-native",0,null,"FACW","Rough-Stalk Blue Grass"]
["Podophyllum peltatum","Berberidaceae","native",5,null,"FACU","May-Apple"]
["Podostemum ceratophyllum","Podostemaceae","native",8,null,"OBL","Horn-Leaf Riverweed"]
["Pogonia ophioglossoides","Orchidaceae","native",9,null,"OBL","Snake-Mouth Orchid"]
["Polanisia dodecandra","Capparaceae","native",1,null,"FACU","Red-Whisker Clammyweed"]
["Polemonium reptans","Polemoniaceae","native",6,null,"FACU","Greek-Valerian"]
["Polemonium vanbruntiae","Polemoniaceae","native",10,null,"FACW","Bog Jacob's-Ladder"]
["Polycarpon tetraphyllum","Caryophyllaceae","non-native",0,null,"---","---"]
["Polygala ambigua","Polygalaceae","native",7,null,"FACU","Alternate Milkwort"]
["Polygala cruciata","Polygalaceae","native",8,null,"FACW","Drumheads"]
["Polygala cruciata var. aquilonia","Polygalaceae","native",9,null,"---","---"]
["Polygala curtissii","Polygalaceae","native",7,null,"---","---"]
["Polygala incarnata","Polygalaceae","native",8,null,"FACU","Procession-Flower"]
["Polygala lutea","Polygalaceae","native",5,null,"FACW","Orange Milkwort"]
["Polygala mariana","Polygalaceae","native",5,null,"FACW","Maryland Milkwort"]
["Polygala nuttallii","Polygalaceae","native",7,null,"FAC","Nuttall's Milkwort"]
["Polygala paucifolia","Polygalaceae","native",8,null,"---","---"]
["Polygala polygama","Polygalaceae","native",5,null,"UPL","Racemed Milkwort"]
["Polygala sanguinea","Polygalaceae","native",5,null,"FAC","Purple Milkwort"]
["Polygala senega","Polygalaceae","native",5,null,"FACU","Seneca-Snakeroot"]
["Polygala verticillata","Polygalaceae","native",4,null,"UPL","Whorled Milkwort"]
["Polygala verticillata var. isocycla","Polygalaceae","native",4,null,"---","---"]
["Polygonatum biflorum","Liliaceae","native",7,null,"FACU","King Solomon's-Seal"]
["Polygonatum biflorum var. commutatum","Liliaceae","native",7,null,"---","---"]
["Polygonatum pubescens","Liliaceae","native",6,null,"FACU","Hairy Solomon's-Seal"]
["Polygonella articulata","Polygonaceae","native",6,null,"---","---"]
["Polygonum achoreum","Polygonaceae","non-native",0,null,"FACU","Leathery Knotweed"]
["Polygonum amphibium var. stipulaceum","Polygonaceae","native",8,null,"---","---"]
["Polygonum arenastrum","Polygonaceae","non-native",0,null,"---","---"]
["Polygonum aviculare","Polygonaceae","non-native",0,null,"FACU","Yard Knotweed"]
["Polygonum buxiforme","Polygonaceae","native",0,null,"---","---"]
["Polygonum cespitosum","Polygonaceae","non-native",0,null,"---","---"]
["Polygonum cespitosum var. longisetum","Polygonaceae","non-native",0,null,"---","---"]
["Polygonum cilinode","Polygonaceae","native",7,null,"---","---"]
["Polygonum erectum","Polygonaceae","native",0,null,"FACU","Erect Knotweed"]
["Polygonum punctatum var. confertiflorum","Polygonaceae","native",4,null,"---","---"]
["Polygonum ramosissimum","Polygonaceae","native",0,null,"FAC","Yellow-Flower Knotweed"]
["Polygonum robustius","Polygonaceae","native",9,null,"---","---"]
["Polygonum setaceum","Polygonaceae","native",8,null,"---","---"]
["Polygonum tenue","Polygonaceae","native",7,null,"---","---"]
["Polygonum virginianum","Polygonaceae","native",4,null,"---","---"]
["Polymnia canadensis","Asteraceae","native",5,null,"FACU","Whiteflower leafcup"]
["Polypodium virginianum","Polypodiaceae","native",10,null,"---","---"]
["Polypogon monspeliensis","Poaceae","non-native",0,null,"FACW","Annual Rabbit's-Foot Grass"]
["Polypremum procumbens","Buddlejaceae","native",0,null,"UPL","Juniper-Leaf"]
["Polystichum acrostichoides","Dryopteridaceae","native",5,null,"FACU","Christmas Fern"]
["Poncirus trifoliata","Rutaceae","non-native",0,null,"---","---"]
["Pontederia cordata","Pontederiaceae","native",8,null,"OBL","Pickerelweed"]
["Ponthieva racemosa","Orchidaceae","native",9,null,"OBL","Hairy Shadow-Witch"]
["Populus alba","Salicaceae","non-native",0,null,"---","---"]
["Populus deltoides","Salicaceae","native",4,null,"FAC","Eastern Cottonwood"]
["Populus grandidentata","Salicaceae","native",4,null,"FACU","Big-Tooth Aspen"]
["Populus heterophylla","Salicaceae","native",8,null,"OBL","Swamp Cottonwood"]
["Populus nigra","Salicaceae","non-native",0,null,"---","---"]
["Populus tremuloides","Salicaceae","native",4,null,"FAC","Quaking Aspen"]
["Populus X canescens","Salicaceae","non-native",0,null,"---","---"]
["Populus X jackii","Salicaceae","non-native",0,null,"---","---"]
["Portulaca amilis","Portulacaceae","non-native",0,null,"---","---"]
["Portulaca grandiflora","Portulacaceae","non-native",0,null,"UPL","Rose-Moss"]
["Portulaca oleracea","Portulacaceae","non-native",0,null,"FAC","Little-Hogweed"]
["Portulaca smallii","Portulacaceae","native",8,null,"---","---"]
["Potamogeton alpinus","Potamogetonaceae","native",10,null,"OBL","Reddish Pondweed"]
["Potamogeton amplifolius","Potamogetonaceae","native",8,null,"OBL","Large-Leaf Pondweed"]
["Potamogeton bicupulatus","Potamogetonaceae","native",5,null,"OBL","Snail-Seed Pondweed"]
["Potamogeton crispus","Potamogetonaceae","non-native",0,null,"OBL","Curly Pondweed"]
["Potamogeton diversifolius","Potamogetonaceae","native",5,null,"OBL","Waterthread"]
["Potamogeton epihydrus","Potamogetonaceae","native",7,null,"OBL","Ribbon-Leaf Pondweed"]
["Potamogeton foliosus","Potamogetonaceae","native",4,null,"OBL","Leafy Pondweed"]
["Potamogeton illinoensis","Potamogetonaceae","native",8,null,"OBL","Illinois Pondweed"]
["Potamogeton natans","Potamogetonaceae","native",8,null,"OBL","Broad-Leaf Pondweed"]
["Potamogeton nodosus","Potamogetonaceae","native",6,null,"OBL","Long-Leaf Pondweed"]
["Potamogeton oakesianus","Potamogetonaceae","native",9,null,"OBL","Oakes' Pondweed"]
["Potamogeton perfoliatus","Potamogetonaceae","native",6,null,"OBL","Clasping-Leaf Pondweed"]
["Potamogeton pulcher","Potamogetonaceae","native",7,null,"OBL","Spotted Pondweed"]
["Potamogeton pusillus","Potamogetonaceae","native",5,null,"OBL","Small Pondweed"]
["Potamogeton robbinsii","Potamogetonaceae","native",7,null,"OBL","Fern Pondweed"]
["Potamogeton spirillus","Potamogetonaceae","native",7,null,"OBL","Spiral Pondweed"]
["Potamogeton zosteriformis","Potamogetonaceae","native",8,null,"OBL","Flat-Stem Pondweed"]
["Potentilla argentea","Rosaceae","non-native",0,null,"UPL","Silver-Leaf Cinquefoil"]
["Potentilla canadensis","Rosaceae","native",3,null,"---","---"]
["Potentilla indica","Rosaceae","non-native",0,null,"FACU","Indian-Strawberry"]
["Potentilla intermedia","Rosaceae","non-native",0,null,"---","---"]
["Potentilla norvegica","Rosaceae","native",1,null,"FACU","Norwegian Cinquefoil"]
["Potentilla paradoxa","Rosaceae","native",9,null,"---","---"]
["Potentilla recta","Rosaceae","non-native",0,null,"---","---"]
["Potentilla reptans","Rosaceae","non-native",0,null,"---","---"]
["Potentilla rivalis","Rosaceae","non-native",0,null,"FACW","Brook Cinquefoil"]
["Potentilla simplex","Rosaceae","native",3,null,"FACU","Oldfield Cinquefoil"]
["Prenanthes serpentaria","Asteraceae","native",5,null,"---","---"]
["Prenanthes trifoliolata","Asteraceae","native",7,null,"---","---"]
["Proboscidea louisianica","Pedaliaceae","non-native",0,null,"---","---"]
["Prosartes lanuginosa","Liliaceae","native",8,null,"---","---"]
["Prosartes maculata","Liliaceae","native",8,null,"---","---"]
["Proserpinaca intermedia","Haloragaceae","native",6,null,"OBL","Intermediate Mermaidweed"]
["Proserpinaca palustris","Haloragaceae","native",7,null,"OBL","Marsh Mermaidweed"]
["Proserpinaca palustris var. crebra","Haloragaceae","native",7,null,"---","---"]
["Prunella laciniata","Lamiaceae","non-native",0,null,"---","---"]
["Prunella vulgaris","Lamiaceae","non-native",0,null,"FACU","Common Selfheal"]
["Prunella vulgaris ssp. lanceolata","Lamiaceae","native",3,null,"---","---"]
["Prunus alleghaniensis","Rosaceae","native",9,null,"---","---"]
["Prunus americana","Rosaceae","native",4,null,"FACU","American Plum"]
["Prunus angustifolia","Rosaceae","native",4,null,"---","---"]
["Prunus armeniaca","Rosaceae","non-native",0,null,"---","---"]
["Prunus avium","Rosaceae","non-native",0,null,"UPL","Sweet Cherry"]
["Prunus cerasifera","Rosaceae","non-native",0,null,"---","---"]
["Prunus cerasus","Rosaceae","non-native",0,null,"---","---"]
["Prunus domestica","Rosaceae","non-native",0,null,"---","---"]
["Prunus domestica var. insititia","Rosaceae","non-native",0,null,"---","---"]
["Prunus hortulana","Rosaceae","non-native",0,null,"---","---"]
["Prunus mahaleb","Rosaceae","non-native",0,null,"---","---"]
["Prunus munsoniana","Rosaceae","non-native",0,null,"---","---"]
["Prunus padus","Rosaceae","non-native",0,null,"UPL","European Bird Cherry"]
["Prunus pensylvanica","Rosaceae","native",6,null,"FACU","Fire Cherry"]
["Prunus persica","Rosaceae","non-native",0,null,"---","---"]
["Prunus pumila","Rosaceae","native",10,null,"---","---"]
["Prunus serotina","Rosaceae","native",3,null,"FACU","Black Cherry"]
["Prunus susquehanae","Rosaceae","native",9,null,"---","---"]
["Prunus virginiana","Rosaceae","native",5,null,"FACU","Choke Cherry"]
["Pseudognaphalium helleri","Asteraceae","native",8,null,"---","---"]
["Pseudognaphalium obtusifolium","Asteraceae","native",1,null,"---","---"]
["Pseudolysimachion longifolium","Scrophulariaceae","non-native",0,null,"---","---"]
["Pseudosasa japonica","Poaceae","non-native",0,null,"---","---"]
["Ptelea trifoliata","Rutaceae","native",7,null,"FAC","Common Hoptree"]
["Ptelea trifoliata ssp. trifoliata var. mollis","Rutaceae","native",6,null,"---","---"]
["Pteridium aquilinum","Dennstaedtiaceae","native",4,null,"FACU","Northern Bracken Fern"]
["Pteris multifida","Pteridaceae","non-native",0,null,"---","---"]
["Ptilimnium capillaceum","Apiaceae","native",6,null,"OBL","Herbwilliam"]
["Puccinellia americana","Poaceae","non-native",0,null,"---","---"]
["Puccinellia distans","Poaceae","non-native",0,null,"OBL","Spreading Alkali Grass"]
["Puccinellia rupestris","Poaceae","non-native",0,null,"---","---"]
["Pueraria montana","Fabaceae","non-native",0,null,"UPL","Kudzu"]
["Pueraria montana var. lobata","Fabaceae","non-native",0,null,"---","---"]
["Pycnanthemum beadlei","Lamiaceae","native",7,null,"---","---"]
["Pycnanthemum clinopodioides","Lamiaceae","native",9,null,"---","---"]
["Pycnanthemum flexuosum","Lamiaceae","native",7,null,"FACW","Appalachian Mountain-Mint"]
["Pycnanthemum incanum","Lamiaceae","native",5,null,"---","---"]
["Pycnanthemum muticum","Lamiaceae","native",5,null,"FAC","Clustered Mountain-Mint"]
["Pycnanthemum tenuifolium","Lamiaceae","native",5,null,"FACW","Narrow-Leaf Mountain-Mint"]
["Pycnanthemum torrei","Lamiaceae","native",6,null,"---","---"]
["Pycnanthemum verticillatum","Lamiaceae","native",6,null,"FAC","Whorled Mountain-Mint"]
["Pycnanthemum verticillatum var. pilosum","Lamiaceae","native",6,null,"---","---"]
["Pycnanthemum virginianum","Lamiaceae","native",5,null,"FAC","Virginia Mountain-Mint"]
["Pyracantha coccinea","Rosaceae","non-native",0,null,"---","---"]
["Pyrola americana","Pyrolaceae","native",8,null,"FAC","American Wintergreen"]
["Pyrola chlorantha","Pyrolaceae","native",9,null,"UPL","Green-Flower Wintergreen"]
["Pyrola elliptica","Pyrolaceae","native",7,null,"UPL","Shinleaf"]
["Pyrularia pubera","Santalaceae","native",8,null,"UPL","Buffalo-Nut"]
["Pyrus calleryana","Rosaceae","non-native",0,null,"---","---"]
["Pyrus communis","Rosaceae","non-native",0,null,"---","---"]
["Pyrus pyrifolia","Rosaceae","non-native",0,null,"---","---"]
["Quercus alba","Fagaceae","native",6,null,"FACU","Northern White Oak"]
["Quercus bicolor","Fagaceae","native",8,null,"FACW","Swamp White Oak"]
["Quercus coccinea","Fagaceae","native",7,null,"---","---"]
["Quercus falcata","Fagaceae","native",6,null,"FACU","Southern Red Oak"]
["Quercus ilicifolia","Fagaceae","native",8,null,"---","---"]
["Quercus imbricaria","Fagaceae","native",6,null,"FAC","Shingle Oak"]
["Quercus incana","Fagaceae","native",7,null,"---","---"]
["Quercus laevis","Fagaceae","native",8,null,"---","---"]
["Quercus laurifolia","Fagaceae","native",7,null,"FACW","Laurel Oak"]
["Quercus lyrata","Fagaceae","native",8,null,"OBL","Overcup Oak"]
["Quercus macrocarpa","Fagaceae","native",8,null,"FAC","Burr Oak"]
["Quercus margarettae","Fagaceae","native",9,null,"---","---"]
["Quercus marilandica","Fagaceae","native",7,null,"---","---"]
["Quercus michauxii","Fagaceae","native",7,null,"FACW","Swamp Chestnut Oak"]
["Quercus muehlenbergii","Fagaceae","native",8,null,"UPL","Chinkapin Oak"]
["Quercus nigra","Fagaceae","native",4,null,"FAC","Water Oak"]
["Quercus palustris","Fagaceae","native",5,null,"FACW","Pin Oak"]
["Quercus phellos","Fagaceae","native",5,null,"FAC","Willow Oak"]
["Quercus prinoides","Fagaceae","native",8,null,"UPL","Dwarf Chinkapin Oak"]
["Quercus prinus","Fagaceae","native",7,null,"---","---"]
["Quercus rubra","Fagaceae","native",6,null,"FACU","Northern Red Oak"]
["Quercus rubra var. ambigua","Fagaceae","native",6,null,"---","---"]
["Quercus shumardii","Fagaceae","native",7,null,"FAC","Shumard's Oak"]
["Quercus stellata","Fagaceae","native",7,null,"UPL","Post Oak"]
["Quercus velutina","Fagaceae","native",6,null,"---","---"]
["Ranunculus abortivus","Ranunculaceae","native",3,null,"FACW","Kidney-Leaf Buttercup"]
["Ranunculus acris","Ranunculaceae","non-native",0,null,"FAC","Tall Buttercup"]
["Ranunculus allegheniensis","Ranunculaceae","native",5,null,"FAC","Allegheny Mountain Buttercup"]
["Ranunculus arvensis","Ranunculaceae","non-native",0,null,"FAC","Hungerweed"]
["Ranunculus bulbosus","Ranunculaceae","non-native",0,null,"FAC","St. Anthony's-Turnip"]
["Ranunculus fascicularis","Ranunculaceae","native",7,null,"FACU","Early Buttercup"]
["Ranunculus flabellaris","Ranunculaceae","native",5,null,"OBL","Greater Yellow Water Buttercup"]
["Ranunculus flammula","Ranunculaceae","native",10,null,"FACW","Greater Creeping Spearwort"]
["Ranunculus flammula var. filiformis","Ranunculaceae","native",10,null,"---","---"]
["Ranunculus hederaceus","Ranunculaceae","native",7,null,"OBL","Ivy Water-Crowfoot"]
["Ranunculus hispidus","Ranunculaceae","native",5,null,"FAC","Bristly Buttercup"]
["Ranunculus hispidus var. caricetorum","Ranunculaceae","native",9,null,"---","---"]
["Ranunculus laxicaulis","Ranunculaceae","native",10,null,"OBL","Mississippi Buttercup"]
["Ranunculus micranthus","Ranunculaceae","native",6,null,"FACU","Rock Buttercup"]
["Ranunculus parviflorus","Ranunculaceae","non-native",0,null,"FAC","Small-Flower Buttercup"]
["Ranunculus pensylvanicus","Ranunculaceae","native",6,null,"OBL","Pennsylvania Buttercup"]
["Ranunculus pusillus","Ranunculaceae","native",6,null,"OBL","Low Spearwort"]
["Ranunculus recurvatus","Ranunculaceae","native",4,null,"FAC","Blisterwort"]
["Ranunculus repens","Ranunculaceae","non-native",0,null,"FAC","Creeping Buttercup"]
["Ranunculus sardous","Ranunculaceae","non-native",0,null,"FAC","Hairy Buttercup"]
["Ranunculus sceleratus","Ranunculaceae","native",2,null,"OBL","Cursed Buttercup"]
["Ranunculus trichophyllus","Ranunculaceae","native",8,null,"OBL","Thread-Leaf Water-Crowfoot"]
["Raphanus raphanistrum","Brassicaceae","non-native",0,null,"---","---"]
["Raphanus sativus","Brassicaceae","non-native",0,null,"---","---"]
["Ratibida columnifera","Asteraceae","non-native",0,null,"---","---"]
["Ratibida pinnata","Asteraceae","non-native",0,null,"---","---"]
["Reseda alba","Resedaceae","non-native",0,null,"---","---"]
["Reseda lutea","Resedaceae","non-native",0,null,"---","---"]
["Reseda luteola","Resedaceae","non-native",0,null,"---","---"]
["Reseda odorata","Resedaceae","non-native",0,null,"---","---"]
["Reseda phyteuma","Resedaceae","non-native",0,null,"---","---"]
["Reynoutria sachalinensis","Polygonaceae","non-native",0,null,"UPL","Giant-Knotweed"]
["Rhamnus alnifolia","Rhamnaceae","native",9,null,"OBL","Alder-Leaf Buckthorn"]
["Rhamnus cathartica","Rhamnaceae","non-native",0,null,"FACU","European Buckthorn"]
["Rhamnus davurica","Rhamnaceae","non-native",0,null,"---","---"]
["Rhamnus lanceolata","Rhamnaceae","native",9,null,"FAC","Lance-Leaf Buckthorn"]
["Rheum rhabarbarum","Polygonaceae","non-native",0,null,"---","---"]
["Rhexia aristosa","Melastomataceae","native",9,null,"OBL","Awn-Petal Meadow-Beauty"]
["Rhexia mariana","Melastomataceae","native",5,null,"OBL","Maryland Meadow-Beauty"]
["Rhexia mariana var. ventricosa","Melastomataceae","native",5,null,"---","---"]
["Rhexia petiolata","Melastomataceae","native",5,null,"OBL","Fringed Meadow-Beauty"]
["Rhodiola rosea","Crassulaceae","native",10,null,"FACU","King's-Crown"]
["Rhododendron arborescens","Ericaceae","native",7,null,"FAC","Smooth Azalea"]
["Rhododendron calendulaceum","Ericaceae","native",7,null,"---","---"]
["Rhododendron catawbiense","Ericaceae","native",8,null,"FACU","Catawba Rosebay"]
["Rhododendron maximum","Ericaceae","native",7,null,"FAC","Great-Laurel"]
["Rhododendron periclymenoides","Ericaceae","native",6,null,"FAC","Pink Azalea"]
["Rhododendron prinophyllum","Ericaceae","native",8,null,"FAC","Early Azalea"]
["Rhododendron viscosum","Ericaceae","native",7,null,"FACW","Clammy Azalea"]
["Rhodotypos scandens","Rosaceae","non-native",0,null,"---","---"]
["Rhus aromatica","Anacardiaceae","native",7,null,"UPL","Fragrant Sumac"]
["Rhus copallinum","Anacardiaceae","native",2,null,"FACU","Winged Sumac"]
["Rhus copallinum var. latifolia","Anacardiaceae","native",2,null,"---","---"]
["Rhus glabra","Anacardiaceae","native",3,null,"---","---"]
["Rhus michauxii","Anacardiaceae","native",9,null,"---","---"]
["Rhus typhina","Anacardiaceae","native",2,null,"---","---"]
["Rhynchosia difformis","Fabaceae","native",6,null,"---","---"]
["Rhynchosia tomentosa","Fabaceae","native",7,null,"---","---"]
["Rhynchospora alba","Cyperaceae","native",8,null,"OBL","White Beak Sedge"]
["Rhynchospora caduca","Cyperaceae","native",6,null,"OBL","Angle-Stem Beak Sedge"]
["Rhynchospora capillacea","Cyperaceae","native",10,null,"OBL","Needle Beak Sedge"]
["Rhynchospora capitellata","Cyperaceae","native",4,null,"OBL","Brownish Beak Sedge"]
["Rhynchospora cephalantha","Cyperaceae","native",7,null,"OBL","Bunched Beak Sedge"]
["Rhynchospora chalarocephala","Cyperaceae","native",6,null,"OBL","Loose-Head Beak Sedge"]
["Rhynchospora debilis","Cyperaceae","native",7,null,"OBL","Savannah Beak Sedge"]
["Rhynchospora fascicularis","Cyperaceae","native",8,null,"OBL","Fascicled Beak Sedge"]
["Rhynchospora globularis","Cyperaceae","native",10,null,"FACW","Globe Beak Sedge"]
["Rhynchospora gracilenta","Cyperaceae","native",7,null,"OBL","Slender Beak Sedge"]
["Rhynchospora harveyi","Cyperaceae","native",10,null,"FAC","Harvey's Beak Sedge"]
["Rhynchospora inexpansa","Cyperaceae","native",3,null,"FACW","Nodding Beak Sedge"]
["Rhynchospora macrostachya","Cyperaceae","native",7,null,"OBL","Tall Horned Beak Sedge"]
["Rhynchospora microcephala","Cyperaceae","native",10,null,"FACW","Small-Head Beak Sedge"]
["Rhynchospora pallida","Cyperaceae","native",10,null,"OBL","Pale Beak Sedge"]
["Rhynchospora perplexa","Cyperaceae","native",9,null,"FACW","Pineland Beak Sedge"]
["Rhynchospora rariflora","Cyperaceae","native",10,null,"OBL","Few-Flower Beak Sedge"]
["Rhynchospora recognita","Cyperaceae","native",8,null,"FACW","Coarse Globe Beak Sedge"]
["Rhynchospora scirpoides","Cyperaceae","native",8,null,"OBL","Long-Beak Beak Sedge"]
["Rhynchospora torreyana","Cyperaceae","native",7,null,"FACW","Torrey's Beak Sedge"]
["Ribes americanum","Grossulariaceae","native",7,null,"FACW","Wild Black Currant"]
["Ribes aureum","Grossulariaceae","non-native",0,null,"FACW","Golden Currant"]
["Ribes aureum var. villosum","Grossulariaceae","non-native",0,null,"---","---"]
["Ribes cynosbati","Grossulariaceae","native",7,null,"FACU","Eastern Prickly Gooseberry"]
["Ribes missouriense","Grossulariaceae","non-native",0,null,"---","---"]
["Ribes rubrum","Grossulariaceae","non-native",0,null,"---","---"]
["Ribes uva-crispa","Grossulariaceae","non-native",0,null,"---","---"]
["Ribes uva-crispa var. sativum","Grossulariaceae","non-native",0,null,"---","---"]
["Richardia brasiliensis","Rubiaceae","non-native",0,null,"---","---"]
["Ricinus communis","Euphorbiaceae","non-native",0,null,"UPL","Castor-Bean"]
["Robinia hispida","Fabaceae","non-native",0,null,"---","---"]
["Robinia pseudoacacia","Fabaceae","native",1,null,"FACU","Black Locust"]
["Robinia viscosa","Fabaceae","non-native",0,null,"---","---"]
["Rorippa austriaca","Brassicaceae","non-native",0,null,"FAC","Austrian Yellowcress"]
["Rorippa palustris","Brassicaceae","non-native",0,null,"OBL","Bog Yellowcress"]
["Rorippa sessiliflora","Brassicaceae","native",7,null,"OBL","Stalkless Yellowcress"]
["Rorippa sylvestris","Brassicaceae","non-native",0,null,"FACW","Creeping Yellowcress"]
["Rosa blanda","Rosaceae","native",9,null,"FACU","Smooth Rose"]
["Rosa bracteata","Rosaceae","non-native",0,null,"UPL","Chickasaw Rose"]
["Rosa canina","Rosaceae","non-native",0,null,"---","---"]
["Rosa carolina","Rosaceae","native",6,null,"FACU","Carolina Rose"]
["Rosa cinnamomea","Rosaceae","non-native",0,null,"---","---"]
["Rosa eglanteria","Rosaceae","non-native",0,null,"---","---"]
["Rosa gallica","Rosaceae","non-native",0,null,"---","---"]
["Rosa micrantha","Rosaceae","non-native",0,null,"FACU","Small-Flower Sweetbrier"]
["Rosa multiflora","Rosaceae","non-native",0,null,"FACU","Rambler Rose"]
["Rosa palustris","Rosaceae","native",7,null,"OBL","Swamp Rose"]
["Rosa rugosa","Rosaceae","non-native",0,null,"FACU","Rugosa Rose"]
["Rosa setigera","Rosaceae","native",3,null,"FACU","Climbing Rose"]
["Rosa virginiana","Rosaceae","native",6,null,"FAC","Virginia Rose"]
["Rosa wichuraiana","Rosaceae","non-native",0,null,"---","---"]
["Rotala ramosior","Lythraceae","native",2,null,"OBL","Lowland Toothcup"]
["Rubus aboriginum","Rosaceae","non-native",0,null,"---","---"]
["Rubus allegheniensis","Rosaceae","native",1,null,"FACU","Allegheny Blackberry"]
["Rubus andrewsianus","Rosaceae","native",2,null,"---","---"]
["Rubus armeniacus","Rosaceae","non-native",0,null,"UPL","Himalayan Blackberry"]
["Rubus bifrons","Rosaceae","non-native",0,null,"---","---"]
["Rubus cuneifolius","Rosaceae","native",3,null,"UPL","Sand Blackberry"]
["Rubus floricomus","Rosaceae","native",2,null,"FAC","Many-Flower Blackberry"]
["Rubus hispidus","Rosaceae","native",6,null,"FACW","Bristly Dewberry"]
["Rubus idaeus","Rosaceae","non-native",0,null,"FAC","Common Red Raspberry"]
["Rubus illecebrosus","Rosaceae","non-native",0,null,"---","---"]
["Rubus invisus","Rosaceae","native",1,null,"---","---"]
["Rubus laciniatus","Rosaceae","non-native",0,null,"UPL","Cut-Leaf Blackberry"]
["Rubus montensis","Rosaceae","native",8,null,"---","---"]
["Rubus occidentalis","Rosaceae","native",2,null,"---","---"]
["Rubus odoratus","Rosaceae","native",6,null,"---","---"]
["Rubus pensilvanicus","Rosaceae","native",2,null,"FAC","Pennsylvania Blackberry"]
["Rubus permixtus","Rosaceae","native",6,null,"---","---"]
["Rubus phoenicolasius","Rosaceae","non-native",0,null,"FACU","Wine Raspberry"]
["Rubus pubescens","Rosaceae","native",8,null,"FACW","Dwarf Red Raspberry"]
["Rubus recurvicaulis","Rosaceae","native",1,null,"---","---"]
["Rubus setosus","Rosaceae","native",8,null,"FACW","Setose Blackberry"]
["Rudbeckia fulgida","Asteraceae","native",6,null,"FAC","Orange Coneflower"]
["Rudbeckia fulgida var. speciosa","Asteraceae","non-native",0,null,"---","---"]
["Rudbeckia heliopsidis","Asteraceae","native",9,null,"---","---"]
["Rudbeckia hirta","Asteraceae","native",2,null,"FACU","Black-Eyed-Susan"]
["Rudbeckia hirta var. pulcherrima","Asteraceae","non-native",0,null,"---","---"]
["Rudbeckia laciniata","Asteraceae","native",5,null,"FACW","Green-Head Coneflower"]
["Rudbeckia triloba","Asteraceae","native",5,null,"FACU","Brown-Eyed-Susan"]
["Ruellia caroliniensis","Acanthaceae","native",3,null,"FACU","Carolina Wild Petunia"]
["Ruellia humilis","Acanthaceae","native",6,null,"FACU","Fringe-Leaf Wild Petunia"]
["Ruellia purshiana","Acanthaceae","native",8,null,"---","---"]
["Ruellia strepens","Acanthaceae","native",6,null,"FAC","Limestone Wild Petunia"]
["Rumex acetosa","Polygonaceae","non-native",0,null,"FACU","Garden Sorrel"]
["Rumex acetosella","Polygonaceae","non-native",0,null,"UPL","Common Sheep Sorrel"]
["Rumex altissimus","Polygonaceae","native",2,null,"FACW","Pale Dock"]
["Rumex conglomeratus","Polygonaceae","non-native",0,null,"FAC","Sharp Dock"]
["Rumex crispus","Polygonaceae","non-native",0,null,"FAC","Curly Dock"]
["Rumex hastatulus","Polygonaceae","native",1,null,"FACU","Heart-Wing Sorrel"]
["Rumex maritimus","Polygonaceae","non-native",0,null,"FAC","Golden Dock"]
["Rumex obtusifolius","Polygonaceae","non-native",0,null,"FACU","Bitter Dock"]
["Rumex orbiculatus","Polygonaceae","native",10,null,"---","---"]
["Rumex patientia","Polygonaceae","non-native",0,null,"---","---"]
["Rumex pulcher","Polygonaceae","non-native",0,null,"FACW","Fiddle Dock"]
["Rumex salicifolius","Polygonaceae","non-native",0,null,"---","---"]
["Rumex salicifolius var. mexicanus","Polygonaceae","non-native",0,null,"---","---"]
["Rumex sanguineus","Polygonaceae","non-native",0,null,"---","---"]
["Rumex verticillatus","Polygonaceae","native",6,null,"OBL","Swamp Dock"]
["Ruta graveolens","Rutaceae","non-native",0,null,"---","---"]
["Sabatia angularis","Gentianaceae","native",1,null,"FAC","Rose-Pink"]
["Sabatia brachiata","Gentianaceae","native",7,null,"FACU","Narrow-Leaf Rose-Gentian"]
["Sabatia campanulata","Gentianaceae","native",9,null,"FACW","Slender Rose-Gentian"]
["Sabatia difformis","Gentianaceae","native",8,null,"OBL","Lance-Leaf Rose-Gentian"]
["Sabatia dodecandra","Gentianaceae","native",9,null,"OBL","Marsh Rose-Gentian"]
["Sabatia quadrangula","Gentianaceae","native",8,null,"FAC","Four-Angle Rose-Gentian"]
["Saccharum alopecuroides","Poaceae","native",3,null,"FAC","Silver Plume Grass"]
["Saccharum giganteum","Poaceae","native",5,null,"FACW","Giant Plume Grass"]
["Sagina decumbens","Caryophyllaceae","native",0,null,"FAC","Trailing Pearlwort"]
["Sagina japonica","Caryophyllaceae","non-native",0,null,"---","---"]
["Sagina procumbens","Caryophyllaceae","non-native",0,null,"FACW","Bird-Eye Pearlwort"]
["Sagittaria calycina","Alismataceae","native",8,null,"OBL","Hooded Arrowhead"]
["Sagittaria engelmanniana","Alismataceae","native",8,null,"OBL","Engelmann's Arrowhead"]
["Sagittaria graminea","Alismataceae","native",8,null,"OBL","Grass-Leaf Arrowhead"]
["Sagittaria latifolia","Alismataceae","native",4,null,"OBL","Duck-Potato"]
["Sagittaria rigida","Alismataceae","native",7,null,"OBL","Sessile-Fruit Arrowhead"]
["Salix alba","Salicaceae","non-native",0,null,"FACW","White Willow"]
["Salix bebbiana","Salicaceae","native",8,null,"FACW","Gray Willow"]
["Salix caprea","Salicaceae","non-native",0,null,"OBL","Goat Willow"]
["Salix caroliniana","Salicaceae","native",6,null,"OBL","Carolina Willow"]
["Salix cinerea","Salicaceae","non-native",0,null,"FACW","Large Gray Willow"]
["Salix cordata","Salicaceae","native",8,null,"---","---"]
["Salix discolor","Salicaceae","native",6,null,"FACW","Pussy Willow"]
["Salix fragilis","Salicaceae","non-native",0,null,"---","---"]
["Salix humilis","Salicaceae","native",6,null,"FACU","Prairie Willow"]
["Salix interior","Salicaceae","native",6,null,"FACW","Sandbar Willow"]
["Salix lucida","Salicaceae","native",8,null,"FACW","Shining Willow"]
["Salix matsudana","Salicaceae","non-native",0,null,"---","---"]
["Salix myricoides","Salicaceae","native",7,null,"FACW","Bayberry Willow"]
["Salix nigra","Salicaceae","native",2,null,"OBL","Black Willow"]
["Salix pentandra","Salicaceae","non-native",0,null,"---","---"]
["Salix purpurea","Salicaceae","non-native",0,null,"FACW","Purple Willow"]
["Salix sericea","Salicaceae","native",5,null,"OBL","Silky Willow"]
["Salsola kali","Chenopodiaceae","non-native",0,null,"FACU","Russian-Thistle"]
["Salsola tragus","Chenopodiaceae","non-native",0,null,"FACU","Prickly Russian-Thistle"]
["Salvia lyrata","Lamiaceae","native",2,null,"FACU","Lyre-Leaf Sage"]
["Salvia officinalis","Lamiaceae","non-native",0,null,"---","---"]
["Salvia pratensis","Lamiaceae","non-native",0,null,"---","---"]
["Salvia reflexa","Lamiaceae","non-native",0,null,"---","---"]
["Salvia sclarea","Lamiaceae","non-native",0,null,"---","---"]
["Salvia urticifolia","Lamiaceae","native",6,null,"---","---"]
["Salvia verbenaca","Lamiaceae","non-native",0,null,"---","---"]
["Salvia verticillata","Lamiaceae","non-native",0,null,"---","---"]
["Salvia X sylvestris","Lamiaceae","non-native",0,null,"---","---"]
["Sambucus nigra","Caprifoliaceae","non-native",0,null,"FAC","Black Elder"]
["Sambucus nigra ssp. canadensis","Caprifoliaceae","native",3,null,"---","---"]
["Sambucus racemosa","Caprifoliaceae","native",6,null,"FACU","Red Elder"]
["Samolus valerandi","Primulaceae","native",7,null,"OBL","Seaside Brookweed"]
["Sanguinaria canadensis","Papaveraceae","native",5,null,"UPL","Bloodroot"]
["Sanguisorba canadensis","Rosaceae","native",8,null,"FACW","Canadian Burnet"]
["Sanguisorba minor","Rosaceae","non-native",0,null,"---","---"]
["Sanguisorba minor ssp. balearica","Rosaceae","non-native",0,null,"---","---"]
["Sanicula canadensis","Apiaceae","native",3,null,"UPL","Canadian Black-Snakeroot"]
["Sanicula marilandica","Apiaceae","native",7,null,"FACU","Maryland Black-Snakeroot"]
["Sanicula odorata","Apiaceae","native",7,null,"FACU","Clustered Black-Snakeroot"]
["Sanicula smallii","Apiaceae","native",7,null,"---","---"]
["Sanicula trifoliata","Apiaceae","native",6,null,"---","---"]
["Saponaria officinalis","Caryophyllaceae","non-native",0,null,"FACU","Bouncing-Bett"]
["Sarracenia flava","Sarraceniaceae","native",10,null,"OBL","Yellow Pitcherplant"]
["Sarracenia purpurea","Sarraceniaceae","native",10,null,"OBL","Purple Pitcherplant"]
["Sassafras albidum","Lauraceae","native",3,null,"FACU","Sassafras"]
["Satureja hortensis","Lamiaceae","non-native",0,null,"---","---"]
["Saururus cernuus","Saururaceae","native",8,null,"OBL","Lizard's-Tail"]
["Saxifraga michauxii","Saxifragaceae","native",10,null,"---","---"]
["Saxifraga micranthidifolia","Saxifragaceae","native",10,null,"---","---"]
["Scandix pecten-veneris","Apiaceae","non-native",0,null,"---","---"]
["Schedonorus phoenix","Poaceae","non-native",0,null,"---","---"]
["Schedonorus pratensis","Poaceae","non-native",0,null,"FACU","Meadow False Rye Grass"]
["Scheuchzeria palustris","Scheuchzeriaceae","native",10,null,"OBL","Rannoch-Rush"]
["Schizachne purpurascens","Poaceae","native",10,null,"FACU","False Melic Grass"]
["Schizachyrium scoparium","Poaceae","native",4,null,"FACU","Little False Bluestem"]
["Schoenoplectus acutus","Cyperaceae","native",9,null,"OBL","Hard-Stem Club-Rush"]
["Schoenoplectus fluviatilis","Cyperaceae","native",9,null,"OBL","River Club-Rush"]
["Schoenoplectus maritimus","Cyperaceae","native",5,null,"OBL","Saltmarsh Club-Rush"]
["Schoenoplectus mucronatus","Cyperaceae","non-native",0,null,"OBL","Bog Club-Rush"]
["Schoenoplectus pungens","Cyperaceae","native",6,null,"OBL","Three-Square"]
["Schoenoplectus subterminalis","Cyperaceae","native",10,null,"OBL","Swaying Club-Rush"]
["Schoenoplectus tabernaemontani","Cyperaceae","native",4,null,"OBL","Soft-Stem Club-Rush"]
["Schwalbea americana","Scrophulariaceae","native",10,null,"FACU","Chaffseed"]
["Scilla siberica","Liliaceae","non-native",0,null,"---","---"]
["Scirpus ancistrochaetus","Cyperaceae","native",10,null,"OBL","Barbed-Bristle Bulrush"]
["Scirpus atrovirens","Cyperaceae","native",3,null,"OBL","Dark-Green Bulrush"]
["Scirpus cyperinus","Cyperaceae","native",2,null,"FACW","Cottongrass Bulrush"]
["Scirpus divaricatus","Cyperaceae","native",5,null,"OBL","Spreading Bulrush"]
["Scirpus expansus","Cyperaceae","native",8,null,"OBL","Woodland Bulrush"]
["Scirpus georgianus","Cyperaceae","native",3,null,"OBL","Georgia Bulrush"]
["Scirpus hattorianus","Cyperaceae","native",3,null,"OBL","Mosquito Bulrush"]
["Scirpus microcarpus","Cyperaceae","native",9,null,"OBL","Red-Tinge Bulrush"]
["Scirpus pallidus","Cyperaceae","non-native",0,null,"OBL","Pale Bulrush"]
["Scirpus pendulus","Cyperaceae","native",5,null,"OBL","Rufous Bulrush"]
["Scirpus polyphyllus","Cyperaceae","native",4,null,"OBL","Leafy Bulrush"]
["Scleranthus annuus","Caryophyllaceae","non-native",0,null,"FACU","Annual Knawel"]
["Scleria ciliata","Cyperaceae","native",7,null,"FAC","Fringed Nut-Rush"]
["Scleria minor","Cyperaceae","native",9,null,"FACW","Slender Nut-Rush"]
["Scleria muehlenbergii","Cyperaceae","native",10,null,"FAC","Muehlenberg's Nut-Rush"]
["Scleria oligantha","Cyperaceae","native",10,null,"FACU","Little-Head Nut-Rush"]
["Scleria pauciflora","Cyperaceae","native",10,null,"FACU","Few-Flower Nut-Rush"]
["Scleria pauciflora var. caroliniana","Cyperaceae","native",10,null,"---","---"]
["Scleria reticularis","Cyperaceae","native",9,null,"OBL","Netted Nut-Rush"]
["Scleria verticillata","Cyperaceae","native",10,null,"OBL","Low Nut-Rush"]
["Sclerolepis uniflora","Asteraceae","native",10,null,"OBL","Pink Bogbutton"]
["Scolymus hispanicus","Asteraceae","non-native",0,null,"---","---"]
["Scorzoneroides autumnalis","Asteraceae","non-native",0,null,"FAC","August-Flower"]
["Scrophularia lanceolata","Scrophulariaceae","native",4,null,"FACU","Lance-Leaf Figwort"]
["Scrophularia marilandica","Scrophulariaceae","native",4,null,"FACU","Carpenter's-Square"]
["Scrophularia umbrosa","Scrophulariaceae","non-native",0,null,"---","---"]
["Scutellaria elliptica","Lamiaceae","native",7,null,"---","---"]
["Scutellaria galericulata","Lamiaceae","native",9,null,"OBL","Hooded Skullcap"]
["Scutellaria incana","Lamiaceae","native",6,null,"---","---"]
["Scutellaria integrifolia","Lamiaceae","native",5,null,"FACW","Helmet-Flower"]
["Scutellaria lateriflora","Lamiaceae","native",5,null,"FACW","Mad Dog Skullcap"]
["Scutellaria nervosa","Lamiaceae","native",7,null,"FAC","Veiny Skullcap"]
["Scutellaria ovata","Lamiaceae","native",8,null,"FACU","Heart-Leaf Skullcap"]
["Scutellaria parvula","Lamiaceae","native",8,null,"UPL","Small Skullcap"]
["Scutellaria parvula var. australis","Lamiaceae","native",8,null,"---","---"]
["Scutellaria parvula var. missouriensis","Lamiaceae","native",8,null,"---","---"]
["Scutellaria saxatilis","Lamiaceae","native",9,null,"---","---"]
["Scutellaria serrata","Lamiaceae","native",7,null,"---","---"]
["Secale cereale","Poaceae","non-native",0,null,"---","---"]
["Securigera varia","Fabaceae","non-native",0,null,"---","---"]
["Sedum acre","Crassulaceae","non-native",0,null,"---","---"]
["Sedum album","Crassulaceae","non-native",0,null,"---","---"]
["Sedum glaucophyllum","Crassulaceae","native",10,null,"---","---"]
["Sedum kamtschaticum","Crassulaceae","non-native",0,null,"---","---"]
["Sedum kamtschaticum ssp. ellacombianum","Crassulaceae","non-native",0,null,"---","---"]
["Sedum sarmentosum","Crassulaceae","non-native",0,null,"---","---"]
["Sedum ternatum","Crassulaceae","native",6,null,"FACU","Woodland Stonecrop"]
["Selaginella apoda","Selaginellaceae","native",6,null,"FACW","Meadow Spike-Moss"]
["Selaginella rupestris","Selaginellaceae","native",10,null,"---","---"]
["Senecio erucifolius","Asteraceae","non-native",0,null,"---","---"]
["Senecio jacobaea","Asteraceae","non-native",0,null,"---","---"]
["Senecio sylvaticus","Asteraceae","non-native",0,null,"UPL","Woodland Ragwort"]
["Senecio viscosus","Asteraceae","non-native",0,null,"---","---"]
["Senecio vulgaris","Asteraceae","non-native",0,null,"FACU","Old-Man-in-the-Spring"]
["Senna hebecarpa","Fabaceae","native",5,null,"FAC","American Wild Sensitive-Plant"]
["Senna marilandica","Fabaceae","native",4,null,"FAC","Maryland Wild Sensitive-Plant"]
["Senna obtusifolia","Fabaceae","non-native",0,null,"FACU","Coffeeweed"]
["Sericocarpus asteroides","Asteraceae","native",5,null,"---","---"]
["Sesbania herbacea","Fabaceae","non-native",0,null,"FAC","Peatree"]
["Sesuvium portulacastrum","Aizoaceae","non-native",0,null,"FACW","Shoreline Sea-Purslane"]
["Setaria faberi","Poaceae","non-native",0,null,"UPL","Japanese Bristle Grass"]
["Setaria italica","Poaceae","non-native",0,null,"FACU","Italian Bristle Grass"]
["Setaria parviflora","Poaceae","native",3,null,"FAC","Marsh Bristle Grass"]
["Setaria pumila","Poaceae","non-native",0,null,"FAC","Yellow Bristle Grass"]
["Setaria verticillata","Poaceae","non-native",0,null,"FAC","Rough Bristle Grass"]
["Setaria viridis","Poaceae","non-native",0,null,"---","---"]
["Setaria viridis var. major","Poaceae","non-native",0,null,"---","---"]
["Seymeria cassioides","Scrophulariaceae","native",8,null,"FAC","Yaupon Black-Senna"]
["Sherardia arvensis","Rubiaceae","non-native",0,null,"---","---"]
["Shortia galacifolia","Diapensiaceae","native",10,null,"FACU","Oconee-Bells"]
["Sibara virginica","Brassicaceae","native",0,null,"---","---"]
["Sibbaldiopsis tridentata syn potentilla","Rosaceae","native",10,null,"---","---"]
["Sicyos angulatus","Cucurbitaceae","native",3,null,"FACU","One-Seed Burr-Cucumber"]
["Sida acuta","Malvaceae","non-native",0,null,"UPL","Common-Wireweed"]
["Sida elliottii","Malvaceae","native",9,null,"---","---"]
["Sida hermaphrodita","Malvaceae","native",4,null,"FAC","Virginia Fanpetals"]
["Sida linifolia","Malvaceae","non-native",0,null,"---","---"]
["Sida rhombifolia","Malvaceae","non-native",0,null,"UPL","Cuban-Jute"]
["Sida spinosa","Malvaceae","non-native",0,null,"UPL","Prickly Fanpetals"]
["Sideritis romana","Lamiaceae","non-native",0,null,"---","---"]
["Sideroxylon lycioides","Sapotaceae","native",7,null,"FACW","Buckthorn Bully"]
["Silene antirrhina","Caryophyllaceae","native",1,null,"---","---"]
["Silene armeria","Caryophyllaceae","non-native",0,null,"---","---"]
["Silene caroliniana","Caryophyllaceae","native",6,null,"---","---"]
["Silene conica","Caryophyllaceae","non-native",0,null,"---","---"]
["Silene conoidea","Caryophyllaceae","non-native",0,null,"---","---"]
["Silene csereii","Caryophyllaceae","non-native",0,null,"---","---"]
["Silene dichotoma","Caryophyllaceae","non-native",0,null,"---","---"]
["Silene dioica","Caryophyllaceae","non-native",0,null,"---","---"]
["Silene flos-cuculi","Caryophyllaceae","non-native",0,null,"FACU","Ragged-Robin"]
["Silene gallica","Caryophyllaceae","non-native",0,null,"---","---"]
["Silene latifolia","Caryophyllaceae","non-native",0,null,"---","---"]
["Silene latifolia ssp. alba","Caryophyllaceae","non-native",0,null,"---","---"]
["Silene nivea","Caryophyllaceae","native",8,null,"FAC","Snowy Catchfly"]
["Silene noctiflora","Caryophyllaceae","non-native",0,null,"---","---"]
["Silene stellata","Caryophyllaceae","native",6,null,"---","---"]
["Silene virginica","Caryophyllaceae","native",7,null,"---","---"]
["Silene vulgaris","Caryophyllaceae","non-native",0,null,"---","---"]
["Silphium compositum","Asteraceae","native",8,null,"---","---"]
["Silphium laciniatum","Asteraceae","native",10,null,"---","---"]
["Silphium perfoliatum","Asteraceae","native",8,null,"FAC","Cup-Plant"]
["Silphium perfoliatum var. connatum","Asteraceae","native",8,null,"---","---"]
["Silphium trifoliatum","Asteraceae","native",7,null,"---","---"]
["Silybum marianum","Asteraceae","non-native",0,null,"---","---"]
["Sinapis alba","Brassicaceae","non-native",0,null,"FAC","White-Mustard"]
["Sinapis arvensis","Brassicaceae","non-native",0,null,"---","---"]
["Sisymbrium altissimum","Brassicaceae","non-native",0,null,"FACU","Tall Hedge-Mustard"]
["Sisymbrium irio","Brassicaceae","non-native",0,null,"---","---"]
["Sisymbrium officinale","Brassicaceae","non-native",0,null,"---","---"]
["Sisyrinchium albidum","Iridaceae","native",5,null,"FAC","White Blue-Eyed-Grass"]
["Sisyrinchium angustifolium","Iridaceae","native",2,null,"FACW","Narrow-Leaf Blue-Eyed-Grass"]
["Sisyrinchium atlanticum","Iridaceae","native",7,null,"FACW","Eastern Blue-Eyed-Grass"]
["Sisyrinchium fuscatum","Iridaceae","native",7,null,"FACU","Coastal-Plain Blue-Eyed-Grass"]
["Sisyrinchium mucronatum","Iridaceae","native",3,null,"FAC","Needle-Tip Blue-Eyed-Grass"]
["Sium suave","Apiaceae","native",7,null,"OBL","Hemlock Water-Parsnip"]
["Smallanthus uvedalius","Asteraceae","native",4,null,"---","---"]
["Smilax bona-nox","Smilacaceae","native",4,null,"FACU","Fringed Greenbrier"]
["Smilax glauca","Smilacaceae","native",4,null,"FACU","Sawbrier"]
["Smilax herbacea","Smilacaceae","native",6,null,"FAC","Smooth Carrion-Flower"]
["Smilax laurifolia","Smilacaceae","native",7,null,"OBL","Laurel-Leaf Greenbrier"]
["Smilax pseudochina","Smilacaceae","native",6,null,"FAC","Bamboovine"]
["Smilax pulverulenta","Smilacaceae","native",6,null,"FACU","Downy Carrion-Flower"]
["Smilax rotundifolia","Smilacaceae","native",2,null,"FAC","Horsebrier"]
["Smilax tamnoides","Smilacaceae","native",5,null,"---","---"]
["Smilax walteri","Smilacaceae","native",7,null,"OBL","Coral Greenbrier"]
["Solanum carolinense","Solanaceae","native",2,null,"FACU","Carolina Horse-Nettle"]
["Solanum dulcamara","Solanaceae","non-native",0,null,"FAC","Climbing Nightshade"]
["Solanum dulcamara var. villosissimum","Solanaceae","non-native",0,null,"---","---"]
["Solanum lycopersicum","Solanaceae","non-native",0,null,"---","---"]
["Solanum physalifolium","Solanaceae","non-native",0,null,"---","---"]
["Solanum ptychanthum","Solanaceae","native",3,null,"FACU","Eastern Black Nightshade"]
["Solanum rostratum","Solanaceae","non-native",0,null,"---","---"]
["Solanum sisymbriifolium","Solanaceae","non-native",0,null,"---","---"]
["Solanum tuberosum","Solanaceae","non-native",0,null,"---","---"]
["Solanum villosum","Solanaceae","non-native",0,null,"---","---"]
["Solidago altissima","Asteraceae","native",2,null,"FACU","Tall Goldenrod"]
["Solidago arguta","Asteraceae","native",7,null,"UPL","Atlantic Goldenrod"]
["Solidago arguta var. caroliniana","Asteraceae","native",8,null,"---","---"]
["Solidago arguta var. harrisii","Asteraceae","native",10,null,"---","---"]
["Solidago bicolor","Asteraceae","native",4,null,"---","---"]
["Solidago caesia","Asteraceae","native",6,null,"FACU","Wreath Goldenrod"]
["Solidago canadensis","Asteraceae","native",2,null,"FACU","Canadian Goldenrod"]
["Solidago curtisii","Asteraceae","native",7,null,"FACU","Curtis' Goldenrod"]
["Solidago fistulosa","Asteraceae","native",7,null,"FACW","Pine-Barren Goldenrod"]
["Solidago flexicaulis","Asteraceae","native",7,null,"FACU","Zigzag Goldenrod"]
["Solidago hispida","Asteraceae","native",8,null,"---","---"]
["Solidago juncea","Asteraceae","native",2,null,"---","---"]
["Solidago nemoralis","Asteraceae","native",2,null,"---","---"]
["Solidago odora","Asteraceae","native",7,null,"---","---"]
["Solidago patula","Asteraceae","native",6,null,"OBL","Round-Leaf Goldenrod"]
["Solidago pinetorum","Asteraceae","native",9,null,"---","---"]
["Solidago puberula","Asteraceae","native",6,null,"FACU","Downy Goldenrod"]
["Solidago rugosa","Asteraceae","native",2,null,"FAC","Wrinkle-Leaf Goldenrod"]
["Solidago rupestris","Asteraceae","native",10,null,"---","---"]
["Solidago sempervirens","Asteraceae","native",2,null,"FACW","Seaside Goldenrod"]
["Solidago simplex","Asteraceae","native",10,null,"FACU","Mt. Albert Goldenrod"]
["Solidago simplex ssp. randii","Asteraceae","native",10,null,"---","---"]
["Solidago simplex ssp. randii var. racemosa","Asteraceae","native",10,null,"---","---"]
["Solidago simplex ssp. randii var. randii","Asteraceae","native",10,null,"---","---"]
["Solidago speciosa","Asteraceae","native",4,null,"---","---"]
["Solidago sphacelata","Asteraceae","native",8,null,"---","---"]
["Solidago squarrosa","Asteraceae","native",8,null,"---","---"]
["Solidago uliginosa","Asteraceae","native",8,null,"OBL","Bog Goldenrod"]
["Solidago uliginosa var. linoides","Asteraceae","native",8,null,"---","---"]
["Solidago ulmifolia","Asteraceae","native",6,null,"---","---"]
["Sonchus arvensis","Asteraceae","non-native",0,null,"FACU","Field Sow-Thistle"]
["Sonchus arvensis ssp. uliginosus","Asteraceae","non-native",0,null,"---","---"]
["Sonchus asper","Asteraceae","non-native",0,null,"FAC","Spiny-Leaf Sow-Thistle"]
["Sonchus oleraceus","Asteraceae","non-native",0,null,"UPL","Common Sow-Thistle"]
["Sorbaria sorbifolia","Rosaceae","non-native",0,null,"---","---"]
["Sorbus aucuparia","Rosaceae","non-native",0,null,"---","---"]
["Sorghastrum nutans","Poaceae","native",5,null,"FACU","Yellow Indian Grass"]
["Sorghum bicolor","Poaceae","non-native",0,null,"UPL","Broom-Corn"]
["Sorghum bicolor ssp. drummondii","Poaceae","non-native",0,null,"---","---"]
["Sorghum halepense","Poaceae","non-native",0,null,"FACU","Johnson Grass"]
["Sparganium americanum","Sparganiaceae","native",6,null,"OBL","American Burr-Reed"]
["Sparganium androcladum","Sparganiaceae","native",7,null,"OBL","Branched Burr-Reed"]
["Sparganium eurycarpum","Sparganiaceae","native",6,null,"OBL","Broad-Fruit Burr-Reed"]
["Spartina alterniflora","Poaceae","native",7,null,"OBL","Saltwater Cord Grass"]
["Spartina cynosuroides","Poaceae","native",7,null,"OBL","Big Cord Grass"]
["Spartina patens","Poaceae","native",7,null,"FACW","Salt-Meadow Cord Grass"]
["Spartina pectinata","Poaceae","native",5,null,"OBL","Freshwater Cord Grass"]
["Spergula arvensis","Caryophyllaceae","non-native",0,null,"---","---"]
["Spergula pentandra","Caryophyllaceae","non-native",0,null,"---","---"]
["Spergularia rubra","Caryophyllaceae","non-native",0,null,"FACU","Ruby Sandspurry"]
["Spergularia salina","Caryophyllaceae","non-native",0,null,"---","---"]
["Spermolepis divaricata","Apiaceae","native",3,null,"FACU","Rough-Fruit Scaleseed"]
["Sphenopholis intermedia","Poaceae","native",4,null,"FAC","Slender Wedgescale"]
["Sphenopholis nitida","Poaceae","native",7,null,"FAC","Shiny Wedgescale"]
["Sphenopholis obtusata","Poaceae","native",5,null,"FAC","Prairie Wedgescale"]
["Sphenopholis pensylvanica","Poaceae","native",7,null,"OBL","Swamp Wedgescale"]
["Spinacia oleracea","Chenopodiaceae","non-native",0,null,"---","---"]
["Spiraea alba","Rosaceae","native",5,null,"FACW","White Meadowsweet"]
["Spiraea alba var. latifolia","Rosaceae","native",5,null,"---","---"]
["Spiraea betulifolia","Rosaceae","native",8,null,"FAC","Shiny-Leaf Meadowsweet"]
["Spiraea japonica","Rosaceae","non-native",0,null,"FACU","Japanese Meadowsweet"]
["Spiraea japonica var. fortunei","Rosaceae","non-native",0,null,"---","---"]
["Spiraea prunifolia","Rosaceae","non-native",0,null,"---","---"]
["Spiraea salicifolia","Rosaceae","non-native",0,null,"FACW","Willow-Leaf Meadowsweet"]
["Spiraea tomentosa","Rosaceae","native",4,null,"FACW","Steeplebush"]
["Spiraea virginiana","Rosaceae","native",9,null,"FACU","Virginia Meadowsweet"]
["Spiraea ï¿½vanhouttei","Rosaceae","non-native",0,null,"---","---"]
["Spiranthes cernua","Orchidaceae","native",5,null,"FACW","White Nodding Ladies'-Tresses"]
["Spiranthes lacera","Orchidaceae","native",6,null,"FACU","Northern Slender Ladies'-Tresses"]
["Spiranthes lacera var. gracilis","Orchidaceae","native",2,null,"---","---"]
["Spiranthes magnicamporum","Orchidaceae","native",10,null,"FACU","Great Plains Ladies'-Tresses"]
["Spiranthes ochroleuca","Orchidaceae","native",3,null,"---","---"]
["Spiranthes ovalis","Orchidaceae","native",4,null,"FAC","October Ladies'-Tresses"]
["Spiranthes tuberosa","Orchidaceae","native",4,null,"FACU","Little Ladies'-Tresses"]
["Spiranthes vernalis","Orchidaceae","native",5,null,"FAC","Spring Ladies'-Tresses"]
["Spirodela polyrrhiza","Lemnaceae","native",3,null,"---","---"]
["Sporobolus compositus","Poaceae","native",7,null,"---","---"]
["Sporobolus cryptandrus","Poaceae","non-native",0,null,"UPL","Sand Dropseed"]
["Sporobolus heterolepis","Poaceae","native",10,null,"UPL","Prairie Dropseed"]
["Sporobolus indicus","Poaceae","non-native",0,null,"FACU","Smut Grass"]
["Sporobolus junceus","Poaceae","native",7,null,"---","---"]
["Sporobolus neglectus","Poaceae","non-native",0,null,"FACU","Small Dropseed"]
["Sporobolus vaginiflorus","Poaceae","native",0,null,"---","---"]
["Stachys annua","Lamiaceae","non-native",0,null,"---","---"]
["Stachys arvensis","Lamiaceae","non-native",0,null,"---","---"]
["Stachys eplingii","Lamiaceae","native",6,null,"FAC","Epling's Hedge-Nettle"]
["Stachys floridana","Lamiaceae","non-native",0,null,"FAC","Florida Hedge-Nettle"]
["Stachys germanica","Lamiaceae","non-native",0,null,"---","---"]
["Stachys hyssopifolia","Lamiaceae","native",3,null,"FACW","Hyssop-Leaf Hedge-Nettle"]
["Stachys palustris","Lamiaceae","non-native",0,null,"OBL","Woundwort"]
["Stachys pilosa","Lamiaceae","native",7,null,"FACW","Hairy Hedge-Nettle"]
["Stachys sylvatica","Lamiaceae","non-native",0,null,"---","---"]
["Stachys tenuifolia","Lamiaceae","native",8,null,"FACW","Smooth Hedge-Nettle"]
["Staphylea trifolia","Staphyleaceae","native",7,null,"FAC","American Bladdernut"]
["Steinchisma hians","Poaceae","native",6,null,"FACW","Gaping Grass"]
["Stellaria alsine","Caryophyllaceae","native",5,null,"OBL","Bog Chickweed"]
["Stellaria borealis","Caryophyllaceae","native",10,null,"FACW","Boreal Starwort"]
["Stellaria graminea","Caryophyllaceae","non-native",0,null,"FACU","Grass-Leaf Starwort"]
["Stellaria longifolia","Caryophyllaceae","native",5,null,"FACW","Long-Leaf Starwort"]
["Stellaria media","Caryophyllaceae","non-native",0,null,"UPL","Common Chickweed"]
["Stellaria pubera","Caryophyllaceae","native",6,null,"---","---"]
["Stenanthium gramineum","Liliaceae","native",10,null,"FACW","Eastern Featherbells"]
["Stenotaphrum secundatum","Poaceae","non-native",0,null,"FAC","St. Augustine Grass"]
["Stephanandra incisa","Rosaceae","non-native",0,null,"---","---"]
["Stewartia ovata","Theaceae","native",9,null,"---","---"]
["Streptopus amplexifolius","Liliaceae","native",10,null,"FAC","Clasping Twistedstalk"]
["Streptopus lanceolatus","Liliaceae","native",8,null,"FAC","Lance-Leaf Twistedstalk"]
["Strophostyles helvola","Fabaceae","native",3,null,"FACU","Trailing Fuzzy-Bean"]
["Strophostyles leiosperma","Fabaceae","non-native",0,null,"---","---"]
["Strophostyles umbellata","Fabaceae","native",2,null,"FACU","Pink Fuzzy-Bean"]
["Stuckenia filiformis","Potamogetonaceae","native",9,null,"OBL","Slender-Leaf False Pondweed"]
["Stuckenia pectinata","Potamogetonaceae","native",3,null,"OBL","Sago False Pondweed"]
["Stylosanthes biflora","Fabaceae","native",4,null,"---","---"]
["Styrax americanus","Styracaceae","native",7,null,"OBL","American Snowbell"]
["Styrax grandifolius","Styracaceae","native",7,null,"FACU","Big-Leaf Snowbell"]
["Styrax japonicus","Styracaceae","non-native",0,null,"---","---"]
["Suaeda maritima","Chenopodiaceae","non-native",0,null,"OBL","Herbaceous Seepweed"]
["Suaeda maritima ssp. richii","Chenopodiaceae","non-native",0,null,"---","---"]
["Symphoricarpos albus","Caprifoliaceae","native",8,null,"FACU","Common Snowberry"]
["Symphoricarpos albus var. laevigatus","Caprifoliaceae","non-native",0,null,"---","---"]
["Symphoricarpos orbiculatus","Caprifoliaceae","native",1,null,"FACU","Coral-Berry"]
["Symphyotrichum concolor","Asteraceae","native",9,null,"---","---"]
["Symphyotrichum cordifolium","Asteraceae","native",5,null,"---","---"]
["Symphyotrichum depauperatum","Asteraceae","native",10,null,"---","---"]
["Symphyotrichum dumosum","Asteraceae","native",3,null,"FAC","Rice Button American-Aster"]
["Symphyotrichum ericoides","Asteraceae","native",9,null,"FACU","White Heath American-Aster"]
["Symphyotrichum laeve","Asteraceae","native",2,null,"FACU","Smooth Blue American-Aster"]
["Symphyotrichum laeve var. concinnum","Asteraceae","native",7,null,"---","---"]
["Symphyotrichum lanceolatum","Asteraceae","native",2,null,"FACW","White Panicled American-Aster"]
["Symphyotrichum lateriflorum","Asteraceae","native",6,null,"FACW","Farewell-Summer"]
["Symphyotrichum lateriflorum var. horizontale","Asteraceae","native",6,null,"---","---"]
["Symphyotrichum lowrieanum","Asteraceae","native",5,null,"---","---"]
["Symphyotrichum novae-angliae","Asteraceae","native",2,null,"FACW","New England American-Aster"]
["Symphyotrichum novi-belgii","Asteraceae","native",6,null,"FACW","New Belgium American-Aster"]
["Symphyotrichum patens","Asteraceae","native",8,null,"---","---"]
["Symphyotrichum phlogifolium","Asteraceae","native",8,null,"---","---"]
["Symphyotrichum pilosum","Asteraceae","native",0,null,"FAC","White Oldfield American-Aster"]
["Symphyotrichum pilosum var. pringlei","Asteraceae","native",1,null,"---","---"]
["Symphyotrichum praealtum","Asteraceae","native",8,null,"FACW","Willow-Leaf American-Aster"]
["Symphyotrichum praealtum var. angustior","Asteraceae","native",8,null,"---","---"]
["Symphyotrichum prenanthoides","Asteraceae","native",4,null,"FAC","Crooked-Stem American-Aster"]
["Symphyotrichum puniceum","Asteraceae","native",4,null,"OBL","Purple-Stem American-Aster"]
["Symphyotrichum racemosum","Asteraceae","native",3,null,"FACW","Fragile-Stem American-Aster"]
["Symphyotrichum shortii","Asteraceae","native",7,null,"---","---"]
["Symphyotrichum undulatum","Asteraceae","native",6,null,"---","---"]
["Symphytum officinale","Boraginaceae","non-native",0,null,"---","---"]
["Symplocarpus foetidus","Araceae","native",5,null,"OBL","Skunk-Cabbage"]
["Symplocos paniculata","Symplocaceae","non-native",0,null,"---","---"]
["Symplocos tinctoria","Symplocaceae","native",6,null,"FAC","Horsesugar"]
["Syringa vulgaris","Oleaceae","non-native",0,null,"---","---"]
["Taeniatherum caput-medusae","Poaceae","non-native",0,null,"---","---"]
["Taenidia integerrima","Apiaceae","native",8,null,"---","---"]
["Taenidia montana","Apiaceae","native",10,null,"---","---"]
["Tagetes erecta","Asteraceae","non-native",0,null,"---","---"]
["Tagetes minuta","Asteraceae","non-native",0,null,"---","---"]
["Tagetes patula","Asteraceae","non-native",0,null,"---","---"]
["Tamarix parviflora","Tamaricaceae","non-native",0,null,"FAC","Small-Flower Tamarisk"]
["Tanacetum parthenium","Asteraceae","non-native",0,null,"---","---"]
["Tanacetum vulgare","Asteraceae","non-native",0,null,"UPL","Common Tansy"]
["Taraxacum laevigatum","Asteraceae","non-native",0,null,"---","---"]
["Taraxacum officinale","Asteraceae","non-native",0,null,"FACU","Common Dandelion"]
["Tarenaya hassleriana","Capparaceae","non-native",0,null,"FACU","Pinkqueen"]
["Taxus canadensis","Taxaceae","native",7,null,"FAC","American Yew"]
["Taxus cuspidata","Taxaceae","non-native",0,null,"---","---"]
["Teesdalia nudicaulis","Brassicaceae","non-native",0,null,"---","---"]
["Tephrosia spicata","Fabaceae","native",5,null,"---","---"]
["Tephrosia virginiana","Fabaceae","native",5,null,"---","---"]
["Tetragonia tetragonioides","Aizoaceae","non-native",0,null,"---","---"]
["Tetragonotheca helianthoides","Asteraceae","native",10,null,"---","---"]
["Teucrium canadense","Lamiaceae","native",3,null,"FACW","American Germander"]
["Teucrium canadense var. occidentale","Lamiaceae","non-native",0,null,"---","---"]
["Thalictrum clavatum","Ranunculaceae","native",10,null,"FACW","Mountain Meadow-Rue"]
["Thalictrum coriaceum","Ranunculaceae","native",7,null,"FACU","Maid-of-the-Mist"]
["Thalictrum dioicum","Ranunculaceae","native",6,null,"FAC","Early Meadow-Rue"]
["Thalictrum macrostylum","Ranunculaceae","native",8,null,"FACW","Small-Leaf Meadow-Rue"]
["Thalictrum pubescens","Ranunculaceae","native",4,null,"FACW","King-of-the-Meadow"]
["Thalictrum revolutum","Ranunculaceae","native",8,null,"FAC","Waxy-Leaf Meadow-Rue"]
["Thalictrum thalictroides","Ranunculaceae","native",6,null,"FACU","Rue-Anemone"]
["Thaspium barbinode","Apiaceae","native",6,null,"FACU","Hairy-Joint Meadow-Parsnip"]
["Thaspium trifoliatum","Apiaceae","native",10,null,"---","---"]
["Thaspium trifoliatum var. aureum","Apiaceae","native",6,null,"---","---"]
["Thelypteris noveboracensis","Thelypteridaceae","native",5,null,"---","---"]
["Thelypteris palustris","Thelypteridaceae","native",6,null,"FACW","Eastern Marsh Fern"]
["Thermopsis mollis","Fabaceae","native",6,null,"---","---"]
["Thlaspi alliaceum","Brassicaceae","non-native",0,null,"---","---"]
["Thlaspi arvense","Brassicaceae","non-native",0,null,"UPL","Field Pennycress"]
["Thuja occidentalis","Cupressaceae","native",10,null,"FACW","Eastern Arborvitae"]
["Thymus pulegioides","Lamiaceae","non-native",0,null,"---","---"]
["Thymus vulgaris","Lamiaceae","non-native",0,null,"---","---"]
["Tiarella cordifolia","Saxifragaceae","native",7,null,"FAC","Heart-Leaf Foamflower"]
["Tilia americana","Tiliaceae","native",7,null,"FACU","American Basswood"]
["Tilia americana var. heterophylla","Tiliaceae","native",7,null,"---","---"]
["Tipularia discolor","Orchidaceae","native",5,null,"FACU","Crippled-Cranefly"]
["Torilis japonica","Apiaceae","non-native",0,null,"---","---"]
["Torilis leptophylla","Apiaceae","non-native",0,null,"---","---"]
["Torreyochloa pallida","Poaceae","native",6,null,"OBL","Pale False Manna Grass"]
["Toxicodendron pubescens","Anacardiaceae","native",6,null,"FACU","Eastern Poison-Oak"]
["Toxicodendron radicans","Anacardiaceae","native",1,null,"FAC","Eastern Poison Ivy"]
["Toxicodendron vernix","Anacardiaceae","native",9,null,"OBL","Poison-Sumac"]
["Trachelospermum difforme","Apocynaceae","native",7,null,"---","---"]
["Tradescantia ohiensis","Commelinaceae","native",4,null,"FAC","Bluejacket"]
["Tradescantia subaspera","Commelinaceae","native",6,null,"---","---"]
["Tradescantia subaspera var. montana","Commelinaceae","native",7,null,"---","---"]
["Tragia urens","Euphorbiaceae","native",5,null,"---","---"]
["Tragia urticifolia","Euphorbiaceae","native",8,null,"---","---"]
["Tragopogon dubius","Asteraceae","non-native",0,null,"---","---"]
["Tragopogon lamottei","Asteraceae","non-native",0,null,"---","---"]
["Tragopogon porrifolius","Asteraceae","non-native",0,null,"---","---"]
["Tragus racemosus","Poaceae","non-native",0,null,"---","---"]
["Trapa natans","Trapaceae","non-native",0,null,"OBL","Water-Chestnut"]
["Trautvetteria caroliniensis","Ranunculaceae","native",9,null,"FACW","Carolina Tassel-Rue"]
["Triadenum fraseri","Clusiaceae","native",7,null,"---","---"]
["Triadenum tubulosum","Clusiaceae","native",8,null,"---","---"]
["Triadenum virginicum","Clusiaceae","native",6,null,"---","---"]
["Trianthema portulacastrum","Aizoaceae","non-native",0,null,"FAC","Desert Horse-Purslane"]
["Tribulus terrestris","Zygophyllaceae","non-native",0,null,"---","---"]
["Trichomanes intricatum","Hymenophyllaceae","native",10,null,"---","---"]
["Trichophorum planifolium","Cyperaceae","native",8,null,"---","---"]
["Trichostema brachiatum","Lamiaceae","native",6,null,"---","---"]
["Trichostema dichotomum","Lamiaceae","native",2,null,"UPL","Forked Bluecurls"]
["Trichostema setaceum","Lamiaceae","native",6,null,"---","---"]
["Tricyrtis hirta","Liliaceae","non-native",0,null,"---","---"]
["Tridens flavus","Poaceae","native",1,null,"FACU","Tall Redtop"]
["Trientalis borealis","Primulaceae","native",7,null,"FAC","Maystar"]
["Trifolium arvense","Fabaceae","non-native",0,null,"---","---"]
["Trifolium aureum","Fabaceae","non-native",0,null,"---","---"]
["Trifolium campestre","Fabaceae","non-native",0,null,"---","---"]
["Trifolium dubium","Fabaceae","non-native",0,null,"UPL","Suckling Clover"]
["Trifolium fragiferum","Fabaceae","non-native",0,null,"FACU","Strawberry-Head Clover"]
["Trifolium hybridum","Fabaceae","non-native",0,null,"FACU","Alsike Clover"]
["Trifolium incarnatum","Fabaceae","non-native",0,null,"---","---"]
["Trifolium lappaceum","Fabaceae","non-native",0,null,"---","---"]
["Trifolium pratense","Fabaceae","non-native",0,null,"FACU","Red Clover"]
["Trifolium reflexum","Fabaceae","native",6,null,"---","---"]
["Trifolium repens","Fabaceae","non-native",0,null,"FACU","White Clover"]
["Trifolium resupinatum","Fabaceae","non-native",0,null,"UPL","Reversed Clover"]
["Trifolium squamosum","Fabaceae","non-native",0,null,"---","---"]
["Trifolium striatum","Fabaceae","non-native",0,null,"---","---"]
["Trifolium virginicum","Fabaceae","native",9,null,"---","---"]
["Trigonella procumbens","Fabaceae","non-native",0,null,"---","---"]
["Trillium cernuum","Liliaceae","native",8,null,"FACW","Whip-Poor-Will-Flower"]
["Trillium erectum","Liliaceae","native",7,null,"FACU","Stinking-Benjamin"]
["Trillium grandiflorum","Liliaceae","native",8,null,"---","---"]
["Trillium recurvatum","Liliaceae","non-native",0,null,"UPL","Bloody-Butcher"]
["Trillium sessile","Liliaceae","native",8,null,"UPL","Toadshade"]
["Trillium undulatum","Liliaceae","native",7,null,"FACU","Painted Trillium"]
["Triodanis biflora","Campanulaceae","native",1,null,"---","---"]
["Triodanis perfoliata","Campanulaceae","native",1,null,"FAC","Clasping-Leaf Venus'-Looking-Glass"]
["Triosteum angustifolium","Caprifoliaceae","native",6,null,"FAC","Yellow-Fruit Horse-Gentian"]
["Triosteum aurantiacum","Caprifoliaceae","native",5,null,"---","---"]
["Triosteum aurantiacum var. glaucescens","Caprifoliaceae","native",5,null,"---","---"]
["Triosteum perfoliatum","Caprifoliaceae","native",7,null,"---","---"]
["Triphora trianthophora","Orchidaceae","native",8,null,"---","---"]
["Triplasis purpurea","Poaceae","native",5,null,"---","---"]
["Tripleurospermum perforatum","Asteraceae","non-native",0,null,"---","---"]
["Tripsacum dactyloides","Poaceae","native",4,null,"FACW","Eastern Mock Grama"]
["Tristagma uniflorum","Liliaceae","non-native",0,null,"---","---"]
["Triticum aestivum","Poaceae","non-native",0,null,"---","---"]
["Trollius laxus","Ranunculaceae","native",10,null,"OBL","American Globeflower"]
["Tropaeolum majus","Tropaeolaceae","non-native",0,null,"UPL","Garden-Nasturtium"]
["Tsuga canadensis","Pinaceae","native",8,null,"FACU","Eastern Hemlock"]
["Tsuga caroliniana","Pinaceae","native",10,null,"---","---"]
["Tulipa sylvestris","Liliaceae","non-native",0,null,"---","---"]
["Turgenia latifolia","Apiaceae","non-native",0,null,"---","---"]
["Tussilago farfara","Asteraceae","non-native",0,null,"FACU","Colt's-Foot"]
["Typha angustifolia","Typhaceae","native",1,null,"OBL","Narrow-Leaf Cat-Tail"]
["Typha latifolia","Typhaceae","native",2,null,"OBL","Broad-Leaf Cat-Tail"]
["Typha X glauca","Typhaceae","native",0,null,"OBL","_?_"]
["Ulex europaeus","Fabaceae","non-native",0,null,"UPL","Common Gorse"]
["Ulmus alata","Ulmaceae","native",4,null,"FACU","Winged Elm"]
["Ulmus americana","Ulmaceae","native",5,null,"FACW","American Elm"]
["Ulmus parvifolia","Ulmaceae","non-native",0,null,"UPL","Chinese Elm"]
["Ulmus procera","Ulmaceae","non-native",0,null,"---","---"]
["Ulmus pumila","Ulmaceae","non-native",0,null,"FACU","Siberian Elm"]
["Ulmus rubra","Ulmaceae","native",4,null,"FAC","Slippery Elm"]
["Urochloa adspersa","Poaceae","non-native",0,null,"---","---"]
["Urochloa ramosa","Poaceae","non-native",0,null,"FACU","Dixie Liverseed Grass"]
["Urtica dioica","Urticaceae","non-native",0,null,"FACU","Stinging Nettle"]
["Urtica dioica ssp. gracilis","Urticaceae","native",2,null,"---","---"]
["Urtica urens","Urticaceae","non-native",0,null,"---","---"]
["Utricularia geminiscapa","Lentibulariaceae","native",10,null,"OBL","Hidden-Fruit Bladderwort"]
["Utricularia gibba","Lentibulariaceae","native",6,null,"OBL","Humped Bladderwort"]
["Utricularia inflata","Lentibulariaceae","native",7,null,"OBL","Swollen Bladderwort"]
["Utricularia intermedia","Lentibulariaceae","native",10,null,"OBL","Flat-Leaf Bladderwort"]
["Utricularia juncea","Lentibulariaceae","native",8,null,"OBL","Southern Bladderwort"]
["Utricularia macrorhiza","Lentibulariaceae","native",7,null,"OBL","Greater Bladderwort"]
["Utricularia minor","Lentibulariaceae","native",10,null,"OBL","Lesser Bladderwort"]
["Utricularia radiata","Lentibulariaceae","native",7,null,"OBL","Little Floating Bladderwort"]
["Utricularia striata","Lentibulariaceae","native",7,null,"OBL","Striped Bladderwort"]
["Utricularia subulata","Lentibulariaceae","native",8,null,"OBL","Zigzag Bladderwort"]
["Uvularia perfoliata","Liliaceae","native",6,null,"FACU","Perfoliate Bellwort"]
["Uvularia puberula","Liliaceae","native",8,null,"FACU","Mountain Bellwort"]
["Uvularia sessilifolia","Liliaceae","native",6,null,"FAC","Sessile-Leaf Bellwort"]
["Vaccaria hispanica","Caryophyllaceae","non-native",0,null,"FAC","Cowcockle"]
["Vaccinium angustifolium","Ericaceae","native",5,null,"FACU","Late Lowbush Blueberry"]
["Vaccinium corymbosum","Ericaceae","native",6,null,"FACW","Highbush Blueberry"]
["Vaccinium elliottii","Ericaceae","native",7,null,"FACW","Elliott's Blueberry"]
["Vaccinium erythrocarpum","Ericaceae","native",9,null,"FAC","Southern Mountain-Cranberry"]
["Vaccinium formosum","Ericaceae","native",6,null,"OBL","Southern Blueberry"]
["Vaccinium fuscatum","Ericaceae","native",5,null,"FAC","Black Blueberry"]
["Vaccinium macrocarpon","Ericaceae","native",10,null,"OBL","Large Cranberry"]
["Vaccinium myrtilloides","Ericaceae","native",8,null,"FACW","Velvet-Leaf Blueberry"]
["Vaccinium pallidum","Ericaceae","native",6,null,"---","---"]
["Vaccinium stamineum","Ericaceae","native",6,null,"FACU","Deerberry"]
["Vaccinium tenellum","Ericaceae","native",8,null,"UPL","Small Black Blueberry"]
["Valeriana officinalis","Valerianaceae","non-native",0,null,"---","---"]
["Valeriana pauciflora","Valerianaceae","native",7,null,"FACW","Large-Flower Valerian"]
["Valerianella chenopodiifolia","Valerianaceae","native",2,null,"FAC","Goose-Foot Cornsalad"]
["Valerianella locusta","Valerianaceae","non-native",0,null,"---","---"]
["Valerianella radiata","Valerianaceae","native",2,null,"FAC","Beaked Cornsalad"]
["Valerianella umbilicata","Valerianaceae","native",3,null,"FAC","Navel Cornsalad"]
["Vallisneria americana","Hydrocharitaceae","native",5,null,"OBL","American Eel-Grass"]
["Veratrum latifolium","Liliaceae","native",9,null,"FACU","Slender Bunchflower"]
["Veratrum parviflorum","Liliaceae","native",8,null,"---","---"]
["Veratrum virginicum","Liliaceae","native",9,null,"FACW","Virginia Bunchflower"]
["Veratrum viride","Liliaceae","native",7,null,"FACW","American False Hellebore"]
["Verbascum blattaria","Scrophulariaceae","non-native",0,null,"UPL","White Moth Mullein"]
["Verbascum lychnitis","Scrophulariaceae","non-native",0,null,"---","---"]
["Verbascum nigrum","Scrophulariaceae","non-native",0,null,"---","---"]
["Verbascum phlomoides","Scrophulariaceae","non-native",0,null,"---","---"]
["Verbascum sinuatum","Scrophulariaceae","non-native",0,null,"---","---"]
["Verbascum thapsus","Scrophulariaceae","non-native",0,null,"FACU","Great Mullein"]
["Verbena bracteata","Verbenaceae","non-native",0,null,"UPL","Carpet Vervain"]
["Verbena brasiliensis","Verbenaceae","non-native",0,null,"FACU","Vervain"]
["Verbena hastata","Verbenaceae","native",3,null,"FACW","Simpler's-Joy"]
["Verbena officinalis","Verbenaceae","non-native",0,null,"FACU","Herb-of-the-Cross"]
["Verbena scabra","Verbenaceae","native",8,null,"FACW","Sandpaper Vervain"]
["Verbena simplex","Verbenaceae","native",5,null,"---","---"]
["Verbena stricta","Verbenaceae","non-native",0,null,"---","---"]
["Verbena urticifolia","Verbenaceae","native",2,null,"FAC","White Vervain"]
["Verbena urticifolia var. leiocarpa","Verbenaceae","native",2,null,"---","---"]
["Verbesina alternifolia","Asteraceae","native",2,null,"FAC","Wingstem"]
["Verbesina encelioides","Asteraceae","non-native",0,null,"FACU","Golden Crownbeard"]
["Verbesina occidentalis","Asteraceae","native",4,null,"FACU","Yellow Crownbeard"]
["Vernonia gigantea","Asteraceae","native",3,null,"FAC","Giant Ironweed"]
["Vernonia glauca","Asteraceae","native",7,null,"---","---"]
["Vernonia noveboracensis","Asteraceae","native",3,null,"FACW","New York Ironweed"]
["Veronica agrestis","Scrophulariaceae","non-native",0,null,"---","---"]
["Veronica americana","Scrophulariaceae","native",6,null,"OBL","American-Brooklime"]
["Veronica anagallis-aquatica","Scrophulariaceae","non-native",0,null,"OBL","Blue Water Speedwell"]
["Veronica arvensis","Scrophulariaceae","non-native",0,null,"UPL","Corn Speedwell"]
["Veronica austriaca","Scrophulariaceae","non-native",0,null,"---","---"]
["Veronica beccabunga","Scrophulariaceae","non-native",0,null,"OBL","European Speedwell"]
["Veronica chamaedrys","Scrophulariaceae","non-native",0,null,"UPL","Germander Speedwell"]
["Veronica filiformis","Scrophulariaceae","non-native",0,null,"---","---"]
["Veronica hederifolia","Scrophulariaceae","non-native",0,null,"---","---"]
["Veronica officinalis","Scrophulariaceae","non-native",0,null,"FACU","Common Gypsyweed"]
["Veronica peregrina","Scrophulariaceae","native",0,null,"FAC","Neckweed"]
["Veronica peregrina ssp. xalapensis","Scrophulariaceae","native",0,null,"---","---"]
["Veronica persica","Scrophulariaceae","non-native",0,null,"---","---"]
["Veronica polita","Scrophulariaceae","non-native",0,null,"---","---"]
["Veronica scutellata","Scrophulariaceae","native",7,null,"OBL","Grass-Leaf Speedwell"]
["Veronica serpyllifolia","Scrophulariaceae","non-native",0,null,"FAC","Thyme-Leaf Speedwell"]
["Veronicastrum virginicum","Scrophulariaceae","native",7,null,"FACU","Culver's-Root"]
["Viburnum acerifolium","Caprifoliaceae","native",6,null,"UPL","Maple-Leaf Arrow-Wood"]
["Viburnum dentatum","Caprifoliaceae","native",5,null,"FAC","Southern Arrow-Wood"]
["Viburnum dilatatum","Caprifoliaceae","non-native",0,null,"---","---"]
["Viburnum lentago","Caprifoliaceae","native",7,null,"FAC","Nanny-Berry"]
["Viburnum nudum","Caprifoliaceae","native",7,null,"OBL","Possumhaw"]
["Viburnum nudum var. cassinoides","Caprifoliaceae","native",7,null,"---","---"]
["Viburnum opulus","Caprifoliaceae","non-native",0,null,"FACW","Highbush-Cranberry"]
["Viburnum plicatum","Caprifoliaceae","non-native",0,null,"---","---"]
["Viburnum prunifolium","Caprifoliaceae","native",5,null,"FACU","Smooth Blackhaw"]
["Viburnum rafinesquianum","Caprifoliaceae","native",8,null,"---","---"]
["Viburnum recognitum","Caprifoliaceae","native",5,null,"FAC","Smooth Arrow-Wood"]
["Viburnum rufidulum","Caprifoliaceae","native",6,null,"UPL","Rusty Blackhaw"]
["Viburnum setigerum","Caprifoliaceae","non-native",0,null,"---","---"]
["Viburnum sieboldii","Caprifoliaceae","non-native",0,null,"---","---"]
["Vicia americana","Fabaceae","native",6,null,"FACU","American Purple Vetch"]
["Vicia caroliniana","Fabaceae","native",8,null,"FACU","Carolina Vetch"]
["Vicia cracca","Fabaceae","non-native",0,null,"---","---"]
["Vicia grandiflora","Fabaceae","non-native",0,null,"---","---"]
["Vicia hirsuta","Fabaceae","non-native",0,null,"---","---"]
["Vicia lathyroides","Fabaceae","non-native",0,null,"---","---"]
["Vicia sativa","Fabaceae","non-native",0,null,"FACU","Garden Vetch"]
["Vicia tetrasperma","Fabaceae","non-native",0,null,"---","---"]
["Vicia villosa","Fabaceae","non-native",0,null,"---","---"]
["Vicia villosa ssp. varia","Fabaceae","non-native",0,null,"---","---"]
["Vigna luteola","Fabaceae","non-native",0,null,"FACW","Wild Cow-Pea"]
["Vigna unguiculata","Fabaceae","non-native",0,null,"---","---"]
["Vinca major","Apocynaceae","non-native",0,null,"---","---"]
["Vinca minor","Apocynaceae","non-native",0,null,"---","---"]
["Viola affinis","Violaceae","native",7,null,"FACW","Sand Violet"]
["Viola arvensis","Violaceae","non-native",0,null,"---","---"]
["Viola bicolor","Violaceae","native",1,null,"FACU","Field Pansy"]
["Viola blanda","Violaceae","native",5,null,"FACW","Sweet White Violet"]
["Viola blanda var. palustriformis","Violaceae","native",9,null,"---","---"]
["Viola canadensis","Violaceae","native",7,null,"FAC","Canadian White Violet"]
["Viola cucullata","Violaceae","native",5,null,"FACW","Marsh Blue Violet"]
["Viola hastata","Violaceae","native",7,null,"UPL","Halberd-Leaf Yellow Violet"]
["Viola hirsutula","Violaceae","native",7,null,"FACU","Southern Woodland Violet"]
["Viola labradorica","Violaceae","native",7,null,"FAC","Alpine Violet"]
["Viola macloskeyi","Violaceae","native",7,null,"FACW","Smooth White Violet"]
["Viola odorata","Violaceae","non-native",0,null,"---","---"]
["Viola palmata","Violaceae","native",5,null,"FACU","Three-Lobe Violet"]
["Viola pedata","Violaceae","native",8,null,"FACU","Bird-Foot Violet"]
["Viola pubescens","Violaceae","native",7,null,"FACU","Downy Yellow Violet"]
["Viola pubescens var. scabriuscula","Violaceae","native",6,null,"---","---"]
["Viola rostrata","Violaceae","native",6,null,"FACU","Long-Spur Violet"]
["Viola rotundifolia","Violaceae","native",7,null,"FAC","Round-Leaf Yellow Violet"]
["Viola sagittata","Violaceae","native",5,null,"FAC","Arrow-Leaf Violet"]
["Viola sagittata var. ovata","Violaceae","native",5,null,"---","---"]
["Viola sororia","Violaceae","native",3,null,"FAC","Hooded Blue Violet"]
["Viola striata","Violaceae","native",4,null,"FACW","Striped Cream Violet"]
["Viola tricolor","Violaceae","non-native",0,null,"---","---"]
["Viola X palmata","Violaceae","native",5,null,"---","---"]
["Viola X primulifolia","Violaceae","native",6,null,"---","---"]
["Vitex agnus-castus","Verbenaceae","non-native",0,null,"---","---"]
["Vitis aestivalis","Vitaceae","native",4,null,"FACU","Summer Grape"]
["Vitis aestivalis var. bicolor","Vitaceae","native",4,null,"---","---"]
["Vitis labrusca","Vitaceae","native",4,null,"FACU","Fox Grape"]
["Vitis riparia","Vitaceae","native",4,null,"FACW","River-Bank Grape"]
["Vitis rotundifolia","Vitaceae","native",5,null,"FAC","Muscadine"]
["Vitis rupestris","Vitaceae","native",9,null,"FACU","Rock Grape"]
["Vitis vinifera","Vitaceae","non-native",0,null,"---","---"]
["Vitis vulpina","Vitaceae","native",3,null,"FAC","Frost Grape"]
["Vittaria appalachiana","Vittariaceae","native",10,null,"---","---"]
["Vulpia myuros","Poaceae","non-native",0,null,"UPL","Rat-Tail Six-Weeks Grass"]
["Vulpia octoflora","Poaceae","native",3,null,"UPL","Eight-Flower Six-Weeks Grass"]
["Vulpia octoflora var. glauca","Poaceae","native",3,null,"---","---"]
["Waldsteinia fragarioides","Rosaceae","native",7,null,"---","---"]
["Wisteria floribunda","Fabaceae","non-native",0,null,"---","---"]
["Wisteria frutescens","Fabaceae","native",7,null,"FACW","American Wisteria"]
["Wisteria sinensis","Fabaceae","non-native",0,null,"---","---"]
["Wolffia borealis","Lemnaceae","native",5,null,"OBL","Northern Watermeal"]
["Wolffia brasiliensis","Lemnaceae","native",3,null,"OBL","Brazilian Watermeal"]
["Wolffia columbiana","Lemnaceae","native",4,null,"OBL","Columbian Watermeal"]
["Woodsia ilvensis","Dryopteridaceae","native",9,null,"---","---"]
["Woodsia obtusa","Dryopteridaceae","native",7,null,"---","---"]
["Woodwardia areolata","Blechnaceae","native",8,null,"FACW","Netted Chain Fern"]
["Woodwardia virginica","Blechnaceae","native",8,null,"OBL","Virginia Chain Fern"]
["Xanthium strumarium","Asteraceae","non-native",0,null,"FAC","Rough Cockleburr"]
["Xanthium strumarium var. canadense","Asteraceae","native",0,null,"---","---"]
["Xanthium strumarium var. glabratum","Asteraceae","native",0,null,"---","---"]
["Xanthorhiza simplicissima","Ranunculaceae","native",8,null,"FACW","Shrub Yellowroot"]
["Xerophyllum asphodeloides","Liliaceae","native",10,null,"---","---"]
["Xyris caroliniana","Xyridaceae","native",10,null,"FACW","Carolina Yellow-Eyed-Grass"]
["Xyris difformis","Xyridaceae","native",6,null,"OBL","Bog Yellow-Eyed-Grass"]
["Xyris difformis var. curtissii","Xyridaceae","native",7,null,"---","---"]
["Xyris torta","Xyridaceae","native",7,null,"OBL","Slender Yellow-Eyed-Grass"]
["Youngia japonica","Asteraceae","non-native",0,null,"FACU","Oriental False Hawk's-Beard"]
["Yucca filamentosa","Agavaceae","non-native",0,null,"---","---"]
["Yucca flaccida","Agavaceae","non-native",0,null,"---","---"]
["Zannichellia palustris","Zannichelliaceae","native",6,null,"OBL","Horned-Pondweed"]
["Zanthoxylum americanum","Rutaceae","native",8,null,"FACU","Toothachetree"]
["Zea mays","Poaceae","non-native",0,null,"---","---"]
["Zelkova serrata","Ulmaceae","non-native",0,null,"---","---"]
["Zephyranthes atamasca","Liliaceae","native",7,null,"FACW","Atamasco-Lily"]
["Zigadenus densus","Liliaceae","native",10,null,"---","---"]
["Zigadenus leimanthoides","Liliaceae","native",10,null,"---","---"]
["Zizania aquatica","Poaceae","native",8,null,"OBL","Indian Wild Rice"]
["Zizia aptera","Apiaceae","native",6,null,"FAC","Heart-Leaf Alexanders"]
["Zizia aurea","Apiaceae","native",6,null,"FAC","Golden Alexanders"]
["Zizia trifoliata","Apiaceae","native",7,null,"FACU","Meadow Alexanders"]
["Zygophyllum fabago","Zygophyllaceae","non-native",0,null,"---","---"]